Workbook

Sheet Registrace ZBP
A1: Start. čís. | B1: Příjmení | C1: Jméno | D1: Pohl. | E1: Rok narození | F1: ID tratě | G1: Klub | H1: ID závodu | I1: ID String | J1: Název závodu | K1: Délka tr. (km) | L1: Kategorie (lokální) | M1: Kategorie lokální popis | N1: Kategorie ZBP | O1: Kategorie ZBP Popis | P1: Čas | Q1: Pořadí celkové | R1: Pořadí Kat.Lok | S1: Pořadí Kat.ZBP | T1: Body ZBP | U1: ID String | V1: Dupl. St. Číslo. | W1: Dupl. Osoba
A2: 39 | B2: Čabala | C2: Vojtěch | D2: m | E2: 1993 | F2: M10 | G2: Rabbits Znojmo | H2: 1 | I2: =B2&"x"&C2&"x"&D2&"x"&E2&"x"&H2&"x"&F2 -> ČabalaxVojtěchxmx1993x1xM10 | J2: =VLOOKUP(H2,'Závody a tratě'!$B:$C,2,0) -> Borovinská desítka | K2: =VLOOKUP(H2&"x"&F2,'Závody a tratě'!$A:$F,6,0) -> 10 | L2: =VLOOKUP(TEXT(H2,"000")&UPPER(D2)&TEXT(E2,"0000"),'Kategorie lokální'!$A$2:$F$300,6,TRUE) -> LMA | M2: =VLOOKUP(TEXT(H2,"000")&UPPER(D2)&TEXT(E2,"0000"),'Kategorie lokální'!$A$2:$G$300,7,TRUE) -> L: Muži do 39 | N2: =VLOOKUP(UPPER(D2)&TEXT(E2,"0000"),'Kategorie ZBP'!$A$2:$E$30,5,TRUE) -> MA | O2: =VLOOKUP(N2,'Kategorie ZBP'!$E:$F,2,0) -> Muži do 39 | P2: =VLOOKUP(H2&"x"&A2,Stopky!I:J,2,0) -> 0.02543981481 | Q2: 1 | R2: 1 | S2: 1 | T2: =IF(ISERROR(VLOOKUP(H2&"x"&F2&"xANO",'Závody a tratě'!L:L,1,0))=TRUE,0,_xlfn.IFNA(VLOOKUP(S2,'Body ZBP'!$A$1:$B$40,2,1),0)) -> 30 | U2: =H2&"x"&A2 -> 1x39 | V2: =IF(U2<>"x",COUNTIF($U$2:$U$3000,U2),"") -> 1 | W2: =IF(I2<>"xxxxx",COUNTIF($I$2:$I$3000,I2),"") -> 1
A3: 49 | B3: Mahr | C3: David | D3: m | E3: 1983 | F3: M10 | G3: TJ Znojmo | H3: 1 | I3: =B3&"x"&C3&"x"&D3&"x"&E3&"x"&H3&"x"&F3 -> MahrxDavidxmx1983x1xM10 | J3: =VLOOKUP(H3,'Závody a tratě'!$B:$C,2,0) -> Borovinská desítka | K3: =VLOOKUP(H3&"x"&F3,'Závody a tratě'!$A:$F,6,0) -> 10 | L3: =VLOOKUP(TEXT(H3,"000")&UPPER(D3)&TEXT(E3,"0000"),'Kategorie lokální'!$A$2:$F$300,6,TRUE) -> LMA | M3: =VLOOKUP(TEXT(H3,"000")&UPPER(D3)&TEXT(E3,"0000"),'Kategorie lokální'!$A$2:$G$300,7,TRUE) -> L: Muži do 39 | N3: =VLOOKUP(UPPER(D3)&TEXT(E3,"0000"),'Kategorie ZBP'!$A$2:$E$30,5,TRUE) -> MA | O3: =VLOOKUP(N3,'Kategorie ZBP'!$E:$F,2,0) -> Muži do 39 | P3: =VLOOKUP(H3&"x"&A3,Stopky!I:J,2,0) -> 0.02618055556 | Q3: 2 | R3: 2 | S3: 2 | T3: =IF(ISERROR(VLOOKUP(H3&"x"&F3&"xANO",'Závody a tratě'!L:L,1,0))=TRUE,0,_xlfn.IFNA(VLOOKUP(S3,'Body ZBP'!$A$1:$B$40,2,1),0)) -> 25 | U3: =H3&"x"&A3 -> 1x49 | V3: =IF(U3<>"x",COUNTIF($U$2:$U$3000,U3),"") -> 1 | W3: =IF(I3<>"xxxxx",COUNTIF($I$2:$I$3000,I3),"") -> 1
A4: 61 | B4: Vrba | C4: Ondřej | D4: m | E4: 1984 | F4: M10 | G4: Sokol Studenec | H4: 1 | I4: =B4&"x"&C4&"x"&D4&"x"&E4&"x"&H4&"x"&F4 -> VrbaxOndřejxmx1984x1xM10 | J4: =VLOOKUP(H4,'Závody a tratě'!$B:$C,2,0) -> Borovinská desítka | K4: =VLOOKUP(H4&"x"&F4,'Závody a tratě'!$A:$F,6,0) -> 10 | L4: =VLOOKUP(TEXT(H4,"000")&UPPER(D4)&TEXT(E4,"0000"),'Kategorie lokální'!$A$2:$F$300,6,TRUE) -> LMA | M4: =VLOOKUP(TEXT(H4,"000")&UPPER(D4)&TEXT(E4,"0000"),'Kategorie lokální'!$A$2:$G$300,7,TRUE) -> L: Muži do 39 | N4: =VLOOKUP(UPPER(D4)&TEXT(E4,"0000"),'Kategorie ZBP'!$A$2:$E$30,5,TRUE) -> MA | O4: =VLOOKUP(N4,'Kategorie ZBP'!$E:$F,2,0) -> Muži do 39 | P4: =VLOOKUP(H4&"x"&A4,Stopky!I:J,2,0) -> 0.02649305556 | Q4: 4 | R4: 3 | S4: 3 | T4: =IF(ISERROR(VLOOKUP(H4&"x"&F4&"xANO",'Závody a tratě'!L:L,1,0))=TRUE,0,_xlfn.IFNA(VLOOKUP(S4,'Body ZBP'!$A$1:$B$40,2,1),0)) -> 21 | U4: =H4&"x"&A4 -> 1x61 | V4: =IF(U4<>"x",COUNTIF($U$2:$U$3000,U4),"") -> 1 | W4: =IF(I4<>"xxxxx",COUNTIF($I$2:$I$3000,I4),"") -> 1
A5: 35 | B5: Ryšavý | C5: Zdeněk | D5: m | E5: 1991 | F5: M10 | G5: Bahání Okříšky | H5: 1 | I5: =B5&"x"&C5&"x"&D5&"x"&E5&"x"&H5&"x"&F5 -> RyšavýxZdeněkxmx1991x1xM10 | J5: =VLOOKUP(H5,'Závody a tratě'!$B:$C,2,0) -> Borovinská desítka | K5: =VLOOKUP(H5&"x"&F5,'Závody a tratě'!$A:$F,6,0) -> 10 | L5: =VLOOKUP(TEXT(H5,"000")&UPPER(D5)&TEXT(E5,"0000"),'Kategorie lokální'!$A$2:$F$300,6,TRUE) -> LMA | M5: =VLOOKUP(TEXT(H5,"000")&UPPER(D5)&TEXT(E5,"0000"),'Kategorie lokální'!$A$2:$G$300,7,TRUE) -> L: Muži do 39 | N5: =VLOOKUP(UPPER(D5)&TEXT(E5,"0000"),'Kategorie ZBP'!$A$2:$E$30,5,TRUE) -> MA | O5: =VLOOKUP(N5,'Kategorie ZBP'!$E:$F,2,0) -> Muži do 39 | P5: =VLOOKUP(H5&"x"&A5,Stopky!I:J,2,0) -> 0.02701388889 | Q5: 5 | R5: 4 | S5: 4 | T5: =IF(ISERROR(VLOOKUP(H5&"x"&F5&"xANO",'Závody a tratě'!L:L,1,0))=TRUE,0,_xlfn.IFNA(VLOOKUP(S5,'Body ZBP'!$A$1:$B$40,2,1),0)) -> 18 | U5: =H5&"x"&A5 -> 1x35 | V5: =IF(U5<>"x",COUNTIF($U$2:$U$3000,U5),"") -> 1 | W5: =IF(I5<>"xxxxx",COUNTIF($I$2:$I$3000,I5),"") -> 1
A6: 42 | B6: Spáčil | C6: Josef | D6: m | E6: 1995 | F6: M10 | G6: TJ Znojmo | H6: 1 | I6: =B6&"x"&C6&"x"&D6&"x"&E6&"x"&H6&"x"&F6 -> SpáčilxJosefxmx1995x1xM10 | J6: =VLOOKUP(H6,'Závody a tratě'!$B:$C,2,0) -> Borovinská desítka | K6: =VLOOKUP(H6&"x"&F6,'Závody a tratě'!$A:$F,6,0) -> 10 | L6: =VLOOKUP(TEXT(H6,"000")&UPPER(D6)&TEXT(E6,"0000"),'Kategorie lokální'!$A$2:$F$300,6,TRUE) -> LMA | M6: =VLOOKUP(TEXT(H6,"000")&UPPER(D6)&TEXT(E6,"0000"),'Kategorie lokální'!$A$2:$G$300,7,TRUE) -> L: Muži do 39 | N6: =VLOOKUP(UPPER(D6)&TEXT(E6,"0000"),'Kategorie ZBP'!$A$2:$E$30,5,TRUE) -> MA | O6: =VLOOKUP(N6,'Kategorie ZBP'!$E:$F,2,0) -> Muži do 39 | P6: =VLOOKUP(H6&"x"&A6,Stopky!I:J,2,0) -> 0.02799768519 | Q6: 8 | R6: 5 | S6: 5 | T6: =IF(ISERROR(VLOOKUP(H6&"x"&F6&"xANO",'Závody a tratě'!L:L,1,0))=TRUE,0,_xlfn.IFNA(VLOOKUP(S6,'Body ZBP'!$A$1:$B$40,2,1),0)) -> 16 | U6: =H6&"x"&A6 -> 1x42 | V6: =IF(U6<>"x",COUNTIF($U$2:$U$3000,U6),"") -> 1 | W6: =IF(I6<>"xxxxx",COUNTIF($I$2:$I$3000,I6),"") -> 1
A7: 41 | B7: Hrubý | C7: Josef | D7: m | E7: 1992 | F7: M10 | G7: TJ Znojmo | H7: 1 | I7: =B7&"x"&C7&"x"&D7&"x"&E7&"x"&H7&"x"&F7 -> HrubýxJosefxmx1992x1xM10 | J7: =VLOOKUP(H7,'Závody a tratě'!$B:$C,2,0) -> Borovinská desítka | K7: =VLOOKUP(H7&"x"&F7,'Závody a tratě'!$A:$F,6,0) -> 10 | L7: =VLOOKUP(TEXT(H7,"000")&UPPER(D7)&TEXT(E7,"0000"),'Kategorie lokální'!$A$2:$F$300,6,TRUE) -> LMA | M7: =VLOOKUP(TEXT(H7,"000")&UPPER(D7)&TEXT(E7,"0000"),'Kategorie lokální'!$A$2:$G$300,7,TRUE) -> L: Muži do 39 | N7: =VLOOKUP(UPPER(D7)&TEXT(E7,"0000"),'Kategorie ZBP'!$A$2:$E$30,5,TRUE) -> MA | O7: =VLOOKUP(N7,'Kategorie ZBP'!$E:$F,2,0) -> Muži do 39 | P7: =VLOOKUP(H7&"x"&A7,Stopky!I:J,2,0) -> 0.02864583333 | Q7: 10 | R7: 6 | S7: 6 | T7: =IF(ISERROR(VLOOKUP(H7&"x"&F7&"xANO",'Závody a tratě'!L:L,1,0))=TRUE,0,_xlfn.IFNA(VLOOKUP(S7,'Body ZBP'!$A$1:$B$40,2,1),0)) -> 15 | U7: =H7&"x"&A7 -> 1x41 | V7: =IF(U7<>"x",COUNTIF($U$2:$U$3000,U7),"") -> 1 | W7: =IF(I7<>"xxxxx",COUNTIF($I$2:$I$3000,I7),"") -> 1
A8: 25 | B8: Tajbr | C8: Aleš | D8: m | E8: 1981 | F8: M10 | G8: Třebíč | H8: 1 | I8: =B8&"x"&C8&"x"&D8&"x"&E8&"x"&H8&"x"&F8 -> TajbrxAlešxmx1981x1xM10 | J8: =VLOOKUP(H8,'Závody a tratě'!$B:$C,2,0) -> Borovinská desítka | K8: =VLOOKUP(H8&"x"&F8,'Závody a tratě'!$A:$F,6,0) -> 10 | L8: =VLOOKUP(TEXT(H8,"000")&UPPER(D8)&TEXT(E8,"0000"),'Kategorie lokální'!$A$2:$F$300,6,TRUE) -> LMA | M8: =VLOOKUP(TEXT(H8,"000")&UPPER(D8)&TEXT(E8,"0000"),'Kategorie lokální'!$A$2:$G$300,7,TRUE) -> L: Muži do 39 | N8: =VLOOKUP(UPPER(D8)&TEXT(E8,"0000"),'Kategorie ZBP'!$A$2:$E$30,5,TRUE) -> MA | O8: =VLOOKUP(N8,'Kategorie ZBP'!$E:$F,2,0) -> Muži do 39 | P8: =VLOOKUP(H8&"x"&A8,Stopky!I:J,2,0) -> 0.02878472222 | Q8: 11 | R8: 7 | S8: 7 | T8: =IF(ISERROR(VLOOKUP(H8&"x"&F8&"xANO",'Závody a tratě'!L:L,1,0))=TRUE,0,_xlfn.IFNA(VLOOKUP(S8,'Body ZBP'!$A$1:$B$40,2,1),0)) -> 14 | U8: =H8&"x"&A8 -> 1x25 | V8: =IF(U8<>"x",COUNTIF($U$2:$U$3000,U8),"") -> 1 | W8: =IF(I8<>"xxxxx",COUNTIF($I$2:$I$3000,I8),"") -> 1
A9: 20 | B9: Caha | C9: Zbyněk | D9: m | E9: 1984 | F9: M10 | G9: Atletic Třebíč | H9: 1 | I9: =B9&"x"&C9&"x"&D9&"x"&E9&"x"&H9&"x"&F9 -> CahaxZbyněkxmx1984x1xM10 | J9: =VLOOKUP(H9,'Závody a tratě'!$B:$C,2,0) -> Borovinská desítka | K9: =VLOOKUP(H9&"x"&F9,'Závody a tratě'!$A:$F,6,0) -> 10 | L9: =VLOOKUP(TEXT(H9,"000")&UPPER(D9)&TEXT(E9,"0000"),'Kategorie lokální'!$A$2:$F$300,6,TRUE) -> LMA | M9: =VLOOKUP(TEXT(H9,"000")&UPPER(D9)&TEXT(E9,"0000"),'Kategorie lokální'!$A$2:$G$300,7,TRUE) -> L: Muži do 39 | N9: =VLOOKUP(UPPER(D9)&TEXT(E9,"0000"),'Kategorie ZBP'!$A$2:$E$30,5,TRUE) -> MA | O9: =VLOOKUP(N9,'Kategorie ZBP'!$E:$F,2,0) -> Muži do 39 | P9: =VLOOKUP(H9&"x"&A9,Stopky!I:J,2,0) -> 0.02907407407 | Q9: 12 | R9: 8 | S9: 8 | T9: =IF(ISERROR(VLOOKUP(H9&"x"&F9&"xANO",'Závody a tratě'!L:L,1,0))=TRUE,0,_xlfn.IFNA(VLOOKUP(S9,'Body ZBP'!$A$1:$B$40,2,1),0)) -> 13 | U9: =H9&"x"&A9 -> 1x20 | V9: =IF(U9<>"x",COUNTIF($U$2:$U$3000,U9),"") -> 1 | W9: =IF(I9<>"xxxxx",COUNTIF($I$2:$I$3000,I9),"") -> 1
A10: 40 | B10: Šrámek | C10: Ondřej | D10: m | E10: 1997 | F10: M10 | G10: Rabbits Znojmo | H10: 1 | I10: =B10&"x"&C10&"x"&D10&"x"&E10&"x"&H10&"x"&F10 -> ŠrámekxOndřejxmx1997x1xM10 | J10: =VLOOKUP(H10,'Závody a tratě'!$B:$C,2,0) -> Borovinská desítka | K10: =VLOOKUP(H10&"x"&F10,'Závody a tratě'!$A:$F,6,0) -> 10 | L10: =VLOOKUP(TEXT(H10,"000")&UPPER(D10)&TEXT(E10,"0000"),'Kategorie lokální'!$A$2:$F$300,6,TRUE) -> LMA | M10: =VLOOKUP(TEXT(H10,"000")&UPPER(D10)&TEXT(E10,"0000"),'Kategorie lokální'!$A$2:$G$300,7,TRUE) -> L: Muži do 39 | N10: =VLOOKUP(UPPER(D10)&TEXT(E10,"0000"),'Kategorie ZBP'!$A$2:$E$30,5,TRUE) -> MA | O10: =VLOOKUP(N10,'Kategorie ZBP'!$E:$F,2,0) -> Muži do 39 | P10: =VLOOKUP(H10&"x"&A10,Stopky!I:J,2,0) -> 0.0291087963 | Q10: 13 | R10: 9 | S10: 9 | T10: =IF(ISERROR(VLOOKUP(H10&"x"&F10&"xANO",'Závody a tratě'!L:L,1,0))=TRUE,0,_xlfn.IFNA(VLOOKUP(S10,'Body ZBP'!$A$1:$B$40,2,1),0)) -> 12 | U10: =H10&"x"&A10 -> 1x40 | V10: =IF(U10<>"x",COUNTIF($U$2:$U$3000,U10),"") -> 1 | W10: =IF(I10<>"xxxxx",COUNTIF($I$2:$I$3000,I10),"") -> 1
A11: 8 | B11: Janík | C11: Pavel | D11: m | E11: 1984 | F11: M10 | G11: Atletic Třebíč | H11: 1 | I11: =B11&"x"&C11&"x"&D11&"x"&E11&"x"&H11&"x"&F11 -> JaníkxPavelxmx1984x1xM10 | J11: =VLOOKUP(H11,'Závody a tratě'!$B:$C,2,0) -> Borovinská desítka | K11: =VLOOKUP(H11&"x"&F11,'Závody a tratě'!$A:$F,6,0) -> 10 | L11: =VLOOKUP(TEXT(H11,"000")&UPPER(D11)&TEXT(E11,"0000"),'Kategorie lokální'!$A$2:$F$300,6,TRUE) -> LMA | M11: =VLOOKUP(TEXT(H11,"000")&UPPER(D11)&TEXT(E11,"0000"),'Kategorie lokální'!$A$2:$G$300,7,TRUE) -> L: Muži do 39 | N11: =VLOOKUP(UPPER(D11)&TEXT(E11,"0000"),'Kategorie ZBP'!$A$2:$E$30,5,TRUE) -> MA | O11: =VLOOKUP(N11,'Kategorie ZBP'!$E:$F,2,0) -> Muži do 39 | P11: =VLOOKUP(H11&"x"&A11,Stopky!I:J,2,0) -> 0.02960648148 | Q11: 19 | R11: 10 | S11: 10 | T11: =IF(ISERROR(VLOOKUP(H11&"x"&F11&"xANO",'Závody a tratě'!L:L,1,0))=TRUE,0,_xlfn.IFNA(VLOOKUP(S11,'Body ZBP'!$A$1:$B$40,2,1),0)) -> 11 | U11: =H11&"x"&A11 -> 1x8 | V11: =IF(U11<>"x",COUNTIF($U$2:$U$3000,U11),"") -> 1 | W11: =IF(I11<>"xxxxx",COUNTIF($I$2:$I$3000,I11),"") -> 1
A12: 2 | B12: Voda | C12: Karel | D12: m | E12: 1981 | F12: M10 | G12: Třebíč | H12: 1 | I12: =B12&"x"&C12&"x"&D12&"x"&E12&"x"&H12&"x"&F12 -> VodaxKarelxmx1981x1xM10 | J12: =VLOOKUP(H12,'Závody a tratě'!$B:$C,2,0) -> Borovinská desítka | K12: =VLOOKUP(H12&"x"&F12,'Závody a tratě'!$A:$F,6,0) -> 10 | L12: =VLOOKUP(TEXT(H12,"000")&UPPER(D12)&TEXT(E12,"0000"),'Kategorie lokální'!$A$2:$F$300,6,TRUE) -> LMA | M12: =VLOOKUP(TEXT(H12,"000")&UPPER(D12)&TEXT(E12,"0000"),'Kategorie lokální'!$A$2:$G$300,7,TRUE) -> L: Muži do 39 | N12: =VLOOKUP(UPPER(D12)&TEXT(E12,"0000"),'Kategorie ZBP'!$A$2:$E$30,5,TRUE) -> MA | O12: =VLOOKUP(N12,'Kategorie ZBP'!$E:$F,2,0) -> Muži do 39 | P12: =VLOOKUP(H12&"x"&A12,Stopky!I:J,2,0) -> 0.03247685185 | Q12: 26 | R12: 11 | S12: 11 | T12: =IF(ISERROR(VLOOKUP(H12&"x"&F12&"xANO",'Závody a tratě'!L:L,1,0))=TRUE,0,_xlfn.IFNA(VLOOKUP(S12,'Body ZBP'!$A$1:$B$40,2,1),0)) -> 10 | U12: =H12&"x"&A12 -> 1x2 | V12: =IF(U12<>"x",COUNTIF($U$2:$U$3000,U12),"") -> 1 | W12: =IF(I12<>"xxxxx",COUNTIF($I$2:$I$3000,I12),"") -> 1
A13: 33 | B13: Hanáček | C13: Martin | D13: m | E13: 1977 | F13: M10 | G13: TJ Spartak Třebíč | H13: 1 | I13: =B13&"x"&C13&"x"&D13&"x"&E13&"x"&H13&"x"&F13 -> HanáčekxMartinxmx1977x1xM10 | J13: =VLOOKUP(H13,'Závody a tratě'!$B:$C,2,0) -> Borovinská desítka | K13: =VLOOKUP(H13&"x"&F13,'Závody a tratě'!$A:$F,6,0) -> 10 | L13: =VLOOKUP(TEXT(H13,"000")&UPPER(D13)&TEXT(E13,"0000"),'Kategorie lokální'!$A$2:$F$300,6,TRUE) -> LMB | M13: =VLOOKUP(TEXT(H13,"000")&UPPER(D13)&TEXT(E13,"0000"),'Kategorie lokální'!$A$2:$G$300,7,TRUE) -> L: Muži 40 - 49 | N13: =VLOOKUP(UPPER(D13)&TEXT(E13,"0000"),'Kategorie ZBP'!$A$2:$E$30,5,TRUE) -> MB | O13: =VLOOKUP(N13,'Kategorie ZBP'!$E:$F,2,0) -> Muži 40 - 49 | P13: =VLOOKUP(H13&"x"&A13,Stopky!I:J,2,0) -> 0.02646990741 | Q13: 3 | R13: 1 | S13: 1 | T13: =IF(ISERROR(VLOOKUP(H13&"x"&F13&"xANO",'Závody a tratě'!L:L,1,0))=TRUE,0,_xlfn.IFNA(VLOOKUP(S13,'Body ZBP'!$A$1:$B$40,2,1),0)) -> 30 | U13: =H13&"x"&A13 -> 1x33 | V13: =IF(U13<>"x",COUNTIF($U$2:$U$3000,U13),"") -> 1 | W13: =IF(I13<>"xxxxx",COUNTIF($I$2:$I$3000,I13),"") -> 1
A14: 36 | B14: Liška | C14: Aleš | D14: m | E14: 1977 | F14: M10 | G14: Popůvky | H14: 1 | I14: =B14&"x"&C14&"x"&D14&"x"&E14&"x"&H14&"x"&F14 -> LiškaxAlešxmx1977x1xM10 | J14: =VLOOKUP(H14,'Závody a tratě'!$B:$C,2,0) -> Borovinská desítka | K14: =VLOOKUP(H14&"x"&F14,'Závody a tratě'!$A:$F,6,0) -> 10 | L14: =VLOOKUP(TEXT(H14,"000")&UPPER(D14)&TEXT(E14,"0000"),'Kategorie lokální'!$A$2:$F$300,6,TRUE) -> LMB | M14: =VLOOKUP(TEXT(H14,"000")&UPPER(D14)&TEXT(E14,"0000"),'Kategorie lokální'!$A$2:$G$300,7,TRUE) -> L: Muži 40 - 49 | N14: =VLOOKUP(UPPER(D14)&TEXT(E14,"0000"),'Kategorie ZBP'!$A$2:$E$30,5,TRUE) -> MB | O14: =VLOOKUP(N14,'Kategorie ZBP'!$E:$F,2,0) -> Muži 40 - 49 | P14: =VLOOKUP(H14&"x"&A14,Stopky!I:J,2,0) -> 0.02773148148 | Q14: 6 | R14: 2 | S14: 2 | T14: =IF(ISERROR(VLOOKUP(H14&"x"&F14&"xANO",'Závody a tratě'!L:L,1,0))=TRUE,0,_xlfn.IFNA(VLOOKUP(S14,'Body ZBP'!$A$1:$B$40,2,1),0)) -> 25 | U14: =H14&"x"&A14 -> 1x36 | V14: =IF(U14<>"x",COUNTIF($U$2:$U$3000,U14),"") -> 1 | W14: =IF(I14<>"xxxxx",COUNTIF($I$2:$I$3000,I14),"") -> 1
A15: 38 | B15: Khyr | C15: Rostislav | D15: m | E15: 1976 | F15: M10 | G15: Třebíč | H15: 1 | I15: =B15&"x"&C15&"x"&D15&"x"&E15&"x"&H15&"x"&F15 -> KhyrxRostislavxmx1976x1xM10 | J15: =VLOOKUP(H15,'Závody a tratě'!$B:$C,2,0) -> Borovinská desítka | K15: =VLOOKUP(H15&"x"&F15,'Závody a tratě'!$A:$F,6,0) -> 10 | L15: =VLOOKUP(TEXT(H15,"000")&UPPER(D15)&TEXT(E15,"0000"),'Kategorie lokální'!$A$2:$F$300,6,TRUE) -> LMB | M15: =VLOOKUP(TEXT(H15,"000")&UPPER(D15)&TEXT(E15,"0000"),'Kategorie lokální'!$A$2:$G$300,7,TRUE) -> L: Muži 40 - 49 | N15: =VLOOKUP(UPPER(D15)&TEXT(E15,"0000"),'Kategorie ZBP'!$A$2:$E$30,5,TRUE) -> MB | O15: =VLOOKUP(N15,'Kategorie ZBP'!$E:$F,2,0) -> Muži 40 - 49 | P15: =VLOOKUP(H15&"x"&A15,Stopky!I:J,2,0) -> 0.02773148148 | Q15: 6 | R15: 2 | S15: 2 | T15: =IF(ISERROR(VLOOKUP(H15&"x"&F15&"xANO",'Závody a tratě'!L:L,1,0))=TRUE,0,_xlfn.IFNA(VLOOKUP(S15,'Body ZBP'!$A$1:$B$40,2,1),0)) -> 25 | U15: =H15&"x"&A15 -> 1x38 | V15: =IF(U15<>"x",COUNTIF($U$2:$U$3000,U15),"") -> 1 | W15: =IF(I15<>"xxxxx",COUNTIF($I$2:$I$3000,I15),"") -> 1
A16: 4 | B16: Vostál | C16: Petr | D16: m | E16: 1974 | F16: M10 | G16: Třebíč | H16: 1 | I16: =B16&"x"&C16&"x"&D16&"x"&E16&"x"&H16&"x"&F16 -> VostálxPetrxmx1974x1xM10 | J16: =VLOOKUP(H16,'Závody a tratě'!$B:$C,2,0) -> Borovinská desítka | K16: =VLOOKUP(H16&"x"&F16,'Závody a tratě'!$A:$F,6,0) -> 10 | L16: =VLOOKUP(TEXT(H16,"000")&UPPER(D16)&TEXT(E16,"0000"),'Kategorie lokální'!$A$2:$F$300,6,TRUE) -> LMB | M16: =VLOOKUP(TEXT(H16,"000")&UPPER(D16)&TEXT(E16,"0000"),'Kategorie lokální'!$A$2:$G$300,7,TRUE) -> L: Muži 40 - 49 | N16: =VLOOKUP(UPPER(D16)&TEXT(E16,"0000"),'Kategorie ZBP'!$A$2:$E$30,5,TRUE) -> MB | O16: =VLOOKUP(N16,'Kategorie ZBP'!$E:$F,2,0) -> Muži 40 - 49 | P16: =VLOOKUP(H16&"x"&A16,Stopky!I:J,2,0) -> 0.02809027778 | Q16: 9 | R16: 4 | S16: 4 | T16: =IF(ISERROR(VLOOKUP(H16&"x"&F16&"xANO",'Závody a tratě'!L:L,1,0))=TRUE,0,_xlfn.IFNA(VLOOKUP(S16,'Body ZBP'!$A$1:$B$40,2,1),0)) -> 18 | U16: =H16&"x"&A16 -> 1x4 | V16: =IF(U16<>"x",COUNTIF($U$2:$U$3000,U16),"") -> 1 | W16: =IF(I16<>"xxxxx",COUNTIF($I$2:$I$3000,I16),"") -> 1
A17: 7 | B17: Mityska | C17: Stanislav | D17: m | E17: 1973 | F17: M10 | G17: TJ Spartak Třebíč | H17: 1 | I17: =B17&"x"&C17&"x"&D17&"x"&E17&"x"&H17&"x"&F17 -> MityskaxStanislavxmx1973x1xM10 | J17: =VLOOKUP(H17,'Závody a tratě'!$B:$C,2,0) -> Borovinská desítka | K17: =VLOOKUP(H17&"x"&F17,'Závody a tratě'!$A:$F,6,0) -> 10 | L17: =VLOOKUP(TEXT(H17,"000")&UPPER(D17)&TEXT(E17,"0000"),'Kategorie lokální'!$A$2:$F$300,6,TRUE) -> LMB | M17: =VLOOKUP(TEXT(H17,"000")&UPPER(D17)&TEXT(E17,"0000"),'Kategorie lokální'!$A$2:$G$300,7,TRUE) -> L: Muži 40 - 49 | N17: =VLOOKUP(UPPER(D17)&TEXT(E17,"0000"),'Kategorie ZBP'!$A$2:$E$30,5,TRUE) -> MB | O17: =VLOOKUP(N17,'Kategorie ZBP'!$E:$F,2,0) -> Muži 40 - 49 | P17: =VLOOKUP(H17&"x"&A17,Stopky!I:J,2,0) -> 0.02913194444 | Q17: 15 | R17: 5 | S17: 5 | T17: =IF(ISERROR(VLOOKUP(H17&"x"&F17&"xANO",'Závody a tratě'!L:L,1,0))=TRUE,0,_xlfn.IFNA(VLOOKUP(S17,'Body ZBP'!$A$1:$B$40,2,1),0)) -> 16 | U17: =H17&"x"&A17 -> 1x7 | V17: =IF(U17<>"x",COUNTIF($U$2:$U$3000,U17),"") -> 1 | W17: =IF(I17<>"xxxxx",COUNTIF($I$2:$I$3000,I17),"") -> 1
A18: 46 | B18: Konečný | C18: Karel | D18: m | E18: 1970 | F18: M10 | G18: Atletic Třebíč | H18: 1 | I18: =B18&"x"&C18&"x"&D18&"x"&E18&"x"&H18&"x"&F18 -> KonečnýxKarelxmx1970x1xM10 | J18: =VLOOKUP(H18,'Závody a tratě'!$B:$C,2,0) -> Borovinská desítka | K18: =VLOOKUP(H18&"x"&F18,'Závody a tratě'!$A:$F,6,0) -> 10 | L18: =VLOOKUP(TEXT(H18,"000")&UPPER(D18)&TEXT(E18,"0000"),'Kategorie lokální'!$A$2:$F$300,6,TRUE) -> LMB | M18: =VLOOKUP(TEXT(H18,"000")&UPPER(D18)&TEXT(E18,"0000"),'Kategorie lokální'!$A$2:$G$300,7,TRUE) -> L: Muži 40 - 49 | N18: =VLOOKUP(UPPER(D18)&TEXT(E18,"0000"),'Kategorie ZBP'!$A$2:$E$30,5,TRUE) -> MB | O18: =VLOOKUP(N18,'Kategorie ZBP'!$E:$F,2,0) -> Muži 40 - 49 | P18: =VLOOKUP(H18&"x"&A18,Stopky!I:J,2,0) -> 0.029375 | Q18: 16 | R18: 6 | S18: 6 | T18: =IF(ISERROR(VLOOKUP(H18&"x"&F18&"xANO",'Závody a tratě'!L:L,1,0))=TRUE,0,_xlfn.IFNA(VLOOKUP(S18,'Body ZBP'!$A$1:$B$40,2,1),0)) -> 15 | U18: =H18&"x"&A18 -> 1x46 | V18: =IF(U18<>"x",COUNTIF($U$2:$U$3000,U18),"") -> 1 | W18: =IF(I18<>"xxxxx",COUNTIF($I$2:$I$3000,I18),"") -> 1
A19: 58 | B19: Jičínský | C19: Petr | D19: m | E19: 1972 | F19: M10 | G19: Orel Mor. Budějovice | H19: 1 | I19: =B19&"x"&C19&"x"&D19&"x"&E19&"x"&H19&"x"&F19 -> JičínskýxPetrxmx1972x1xM10 | J19: =VLOOKUP(H19,'Závody a tratě'!$B:$C,2,0) -> Borovinská desítka | K19: =VLOOKUP(H19&"x"&F19,'Závody a tratě'!$A:$F,6,0) -> 10 | L19: =VLOOKUP(TEXT(H19,"000")&UPPER(D19)&TEXT(E19,"0000"),'Kategorie lokální'!$A$2:$F$300,6,TRUE) -> LMB | M19: =VLOOKUP(TEXT(H19,"000")&UPPER(D19)&TEXT(E19,"0000"),'Kategorie lokální'!$A$2:$G$300,7,TRUE) -> L: Muži 40 - 49 | N19: =VLOOKUP(UPPER(D19)&TEXT(E19,"0000"),'Kategorie ZBP'!$A$2:$E$30,5,TRUE) -> MB | O19: =VLOOKUP(N19,'Kategorie ZBP'!$E:$F,2,0) -> Muži 40 - 49 | P19: =VLOOKUP(H19&"x"&A19,Stopky!I:J,2,0) -> 0.02953703704 | Q19: 17 | R19: 7 | S19: 7 | T19: =IF(ISERROR(VLOOKUP(H19&"x"&F19&"xANO",'Závody a tratě'!L:L,1,0))=TRUE,0,_xlfn.IFNA(VLOOKUP(S19,'Body ZBP'!$A$1:$B$40,2,1),0)) -> 14 | U19: =H19&"x"&A19 -> 1x58 | V19: =IF(U19<>"x",COUNTIF($U$2:$U$3000,U19),"") -> 1 | W19: =IF(I19<>"xxxxx",COUNTIF($I$2:$I$3000,I19),"") -> 1
A20: 18 | B20: Koukal | C20: Jan | D20: m | E20: 1979 | F20: M10 | G20: SDH Přibyslavice | H20: 1 | I20: =B20&"x"&C20&"x"&D20&"x"&E20&"x"&H20&"x"&F20 -> KoukalxJanxmx1979x1xM10 | J20: =VLOOKUP(H20,'Závody a tratě'!$B:$C,2,0) -> Borovinská desítka | K20: =VLOOKUP(H20&"x"&F20,'Závody a tratě'!$A:$F,6,0) -> 10 | L20: =VLOOKUP(TEXT(H20,"000")&UPPER(D20)&TEXT(E20,"0000"),'Kategorie lokální'!$A$2:$F$300,6,TRUE) -> LMB | M20: =VLOOKUP(TEXT(H20,"000")&UPPER(D20)&TEXT(E20,"0000"),'Kategorie lokální'!$A$2:$G$300,7,TRUE) -> L: Muži 40 - 49 | N20: =VLOOKUP(UPPER(D20)&TEXT(E20,"0000"),'Kategorie ZBP'!$A$2:$E$30,5,TRUE) -> MB | O20: =VLOOKUP(N20,'Kategorie ZBP'!$E:$F,2,0) -> Muži 40 - 49 | P20: =VLOOKUP(H20&"x"&A20,Stopky!I:J,2,0) -> 0.02959490741 | Q20: 18 | R20: 8 | S20: 8 | T20: =IF(ISERROR(VLOOKUP(H20&"x"&F20&"xANO",'Závody a tratě'!L:L,1,0))=TRUE,0,_xlfn.IFNA(VLOOKUP(S20,'Body ZBP'!$A$1:$B$40,2,1),0)) -> 13 | U20: =H20&"x"&A20 -> 1x18 | V20: =IF(U20<>"x",COUNTIF($U$2:$U$3000,U20),"") -> 1 | W20: =IF(I20<>"xxxxx",COUNTIF($I$2:$I$3000,I20),"") -> 1
A21: 11 | B21: Peitz | C21: Michal | D21: m | E21: 1971 | F21: M10 | G21: Krkonošský Survivor | H21: 1 | I21: =B21&"x"&C21&"x"&D21&"x"&E21&"x"&H21&"x"&F21 -> PeitzxMichalxmx1971x1xM10 | J21: =VLOOKUP(H21,'Závody a tratě'!$B:$C,2,0) -> Borovinská desítka | K21: =VLOOKUP(H21&"x"&F21,'Závody a tratě'!$A:$F,6,0) -> 10 | L21: =VLOOKUP(TEXT(H21,"000")&UPPER(D21)&TEXT(E21,"0000"),'Kategorie lokální'!$A$2:$F$300,6,TRUE) -> LMB | M21: =VLOOKUP(TEXT(H21,"000")&UPPER(D21)&TEXT(E21,"0000"),'Kategorie lokální'!$A$2:$G$300,7,TRUE) -> L: Muži 40 - 49 | N21: =VLOOKUP(UPPER(D21)&TEXT(E21,"0000"),'Kategorie ZBP'!$A$2:$E$30,5,TRUE) -> MB | O21: =VLOOKUP(N21,'Kategorie ZBP'!$E:$F,2,0) -> Muži 40 - 49 | P21: =VLOOKUP(H21&"x"&A21,Stopky!I:J,2,0) -> 0.03037037037 | Q21: 20 | R21: 9 | S21: 9 | T21: =IF(ISERROR(VLOOKUP(H21&"x"&F21&"xANO",'Závody a tratě'!L:L,1,0))=TRUE,0,_xlfn.IFNA(VLOOKUP(S21,'Body ZBP'!$A$1:$B$40,2,1),0)) -> 12 | U21: =H21&"x"&A21 -> 1x11 | V21: =IF(U21<>"x",COUNTIF($U$2:$U$3000,U21),"") -> 1 | W21: =IF(I21<>"xxxxx",COUNTIF($I$2:$I$3000,I21),"") -> 1
A22: 6 | B22: Studený | C22: Pavel | D22: m | E22: 1971 | F22: M10 | G22: Dodos Kings | H22: 1 | I22: =B22&"x"&C22&"x"&D22&"x"&E22&"x"&H22&"x"&F22 -> StudenýxPavelxmx1971x1xM10 | J22: =VLOOKUP(H22,'Závody a tratě'!$B:$C,2,0) -> Borovinská desítka | K22: =VLOOKUP(H22&"x"&F22,'Závody a tratě'!$A:$F,6,0) -> 10 | L22: =VLOOKUP(TEXT(H22,"000")&UPPER(D22)&TEXT(E22,"0000"),'Kategorie lokální'!$A$2:$F$300,6,TRUE) -> LMB | M22: =VLOOKUP(TEXT(H22,"000")&UPPER(D22)&TEXT(E22,"0000"),'Kategorie lokální'!$A$2:$G$300,7,TRUE) -> L: Muži 40 - 49 | N22: =VLOOKUP(UPPER(D22)&TEXT(E22,"0000"),'Kategorie ZBP'!$A$2:$E$30,5,TRUE) -> MB | O22: =VLOOKUP(N22,'Kategorie ZBP'!$E:$F,2,0) -> Muži 40 - 49 | P22: =VLOOKUP(H22&"x"&A22,Stopky!I:J,2,0) -> 0.03100694444 | Q22: 21 | R22: 10 | S22: 10 | T22: =IF(ISERROR(VLOOKUP(H22&"x"&F22&"xANO",'Závody a tratě'!L:L,1,0))=TRUE,0,_xlfn.IFNA(VLOOKUP(S22,'Body ZBP'!$A$1:$B$40,2,1),0)) -> 11 | U22: =H22&"x"&A22 -> 1x6 | V22: =IF(U22<>"x",COUNTIF($U$2:$U$3000,U22),"") -> 1 | W22: =IF(I22<>"xxxxx",COUNTIF($I$2:$I$3000,I22),"") -> 1
A23: 52 | B23: Chodur | C23: Josef | D23: m | E23: 1975 | F23: M10 | G23: Brno | H23: 1 | I23: =B23&"x"&C23&"x"&D23&"x"&E23&"x"&H23&"x"&F23 -> ChodurxJosefxmx1975x1xM10 | J23: =VLOOKUP(H23,'Závody a tratě'!$B:$C,2,0) -> Borovinská desítka | K23: =VLOOKUP(H23&"x"&F23,'Závody a tratě'!$A:$F,6,0) -> 10 | L23: =VLOOKUP(TEXT(H23,"000")&UPPER(D23)&TEXT(E23,"0000"),'Kategorie lokální'!$A$2:$F$300,6,TRUE) -> LMB | M23: =VLOOKUP(TEXT(H23,"000")&UPPER(D23)&TEXT(E23,"0000"),'Kategorie lokální'!$A$2:$G$300,7,TRUE) -> L: Muži 40 - 49 | N23: =VLOOKUP(UPPER(D23)&TEXT(E23,"0000"),'Kategorie ZBP'!$A$2:$E$30,5,TRUE) -> MB | O23: =VLOOKUP(N23,'Kategorie ZBP'!$E:$F,2,0) -> Muži 40 - 49 | P23: =VLOOKUP(H23&"x"&A23,Stopky!I:J,2,0) -> 0.03141203704 | Q23: 23 | R23: 11 | S23: 11 | T23: =IF(ISERROR(VLOOKUP(H23&"x"&F23&"xANO",'Závody a tratě'!L:L,1,0))=TRUE,0,_xlfn.IFNA(VLOOKUP(S23,'Body ZBP'!$A$1:$B$40,2,1),0)) -> 10 | U23: =H23&"x"&A23 -> 1x52 | V23: =IF(U23<>"x",COUNTIF($U$2:$U$3000,U23),"") -> 1 | W23: =IF(I23<>"xxxxx",COUNTIF($I$2:$I$3000,I23),"") -> 1
A24: 23 | B24: Kuba | C24: Lubomír | D24: m | E24: 1977 | F24: M10 | G24: Hrušovany n/J | H24: 1 | I24: =B24&"x"&C24&"x"&D24&"x"&E24&"x"&H24&"x"&F24 -> KubaxLubomírxmx1977x1xM10 | J24: =VLOOKUP(H24,'Závody a tratě'!$B:$C,2,0) -> Borovinská desítka | K24: =VLOOKUP(H24&"x"&F24,'Závody a tratě'!$A:$F,6,0) -> 10 | L24: =VLOOKUP(TEXT(H24,"000")&UPPER(D24)&TEXT(E24,"0000"),'Kategorie lokální'!$A$2:$F$300,6,TRUE) -> LMB | M24: =VLOOKUP(TEXT(H24,"000")&UPPER(D24)&TEXT(E24,"0000"),'Kategorie lokální'!$A$2:$G$300,7,TRUE) -> L: Muži 40 - 49 | N24: =VLOOKUP(UPPER(D24)&TEXT(E24,"0000"),'Kategorie ZBP'!$A$2:$E$30,5,TRUE) -> MB | O24: =VLOOKUP(N24,'Kategorie ZBP'!$E:$F,2,0) -> Muži 40 - 49 | P24: =VLOOKUP(H24&"x"&A24,Stopky!I:J,2,0) -> 0.03179398148 | Q24: 24 | R24: 12 | S24: 12 | T24: =IF(ISERROR(VLOOKUP(H24&"x"&F24&"xANO",'Závody a tratě'!L:L,1,0))=TRUE,0,_xlfn.IFNA(VLOOKUP(S24,'Body ZBP'!$A$1:$B$40,2,1),0)) -> 9 | U24: =H24&"x"&A24 -> 1x23 | V24: =IF(U24<>"x",COUNTIF($U$2:$U$3000,U24),"") -> 1 | W24: =IF(I24<>"xxxxx",COUNTIF($I$2:$I$3000,I24),"") -> 1
A25: 12 | B25: Petráš | C25: Miroslav | D25: m | E25: 1979 | F25: M10 | G25: Luka Nad Jihlavou | H25: 1 | I25: =B25&"x"&C25&"x"&D25&"x"&E25&"x"&H25&"x"&F25 -> PetrášxMiroslavxmx1979x1xM10 | J25: =VLOOKUP(H25,'Závody a tratě'!$B:$C,2,0) -> Borovinská desítka | K25: =VLOOKUP(H25&"x"&F25,'Závody a tratě'!$A:$F,6,0) -> 10 | L25: =VLOOKUP(TEXT(H25,"000")&UPPER(D25)&TEXT(E25,"0000"),'Kategorie lokální'!$A$2:$F$300,6,TRUE) -> LMB | M25: =VLOOKUP(TEXT(H25,"000")&UPPER(D25)&TEXT(E25,"0000"),'Kategorie lokální'!$A$2:$G$300,7,TRUE) -> L: Muži 40 - 49 | N25: =VLOOKUP(UPPER(D25)&TEXT(E25,"0000"),'Kategorie ZBP'!$A$2:$E$30,5,TRUE) -> MB | O25: =VLOOKUP(N25,'Kategorie ZBP'!$E:$F,2,0) -> Muži 40 - 49 | P25: =VLOOKUP(H25&"x"&A25,Stopky!I:J,2,0) -> 0.03476851852 | Q25: 31 | R25: 13 | S25: 13 | T25: =IF(ISERROR(VLOOKUP(H25&"x"&F25&"xANO",'Závody a tratě'!L:L,1,0))=TRUE,0,_xlfn.IFNA(VLOOKUP(S25,'Body ZBP'!$A$1:$B$40,2,1),0)) -> 8 | U25: =H25&"x"&A25 -> 1x12 | V25: =IF(U25<>"x",COUNTIF($U$2:$U$3000,U25),"") -> 1 | W25: =IF(I25<>"xxxxx",COUNTIF($I$2:$I$3000,I25),"") -> 1
A26: 16 | B26: Zelený | C26: Jiří | D26: m | E26: 1976 | F26: M10 | G26: Třebíč | H26: 1 | I26: =B26&"x"&C26&"x"&D26&"x"&E26&"x"&H26&"x"&F26 -> ZelenýxJiříxmx1976x1xM10 | J26: =VLOOKUP(H26,'Závody a tratě'!$B:$C,2,0) -> Borovinská desítka | K26: =VLOOKUP(H26&"x"&F26,'Závody a tratě'!$A:$F,6,0) -> 10 | L26: =VLOOKUP(TEXT(H26,"000")&UPPER(D26)&TEXT(E26,"0000"),'Kategorie lokální'!$A$2:$F$300,6,TRUE) -> LMB | M26: =VLOOKUP(TEXT(H26,"000")&UPPER(D26)&TEXT(E26,"0000"),'Kategorie lokální'!$A$2:$G$300,7,TRUE) -> L: Muži 40 - 49 | N26: =VLOOKUP(UPPER(D26)&TEXT(E26,"0000"),'Kategorie ZBP'!$A$2:$E$30,5,TRUE) -> MB | O26: =VLOOKUP(N26,'Kategorie ZBP'!$E:$F,2,0) -> Muži 40 - 49 | P26: =VLOOKUP(H26&"x"&A26,Stopky!I:J,2,0) -> 0.03478009259 | Q26: 32 | R26: 14 | S26: 14 | T26: =IF(ISERROR(VLOOKUP(H26&"x"&F26&"xANO",'Závody a tratě'!L:L,1,0))=TRUE,0,_xlfn.IFNA(VLOOKUP(S26,'Body ZBP'!$A$1:$B$40,2,1),0)) -> 7 | U26: =H26&"x"&A26 -> 1x16 | V26: =IF(U26<>"x",COUNTIF($U$2:$U$3000,U26),"") -> 1 | W26: =IF(I26<>"xxxxx",COUNTIF($I$2:$I$3000,I26),"") -> 1
A27: 57 | B27: Dvořák | C27: Rostislav | D27: m | E27: 1974 | F27: M10 | G27: Klacek ve Špicách | H27: 1 | I27: =B27&"x"&C27&"x"&D27&"x"&E27&"x"&H27&"x"&F27 -> DvořákxRostislavxmx1974x1xM10 | J27: =VLOOKUP(H27,'Závody a tratě'!$B:$C,2,0) -> Borovinská desítka | K27: =VLOOKUP(H27&"x"&F27,'Závody a tratě'!$A:$F,6,0) -> 10 | L27: =VLOOKUP(TEXT(H27,"000")&UPPER(D27)&TEXT(E27,"0000"),'Kategorie lokální'!$A$2:$F$300,6,TRUE) -> LMB | M27: =VLOOKUP(TEXT(H27,"000")&UPPER(D27)&TEXT(E27,"0000"),'Kategorie lokální'!$A$2:$G$300,7,TRUE) -> L: Muži 40 - 49 | N27: =VLOOKUP(UPPER(D27)&TEXT(E27,"0000"),'Kategorie ZBP'!$A$2:$E$30,5,TRUE) -> MB | O27: =VLOOKUP(N27,'Kategorie ZBP'!$E:$F,2,0) -> Muži 40 - 49 | P27: =VLOOKUP(H27&"x"&A27,Stopky!I:J,2,0) -> 0.03631944444 | Q27: 34 | R27: 15 | S27: 15 | T27: =IF(ISERROR(VLOOKUP(H27&"x"&F27&"xANO",'Závody a tratě'!L:L,1,0))=TRUE,0,_xlfn.IFNA(VLOOKUP(S27,'Body ZBP'!$A$1:$B$40,2,1),0)) -> 6 | U27: =H27&"x"&A27 -> 1x57 | V27: =IF(U27<>"x",COUNTIF($U$2:$U$3000,U27),"") -> 1 | W27: =IF(I27<>"xxxxx",COUNTIF($I$2:$I$3000,I27),"") -> 1
A28: 34 | B28: Vlčan | C28: Luboš | D28: m | E28: 1968 | F28: M10 | G28: Atletic Třebíč | H28: 1 | I28: =B28&"x"&C28&"x"&D28&"x"&E28&"x"&H28&"x"&F28 -> VlčanxLubošxmx1968x1xM10 | J28: =VLOOKUP(H28,'Závody a tratě'!$B:$C,2,0) -> Borovinská desítka | K28: =VLOOKUP(H28&"x"&F28,'Závody a tratě'!$A:$F,6,0) -> 10 | L28: =VLOOKUP(TEXT(H28,"000")&UPPER(D28)&TEXT(E28,"0000"),'Kategorie lokální'!$A$2:$F$300,6,TRUE) -> LMC | M28: =VLOOKUP(TEXT(H28,"000")&UPPER(D28)&TEXT(E28,"0000"),'Kategorie lokální'!$A$2:$G$300,7,TRUE) -> L: Muži 50 - 59 | N28: =VLOOKUP(UPPER(D28)&TEXT(E28,"0000"),'Kategorie ZBP'!$A$2:$E$30,5,TRUE) -> MC | O28: =VLOOKUP(N28,'Kategorie ZBP'!$E:$F,2,0) -> Muži 50 - 59 | P28: =VLOOKUP(H28&"x"&A28,Stopky!I:J,2,0) -> 0.02912037037 | Q28: 14 | R28: 1 | S28: 1 | T28: =IF(ISERROR(VLOOKUP(H28&"x"&F28&"xANO",'Závody a tratě'!L:L,1,0))=TRUE,0,_xlfn.IFNA(VLOOKUP(S28,'Body ZBP'!$A$1:$B$40,2,1),0)) -> 30 | U28: =H28&"x"&A28 -> 1x34 | V28: =IF(U28<>"x",COUNTIF($U$2:$U$3000,U28),"") -> 1 | W28: =IF(I28<>"xxxxx",COUNTIF($I$2:$I$3000,I28),"") -> 1
A29: 21 | B29: Němec | C29: Bedřich | D29: m | E29: 1964 | F29: M10 | G29: Hornice | H29: 1 | I29: =B29&"x"&C29&"x"&D29&"x"&E29&"x"&H29&"x"&F29 -> NěmecxBedřichxmx1964x1xM10 | J29: =VLOOKUP(H29,'Závody a tratě'!$B:$C,2,0) -> Borovinská desítka | K29: =VLOOKUP(H29&"x"&F29,'Závody a tratě'!$A:$F,6,0) -> 10 | L29: =VLOOKUP(TEXT(H29,"000")&UPPER(D29)&TEXT(E29,"0000"),'Kategorie lokální'!$A$2:$F$300,6,TRUE) -> LMC | M29: =VLOOKUP(TEXT(H29,"000")&UPPER(D29)&TEXT(E29,"0000"),'Kategorie lokální'!$A$2:$G$300,7,TRUE) -> L: Muži 50 - 59 | N29: =VLOOKUP(UPPER(D29)&TEXT(E29,"0000"),'Kategorie ZBP'!$A$2:$E$30,5,TRUE) -> MC | O29: =VLOOKUP(N29,'Kategorie ZBP'!$E:$F,2,0) -> Muži 50 - 59 | P29: =VLOOKUP(H29&"x"&A29,Stopky!I:J,2,0) -> 0.03108796296 | Q29: 22 | R29: 2 | S29: 2 | T29: =IF(ISERROR(VLOOKUP(H29&"x"&F29&"xANO",'Závody a tratě'!L:L,1,0))=TRUE,0,_xlfn.IFNA(VLOOKUP(S29,'Body ZBP'!$A$1:$B$40,2,1),0)) -> 25 | U29: =H29&"x"&A29 -> 1x21 | V29: =IF(U29<>"x",COUNTIF($U$2:$U$3000,U29),"") -> 1 | W29: =IF(I29<>"xxxxx",COUNTIF($I$2:$I$3000,I29),"") -> 1
A30: 32 | B30: Bulín | C30: Jindřich | D30: m | E30: 1967 | F30: M10 | G30: Sokol Plaveč | H30: 1 | I30: =B30&"x"&C30&"x"&D30&"x"&E30&"x"&H30&"x"&F30 -> BulínxJindřichxmx1967x1xM10 | J30: =VLOOKUP(H30,'Závody a tratě'!$B:$C,2,0) -> Borovinská desítka | K30: =VLOOKUP(H30&"x"&F30,'Závody a tratě'!$A:$F,6,0) -> 10 | L30: =VLOOKUP(TEXT(H30,"000")&UPPER(D30)&TEXT(E30,"0000"),'Kategorie lokální'!$A$2:$F$300,6,TRUE) -> LMC | M30: =VLOOKUP(TEXT(H30,"000")&UPPER(D30)&TEXT(E30,"0000"),'Kategorie lokální'!$A$2:$G$300,7,TRUE) -> L: Muži 50 - 59 | N30: =VLOOKUP(UPPER(D30)&TEXT(E30,"0000"),'Kategorie ZBP'!$A$2:$E$30,5,TRUE) -> MC | O30: =VLOOKUP(N30,'Kategorie ZBP'!$E:$F,2,0) -> Muži 50 - 59 | P30: =VLOOKUP(H30&"x"&A30,Stopky!I:J,2,0) -> 0.03241898148 | Q30: 25 | R30: 3 | S30: 3 | T30: =IF(ISERROR(VLOOKUP(H30&"x"&F30&"xANO",'Závody a tratě'!L:L,1,0))=TRUE,0,_xlfn.IFNA(VLOOKUP(S30,'Body ZBP'!$A$1:$B$40,2,1),0)) -> 21 | U30: =H30&"x"&A30 -> 1x32 | V30: =IF(U30<>"x",COUNTIF($U$2:$U$3000,U30),"") -> 1 | W30: =IF(I30<>"xxxxx",COUNTIF($I$2:$I$3000,I30),"") -> 1
A31: 48 | B31: Soukup | C31: Milan | D31: m | E31: 1964 | F31: M10 | G31: TJ Znojmo | H31: 1 | I31: =B31&"x"&C31&"x"&D31&"x"&E31&"x"&H31&"x"&F31 -> SoukupxMilanxmx1964x1xM10 | J31: =VLOOKUP(H31,'Závody a tratě'!$B:$C,2,0) -> Borovinská desítka | K31: =VLOOKUP(H31&"x"&F31,'Závody a tratě'!$A:$F,6,0) -> 10 | L31: =VLOOKUP(TEXT(H31,"000")&UPPER(D31)&TEXT(E31,"0000"),'Kategorie lokální'!$A$2:$F$300,6,TRUE) -> LMC | M31: =VLOOKUP(TEXT(H31,"000")&UPPER(D31)&TEXT(E31,"0000"),'Kategorie lokální'!$A$2:$G$300,7,TRUE) -> L: Muži 50 - 59 | N31: =VLOOKUP(UPPER(D31)&TEXT(E31,"0000"),'Kategorie ZBP'!$A$2:$E$30,5,TRUE) -> MC | O31: =VLOOKUP(N31,'Kategorie ZBP'!$E:$F,2,0) -> Muži 50 - 59 | P31: =VLOOKUP(H31&"x"&A31,Stopky!I:J,2,0) -> 0.03256944444 | Q31: 27 | R31: 4 | S31: 4 | T31: =IF(ISERROR(VLOOKUP(H31&"x"&F31&"xANO",'Závody a tratě'!L:L,1,0))=TRUE,0,_xlfn.IFNA(VLOOKUP(S31,'Body ZBP'!$A$1:$B$40,2,1),0)) -> 18 | U31: =H31&"x"&A31 -> 1x48 | V31: =IF(U31<>"x",COUNTIF($U$2:$U$3000,U31),"") -> 1 | W31: =IF(I31<>"xxxxx",COUNTIF($I$2:$I$3000,I31),"") -> 1
A32: 50 | B32: Belán | C32: Luděk | D32: m | E32: 1966 | F32: M10 | G32: Třebíč | H32: 1 | I32: =B32&"x"&C32&"x"&D32&"x"&E32&"x"&H32&"x"&F32 -> BelánxLuděkxmx1966x1xM10 | J32: =VLOOKUP(H32,'Závody a tratě'!$B:$C,2,0) -> Borovinská desítka | K32: =VLOOKUP(H32&"x"&F32,'Závody a tratě'!$A:$F,6,0) -> 10 | L32: =VLOOKUP(TEXT(H32,"000")&UPPER(D32)&TEXT(E32,"0000"),'Kategorie lokální'!$A$2:$F$300,6,TRUE) -> LMC | M32: =VLOOKUP(TEXT(H32,"000")&UPPER(D32)&TEXT(E32,"0000"),'Kategorie lokální'!$A$2:$G$300,7,TRUE) -> L: Muži 50 - 59 | N32: =VLOOKUP(UPPER(D32)&TEXT(E32,"0000"),'Kategorie ZBP'!$A$2:$E$30,5,TRUE) -> MC | O32: =VLOOKUP(N32,'Kategorie ZBP'!$E:$F,2,0) -> Muži 50 - 59 | P32: =VLOOKUP(H32&"x"&A32,Stopky!I:J,2,0) -> 0.03391203704 | Q32: 29 | R32: 5 | S32: 5 | T32: =IF(ISERROR(VLOOKUP(H32&"x"&F32&"xANO",'Závody a tratě'!L:L,1,0))=TRUE,0,_xlfn.IFNA(VLOOKUP(S32,'Body ZBP'!$A$1:$B$40,2,1),0)) -> 16 | U32: =H32&"x"&A32 -> 1x50 | V32: =IF(U32<>"x",COUNTIF($U$2:$U$3000,U32),"") -> 1 | W32: =IF(I32<>"xxxxx",COUNTIF($I$2:$I$3000,I32),"") -> 1
A33: 51 | B33: Jindra | C33: Vítězslav | D33: m | E33: 1965 | F33: M10 | G33: Dačice | H33: 1 | I33: =B33&"x"&C33&"x"&D33&"x"&E33&"x"&H33&"x"&F33 -> JindraxVítězslavxmx1965x1xM10 | J33: =VLOOKUP(H33,'Závody a tratě'!$B:$C,2,0) -> Borovinská desítka | K33: =VLOOKUP(H33&"x"&F33,'Závody a tratě'!$A:$F,6,0) -> 10 | L33: =VLOOKUP(TEXT(H33,"000")&UPPER(D33)&TEXT(E33,"0000"),'Kategorie lokální'!$A$2:$F$300,6,TRUE) -> LMC | M33: =VLOOKUP(TEXT(H33,"000")&UPPER(D33)&TEXT(E33,"0000"),'Kategorie lokální'!$A$2:$G$300,7,TRUE) -> L: Muži 50 - 59 | N33: =VLOOKUP(UPPER(D33)&TEXT(E33,"0000"),'Kategorie ZBP'!$A$2:$E$30,5,TRUE) -> MC | O33: =VLOOKUP(N33,'Kategorie ZBP'!$E:$F,2,0) -> Muži 50 - 59 | P33: =VLOOKUP(H33&"x"&A33,Stopky!I:J,2,0) -> 0.03611111111 | Q33: 33 | R33: 6 | S33: 6 | T33: =IF(ISERROR(VLOOKUP(H33&"x"&F33&"xANO",'Závody a tratě'!L:L,1,0))=TRUE,0,_xlfn.IFNA(VLOOKUP(S33,'Body ZBP'!$A$1:$B$40,2,1),0)) -> 15 | U33: =H33&"x"&A33 -> 1x51 | V33: =IF(U33<>"x",COUNTIF($U$2:$U$3000,U33),"") -> 1 | W33: =IF(I33<>"xxxxx",COUNTIF($I$2:$I$3000,I33),"") -> 1
A34: 9 | B34: Halbrštat | C34: Petr | D34: m | E34: 1967 | F34: M10 | G34: Znojmo | H34: 1 | I34: =B34&"x"&C34&"x"&D34&"x"&E34&"x"&H34&"x"&F34 -> HalbrštatxPetrxmx1967x1xM10 | J34: =VLOOKUP(H34,'Závody a tratě'!$B:$C,2,0) -> Borovinská desítka | K34: =VLOOKUP(H34&"x"&F34,'Závody a tratě'!$A:$F,6,0) -> 10 | L34: =VLOOKUP(TEXT(H34,"000")&UPPER(D34)&TEXT(E34,"0000"),'Kategorie lokální'!$A$2:$F$300,6,TRUE) -> LMC | M34: =VLOOKUP(TEXT(H34,"000")&UPPER(D34)&TEXT(E34,"0000"),'Kategorie lokální'!$A$2:$G$300,7,TRUE) -> L: Muži 50 - 59 | N34: =VLOOKUP(UPPER(D34)&TEXT(E34,"0000"),'Kategorie ZBP'!$A$2:$E$30,5,TRUE) -> MC | O34: =VLOOKUP(N34,'Kategorie ZBP'!$E:$F,2,0) -> Muži 50 - 59 | P34: =VLOOKUP(H34&"x"&A34,Stopky!I:J,2,0) -> 0.0421875 | Q34: 36 | R34: 7 | S34: 7 | T34: =IF(ISERROR(VLOOKUP(H34&"x"&F34&"xANO",'Závody a tratě'!L:L,1,0))=TRUE,0,_xlfn.IFNA(VLOOKUP(S34,'Body ZBP'!$A$1:$B$40,2,1),0)) -> 14 | U34: =H34&"x"&A34 -> 1x9 | V34: =IF(U34<>"x",COUNTIF($U$2:$U$3000,U34),"") -> 1 | W34: =IF(I34<>"xxxxx",COUNTIF($I$2:$I$3000,I34),"") -> 1
A35: 19 | B35: Klusáček | C35: Pavel | D35: m | E35: 1956 | F35: M10 | G35: Rokytnice n/R | H35: 1 | I35: =B35&"x"&C35&"x"&D35&"x"&E35&"x"&H35&"x"&F35 -> KlusáčekxPavelxmx1956x1xM10 | J35: =VLOOKUP(H35,'Závody a tratě'!$B:$C,2,0) -> Borovinská desítka | K35: =VLOOKUP(H35&"x"&F35,'Závody a tratě'!$A:$F,6,0) -> 10 | L35: =VLOOKUP(TEXT(H35,"000")&UPPER(D35)&TEXT(E35,"0000"),'Kategorie lokální'!$A$2:$F$300,6,TRUE) -> LMD | M35: =VLOOKUP(TEXT(H35,"000")&UPPER(D35)&TEXT(E35,"0000"),'Kategorie lokální'!$A$2:$G$300,7,TRUE) -> L: Muži 60 - 69 | N35: =VLOOKUP(UPPER(D35)&TEXT(E35,"0000"),'Kategorie ZBP'!$A$2:$E$30,5,TRUE) -> MD | O35: =VLOOKUP(N35,'Kategorie ZBP'!$E:$F,2,0) -> Muži nad 60 | P35: =VLOOKUP(H35&"x"&A35,Stopky!I:J,2,0) -> 0.03263888889 | Q35: 28 | R35: 1 | S35: 1 | T35: =IF(ISERROR(VLOOKUP(H35&"x"&F35&"xANO",'Závody a tratě'!L:L,1,0))=TRUE,0,_xlfn.IFNA(VLOOKUP(S35,'Body ZBP'!$A$1:$B$40,2,1),0)) -> 30 | U35: =H35&"x"&A35 -> 1x19 | V35: =IF(U35<>"x",COUNTIF($U$2:$U$3000,U35),"") -> 1 | W35: =IF(I35<>"xxxxx",COUNTIF($I$2:$I$3000,I35),"") -> 1
A36: 10 | B36: Koreš | C36: Arnošt | D36: m | E36: 1950 | F36: M10 | G36: Atletic Třebíč | H36: 1 | I36: =B36&"x"&C36&"x"&D36&"x"&E36&"x"&H36&"x"&F36 -> KorešxArnoštxmx1950x1xM10 | J36: =VLOOKUP(H36,'Závody a tratě'!$B:$C,2,0) -> Borovinská desítka | K36: =VLOOKUP(H36&"x"&F36,'Závody a tratě'!$A:$F,6,0) -> 10 | L36: =VLOOKUP(TEXT(H36,"000")&UPPER(D36)&TEXT(E36,"0000"),'Kategorie lokální'!$A$2:$F$300,6,TRUE) -> LMD | M36: =VLOOKUP(TEXT(H36,"000")&UPPER(D36)&TEXT(E36,"0000"),'Kategorie lokální'!$A$2:$G$300,7,TRUE) -> L: Muži 60 - 69 | N36: =VLOOKUP(UPPER(D36)&TEXT(E36,"0000"),'Kategorie ZBP'!$A$2:$E$30,5,TRUE) -> MD | O36: =VLOOKUP(N36,'Kategorie ZBP'!$E:$F,2,0) -> Muži nad 60 | P36: =VLOOKUP(H36&"x"&A36,Stopky!I:J,2,0) -> 0.03467592593 | Q36: 30 | R36: 2 | S36: 2 | T36: =IF(ISERROR(VLOOKUP(H36&"x"&F36&"xANO",'Závody a tratě'!L:L,1,0))=TRUE,0,_xlfn.IFNA(VLOOKUP(S36,'Body ZBP'!$A$1:$B$40,2,1),0)) -> 25 | U36: =H36&"x"&A36 -> 1x10 | V36: =IF(U36<>"x",COUNTIF($U$2:$U$3000,U36),"") -> 1 | W36: =IF(I36<>"xxxxx",COUNTIF($I$2:$I$3000,I36),"") -> 1
A37: 26 | B37: Vacek | C37: Vladimír | D37: m | E37: 1951 | F37: M10 | G37: Poušov | H37: 1 | I37: =B37&"x"&C37&"x"&D37&"x"&E37&"x"&H37&"x"&F37 -> VacekxVladimírxmx1951x1xM10 | J37: =VLOOKUP(H37,'Závody a tratě'!$B:$C,2,0) -> Borovinská desítka | K37: =VLOOKUP(H37&"x"&F37,'Závody a tratě'!$A:$F,6,0) -> 10 | L37: =VLOOKUP(TEXT(H37,"000")&UPPER(D37)&TEXT(E37,"0000"),'Kategorie lokální'!$A$2:$F$300,6,TRUE) -> LMD | M37: =VLOOKUP(TEXT(H37,"000")&UPPER(D37)&TEXT(E37,"0000"),'Kategorie lokální'!$A$2:$G$300,7,TRUE) -> L: Muži 60 - 69 | N37: =VLOOKUP(UPPER(D37)&TEXT(E37,"0000"),'Kategorie ZBP'!$A$2:$E$30,5,TRUE) -> MD | O37: =VLOOKUP(N37,'Kategorie ZBP'!$E:$F,2,0) -> Muži nad 60 | P37: =VLOOKUP(H37&"x"&A37,Stopky!I:J,2,0) -> 0.03726851852 | Q37: 35 | R37: 3 | S37: 3 | T37: =IF(ISERROR(VLOOKUP(H37&"x"&F37&"xANO",'Závody a tratě'!L:L,1,0))=TRUE,0,_xlfn.IFNA(VLOOKUP(S37,'Body ZBP'!$A$1:$B$40,2,1),0)) -> 21 | U37: =H37&"x"&A37 -> 1x26 | V37: =IF(U37<>"x",COUNTIF($U$2:$U$3000,U37),"") -> 1 | W37: =IF(I37<>"xxxxx",COUNTIF($I$2:$I$3000,I37),"") -> 1
A38: 43 | B38: Kuchařová | C38: Simona | D38: z | E38: 1996 | F38: Z6 | G38: TJ Znojmo | H38: 1 | I38: =B38&"x"&C38&"x"&D38&"x"&E38&"x"&H38&"x"&F38 -> KuchařováxSimonaxzx1996x1xZ6 | J38: =VLOOKUP(H38,'Závody a tratě'!$B:$C,2,0) -> Borovinská desítka | K38: =VLOOKUP(H38&"x"&F38,'Závody a tratě'!$A:$F,6,0) -> 6.7 | L38: =VLOOKUP(TEXT(H38,"000")&UPPER(D38)&TEXT(E38,"0000"),'Kategorie lokální'!$A$2:$F$300,6,TRUE) -> LZA | M38: =VLOOKUP(TEXT(H38,"000")&UPPER(D38)&TEXT(E38,"0000"),'Kategorie lokální'!$A$2:$G$300,7,TRUE) -> L: Ženy do 34 | N38: =VLOOKUP(UPPER(D38)&TEXT(E38,"0000"),'Kategorie ZBP'!$A$2:$E$30,5,TRUE) -> ZA | O38: =VLOOKUP(N38,'Kategorie ZBP'!$E:$F,2,0) -> Ženy do 34 | P38: =VLOOKUP(H38&"x"&A38,Stopky!I:J,2,0) -> 0.02034722222 | Q38: 2 | R38: 1 | S38: 1 | T38: =IF(ISERROR(VLOOKUP(H38&"x"&F38&"xANO",'Závody a tratě'!L:L,1,0))=TRUE,0,_xlfn.IFNA(VLOOKUP(S38,'Body ZBP'!$A$1:$B$40,2,1),0)) -> 30 | U38: =H38&"x"&A38 -> 1x43 | V38: =IF(U38<>"x",COUNTIF($U$2:$U$3000,U38),"") -> 1 | W38: =IF(I38<>"xxxxx",COUNTIF($I$2:$I$3000,I38),"") -> 1
A39: 28 | B39: Krčálová | C39: Blanka | D39: z | E39: 1986 | F39: Z6 | G39: Kralice | H39: 1 | I39: =B39&"x"&C39&"x"&D39&"x"&E39&"x"&H39&"x"&F39 -> KrčálováxBlankaxzx1986x1xZ6 | J39: =VLOOKUP(H39,'Závody a tratě'!$B:$C,2,0) -> Borovinská desítka | K39: =VLOOKUP(H39&"x"&F39,'Závody a tratě'!$A:$F,6,0) -> 6.7 | L39: =VLOOKUP(TEXT(H39,"000")&UPPER(D39)&TEXT(E39,"0000"),'Kategorie lokální'!$A$2:$F$300,6,TRUE) -> LZA | M39: =VLOOKUP(TEXT(H39,"000")&UPPER(D39)&TEXT(E39,"0000"),'Kategorie lokální'!$A$2:$G$300,7,TRUE) -> L: Ženy do 34 | N39: =VLOOKUP(UPPER(D39)&TEXT(E39,"0000"),'Kategorie ZBP'!$A$2:$E$30,5,TRUE) -> ZA | O39: =VLOOKUP(N39,'Kategorie ZBP'!$E:$F,2,0) -> Ženy do 34 | P39: =VLOOKUP(H39&"x"&A39,Stopky!I:J,2,0) -> 0.020625 | Q39: 3 | R39: 2 | S39: 2 | T39: =IF(ISERROR(VLOOKUP(H39&"x"&F39&"xANO",'Závody a tratě'!L:L,1,0))=TRUE,0,_xlfn.IFNA(VLOOKUP(S39,'Body ZBP'!$A$1:$B$40,2,1),0)) -> 25 | U39: =H39&"x"&A39 -> 1x28 | V39: =IF(U39<>"x",COUNTIF($U$2:$U$3000,U39),"") -> 1 | W39: =IF(I39<>"xxxxx",COUNTIF($I$2:$I$3000,I39),"") -> 1
A40: 13 | B40: Březnová | C40: Radka | D40: z | E40: 1999 | F40: Z6 | G40: TJ Spartak Třebíč | H40: 1 | I40: =B40&"x"&C40&"x"&D40&"x"&E40&"x"&H40&"x"&F40 -> BřeznováxRadkaxzx1999x1xZ6 | J40: =VLOOKUP(H40,'Závody a tratě'!$B:$C,2,0) -> Borovinská desítka | K40: =VLOOKUP(H40&"x"&F40,'Závody a tratě'!$A:$F,6,0) -> 6.7 | L40: =VLOOKUP(TEXT(H40,"000")&UPPER(D40)&TEXT(E40,"0000"),'Kategorie lokální'!$A$2:$F$300,6,TRUE) -> LZA | M40: =VLOOKUP(TEXT(H40,"000")&UPPER(D40)&TEXT(E40,"0000"),'Kategorie lokální'!$A$2:$G$300,7,TRUE) -> L: Ženy do 34 | N40: =VLOOKUP(UPPER(D40)&TEXT(E40,"0000"),'Kategorie ZBP'!$A$2:$E$30,5,TRUE) -> ZA | O40: =VLOOKUP(N40,'Kategorie ZBP'!$E:$F,2,0) -> Ženy do 34 | P40: =VLOOKUP(H40&"x"&A40,Stopky!I:J,2,0) -> 0.02103009259 | Q40: 4 | R40: 3 | S40: 3 | T40: =IF(ISERROR(VLOOKUP(H40&"x"&F40&"xANO",'Závody a tratě'!L:L,1,0))=TRUE,0,_xlfn.IFNA(VLOOKUP(S40,'Body ZBP'!$A$1:$B$40,2,1),0)) -> 21 | U40: =H40&"x"&A40 -> 1x13 | V40: =IF(U40<>"x",COUNTIF($U$2:$U$3000,U40),"") -> 1 | W40: =IF(I40<>"xxxxx",COUNTIF($I$2:$I$3000,I40),"") -> 1
A41: 47 | B41: Lesslová | C41: Denisa | D41: z | E41: 1987 | F41: Z6 | G41: Atletic Třebíč | H41: 1 | I41: =B41&"x"&C41&"x"&D41&"x"&E41&"x"&H41&"x"&F41 -> LesslováxDenisaxzx1987x1xZ6 | J41: =VLOOKUP(H41,'Závody a tratě'!$B:$C,2,0) -> Borovinská desítka | K41: =VLOOKUP(H41&"x"&F41,'Závody a tratě'!$A:$F,6,0) -> 6.7 | L41: =VLOOKUP(TEXT(H41,"000")&UPPER(D41)&TEXT(E41,"0000"),'Kategorie lokální'!$A$2:$F$300,6,TRUE) -> LZA | M41: =VLOOKUP(TEXT(H41,"000")&UPPER(D41)&TEXT(E41,"0000"),'Kategorie lokální'!$A$2:$G$300,7,TRUE) -> L: Ženy do 34 | N41: =VLOOKUP(UPPER(D41)&TEXT(E41,"0000"),'Kategorie ZBP'!$A$2:$E$30,5,TRUE) -> ZA | O41: =VLOOKUP(N41,'Kategorie ZBP'!$E:$F,2,0) -> Ženy do 34 | P41: =VLOOKUP(H41&"x"&A41,Stopky!I:J,2,0) -> 0.02122685185 | Q41: 5 | R41: 4 | S41: 4 | T41: =IF(ISERROR(VLOOKUP(H41&"x"&F41&"xANO",'Závody a tratě'!L:L,1,0))=TRUE,0,_xlfn.IFNA(VLOOKUP(S41,'Body ZBP'!$A$1:$B$40,2,1),0)) -> 18 | U41: =H41&"x"&A41 -> 1x47 | V41: =IF(U41<>"x",COUNTIF($U$2:$U$3000,U41),"") -> 1 | W41: =IF(I41<>"xxxxx",COUNTIF($I$2:$I$3000,I41),"") -> 1
A42: 37 | B42: Havlíková | C42: Ifka | D42: z | E42: 1988 | F42: Z6 | G42: Atletic Třebíč | H42: 1 | I42: =B42&"x"&C42&"x"&D42&"x"&E42&"x"&H42&"x"&F42 -> HavlíkováxIfkaxzx1988x1xZ6 | J42: =VLOOKUP(H42,'Závody a tratě'!$B:$C,2,0) -> Borovinská desítka | K42: =VLOOKUP(H42&"x"&F42,'Závody a tratě'!$A:$F,6,0) -> 6.7 | L42: =VLOOKUP(TEXT(H42,"000")&UPPER(D42)&TEXT(E42,"0000"),'Kategorie lokální'!$A$2:$F$300,6,TRUE) -> LZA | M42: =VLOOKUP(TEXT(H42,"000")&UPPER(D42)&TEXT(E42,"0000"),'Kategorie lokální'!$A$2:$G$300,7,TRUE) -> L: Ženy do 34 | N42: =VLOOKUP(UPPER(D42)&TEXT(E42,"0000"),'Kategorie ZBP'!$A$2:$E$30,5,TRUE) -> ZA | O42: =VLOOKUP(N42,'Kategorie ZBP'!$E:$F,2,0) -> Ženy do 34 | P42: =VLOOKUP(H42&"x"&A42,Stopky!I:J,2,0) -> 0.02200231481 | Q42: 7 | R42: 5 | S42: 5 | T42: =IF(ISERROR(VLOOKUP(H42&"x"&F42&"xANO",'Závody a tratě'!L:L,1,0))=TRUE,0,_xlfn.IFNA(VLOOKUP(S42,'Body ZBP'!$A$1:$B$40,2,1),0)) -> 16 | U42: =H42&"x"&A42 -> 1x37 | V42: =IF(U42<>"x",COUNTIF($U$2:$U$3000,U42),"") -> 1 | W42: =IF(I42<>"xxxxx",COUNTIF($I$2:$I$3000,I42),"") -> 1
A43: 29 | B43: Bulínová | C43: Jitka | D43: z | E43: 1993 | F43: Z6 | G43: Turtles Znojmo | H43: 1 | I43: =B43&"x"&C43&"x"&D43&"x"&E43&"x"&H43&"x"&F43 -> BulínováxJitkaxzx1993x1xZ6 | J43: =VLOOKUP(H43,'Závody a tratě'!$B:$C,2,0) -> Borovinská desítka | K43: =VLOOKUP(H43&"x"&F43,'Závody a tratě'!$A:$F,6,0) -> 6.7 | L43: =VLOOKUP(TEXT(H43,"000")&UPPER(D43)&TEXT(E43,"0000"),'Kategorie lokální'!$A$2:$F$300,6,TRUE) -> LZA | M43: =VLOOKUP(TEXT(H43,"000")&UPPER(D43)&TEXT(E43,"0000"),'Kategorie lokální'!$A$2:$G$300,7,TRUE) -> L: Ženy do 34 | N43: =VLOOKUP(UPPER(D43)&TEXT(E43,"0000"),'Kategorie ZBP'!$A$2:$E$30,5,TRUE) -> ZA | O43: =VLOOKUP(N43,'Kategorie ZBP'!$E:$F,2,0) -> Ženy do 34 | P43: =VLOOKUP(H43&"x"&A43,Stopky!I:J,2,0) -> 0.02449074074 | Q43: 13 | R43: 6 | S43: 6 | T43: =IF(ISERROR(VLOOKUP(H43&"x"&F43&"xANO",'Závody a tratě'!L:L,1,0))=TRUE,0,_xlfn.IFNA(VLOOKUP(S43,'Body ZBP'!$A$1:$B$40,2,1),0)) -> 15 | U43: =H43&"x"&A43 -> 1x29 | V43: =IF(U43<>"x",COUNTIF($U$2:$U$3000,U43),"") -> 1 | W43: =IF(I43<>"xxxxx",COUNTIF($I$2:$I$3000,I43),"") -> 1
A44: 55 | B44: Hanáková | C44: Eva | D44: z | E44: 1986 | F44: Z6 | G44: Střítež nad Bečvou | H44: 1 | I44: =B44&"x"&C44&"x"&D44&"x"&E44&"x"&H44&"x"&F44 -> HanákováxEvaxzx1986x1xZ6 | J44: =VLOOKUP(H44,'Závody a tratě'!$B:$C,2,0) -> Borovinská desítka | K44: =VLOOKUP(H44&"x"&F44,'Závody a tratě'!$A:$F,6,0) -> 6.7 | L44: =VLOOKUP(TEXT(H44,"000")&UPPER(D44)&TEXT(E44,"0000"),'Kategorie lokální'!$A$2:$F$300,6,TRUE) -> LZA | M44: =VLOOKUP(TEXT(H44,"000")&UPPER(D44)&TEXT(E44,"0000"),'Kategorie lokální'!$A$2:$G$300,7,TRUE) -> L: Ženy do 34 | N44: =VLOOKUP(UPPER(D44)&TEXT(E44,"0000"),'Kategorie ZBP'!$A$2:$E$30,5,TRUE) -> ZA | O44: =VLOOKUP(N44,'Kategorie ZBP'!$E:$F,2,0) -> Ženy do 34 | P44: =VLOOKUP(H44&"x"&A44,Stopky!I:J,2,0) -> 0.03083333333 | Q44: 17 | R44: 7 | S44: 7 | T44: =IF(ISERROR(VLOOKUP(H44&"x"&F44&"xANO",'Závody a tratě'!L:L,1,0))=TRUE,0,_xlfn.IFNA(VLOOKUP(S44,'Body ZBP'!$A$1:$B$40,2,1),0)) -> 14 | U44: =H44&"x"&A44 -> 1x55 | V44: =IF(U44<>"x",COUNTIF($U$2:$U$3000,U44),"") -> 1 | W44: =IF(I44<>"xxxxx",COUNTIF($I$2:$I$3000,I44),"") -> 1
A45: 60 | B45: Vrbová-Komárková | C45: Jana | D45: z | E45: 1984 | F45: Z6 | G45: Sokol Studenec | H45: 1 | I45: =B45&"x"&C45&"x"&D45&"x"&E45&"x"&H45&"x"&F45 -> Vrbová-KomárkováxJanaxzx1984x1xZ6 | J45: =VLOOKUP(H45,'Závody a tratě'!$B:$C,2,0) -> Borovinská desítka | K45: =VLOOKUP(H45&"x"&F45,'Závody a tratě'!$A:$F,6,0) -> 6.7 | L45: =VLOOKUP(TEXT(H45,"000")&UPPER(D45)&TEXT(E45,"0000"),'Kategorie lokální'!$A$2:$F$300,6,TRUE) -> LZB | M45: =VLOOKUP(TEXT(H45,"000")&UPPER(D45)&TEXT(E45,"0000"),'Kategorie lokální'!$A$2:$G$300,7,TRUE) -> L: Ženy 35 - 44 | N45: =VLOOKUP(UPPER(D45)&TEXT(E45,"0000"),'Kategorie ZBP'!$A$2:$E$30,5,TRUE) -> ZB | O45: =VLOOKUP(N45,'Kategorie ZBP'!$E:$F,2,0) -> Ženy 35 - 44 | P45: =VLOOKUP(H45&"x"&A45,Stopky!I:J,2,0) -> 0.02019675926 | Q45: 1 | R45: 1 | S45: 1 | T45: =IF(ISERROR(VLOOKUP(H45&"x"&F45&"xANO",'Závody a tratě'!L:L,1,0))=TRUE,0,_xlfn.IFNA(VLOOKUP(S45,'Body ZBP'!$A$1:$B$40,2,1),0)) -> 30 | U45: =H45&"x"&A45 -> 1x60 | V45: =IF(U45<>"x",COUNTIF($U$2:$U$3000,U45),"") -> 1 | W45: =IF(I45<>"xxxxx",COUNTIF($I$2:$I$3000,I45),"") -> 1
A46: 14 | B46: Novotná | C46: Lucie | D46: z | E46: 1975 | F46: Z6 | G46: Veverské Knínice | H46: 1 | I46: =B46&"x"&C46&"x"&D46&"x"&E46&"x"&H46&"x"&F46 -> NovotnáxLuciexzx1975x1xZ6 | J46: =VLOOKUP(H46,'Závody a tratě'!$B:$C,2,0) -> Borovinská desítka | K46: =VLOOKUP(H46&"x"&F46,'Závody a tratě'!$A:$F,6,0) -> 6.7 | L46: =VLOOKUP(TEXT(H46,"000")&UPPER(D46)&TEXT(E46,"0000"),'Kategorie lokální'!$A$2:$F$300,6,TRUE) -> LZB | M46: =VLOOKUP(TEXT(H46,"000")&UPPER(D46)&TEXT(E46,"0000"),'Kategorie lokální'!$A$2:$G$300,7,TRUE) -> L: Ženy 35 - 44 | N46: =VLOOKUP(UPPER(D46)&TEXT(E46,"0000"),'Kategorie ZBP'!$A$2:$E$30,5,TRUE) -> ZB | O46: =VLOOKUP(N46,'Kategorie ZBP'!$E:$F,2,0) -> Ženy 35 - 44 | P46: =VLOOKUP(H46&"x"&A46,Stopky!I:J,2,0) -> 0.02186342593 | Q46: 6 | R46: 2 | S46: 2 | T46: =IF(ISERROR(VLOOKUP(H46&"x"&F46&"xANO",'Závody a tratě'!L:L,1,0))=TRUE,0,_xlfn.IFNA(VLOOKUP(S46,'Body ZBP'!$A$1:$B$40,2,1),0)) -> 25 | U46: =H46&"x"&A46 -> 1x14 | V46: =IF(U46<>"x",COUNTIF($U$2:$U$3000,U46),"") -> 1 | W46: =IF(I46<>"xxxxx",COUNTIF($I$2:$I$3000,I46),"") -> 1
A47: 53 | B47: Vomelová | C47: Eva | D47: z | E47: 1977 | F47: Z6 | G47: Kopce Třebíč | H47: 1 | I47: =B47&"x"&C47&"x"&D47&"x"&E47&"x"&H47&"x"&F47 -> VomelováxEvaxzx1977x1xZ6 | J47: =VLOOKUP(H47,'Závody a tratě'!$B:$C,2,0) -> Borovinská desítka | K47: =VLOOKUP(H47&"x"&F47,'Závody a tratě'!$A:$F,6,0) -> 6.7 | L47: =VLOOKUP(TEXT(H47,"000")&UPPER(D47)&TEXT(E47,"0000"),'Kategorie lokální'!$A$2:$F$300,6,TRUE) -> LZB | M47: =VLOOKUP(TEXT(H47,"000")&UPPER(D47)&TEXT(E47,"0000"),'Kategorie lokální'!$A$2:$G$300,7,TRUE) -> L: Ženy 35 - 44 | N47: =VLOOKUP(UPPER(D47)&TEXT(E47,"0000"),'Kategorie ZBP'!$A$2:$E$30,5,TRUE) -> ZB | O47: =VLOOKUP(N47,'Kategorie ZBP'!$E:$F,2,0) -> Ženy 35 - 44 | P47: =VLOOKUP(H47&"x"&A47,Stopky!I:J,2,0) -> 0.02297453704 | Q47: 9 | R47: 3 | S47: 3 | T47: =IF(ISERROR(VLOOKUP(H47&"x"&F47&"xANO",'Závody a tratě'!L:L,1,0))=TRUE,0,_xlfn.IFNA(VLOOKUP(S47,'Body ZBP'!$A$1:$B$40,2,1),0)) -> 21 | U47: =H47&"x"&A47 -> 1x53 | V47: =IF(U47<>"x",COUNTIF($U$2:$U$3000,U47),"") -> 1 | W47: =IF(I47<>"xxxxx",COUNTIF($I$2:$I$3000,I47),"") -> 1
A48: 56 | B48: Dvořáková | C48: Šárka | D48: z | E48: 1978 | F48: Z6 | G48: Kopce Třebíč | H48: 1 | I48: =B48&"x"&C48&"x"&D48&"x"&E48&"x"&H48&"x"&F48 -> DvořákováxŠárkaxzx1978x1xZ6 | J48: =VLOOKUP(H48,'Závody a tratě'!$B:$C,2,0) -> Borovinská desítka | K48: =VLOOKUP(H48&"x"&F48,'Závody a tratě'!$A:$F,6,0) -> 6.7 | L48: =VLOOKUP(TEXT(H48,"000")&UPPER(D48)&TEXT(E48,"0000"),'Kategorie lokální'!$A$2:$F$300,6,TRUE) -> LZB | M48: =VLOOKUP(TEXT(H48,"000")&UPPER(D48)&TEXT(E48,"0000"),'Kategorie lokální'!$A$2:$G$300,7,TRUE) -> L: Ženy 35 - 44 | N48: =VLOOKUP(UPPER(D48)&TEXT(E48,"0000"),'Kategorie ZBP'!$A$2:$E$30,5,TRUE) -> ZB | O48: =VLOOKUP(N48,'Kategorie ZBP'!$E:$F,2,0) -> Ženy 35 - 44 | P48: =VLOOKUP(H48&"x"&A48,Stopky!I:J,2,0) -> 0.02390046296 | Q48: 10 | R48: 4 | S48: 4 | T48: =IF(ISERROR(VLOOKUP(H48&"x"&F48&"xANO",'Závody a tratě'!L:L,1,0))=TRUE,0,_xlfn.IFNA(VLOOKUP(S48,'Body ZBP'!$A$1:$B$40,2,1),0)) -> 18 | U48: =H48&"x"&A48 -> 1x56 | V48: =IF(U48<>"x",COUNTIF($U$2:$U$3000,U48),"") -> 1 | W48: =IF(I48<>"xxxxx",COUNTIF($I$2:$I$3000,I48),"") -> 1
A49: 24 | B49: Zelená | C49: Irena | D49: z | E49: 1976 | F49: Z6 | G49: Atletic Třebíč | H49: 1 | I49: =B49&"x"&C49&"x"&D49&"x"&E49&"x"&H49&"x"&F49 -> ZelenáxIrenaxzx1976x1xZ6 | J49: =VLOOKUP(H49,'Závody a tratě'!$B:$C,2,0) -> Borovinská desítka | K49: =VLOOKUP(H49&"x"&F49,'Závody a tratě'!$A:$F,6,0) -> 6.7 | L49: =VLOOKUP(TEXT(H49,"000")&UPPER(D49)&TEXT(E49,"0000"),'Kategorie lokální'!$A$2:$F$300,6,TRUE) -> LZB | M49: =VLOOKUP(TEXT(H49,"000")&UPPER(D49)&TEXT(E49,"0000"),'Kategorie lokální'!$A$2:$G$300,7,TRUE) -> L: Ženy 35 - 44 | N49: =VLOOKUP(UPPER(D49)&TEXT(E49,"0000"),'Kategorie ZBP'!$A$2:$E$30,5,TRUE) -> ZB | O49: =VLOOKUP(N49,'Kategorie ZBP'!$E:$F,2,0) -> Ženy 35 - 44 | P49: =VLOOKUP(H49&"x"&A49,Stopky!I:J,2,0) -> 0.02459490741 | Q49: 14 | R49: 5 | S49: 5 | T49: =IF(ISERROR(VLOOKUP(H49&"x"&F49&"xANO",'Závody a tratě'!L:L,1,0))=TRUE,0,_xlfn.IFNA(VLOOKUP(S49,'Body ZBP'!$A$1:$B$40,2,1),0)) -> 16 | U49: =H49&"x"&A49 -> 1x24 | V49: =IF(U49<>"x",COUNTIF($U$2:$U$3000,U49),"") -> 1 | W49: =IF(I49<>"xxxxx",COUNTIF($I$2:$I$3000,I49),"") -> 1
A50: 17 | B50: Peitz | C50: Slávka | D50: z | E50: 1978 | F50: Z6 | G50: Jílové u Prahy | H50: 1 | I50: =B50&"x"&C50&"x"&D50&"x"&E50&"x"&H50&"x"&F50 -> PeitzxSlávkaxzx1978x1xZ6 | J50: =VLOOKUP(H50,'Závody a tratě'!$B:$C,2,0) -> Borovinská desítka | K50: =VLOOKUP(H50&"x"&F50,'Závody a tratě'!$A:$F,6,0) -> 6.7 | L50: =VLOOKUP(TEXT(H50,"000")&UPPER(D50)&TEXT(E50,"0000"),'Kategorie lokální'!$A$2:$F$300,6,TRUE) -> LZB | M50: =VLOOKUP(TEXT(H50,"000")&UPPER(D50)&TEXT(E50,"0000"),'Kategorie lokální'!$A$2:$G$300,7,TRUE) -> L: Ženy 35 - 44 | N50: =VLOOKUP(UPPER(D50)&TEXT(E50,"0000"),'Kategorie ZBP'!$A$2:$E$30,5,TRUE) -> ZB | O50: =VLOOKUP(N50,'Kategorie ZBP'!$E:$F,2,0) -> Ženy 35 - 44 | P50: =VLOOKUP(H50&"x"&A50,Stopky!I:J,2,0) -> 0.02515046296 | Q50: 15 | R50: 6 | S50: 6 | T50: =IF(ISERROR(VLOOKUP(H50&"x"&F50&"xANO",'Závody a tratě'!L:L,1,0))=TRUE,0,_xlfn.IFNA(VLOOKUP(S50,'Body ZBP'!$A$1:$B$40,2,1),0)) -> 15 | U50: =H50&"x"&A50 -> 1x17 | V50: =IF(U50<>"x",COUNTIF($U$2:$U$3000,U50),"") -> 1 | W50: =IF(I50<>"xxxxx",COUNTIF($I$2:$I$3000,I50),"") -> 1
A51: 30 | B51: Růžičková | C51: Zuzana | D51: z | E51: 1983 | F51: Z6 | G51: Znojmo | H51: 1 | I51: =B51&"x"&C51&"x"&D51&"x"&E51&"x"&H51&"x"&F51 -> RůžičkováxZuzanaxzx1983x1xZ6 | J51: =VLOOKUP(H51,'Závody a tratě'!$B:$C,2,0) -> Borovinská desítka | K51: =VLOOKUP(H51&"x"&F51,'Závody a tratě'!$A:$F,6,0) -> 6.7 | L51: =VLOOKUP(TEXT(H51,"000")&UPPER(D51)&TEXT(E51,"0000"),'Kategorie lokální'!$A$2:$F$300,6,TRUE) -> LZB | M51: =VLOOKUP(TEXT(H51,"000")&UPPER(D51)&TEXT(E51,"0000"),'Kategorie lokální'!$A$2:$G$300,7,TRUE) -> L: Ženy 35 - 44 | N51: =VLOOKUP(UPPER(D51)&TEXT(E51,"0000"),'Kategorie ZBP'!$A$2:$E$30,5,TRUE) -> ZB | O51: =VLOOKUP(N51,'Kategorie ZBP'!$E:$F,2,0) -> Ženy 35 - 44 | P51: =VLOOKUP(H51&"x"&A51,Stopky!I:J,2,0) -> 0.02715277778 | Q51: 16 | R51: 7 | S51: 7 | T51: =IF(ISERROR(VLOOKUP(H51&"x"&F51&"xANO",'Závody a tratě'!L:L,1,0))=TRUE,0,_xlfn.IFNA(VLOOKUP(S51,'Body ZBP'!$A$1:$B$40,2,1),0)) -> 14 | U51: =H51&"x"&A51 -> 1x30 | V51: =IF(U51<>"x",COUNTIF($U$2:$U$3000,U51),"") -> 1 | W51: =IF(I51<>"xxxxx",COUNTIF($I$2:$I$3000,I51),"") -> 1
A52: 54 | B52: Dobešová | C52: Ivona | D52: z | E52: 1984 | F52: Z6 | G52: Výčapy | H52: 1 | I52: =B52&"x"&C52&"x"&D52&"x"&E52&"x"&H52&"x"&F52 -> DobešováxIvonaxzx1984x1xZ6 | J52: =VLOOKUP(H52,'Závody a tratě'!$B:$C,2,0) -> Borovinská desítka | K52: =VLOOKUP(H52&"x"&F52,'Závody a tratě'!$A:$F,6,0) -> 6.7 | L52: =VLOOKUP(TEXT(H52,"000")&UPPER(D52)&TEXT(E52,"0000"),'Kategorie lokální'!$A$2:$F$300,6,TRUE) -> LZB | M52: =VLOOKUP(TEXT(H52,"000")&UPPER(D52)&TEXT(E52,"0000"),'Kategorie lokální'!$A$2:$G$300,7,TRUE) -> L: Ženy 35 - 44 | N52: =VLOOKUP(UPPER(D52)&TEXT(E52,"0000"),'Kategorie ZBP'!$A$2:$E$30,5,TRUE) -> ZB | O52: =VLOOKUP(N52,'Kategorie ZBP'!$E:$F,2,0) -> Ženy 35 - 44 | P52: =VLOOKUP(H52&"x"&A52,Stopky!I:J,2,0) -> 0.03084490741 | Q52: 18 | R52: 8 | S52: 8 | T52: =IF(ISERROR(VLOOKUP(H52&"x"&F52&"xANO",'Závody a tratě'!L:L,1,0))=TRUE,0,_xlfn.IFNA(VLOOKUP(S52,'Body ZBP'!$A$1:$B$40,2,1),0)) -> 13 | U52: =H52&"x"&A52 -> 1x54 | V52: =IF(U52<>"x",COUNTIF($U$2:$U$3000,U52),"") -> 1 | W52: =IF(I52<>"xxxxx",COUNTIF($I$2:$I$3000,I52),"") -> 1
A53: 59 | B53: Jičínská | C53: Lenka | D53: z | E53: 1974 | F53: Z6 | G53: Orel Mor. Budějovice | H53: 1 | I53: =B53&"x"&C53&"x"&D53&"x"&E53&"x"&H53&"x"&F53 -> JičínskáxLenkaxzx1974x1xZ6 | J53: =VLOOKUP(H53,'Závody a tratě'!$B:$C,2,0) -> Borovinská desítka | K53: =VLOOKUP(H53&"x"&F53,'Závody a tratě'!$A:$F,6,0) -> 6.7 | L53: =VLOOKUP(TEXT(H53,"000")&UPPER(D53)&TEXT(E53,"0000"),'Kategorie lokální'!$A$2:$F$300,6,TRUE) -> LZC | M53: =VLOOKUP(TEXT(H53,"000")&UPPER(D53)&TEXT(E53,"0000"),'Kategorie lokální'!$A$2:$G$300,7,TRUE) -> L: Ženy od 45 | N53: =VLOOKUP(UPPER(D53)&TEXT(E53,"0000"),'Kategorie ZBP'!$A$2:$E$30,5,TRUE) -> ZC | O53: =VLOOKUP(N53,'Kategorie ZBP'!$E:$F,2,0) -> Ženy nad 45 | P53: =VLOOKUP(H53&"x"&A53,Stopky!I:J,2,0) -> 0.02232638889 | Q53: 8 | R53: 1 | S53: 1 | T53: =IF(ISERROR(VLOOKUP(H53&"x"&F53&"xANO",'Závody a tratě'!L:L,1,0))=TRUE,0,_xlfn.IFNA(VLOOKUP(S53,'Body ZBP'!$A$1:$B$40,2,1),0)) -> 30 | U53: =H53&"x"&A53 -> 1x59 | V53: =IF(U53<>"x",COUNTIF($U$2:$U$3000,U53),"") -> 1 | W53: =IF(I53<>"xxxxx",COUNTIF($I$2:$I$3000,I53),"") -> 1
A54: 15 | B54: Březnová | C54: Ivana | D54: z | E54: 1969 | F54: Z6 | G54: TJ Spartak Třebíč | H54: 1 | I54: =B54&"x"&C54&"x"&D54&"x"&E54&"x"&H54&"x"&F54 -> BřeznováxIvanaxzx1969x1xZ6 | J54: =VLOOKUP(H54,'Závody a tratě'!$B:$C,2,0) -> Borovinská desítka | K54: =VLOOKUP(H54&"x"&F54,'Závody a tratě'!$A:$F,6,0) -> 6.7 | L54: =VLOOKUP(TEXT(H54,"000")&UPPER(D54)&TEXT(E54,"0000"),'Kategorie lokální'!$A$2:$F$300,6,TRUE) -> LZC | M54: =VLOOKUP(TEXT(H54,"000")&UPPER(D54)&TEXT(E54,"0000"),'Kategorie lokální'!$A$2:$G$300,7,TRUE) -> L: Ženy od 45 | N54: =VLOOKUP(UPPER(D54)&TEXT(E54,"0000"),'Kategorie ZBP'!$A$2:$E$30,5,TRUE) -> ZC | O54: =VLOOKUP(N54,'Kategorie ZBP'!$E:$F,2,0) -> Ženy nad 45 | P54: =VLOOKUP(H54&"x"&A54,Stopky!I:J,2,0) -> 0.02407407407 | Q54: 11 | R54: 2 | S54: 2 | T54: =IF(ISERROR(VLOOKUP(H54&"x"&F54&"xANO",'Závody a tratě'!L:L,1,0))=TRUE,0,_xlfn.IFNA(VLOOKUP(S54,'Body ZBP'!$A$1:$B$40,2,1),0)) -> 25 | U54: =H54&"x"&A54 -> 1x15 | V54: =IF(U54<>"x",COUNTIF($U$2:$U$3000,U54),"") -> 1 | W54: =IF(I54<>"xxxxx",COUNTIF($I$2:$I$3000,I54),"") -> 1
A55: 31 | B55: Bulínová | C55: Jitka | D55: z | E55: 1970 | F55: Z6 | G55: Sokol Plaveč | H55: 1 | I55: =B55&"x"&C55&"x"&D55&"x"&E55&"x"&H55&"x"&F55 -> BulínováxJitkaxzx1970x1xZ6 | J55: =VLOOKUP(H55,'Závody a tratě'!$B:$C,2,0) -> Borovinská desítka | K55: =VLOOKUP(H55&"x"&F55,'Závody a tratě'!$A:$F,6,0) -> 6.7 | L55: =VLOOKUP(TEXT(H55,"000")&UPPER(D55)&TEXT(E55,"0000"),'Kategorie lokální'!$A$2:$F$300,6,TRUE) -> LZC | M55: =VLOOKUP(TEXT(H55,"000")&UPPER(D55)&TEXT(E55,"0000"),'Kategorie lokální'!$A$2:$G$300,7,TRUE) -> L: Ženy od 45 | N55: =VLOOKUP(UPPER(D55)&TEXT(E55,"0000"),'Kategorie ZBP'!$A$2:$E$30,5,TRUE) -> ZC | O55: =VLOOKUP(N55,'Kategorie ZBP'!$E:$F,2,0) -> Ženy nad 45 | P55: =VLOOKUP(H55&"x"&A55,Stopky!I:J,2,0) -> 0.02431712963 | Q55: 12 | R55: 3 | S55: 3 | T55: =IF(ISERROR(VLOOKUP(H55&"x"&F55&"xANO",'Závody a tratě'!L:L,1,0))=TRUE,0,_xlfn.IFNA(VLOOKUP(S55,'Body ZBP'!$A$1:$B$40,2,1),0)) -> 21 | U55: =H55&"x"&A55 -> 1x31 | V55: =IF(U55<>"x",COUNTIF($U$2:$U$3000,U55),"") -> 1 | W55: =IF(I55<>"xxxxx",COUNTIF($I$2:$I$3000,I55),"") -> 1
A56: 15 | B56: Soural | C56: Lukáš | D56: m | E56: 1982 | F56: M6 | G56: VSK UNI Brno | H56: 2 | I56: =B56&"x"&C56&"x"&D56&"x"&E56&"x"&H56&"x"&F56 -> SouralxLukášxmx1982x2xM6 | J56: =VLOOKUP(H56,'Závody a tratě'!$B:$C,2,0) -> „Sokolák“ Plaveč u Znojma | K56: =VLOOKUP(H56&"x"&F56,'Závody a tratě'!$A:$F,6,0) -> 6 | L56: =VLOOKUP(TEXT(H56,"000")&UPPER(D56)&TEXT(E56,"0000"),'Kategorie lokální'!$A$2:$F$300,6,TRUE) -> LMA | M56: =VLOOKUP(TEXT(H56,"000")&UPPER(D56)&TEXT(E56,"0000"),'Kategorie lokální'!$A$2:$G$300,7,TRUE) -> L: Muži do 39 | N56: =VLOOKUP(UPPER(D56)&TEXT(E56,"0000"),'Kategorie ZBP'!$A$2:$E$30,5,TRUE) -> MA | O56: =VLOOKUP(N56,'Kategorie ZBP'!$E:$F,2,0) -> Muži do 39 | P56: =VLOOKUP(H56&"x"&A56,Stopky!I:J,2,0) -> 0.01501157407 | Q56: 1 | R56: 1 | S56: 1 | T56: =IF(ISERROR(VLOOKUP(H56&"x"&F56&"xANO",'Závody a tratě'!L:L,1,0))=TRUE,0,_xlfn.IFNA(VLOOKUP(S56,'Body ZBP'!$A$1:$B$40,2,1),0)) -> 30 | U56: =H56&"x"&A56 -> 2x15 | V56: =IF(U56<>"x",COUNTIF($U$2:$U$3000,U56),"") -> 1 | W56: =IF(I56<>"xxxxx",COUNTIF($I$2:$I$3000,I56),"") -> 1
A57: 18 | B57: Čabala | C57: Vojtěch | D57: m | E57: 1993 | F57: M6 | G57: Rabbits Znojmo | H57: 2 | I57: =B57&"x"&C57&"x"&D57&"x"&E57&"x"&H57&"x"&F57 -> ČabalaxVojtěchxmx1993x2xM6 | J57: =VLOOKUP(H57,'Závody a tratě'!$B:$C,2,0) -> „Sokolák“ Plaveč u Znojma | K57: =VLOOKUP(H57&"x"&F57,'Závody a tratě'!$A:$F,6,0) -> 6 | L57: =VLOOKUP(TEXT(H57,"000")&UPPER(D57)&TEXT(E57,"0000"),'Kategorie lokální'!$A$2:$F$300,6,TRUE) -> LMA | M57: =VLOOKUP(TEXT(H57,"000")&UPPER(D57)&TEXT(E57,"0000"),'Kategorie lokální'!$A$2:$G$300,7,TRUE) -> L: Muži do 39 | N57: =VLOOKUP(UPPER(D57)&TEXT(E57,"0000"),'Kategorie ZBP'!$A$2:$E$30,5,TRUE) -> MA | O57: =VLOOKUP(N57,'Kategorie ZBP'!$E:$F,2,0) -> Muži do 39 | P57: =VLOOKUP(H57&"x"&A57,Stopky!I:J,2,0) -> 0.01537037037 | Q57: 2 | R57: 2 | S57: 2 | T57: =IF(ISERROR(VLOOKUP(H57&"x"&F57&"xANO",'Závody a tratě'!L:L,1,0))=TRUE,0,_xlfn.IFNA(VLOOKUP(S57,'Body ZBP'!$A$1:$B$40,2,1),0)) -> 25 | U57: =H57&"x"&A57 -> 2x18 | V57: =IF(U57<>"x",COUNTIF($U$2:$U$3000,U57),"") -> 1 | W57: =IF(I57<>"xxxxx",COUNTIF($I$2:$I$3000,I57),"") -> 1
A58: 48 | B58: Mahr | C58: Daniel | D58: m | E58: 1983 | F58: M6 | G58: Znojmo | H58: 2 | I58: =B58&"x"&C58&"x"&D58&"x"&E58&"x"&H58&"x"&F58 -> MahrxDanielxmx1983x2xM6 | J58: =VLOOKUP(H58,'Závody a tratě'!$B:$C,2,0) -> „Sokolák“ Plaveč u Znojma | K58: =VLOOKUP(H58&"x"&F58,'Závody a tratě'!$A:$F,6,0) -> 6 | L58: =VLOOKUP(TEXT(H58,"000")&UPPER(D58)&TEXT(E58,"0000"),'Kategorie lokální'!$A$2:$F$300,6,TRUE) -> LMA | M58: =VLOOKUP(TEXT(H58,"000")&UPPER(D58)&TEXT(E58,"0000"),'Kategorie lokální'!$A$2:$G$300,7,TRUE) -> L: Muži do 39 | N58: =VLOOKUP(UPPER(D58)&TEXT(E58,"0000"),'Kategorie ZBP'!$A$2:$E$30,5,TRUE) -> MA | O58: =VLOOKUP(N58,'Kategorie ZBP'!$E:$F,2,0) -> Muži do 39 | P58: =VLOOKUP(H58&"x"&A58,Stopky!I:J,2,0) -> 0.01578703704 | Q58: 3 | R58: 3 | S58: 3 | T58: =IF(ISERROR(VLOOKUP(H58&"x"&F58&"xANO",'Závody a tratě'!L:L,1,0))=TRUE,0,_xlfn.IFNA(VLOOKUP(S58,'Body ZBP'!$A$1:$B$40,2,1),0)) -> 21 | U58: =H58&"x"&A58 -> 2x48 | V58: =IF(U58<>"x",COUNTIF($U$2:$U$3000,U58),"") -> 1 | W58: =IF(I58<>"xxxxx",COUNTIF($I$2:$I$3000,I58),"") -> 1
A59: 33 | B59: Blaha | C59: Daniel | D59: m | E59: 2002 | F59: M6 | H59: 2 | I59: =B59&"x"&C59&"x"&D59&"x"&E59&"x"&H59&"x"&F59 -> BlahaxDanielxmx2002x2xM6 | J59: =VLOOKUP(H59,'Závody a tratě'!$B:$C,2,0) -> „Sokolák“ Plaveč u Znojma | K59: =VLOOKUP(H59&"x"&F59,'Závody a tratě'!$A:$F,6,0) -> 6 | L59: =VLOOKUP(TEXT(H59,"000")&UPPER(D59)&TEXT(E59,"0000"),'Kategorie lokální'!$A$2:$F$300,6,TRUE) -> LMA | M59: =VLOOKUP(TEXT(H59,"000")&UPPER(D59)&TEXT(E59,"0000"),'Kategorie lokální'!$A$2:$G$300,7,TRUE) -> L: Muži do 39 | N59: =VLOOKUP(UPPER(D59)&TEXT(E59,"0000"),'Kategorie ZBP'!$A$2:$E$30,5,TRUE) -> MA | O59: =VLOOKUP(N59,'Kategorie ZBP'!$E:$F,2,0) -> Muži do 39 | P59: =VLOOKUP(H59&"x"&A59,Stopky!I:J,2,0) -> 0.01578819444 | Q59: 4 | R59: 4 | S59: 4 | T59: =IF(ISERROR(VLOOKUP(H59&"x"&F59&"xANO",'Závody a tratě'!L:L,1,0))=TRUE,0,_xlfn.IFNA(VLOOKUP(S59,'Body ZBP'!$A$1:$B$40,2,1),0)) -> 18 | U59: =H59&"x"&A59 -> 2x33 | V59: =IF(U59<>"x",COUNTIF($U$2:$U$3000,U59),"") -> 1 | W59: =IF(I59<>"xxxxx",COUNTIF($I$2:$I$3000,I59),"") -> 1
A60: 11 | B60: Hrubý | C60: Josef | D60: m | E60: 1992 | F60: M6 | G60: TJ Znojmo | H60: 2 | I60: =B60&"x"&C60&"x"&D60&"x"&E60&"x"&H60&"x"&F60 -> HrubýxJosefxmx1992x2xM6 | J60: =VLOOKUP(H60,'Závody a tratě'!$B:$C,2,0) -> „Sokolák“ Plaveč u Znojma | K60: =VLOOKUP(H60&"x"&F60,'Závody a tratě'!$A:$F,6,0) -> 6 | L60: =VLOOKUP(TEXT(H60,"000")&UPPER(D60)&TEXT(E60,"0000"),'Kategorie lokální'!$A$2:$F$300,6,TRUE) -> LMA | M60: =VLOOKUP(TEXT(H60,"000")&UPPER(D60)&TEXT(E60,"0000"),'Kategorie lokální'!$A$2:$G$300,7,TRUE) -> L: Muži do 39 | N60: =VLOOKUP(UPPER(D60)&TEXT(E60,"0000"),'Kategorie ZBP'!$A$2:$E$30,5,TRUE) -> MA | O60: =VLOOKUP(N60,'Kategorie ZBP'!$E:$F,2,0) -> Muži do 39 | P60: =VLOOKUP(H60&"x"&A60,Stopky!I:J,2,0) -> 0.01667824074 | Q60: 5 | R60: 5 | S60: 5 | T60: =IF(ISERROR(VLOOKUP(H60&"x"&F60&"xANO",'Závody a tratě'!L:L,1,0))=TRUE,0,_xlfn.IFNA(VLOOKUP(S60,'Body ZBP'!$A$1:$B$40,2,1),0)) -> 16 | U60: =H60&"x"&A60 -> 2x11 | V60: =IF(U60<>"x",COUNTIF($U$2:$U$3000,U60),"") -> 1 | W60: =IF(I60<>"xxxxx",COUNTIF($I$2:$I$3000,I60),"") -> 1
A61: 10 | B61: Šrámek | C61: Ondřej | D61: m | E61: 1997 | F61: M6 | G61: Rabbits Znojmo | H61: 2 | I61: =B61&"x"&C61&"x"&D61&"x"&E61&"x"&H61&"x"&F61 -> ŠrámekxOndřejxmx1997x2xM6 | J61: =VLOOKUP(H61,'Závody a tratě'!$B:$C,2,0) -> „Sokolák“ Plaveč u Znojma | K61: =VLOOKUP(H61&"x"&F61,'Závody a tratě'!$A:$F,6,0) -> 6 | L61: =VLOOKUP(TEXT(H61,"000")&UPPER(D61)&TEXT(E61,"0000"),'Kategorie lokální'!$A$2:$F$300,6,TRUE) -> LMA | M61: =VLOOKUP(TEXT(H61,"000")&UPPER(D61)&TEXT(E61,"0000"),'Kategorie lokální'!$A$2:$G$300,7,TRUE) -> L: Muži do 39 | N61: =VLOOKUP(UPPER(D61)&TEXT(E61,"0000"),'Kategorie ZBP'!$A$2:$E$30,5,TRUE) -> MA | O61: =VLOOKUP(N61,'Kategorie ZBP'!$E:$F,2,0) -> Muži do 39 | P61: =VLOOKUP(H61&"x"&A61,Stopky!I:J,2,0) -> 0.01731481481 | Q61: 8 | R61: 6 | S61: 6 | T61: =IF(ISERROR(VLOOKUP(H61&"x"&F61&"xANO",'Závody a tratě'!L:L,1,0))=TRUE,0,_xlfn.IFNA(VLOOKUP(S61,'Body ZBP'!$A$1:$B$40,2,1),0)) -> 15 | U61: =H61&"x"&A61 -> 2x10 | V61: =IF(U61<>"x",COUNTIF($U$2:$U$3000,U61),"") -> 1 | W61: =IF(I61<>"xxxxx",COUNTIF($I$2:$I$3000,I61),"") -> 1
A62: 19 | B62: Brandl | C62: Tomáš | D62: m | E62: 1998 | F62: M6 | H62: 2 | I62: =B62&"x"&C62&"x"&D62&"x"&E62&"x"&H62&"x"&F62 -> BrandlxTomášxmx1998x2xM6 | J62: =VLOOKUP(H62,'Závody a tratě'!$B:$C,2,0) -> „Sokolák“ Plaveč u Znojma | K62: =VLOOKUP(H62&"x"&F62,'Závody a tratě'!$A:$F,6,0) -> 6 | L62: =VLOOKUP(TEXT(H62,"000")&UPPER(D62)&TEXT(E62,"0000"),'Kategorie lokální'!$A$2:$F$300,6,TRUE) -> LMA | M62: =VLOOKUP(TEXT(H62,"000")&UPPER(D62)&TEXT(E62,"0000"),'Kategorie lokální'!$A$2:$G$300,7,TRUE) -> L: Muži do 39 | N62: =VLOOKUP(UPPER(D62)&TEXT(E62,"0000"),'Kategorie ZBP'!$A$2:$E$30,5,TRUE) -> MA | O62: =VLOOKUP(N62,'Kategorie ZBP'!$E:$F,2,0) -> Muži do 39 | P62: =VLOOKUP(H62&"x"&A62,Stopky!I:J,2,0) -> 0.01903935185 | Q62: 17 | R62: 7 | S62: 7 | T62: =IF(ISERROR(VLOOKUP(H62&"x"&F62&"xANO",'Závody a tratě'!L:L,1,0))=TRUE,0,_xlfn.IFNA(VLOOKUP(S62,'Body ZBP'!$A$1:$B$40,2,1),0)) -> 14 | U62: =H62&"x"&A62 -> 2x19 | V62: =IF(U62<>"x",COUNTIF($U$2:$U$3000,U62),"") -> 1 | W62: =IF(I62<>"xxxxx",COUNTIF($I$2:$I$3000,I62),"") -> 1
A63: 14 | B63: Koc | C63: Dušan | D63: m | E63: 1990 | F63: M6 | G63: TJ Sokol Plaveč | H63: 2 | I63: =B63&"x"&C63&"x"&D63&"x"&E63&"x"&H63&"x"&F63 -> KocxDušanxmx1990x2xM6 | J63: =VLOOKUP(H63,'Závody a tratě'!$B:$C,2,0) -> „Sokolák“ Plaveč u Znojma | K63: =VLOOKUP(H63&"x"&F63,'Závody a tratě'!$A:$F,6,0) -> 6 | L63: =VLOOKUP(TEXT(H63,"000")&UPPER(D63)&TEXT(E63,"0000"),'Kategorie lokální'!$A$2:$F$300,6,TRUE) -> LMA | M63: =VLOOKUP(TEXT(H63,"000")&UPPER(D63)&TEXT(E63,"0000"),'Kategorie lokální'!$A$2:$G$300,7,TRUE) -> L: Muži do 39 | N63: =VLOOKUP(UPPER(D63)&TEXT(E63,"0000"),'Kategorie ZBP'!$A$2:$E$30,5,TRUE) -> MA | O63: =VLOOKUP(N63,'Kategorie ZBP'!$E:$F,2,0) -> Muži do 39 | P63: =VLOOKUP(H63&"x"&A63,Stopky!I:J,2,0) -> 0.01940972222 | Q63: 23 | R63: 8 | S63: 8 | T63: =IF(ISERROR(VLOOKUP(H63&"x"&F63&"xANO",'Závody a tratě'!L:L,1,0))=TRUE,0,_xlfn.IFNA(VLOOKUP(S63,'Body ZBP'!$A$1:$B$40,2,1),0)) -> 13 | U63: =H63&"x"&A63 -> 2x14 | V63: =IF(U63<>"x",COUNTIF($U$2:$U$3000,U63),"") -> 1 | W63: =IF(I63<>"xxxxx",COUNTIF($I$2:$I$3000,I63),"") -> 1
A64: 22 | B64: Dočekal | C64: Jan | D64: m | E64: 2004 | F64: M6 | G64: TJ Znojmo | H64: 2 | I64: =B64&"x"&C64&"x"&D64&"x"&E64&"x"&H64&"x"&F64 -> DočekalxJanxmx2004x2xM6 | J64: =VLOOKUP(H64,'Závody a tratě'!$B:$C,2,0) -> „Sokolák“ Plaveč u Znojma | K64: =VLOOKUP(H64&"x"&F64,'Závody a tratě'!$A:$F,6,0) -> 6 | L64: =VLOOKUP(TEXT(H64,"000")&UPPER(D64)&TEXT(E64,"0000"),'Kategorie lokální'!$A$2:$F$300,6,TRUE) -> LMA | M64: =VLOOKUP(TEXT(H64,"000")&UPPER(D64)&TEXT(E64,"0000"),'Kategorie lokální'!$A$2:$G$300,7,TRUE) -> L: Muži do 39 | N64: =VLOOKUP(UPPER(D64)&TEXT(E64,"0000"),'Kategorie ZBP'!$A$2:$E$30,5,TRUE) -> MA | O64: =VLOOKUP(N64,'Kategorie ZBP'!$E:$F,2,0) -> Muži do 39 | P64: =VLOOKUP(H64&"x"&A64,Stopky!I:J,2,0) -> 0.02042824074 | Q64: 26 | R64: 9 | S64: 9 | T64: =IF(ISERROR(VLOOKUP(H64&"x"&F64&"xANO",'Závody a tratě'!L:L,1,0))=TRUE,0,_xlfn.IFNA(VLOOKUP(S64,'Body ZBP'!$A$1:$B$40,2,1),0)) -> 12 | U64: =H64&"x"&A64 -> 2x22 | V64: =IF(U64<>"x",COUNTIF($U$2:$U$3000,U64),"") -> 1 | W64: =IF(I64<>"xxxxx",COUNTIF($I$2:$I$3000,I64),"") -> 1
A65: 30 | B65: Kaidl | C65: Pavel | D65: m | E65: 1987 | F65: M6 | G65: Němčičky | H65: 2 | I65: =B65&"x"&C65&"x"&D65&"x"&E65&"x"&H65&"x"&F65 -> KaidlxPavelxmx1987x2xM6 | J65: =VLOOKUP(H65,'Závody a tratě'!$B:$C,2,0) -> „Sokolák“ Plaveč u Znojma | K65: =VLOOKUP(H65&"x"&F65,'Závody a tratě'!$A:$F,6,0) -> 6 | L65: =VLOOKUP(TEXT(H65,"000")&UPPER(D65)&TEXT(E65,"0000"),'Kategorie lokální'!$A$2:$F$300,6,TRUE) -> LMA | M65: =VLOOKUP(TEXT(H65,"000")&UPPER(D65)&TEXT(E65,"0000"),'Kategorie lokální'!$A$2:$G$300,7,TRUE) -> L: Muži do 39 | N65: =VLOOKUP(UPPER(D65)&TEXT(E65,"0000"),'Kategorie ZBP'!$A$2:$E$30,5,TRUE) -> MA | O65: =VLOOKUP(N65,'Kategorie ZBP'!$E:$F,2,0) -> Muži do 39 | P65: =VLOOKUP(H65&"x"&A65,Stopky!I:J,2,0) -> 0.02194444444 | Q65: 31 | R65: 10 | S65: 10 | T65: =IF(ISERROR(VLOOKUP(H65&"x"&F65&"xANO",'Závody a tratě'!L:L,1,0))=TRUE,0,_xlfn.IFNA(VLOOKUP(S65,'Body ZBP'!$A$1:$B$40,2,1),0)) -> 11 | U65: =H65&"x"&A65 -> 2x30 | V65: =IF(U65<>"x",COUNTIF($U$2:$U$3000,U65),"") -> 1 | W65: =IF(I65<>"xxxxx",COUNTIF($I$2:$I$3000,I65),"") -> 1
A66: 42 | B66: Paulíček | C66: Tomáš | D66: m | E66: 2005 | F66: M6 | G66: Šanov | H66: 2 | I66: =B66&"x"&C66&"x"&D66&"x"&E66&"x"&H66&"x"&F66 -> PaulíčekxTomášxmx2005x2xM6 | J66: =VLOOKUP(H66,'Závody a tratě'!$B:$C,2,0) -> „Sokolák“ Plaveč u Znojma | K66: =VLOOKUP(H66&"x"&F66,'Závody a tratě'!$A:$F,6,0) -> 6 | L66: =VLOOKUP(TEXT(H66,"000")&UPPER(D66)&TEXT(E66,"0000"),'Kategorie lokální'!$A$2:$F$300,6,TRUE) -> LMA | M66: =VLOOKUP(TEXT(H66,"000")&UPPER(D66)&TEXT(E66,"0000"),'Kategorie lokální'!$A$2:$G$300,7,TRUE) -> L: Muži do 39 | N66: =VLOOKUP(UPPER(D66)&TEXT(E66,"0000"),'Kategorie ZBP'!$A$2:$E$30,5,TRUE) -> MA | O66: =VLOOKUP(N66,'Kategorie ZBP'!$E:$F,2,0) -> Muži do 39 | P66: =VLOOKUP(H66&"x"&A66,Stopky!I:J,2,0) -> 0.02209490741 | Q66: 32 | R66: 11 | S66: 11 | T66: =IF(ISERROR(VLOOKUP(H66&"x"&F66&"xANO",'Závody a tratě'!L:L,1,0))=TRUE,0,_xlfn.IFNA(VLOOKUP(S66,'Body ZBP'!$A$1:$B$40,2,1),0)) -> 10 | U66: =H66&"x"&A66 -> 2x42 | V66: =IF(U66<>"x",COUNTIF($U$2:$U$3000,U66),"") -> 1 | W66: =IF(I66<>"xxxxx",COUNTIF($I$2:$I$3000,I66),"") -> 1
A67: 3 | B67: Papoušek | C67: Ondřej | D67: m | E67: 2006 | F67: M6 | G67: Přímětice | H67: 2 | I67: =B67&"x"&C67&"x"&D67&"x"&E67&"x"&H67&"x"&F67 -> PapoušekxOndřejxmx2006x2xM6 | J67: =VLOOKUP(H67,'Závody a tratě'!$B:$C,2,0) -> „Sokolák“ Plaveč u Znojma | K67: =VLOOKUP(H67&"x"&F67,'Závody a tratě'!$A:$F,6,0) -> 6 | L67: =VLOOKUP(TEXT(H67,"000")&UPPER(D67)&TEXT(E67,"0000"),'Kategorie lokální'!$A$2:$F$300,6,TRUE) -> LMA | M67: =VLOOKUP(TEXT(H67,"000")&UPPER(D67)&TEXT(E67,"0000"),'Kategorie lokální'!$A$2:$G$300,7,TRUE) -> L: Muži do 39 | N67: =VLOOKUP(UPPER(D67)&TEXT(E67,"0000"),'Kategorie ZBP'!$A$2:$E$30,5,TRUE) -> MA | O67: =VLOOKUP(N67,'Kategorie ZBP'!$E:$F,2,0) -> Muži do 39 | P67: =VLOOKUP(H67&"x"&A67,Stopky!I:J,2,0) -> 0.02732638889 | Q67: 36 | R67: 12 | S67: 12 | T67: =IF(ISERROR(VLOOKUP(H67&"x"&F67&"xANO",'Závody a tratě'!L:L,1,0))=TRUE,0,_xlfn.IFNA(VLOOKUP(S67,'Body ZBP'!$A$1:$B$40,2,1),0)) -> 9 | U67: =H67&"x"&A67 -> 2x3 | V67: =IF(U67<>"x",COUNTIF($U$2:$U$3000,U67),"") -> 1 | W67: =IF(I67<>"xxxxx",COUNTIF($I$2:$I$3000,I67),"") -> 1
A68: 7 | B68: Vala | C68: Robert | D68: m | E68: 1977 | F68: M6 | G68: Znojmo | H68: 2 | I68: =B68&"x"&C68&"x"&D68&"x"&E68&"x"&H68&"x"&F68 -> ValaxRobertxmx1977x2xM6 | J68: =VLOOKUP(H68,'Závody a tratě'!$B:$C,2,0) -> „Sokolák“ Plaveč u Znojma | K68: =VLOOKUP(H68&"x"&F68,'Závody a tratě'!$A:$F,6,0) -> 6 | L68: =VLOOKUP(TEXT(H68,"000")&UPPER(D68)&TEXT(E68,"0000"),'Kategorie lokální'!$A$2:$F$300,6,TRUE) -> LMB | M68: =VLOOKUP(TEXT(H68,"000")&UPPER(D68)&TEXT(E68,"0000"),'Kategorie lokální'!$A$2:$G$300,7,TRUE) -> L: Muži 40 - 49 | N68: =VLOOKUP(UPPER(D68)&TEXT(E68,"0000"),'Kategorie ZBP'!$A$2:$E$30,5,TRUE) -> MB | O68: =VLOOKUP(N68,'Kategorie ZBP'!$E:$F,2,0) -> Muži 40 - 49 | P68: =VLOOKUP(H68&"x"&A68,Stopky!I:J,2,0) -> 0.01700231481 | Q68: 6 | R68: 1 | S68: 1 | T68: =IF(ISERROR(VLOOKUP(H68&"x"&F68&"xANO",'Závody a tratě'!L:L,1,0))=TRUE,0,_xlfn.IFNA(VLOOKUP(S68,'Body ZBP'!$A$1:$B$40,2,1),0)) -> 30 | U68: =H68&"x"&A68 -> 2x7 | V68: =IF(U68<>"x",COUNTIF($U$2:$U$3000,U68),"") -> 1 | W68: =IF(I68<>"xxxxx",COUNTIF($I$2:$I$3000,I68),"") -> 1
A69: 40 | B69: Čermák | C69: Bedřich | D69: m | E69: 1974 | F69: M6 | G69: Turtles Znojmo | H69: 2 | I69: =B69&"x"&C69&"x"&D69&"x"&E69&"x"&H69&"x"&F69 -> ČermákxBedřichxmx1974x2xM6 | J69: =VLOOKUP(H69,'Závody a tratě'!$B:$C,2,0) -> „Sokolák“ Plaveč u Znojma | K69: =VLOOKUP(H69&"x"&F69,'Závody a tratě'!$A:$F,6,0) -> 6 | L69: =VLOOKUP(TEXT(H69,"000")&UPPER(D69)&TEXT(E69,"0000"),'Kategorie lokální'!$A$2:$F$300,6,TRUE) -> LMB | M69: =VLOOKUP(TEXT(H69,"000")&UPPER(D69)&TEXT(E69,"0000"),'Kategorie lokální'!$A$2:$G$300,7,TRUE) -> L: Muži 40 - 49 | N69: =VLOOKUP(UPPER(D69)&TEXT(E69,"0000"),'Kategorie ZBP'!$A$2:$E$30,5,TRUE) -> MB | O69: =VLOOKUP(N69,'Kategorie ZBP'!$E:$F,2,0) -> Muži 40 - 49 | P69: =VLOOKUP(H69&"x"&A69,Stopky!I:J,2,0) -> 0.0171412037 | Q69: 7 | R69: 2 | S69: 2 | T69: =IF(ISERROR(VLOOKUP(H69&"x"&F69&"xANO",'Závody a tratě'!L:L,1,0))=TRUE,0,_xlfn.IFNA(VLOOKUP(S69,'Body ZBP'!$A$1:$B$40,2,1),0)) -> 25 | U69: =H69&"x"&A69 -> 2x40 | V69: =IF(U69<>"x",COUNTIF($U$2:$U$3000,U69),"") -> 1 | W69: =IF(I69<>"xxxxx",COUNTIF($I$2:$I$3000,I69),"") -> 1
A70: 39 | B70: Jičínský | C70: Petr | D70: m | E70: 1972 | F70: M6 | G70: Orel Mor. Budějovice | H70: 2 | I70: =B70&"x"&C70&"x"&D70&"x"&E70&"x"&H70&"x"&F70 -> JičínskýxPetrxmx1972x2xM6 | J70: =VLOOKUP(H70,'Závody a tratě'!$B:$C,2,0) -> „Sokolák“ Plaveč u Znojma | K70: =VLOOKUP(H70&"x"&F70,'Závody a tratě'!$A:$F,6,0) -> 6 | L70: =VLOOKUP(TEXT(H70,"000")&UPPER(D70)&TEXT(E70,"0000"),'Kategorie lokální'!$A$2:$F$300,6,TRUE) -> LMB | M70: =VLOOKUP(TEXT(H70,"000")&UPPER(D70)&TEXT(E70,"0000"),'Kategorie lokální'!$A$2:$G$300,7,TRUE) -> L: Muži 40 - 49 | N70: =VLOOKUP(UPPER(D70)&TEXT(E70,"0000"),'Kategorie ZBP'!$A$2:$E$30,5,TRUE) -> MB | O70: =VLOOKUP(N70,'Kategorie ZBP'!$E:$F,2,0) -> Muži 40 - 49 | P70: =VLOOKUP(H70&"x"&A70,Stopky!I:J,2,0) -> 0.01811342593 | Q70: 11 | R70: 3 | S70: 3 | T70: =IF(ISERROR(VLOOKUP(H70&"x"&F70&"xANO",'Závody a tratě'!L:L,1,0))=TRUE,0,_xlfn.IFNA(VLOOKUP(S70,'Body ZBP'!$A$1:$B$40,2,1),0)) -> 21 | U70: =H70&"x"&A70 -> 2x39 | V70: =IF(U70<>"x",COUNTIF($U$2:$U$3000,U70),"") -> 1 | W70: =IF(I70<>"xxxxx",COUNTIF($I$2:$I$3000,I70),"") -> 1
A71: 57 | B71: Dvořák | C71: Leoš | D71: m | E71: 1971 | F71: M6 | G71: Znojmo | H71: 2 | I71: =B71&"x"&C71&"x"&D71&"x"&E71&"x"&H71&"x"&F71 -> DvořákxLeošxmx1971x2xM6 | J71: =VLOOKUP(H71,'Závody a tratě'!$B:$C,2,0) -> „Sokolák“ Plaveč u Znojma | K71: =VLOOKUP(H71&"x"&F71,'Závody a tratě'!$A:$F,6,0) -> 6 | L71: =VLOOKUP(TEXT(H71,"000")&UPPER(D71)&TEXT(E71,"0000"),'Kategorie lokální'!$A$2:$F$300,6,TRUE) -> LMB | M71: =VLOOKUP(TEXT(H71,"000")&UPPER(D71)&TEXT(E71,"0000"),'Kategorie lokální'!$A$2:$G$300,7,TRUE) -> L: Muži 40 - 49 | N71: =VLOOKUP(UPPER(D71)&TEXT(E71,"0000"),'Kategorie ZBP'!$A$2:$E$30,5,TRUE) -> MB | O71: =VLOOKUP(N71,'Kategorie ZBP'!$E:$F,2,0) -> Muži 40 - 49 | P71: =VLOOKUP(H71&"x"&A71,Stopky!I:J,2,0) -> 0.01885416667 | Q71: 14 | R71: 4 | S71: 4 | T71: =IF(ISERROR(VLOOKUP(H71&"x"&F71&"xANO",'Závody a tratě'!L:L,1,0))=TRUE,0,_xlfn.IFNA(VLOOKUP(S71,'Body ZBP'!$A$1:$B$40,2,1),0)) -> 18 | U71: =H71&"x"&A71 -> 2x57 | V71: =IF(U71<>"x",COUNTIF($U$2:$U$3000,U71),"") -> 1 | W71: =IF(I71<>"xxxxx",COUNTIF($I$2:$I$3000,I71),"") -> 1
A72: 43 | B72: Novosad | C72: Miroslav | D72: m | E72: 1974 | F72: M6 | G72: Šanov | H72: 2 | I72: =B72&"x"&C72&"x"&D72&"x"&E72&"x"&H72&"x"&F72 -> NovosadxMiroslavxmx1974x2xM6 | J72: =VLOOKUP(H72,'Závody a tratě'!$B:$C,2,0) -> „Sokolák“ Plaveč u Znojma | K72: =VLOOKUP(H72&"x"&F72,'Závody a tratě'!$A:$F,6,0) -> 6 | L72: =VLOOKUP(TEXT(H72,"000")&UPPER(D72)&TEXT(E72,"0000"),'Kategorie lokální'!$A$2:$F$300,6,TRUE) -> LMB | M72: =VLOOKUP(TEXT(H72,"000")&UPPER(D72)&TEXT(E72,"0000"),'Kategorie lokální'!$A$2:$G$300,7,TRUE) -> L: Muži 40 - 49 | N72: =VLOOKUP(UPPER(D72)&TEXT(E72,"0000"),'Kategorie ZBP'!$A$2:$E$30,5,TRUE) -> MB | O72: =VLOOKUP(N72,'Kategorie ZBP'!$E:$F,2,0) -> Muži 40 - 49 | P72: =VLOOKUP(H72&"x"&A72,Stopky!I:J,2,0) -> 0.01893518519 | Q72: 15 | R72: 5 | S72: 5 | T72: =IF(ISERROR(VLOOKUP(H72&"x"&F72&"xANO",'Závody a tratě'!L:L,1,0))=TRUE,0,_xlfn.IFNA(VLOOKUP(S72,'Body ZBP'!$A$1:$B$40,2,1),0)) -> 16 | U72: =H72&"x"&A72 -> 2x43 | V72: =IF(U72<>"x",COUNTIF($U$2:$U$3000,U72),"") -> 1 | W72: =IF(I72<>"xxxxx",COUNTIF($I$2:$I$3000,I72),"") -> 1
A73: 32 | B73: Hrubý | C73: Karel | D73: m | E73: 1974 | F73: M6 | H73: 2 | I73: =B73&"x"&C73&"x"&D73&"x"&E73&"x"&H73&"x"&F73 -> HrubýxKarelxmx1974x2xM6 | J73: =VLOOKUP(H73,'Závody a tratě'!$B:$C,2,0) -> „Sokolák“ Plaveč u Znojma | K73: =VLOOKUP(H73&"x"&F73,'Závody a tratě'!$A:$F,6,0) -> 6 | L73: =VLOOKUP(TEXT(H73,"000")&UPPER(D73)&TEXT(E73,"0000"),'Kategorie lokální'!$A$2:$F$300,6,TRUE) -> LMB | M73: =VLOOKUP(TEXT(H73,"000")&UPPER(D73)&TEXT(E73,"0000"),'Kategorie lokální'!$A$2:$G$300,7,TRUE) -> L: Muži 40 - 49 | N73: =VLOOKUP(UPPER(D73)&TEXT(E73,"0000"),'Kategorie ZBP'!$A$2:$E$30,5,TRUE) -> MB | O73: =VLOOKUP(N73,'Kategorie ZBP'!$E:$F,2,0) -> Muži 40 - 49 | P73: =VLOOKUP(H73&"x"&A73,Stopky!I:J,2,0) -> 0.01898148148 | Q73: 16 | R73: 6 | S73: 6 | T73: =IF(ISERROR(VLOOKUP(H73&"x"&F73&"xANO",'Závody a tratě'!L:L,1,0))=TRUE,0,_xlfn.IFNA(VLOOKUP(S73,'Body ZBP'!$A$1:$B$40,2,1),0)) -> 15 | U73: =H73&"x"&A73 -> 2x32 | V73: =IF(U73<>"x",COUNTIF($U$2:$U$3000,U73),"") -> 1 | W73: =IF(I73<>"xxxxx",COUNTIF($I$2:$I$3000,I73),"") -> 1
A74: 29 | B74: Kuda | C74: Lubomír | D74: m | E74: 1977 | F74: M6 | G74: Hrušovany n/J | H74: 2 | I74: =B74&"x"&C74&"x"&D74&"x"&E74&"x"&H74&"x"&F74 -> KudaxLubomírxmx1977x2xM6 | J74: =VLOOKUP(H74,'Závody a tratě'!$B:$C,2,0) -> „Sokolák“ Plaveč u Znojma | K74: =VLOOKUP(H74&"x"&F74,'Závody a tratě'!$A:$F,6,0) -> 6 | L74: =VLOOKUP(TEXT(H74,"000")&UPPER(D74)&TEXT(E74,"0000"),'Kategorie lokální'!$A$2:$F$300,6,TRUE) -> LMB | M74: =VLOOKUP(TEXT(H74,"000")&UPPER(D74)&TEXT(E74,"0000"),'Kategorie lokální'!$A$2:$G$300,7,TRUE) -> L: Muži 40 - 49 | N74: =VLOOKUP(UPPER(D74)&TEXT(E74,"0000"),'Kategorie ZBP'!$A$2:$E$30,5,TRUE) -> MB | O74: =VLOOKUP(N74,'Kategorie ZBP'!$E:$F,2,0) -> Muži 40 - 49 | P74: =VLOOKUP(H74&"x"&A74,Stopky!I:J,2,0) -> 0.01936342593 | Q74: 22 | R74: 7 | S74: 7 | T74: =IF(ISERROR(VLOOKUP(H74&"x"&F74&"xANO",'Závody a tratě'!L:L,1,0))=TRUE,0,_xlfn.IFNA(VLOOKUP(S74,'Body ZBP'!$A$1:$B$40,2,1),0)) -> 14 | U74: =H74&"x"&A74 -> 2x29 | V74: =IF(U74<>"x",COUNTIF($U$2:$U$3000,U74),"") -> 1 | W74: =IF(I74<>"xxxxx",COUNTIF($I$2:$I$3000,I74),"") -> 1
A75: 34 | B75: Nejedlý | C75: Jiří | D75: m | E75: 1971 | F75: M6 | G75: Němčičky | H75: 2 | I75: =B75&"x"&C75&"x"&D75&"x"&E75&"x"&H75&"x"&F75 -> NejedlýxJiříxmx1971x2xM6 | J75: =VLOOKUP(H75,'Závody a tratě'!$B:$C,2,0) -> „Sokolák“ Plaveč u Znojma | K75: =VLOOKUP(H75&"x"&F75,'Závody a tratě'!$A:$F,6,0) -> 6 | L75: =VLOOKUP(TEXT(H75,"000")&UPPER(D75)&TEXT(E75,"0000"),'Kategorie lokální'!$A$2:$F$300,6,TRUE) -> LMB | M75: =VLOOKUP(TEXT(H75,"000")&UPPER(D75)&TEXT(E75,"0000"),'Kategorie lokální'!$A$2:$G$300,7,TRUE) -> L: Muži 40 - 49 | N75: =VLOOKUP(UPPER(D75)&TEXT(E75,"0000"),'Kategorie ZBP'!$A$2:$E$30,5,TRUE) -> MB | O75: =VLOOKUP(N75,'Kategorie ZBP'!$E:$F,2,0) -> Muži 40 - 49 | P75: =VLOOKUP(H75&"x"&A75,Stopky!I:J,2,0) -> 0.0205787037 | Q75: 28 | R75: 8 | S75: 8 | T75: =IF(ISERROR(VLOOKUP(H75&"x"&F75&"xANO",'Závody a tratě'!L:L,1,0))=TRUE,0,_xlfn.IFNA(VLOOKUP(S75,'Body ZBP'!$A$1:$B$40,2,1),0)) -> 13 | U75: =H75&"x"&A75 -> 2x34 | V75: =IF(U75<>"x",COUNTIF($U$2:$U$3000,U75),"") -> 1 | W75: =IF(I75<>"xxxxx",COUNTIF($I$2:$I$3000,I75),"") -> 1
A76: 37 | B76: Fila | C76: Radek | D76: m | E76: 1979 | F76: M6 | H76: 2 | I76: =B76&"x"&C76&"x"&D76&"x"&E76&"x"&H76&"x"&F76 -> FilaxRadekxmx1979x2xM6 | J76: =VLOOKUP(H76,'Závody a tratě'!$B:$C,2,0) -> „Sokolák“ Plaveč u Znojma | K76: =VLOOKUP(H76&"x"&F76,'Závody a tratě'!$A:$F,6,0) -> 6 | L76: =VLOOKUP(TEXT(H76,"000")&UPPER(D76)&TEXT(E76,"0000"),'Kategorie lokální'!$A$2:$F$300,6,TRUE) -> LMB | M76: =VLOOKUP(TEXT(H76,"000")&UPPER(D76)&TEXT(E76,"0000"),'Kategorie lokální'!$A$2:$G$300,7,TRUE) -> L: Muži 40 - 49 | N76: =VLOOKUP(UPPER(D76)&TEXT(E76,"0000"),'Kategorie ZBP'!$A$2:$E$30,5,TRUE) -> MB | O76: =VLOOKUP(N76,'Kategorie ZBP'!$E:$F,2,0) -> Muži 40 - 49 | P76: =VLOOKUP(H76&"x"&A76,Stopky!I:J,2,0) -> 0.02295138889 | Q76: 34 | R76: 9 | S76: 9 | T76: =IF(ISERROR(VLOOKUP(H76&"x"&F76&"xANO",'Závody a tratě'!L:L,1,0))=TRUE,0,_xlfn.IFNA(VLOOKUP(S76,'Body ZBP'!$A$1:$B$40,2,1),0)) -> 12 | U76: =H76&"x"&A76 -> 2x37 | V76: =IF(U76<>"x",COUNTIF($U$2:$U$3000,U76),"") -> 1 | W76: =IF(I76<>"xxxxx",COUNTIF($I$2:$I$3000,I76),"") -> 1
A77: 28 | B77: Šoba | C77: Petr | D77: m | E77: 1976 | F77: M6 | G77: Mikulovice | H77: 2 | I77: =B77&"x"&C77&"x"&D77&"x"&E77&"x"&H77&"x"&F77 -> ŠobaxPetrxmx1976x2xM6 | J77: =VLOOKUP(H77,'Závody a tratě'!$B:$C,2,0) -> „Sokolák“ Plaveč u Znojma | K77: =VLOOKUP(H77&"x"&F77,'Závody a tratě'!$A:$F,6,0) -> 6 | L77: =VLOOKUP(TEXT(H77,"000")&UPPER(D77)&TEXT(E77,"0000"),'Kategorie lokální'!$A$2:$F$300,6,TRUE) -> LMB | M77: =VLOOKUP(TEXT(H77,"000")&UPPER(D77)&TEXT(E77,"0000"),'Kategorie lokální'!$A$2:$G$300,7,TRUE) -> L: Muži 40 - 49 | N77: =VLOOKUP(UPPER(D77)&TEXT(E77,"0000"),'Kategorie ZBP'!$A$2:$E$30,5,TRUE) -> MB | O77: =VLOOKUP(N77,'Kategorie ZBP'!$E:$F,2,0) -> Muži 40 - 49 | P77: =VLOOKUP(H77&"x"&A77,Stopky!I:J,2,0) -> 0.02564814815 | Q77: 35 | R77: 10 | S77: 10 | T77: =IF(ISERROR(VLOOKUP(H77&"x"&F77&"xANO",'Závody a tratě'!L:L,1,0))=TRUE,0,_xlfn.IFNA(VLOOKUP(S77,'Body ZBP'!$A$1:$B$40,2,1),0)) -> 11 | U77: =H77&"x"&A77 -> 2x28 | V77: =IF(U77<>"x",COUNTIF($U$2:$U$3000,U77),"") -> 1 | W77: =IF(I77<>"xxxxx",COUNTIF($I$2:$I$3000,I77),"") -> 1
A78: 25 | B78: Kratochvíl | C78: Pavel | D78: m | E78: 1960 | F78: M6 | G78: Atletic Třebíč | H78: 2 | I78: =B78&"x"&C78&"x"&D78&"x"&E78&"x"&H78&"x"&F78 -> KratochvílxPavelxmx1960x2xM6 | J78: =VLOOKUP(H78,'Závody a tratě'!$B:$C,2,0) -> „Sokolák“ Plaveč u Znojma | K78: =VLOOKUP(H78&"x"&F78,'Závody a tratě'!$A:$F,6,0) -> 6 | L78: =VLOOKUP(TEXT(H78,"000")&UPPER(D78)&TEXT(E78,"0000"),'Kategorie lokální'!$A$2:$F$300,6,TRUE) -> LMC | M78: =VLOOKUP(TEXT(H78,"000")&UPPER(D78)&TEXT(E78,"0000"),'Kategorie lokální'!$A$2:$G$300,7,TRUE) -> L: Muži 50 - 59 | N78: =VLOOKUP(UPPER(D78)&TEXT(E78,"0000"),'Kategorie ZBP'!$A$2:$E$30,5,TRUE) -> MC | O78: =VLOOKUP(N78,'Kategorie ZBP'!$E:$F,2,0) -> Muži 50 - 59 | P78: =VLOOKUP(H78&"x"&A78,Stopky!I:J,2,0) -> 0.01738425926 | Q78: 9 | R78: 1 | S78: 1 | T78: =IF(ISERROR(VLOOKUP(H78&"x"&F78&"xANO",'Závody a tratě'!L:L,1,0))=TRUE,0,_xlfn.IFNA(VLOOKUP(S78,'Body ZBP'!$A$1:$B$40,2,1),0)) -> 30 | U78: =H78&"x"&A78 -> 2x25 | V78: =IF(U78<>"x",COUNTIF($U$2:$U$3000,U78),"") -> 1 | W78: =IF(I78<>"xxxxx",COUNTIF($I$2:$I$3000,I78),"") -> 1
A79: 4 | B79: Vlčan | C79: Luboš | D79: m | E79: 1968 | F79: M6 | G79: Atletic Třebíč | H79: 2 | I79: =B79&"x"&C79&"x"&D79&"x"&E79&"x"&H79&"x"&F79 -> VlčanxLubošxmx1968x2xM6 | J79: =VLOOKUP(H79,'Závody a tratě'!$B:$C,2,0) -> „Sokolák“ Plaveč u Znojma | K79: =VLOOKUP(H79&"x"&F79,'Závody a tratě'!$A:$F,6,0) -> 6 | L79: =VLOOKUP(TEXT(H79,"000")&UPPER(D79)&TEXT(E79,"0000"),'Kategorie lokální'!$A$2:$F$300,6,TRUE) -> LMC | M79: =VLOOKUP(TEXT(H79,"000")&UPPER(D79)&TEXT(E79,"0000"),'Kategorie lokální'!$A$2:$G$300,7,TRUE) -> L: Muži 50 - 59 | N79: =VLOOKUP(UPPER(D79)&TEXT(E79,"0000"),'Kategorie ZBP'!$A$2:$E$30,5,TRUE) -> MC | O79: =VLOOKUP(N79,'Kategorie ZBP'!$E:$F,2,0) -> Muži 50 - 59 | P79: =VLOOKUP(H79&"x"&A79,Stopky!I:J,2,0) -> 0.01789351852 | Q79: 10 | R79: 2 | S79: 2 | T79: =IF(ISERROR(VLOOKUP(H79&"x"&F79&"xANO",'Závody a tratě'!L:L,1,0))=TRUE,0,_xlfn.IFNA(VLOOKUP(S79,'Body ZBP'!$A$1:$B$40,2,1),0)) -> 25 | U79: =H79&"x"&A79 -> 2x4 | V79: =IF(U79<>"x",COUNTIF($U$2:$U$3000,U79),"") -> 1 | W79: =IF(I79<>"xxxxx",COUNTIF($I$2:$I$3000,I79),"") -> 1
A80: 17 | B80: Nožka | C80: Jiří | D80: m | E80: 1963 | F80: M6 | G80: Dinosport Ivančice | H80: 2 | I80: =B80&"x"&C80&"x"&D80&"x"&E80&"x"&H80&"x"&F80 -> NožkaxJiříxmx1963x2xM6 | J80: =VLOOKUP(H80,'Závody a tratě'!$B:$C,2,0) -> „Sokolák“ Plaveč u Znojma | K80: =VLOOKUP(H80&"x"&F80,'Závody a tratě'!$A:$F,6,0) -> 6 | L80: =VLOOKUP(TEXT(H80,"000")&UPPER(D80)&TEXT(E80,"0000"),'Kategorie lokální'!$A$2:$F$300,6,TRUE) -> LMC | M80: =VLOOKUP(TEXT(H80,"000")&UPPER(D80)&TEXT(E80,"0000"),'Kategorie lokální'!$A$2:$G$300,7,TRUE) -> L: Muži 50 - 59 | N80: =VLOOKUP(UPPER(D80)&TEXT(E80,"0000"),'Kategorie ZBP'!$A$2:$E$30,5,TRUE) -> MC | O80: =VLOOKUP(N80,'Kategorie ZBP'!$E:$F,2,0) -> Muži 50 - 59 | P80: =VLOOKUP(H80&"x"&A80,Stopky!I:J,2,0) -> 0.01869212963 | Q80: 12 | R80: 3 | S80: 3 | T80: =IF(ISERROR(VLOOKUP(H80&"x"&F80&"xANO",'Závody a tratě'!L:L,1,0))=TRUE,0,_xlfn.IFNA(VLOOKUP(S80,'Body ZBP'!$A$1:$B$40,2,1),0)) -> 21 | U80: =H80&"x"&A80 -> 2x17 | V80: =IF(U80<>"x",COUNTIF($U$2:$U$3000,U80),"") -> 1 | W80: =IF(I80<>"xxxxx",COUNTIF($I$2:$I$3000,I80),"") -> 1
A81: 2 | B81: Tesař | C81: Miroslav | D81: m | E81: 1969 | F81: M6 | G81: Znojmo | H81: 2 | I81: =B81&"x"&C81&"x"&D81&"x"&E81&"x"&H81&"x"&F81 -> TesařxMiroslavxmx1969x2xM6 | J81: =VLOOKUP(H81,'Závody a tratě'!$B:$C,2,0) -> „Sokolák“ Plaveč u Znojma | K81: =VLOOKUP(H81&"x"&F81,'Závody a tratě'!$A:$F,6,0) -> 6 | L81: =VLOOKUP(TEXT(H81,"000")&UPPER(D81)&TEXT(E81,"0000"),'Kategorie lokální'!$A$2:$F$300,6,TRUE) -> LMC | M81: =VLOOKUP(TEXT(H81,"000")&UPPER(D81)&TEXT(E81,"0000"),'Kategorie lokální'!$A$2:$G$300,7,TRUE) -> L: Muži 50 - 59 | N81: =VLOOKUP(UPPER(D81)&TEXT(E81,"0000"),'Kategorie ZBP'!$A$2:$E$30,5,TRUE) -> MC | O81: =VLOOKUP(N81,'Kategorie ZBP'!$E:$F,2,0) -> Muži 50 - 59 | P81: =VLOOKUP(H81&"x"&A81,Stopky!I:J,2,0) -> 0.0191087963 | Q81: 18 | R81: 4 | S81: 4 | T81: =IF(ISERROR(VLOOKUP(H81&"x"&F81&"xANO",'Závody a tratě'!L:L,1,0))=TRUE,0,_xlfn.IFNA(VLOOKUP(S81,'Body ZBP'!$A$1:$B$40,2,1),0)) -> 18 | U81: =H81&"x"&A81 -> 2x2 | V81: =IF(U81<>"x",COUNTIF($U$2:$U$3000,U81),"") -> 1 | W81: =IF(I81<>"xxxxx",COUNTIF($I$2:$I$3000,I81),"") -> 1
A82: 8 | B82: Němec | C82: Bedřich | D82: m | E82: 1964 | F82: M6 | G82: Hornice | H82: 2 | I82: =B82&"x"&C82&"x"&D82&"x"&E82&"x"&H82&"x"&F82 -> NěmecxBedřichxmx1964x2xM6 | J82: =VLOOKUP(H82,'Závody a tratě'!$B:$C,2,0) -> „Sokolák“ Plaveč u Znojma | K82: =VLOOKUP(H82&"x"&F82,'Závody a tratě'!$A:$F,6,0) -> 6 | L82: =VLOOKUP(TEXT(H82,"000")&UPPER(D82)&TEXT(E82,"0000"),'Kategorie lokální'!$A$2:$F$300,6,TRUE) -> LMC | M82: =VLOOKUP(TEXT(H82,"000")&UPPER(D82)&TEXT(E82,"0000"),'Kategorie lokální'!$A$2:$G$300,7,TRUE) -> L: Muži 50 - 59 | N82: =VLOOKUP(UPPER(D82)&TEXT(E82,"0000"),'Kategorie ZBP'!$A$2:$E$30,5,TRUE) -> MC | O82: =VLOOKUP(N82,'Kategorie ZBP'!$E:$F,2,0) -> Muži 50 - 59 | P82: =VLOOKUP(H82&"x"&A82,Stopky!I:J,2,0) -> 0.01931712963 | Q82: 21 | R82: 5 | S82: 5 | T82: =IF(ISERROR(VLOOKUP(H82&"x"&F82&"xANO",'Závody a tratě'!L:L,1,0))=TRUE,0,_xlfn.IFNA(VLOOKUP(S82,'Body ZBP'!$A$1:$B$40,2,1),0)) -> 16 | U82: =H82&"x"&A82 -> 2x8 | V82: =IF(U82<>"x",COUNTIF($U$2:$U$3000,U82),"") -> 1 | W82: =IF(I82<>"xxxxx",COUNTIF($I$2:$I$3000,I82),"") -> 1
A83: 52 | B83: Soukup | C83: Milan | D83: m | E83: 1964 | F83: M6 | G83: TJ Znojmo | H83: 2 | I83: =B83&"x"&C83&"x"&D83&"x"&E83&"x"&H83&"x"&F83 -> SoukupxMilanxmx1964x2xM6 | J83: =VLOOKUP(H83,'Závody a tratě'!$B:$C,2,0) -> „Sokolák“ Plaveč u Znojma | K83: =VLOOKUP(H83&"x"&F83,'Závody a tratě'!$A:$F,6,0) -> 6 | L83: =VLOOKUP(TEXT(H83,"000")&UPPER(D83)&TEXT(E83,"0000"),'Kategorie lokální'!$A$2:$F$300,6,TRUE) -> LMC | M83: =VLOOKUP(TEXT(H83,"000")&UPPER(D83)&TEXT(E83,"0000"),'Kategorie lokální'!$A$2:$G$300,7,TRUE) -> L: Muži 50 - 59 | N83: =VLOOKUP(UPPER(D83)&TEXT(E83,"0000"),'Kategorie ZBP'!$A$2:$E$30,5,TRUE) -> MC | O83: =VLOOKUP(N83,'Kategorie ZBP'!$E:$F,2,0) -> Muži 50 - 59 | P83: =VLOOKUP(H83&"x"&A83,Stopky!I:J,2,0) -> 0.01947916667 | Q83: 24 | R83: 6 | S83: 6 | T83: =IF(ISERROR(VLOOKUP(H83&"x"&F83&"xANO",'Závody a tratě'!L:L,1,0))=TRUE,0,_xlfn.IFNA(VLOOKUP(S83,'Body ZBP'!$A$1:$B$40,2,1),0)) -> 15 | U83: =H83&"x"&A83 -> 2x52 | V83: =IF(U83<>"x",COUNTIF($U$2:$U$3000,U83),"") -> 1 | W83: =IF(I83<>"xxxxx",COUNTIF($I$2:$I$3000,I83),"") -> 1
A84: 24 | B84: Bulín | C84: Jindřich | D84: m | E84: 1967 | F84: M6 | G84: TJ Sokol Plaveč | H84: 2 | I84: =B84&"x"&C84&"x"&D84&"x"&E84&"x"&H84&"x"&F84 -> BulínxJindřichxmx1967x2xM6 | J84: =VLOOKUP(H84,'Závody a tratě'!$B:$C,2,0) -> „Sokolák“ Plaveč u Znojma | K84: =VLOOKUP(H84&"x"&F84,'Závody a tratě'!$A:$F,6,0) -> 6 | L84: =VLOOKUP(TEXT(H84,"000")&UPPER(D84)&TEXT(E84,"0000"),'Kategorie lokální'!$A$2:$F$300,6,TRUE) -> LMC | M84: =VLOOKUP(TEXT(H84,"000")&UPPER(D84)&TEXT(E84,"0000"),'Kategorie lokální'!$A$2:$G$300,7,TRUE) -> L: Muži 50 - 59 | N84: =VLOOKUP(UPPER(D84)&TEXT(E84,"0000"),'Kategorie ZBP'!$A$2:$E$30,5,TRUE) -> MC | O84: =VLOOKUP(N84,'Kategorie ZBP'!$E:$F,2,0) -> Muži 50 - 59 | P84: =VLOOKUP(H84&"x"&A84,Stopky!I:J,2,0) -> 0.01953703704 | Q84: 25 | R84: 7 | S84: 7 | T84: =IF(ISERROR(VLOOKUP(H84&"x"&F84&"xANO",'Závody a tratě'!L:L,1,0))=TRUE,0,_xlfn.IFNA(VLOOKUP(S84,'Body ZBP'!$A$1:$B$40,2,1),0)) -> 14 | U84: =H84&"x"&A84 -> 2x24 | V84: =IF(U84<>"x",COUNTIF($U$2:$U$3000,U84),"") -> 1 | W84: =IF(I84<>"xxxxx",COUNTIF($I$2:$I$3000,I84),"") -> 1
A85: 49 | B85: Jindra | C85: Vítězslav | D85: m | E85: 1965 | F85: M6 | G85: Dačice | H85: 2 | I85: =B85&"x"&C85&"x"&D85&"x"&E85&"x"&H85&"x"&F85 -> JindraxVítězslavxmx1965x2xM6 | J85: =VLOOKUP(H85,'Závody a tratě'!$B:$C,2,0) -> „Sokolák“ Plaveč u Znojma | K85: =VLOOKUP(H85&"x"&F85,'Závody a tratě'!$A:$F,6,0) -> 6 | L85: =VLOOKUP(TEXT(H85,"000")&UPPER(D85)&TEXT(E85,"0000"),'Kategorie lokální'!$A$2:$F$300,6,TRUE) -> LMC | M85: =VLOOKUP(TEXT(H85,"000")&UPPER(D85)&TEXT(E85,"0000"),'Kategorie lokální'!$A$2:$G$300,7,TRUE) -> L: Muži 50 - 59 | N85: =VLOOKUP(UPPER(D85)&TEXT(E85,"0000"),'Kategorie ZBP'!$A$2:$E$30,5,TRUE) -> MC | O85: =VLOOKUP(N85,'Kategorie ZBP'!$E:$F,2,0) -> Muži 50 - 59 | P85: =VLOOKUP(H85&"x"&A85,Stopky!I:J,2,0) -> 0.02122685185 | Q85: 29 | R85: 8 | S85: 8 | T85: =IF(ISERROR(VLOOKUP(H85&"x"&F85&"xANO",'Závody a tratě'!L:L,1,0))=TRUE,0,_xlfn.IFNA(VLOOKUP(S85,'Body ZBP'!$A$1:$B$40,2,1),0)) -> 13 | U85: =H85&"x"&A85 -> 2x49 | V85: =IF(U85<>"x",COUNTIF($U$2:$U$3000,U85),"") -> 1 | W85: =IF(I85<>"xxxxx",COUNTIF($I$2:$I$3000,I85),"") -> 1
A86: 9 | B86: Januška | C86: Ivan | D86: m | E86: 1958 | F86: M6 | G86: Šanov | H86: 2 | I86: =B86&"x"&C86&"x"&D86&"x"&E86&"x"&H86&"x"&F86 -> JanuškaxIvanxmx1958x2xM6 | J86: =VLOOKUP(H86,'Závody a tratě'!$B:$C,2,0) -> „Sokolák“ Plaveč u Znojma | K86: =VLOOKUP(H86&"x"&F86,'Závody a tratě'!$A:$F,6,0) -> 6 | L86: =VLOOKUP(TEXT(H86,"000")&UPPER(D86)&TEXT(E86,"0000"),'Kategorie lokální'!$A$2:$F$300,6,TRUE) -> LMD | M86: =VLOOKUP(TEXT(H86,"000")&UPPER(D86)&TEXT(E86,"0000"),'Kategorie lokální'!$A$2:$G$300,7,TRUE) -> L: Muži od 60 | N86: =VLOOKUP(UPPER(D86)&TEXT(E86,"0000"),'Kategorie ZBP'!$A$2:$E$30,5,TRUE) -> MD | O86: =VLOOKUP(N86,'Kategorie ZBP'!$E:$F,2,0) -> Muži nad 60 | P86: =VLOOKUP(H86&"x"&A86,Stopky!I:J,2,0) -> 0.01873842593 | Q86: 13 | R86: 1 | S86: 1 | T86: =IF(ISERROR(VLOOKUP(H86&"x"&F86&"xANO",'Závody a tratě'!L:L,1,0))=TRUE,0,_xlfn.IFNA(VLOOKUP(S86,'Body ZBP'!$A$1:$B$40,2,1),0)) -> 30 | U86: =H86&"x"&A86 -> 2x9 | V86: =IF(U86<>"x",COUNTIF($U$2:$U$3000,U86),"") -> 1 | W86: =IF(I86<>"xxxxx",COUNTIF($I$2:$I$3000,I86),"") -> 1
A87: 54 | B87: Nováček | C87: Josef | D87: m | E87: 1958 | F87: M6 | G87: SDH Čučice | H87: 2 | I87: =B87&"x"&C87&"x"&D87&"x"&E87&"x"&H87&"x"&F87 -> NováčekxJosefxmx1958x2xM6 | J87: =VLOOKUP(H87,'Závody a tratě'!$B:$C,2,0) -> „Sokolák“ Plaveč u Znojma | K87: =VLOOKUP(H87&"x"&F87,'Závody a tratě'!$A:$F,6,0) -> 6 | L87: =VLOOKUP(TEXT(H87,"000")&UPPER(D87)&TEXT(E87,"0000"),'Kategorie lokální'!$A$2:$F$300,6,TRUE) -> LMD | M87: =VLOOKUP(TEXT(H87,"000")&UPPER(D87)&TEXT(E87,"0000"),'Kategorie lokální'!$A$2:$G$300,7,TRUE) -> L: Muži od 60 | N87: =VLOOKUP(UPPER(D87)&TEXT(E87,"0000"),'Kategorie ZBP'!$A$2:$E$30,5,TRUE) -> MD | O87: =VLOOKUP(N87,'Kategorie ZBP'!$E:$F,2,0) -> Muži nad 60 | P87: =VLOOKUP(H87&"x"&A87,Stopky!I:J,2,0) -> 0.01924768519 | Q87: 19 | R87: 2 | S87: 2 | T87: =IF(ISERROR(VLOOKUP(H87&"x"&F87&"xANO",'Závody a tratě'!L:L,1,0))=TRUE,0,_xlfn.IFNA(VLOOKUP(S87,'Body ZBP'!$A$1:$B$40,2,1),0)) -> 25 | U87: =H87&"x"&A87 -> 2x54 | V87: =IF(U87<>"x",COUNTIF($U$2:$U$3000,U87),"") -> 1 | W87: =IF(I87<>"xxxxx",COUNTIF($I$2:$I$3000,I87),"") -> 1
A88: 6 | B88: Klusáček | C88: Pavel | D88: m | E88: 1956 | F88: M6 | G88: Rokytnice n/R | H88: 2 | I88: =B88&"x"&C88&"x"&D88&"x"&E88&"x"&H88&"x"&F88 -> KlusáčekxPavelxmx1956x2xM6 | J88: =VLOOKUP(H88,'Závody a tratě'!$B:$C,2,0) -> „Sokolák“ Plaveč u Znojma | K88: =VLOOKUP(H88&"x"&F88,'Závody a tratě'!$A:$F,6,0) -> 6 | L88: =VLOOKUP(TEXT(H88,"000")&UPPER(D88)&TEXT(E88,"0000"),'Kategorie lokální'!$A$2:$F$300,6,TRUE) -> LMD | M88: =VLOOKUP(TEXT(H88,"000")&UPPER(D88)&TEXT(E88,"0000"),'Kategorie lokální'!$A$2:$G$300,7,TRUE) -> L: Muži od 60 | N88: =VLOOKUP(UPPER(D88)&TEXT(E88,"0000"),'Kategorie ZBP'!$A$2:$E$30,5,TRUE) -> MD | O88: =VLOOKUP(N88,'Kategorie ZBP'!$E:$F,2,0) -> Muži nad 60 | P88: =VLOOKUP(H88&"x"&A88,Stopky!I:J,2,0) -> 0.01927083333 | Q88: 20 | R88: 3 | S88: 3 | T88: =IF(ISERROR(VLOOKUP(H88&"x"&F88&"xANO",'Závody a tratě'!L:L,1,0))=TRUE,0,_xlfn.IFNA(VLOOKUP(S88,'Body ZBP'!$A$1:$B$40,2,1),0)) -> 21 | U88: =H88&"x"&A88 -> 2x6 | V88: =IF(U88<>"x",COUNTIF($U$2:$U$3000,U88),"") -> 1 | W88: =IF(I88<>"xxxxx",COUNTIF($I$2:$I$3000,I88),"") -> 1
A89: 56 | B89: Danielovič | C89: Leo | D89: m | E89: 1958 | F89: M6 | G89: Hradiště Znojmo | H89: 2 | I89: =B89&"x"&C89&"x"&D89&"x"&E89&"x"&H89&"x"&F89 -> DanielovičxLeoxmx1958x2xM6 | J89: =VLOOKUP(H89,'Závody a tratě'!$B:$C,2,0) -> „Sokolák“ Plaveč u Znojma | K89: =VLOOKUP(H89&"x"&F89,'Závody a tratě'!$A:$F,6,0) -> 6 | L89: =VLOOKUP(TEXT(H89,"000")&UPPER(D89)&TEXT(E89,"0000"),'Kategorie lokální'!$A$2:$F$300,6,TRUE) -> LMD | M89: =VLOOKUP(TEXT(H89,"000")&UPPER(D89)&TEXT(E89,"0000"),'Kategorie lokální'!$A$2:$G$300,7,TRUE) -> L: Muži od 60 | N89: =VLOOKUP(UPPER(D89)&TEXT(E89,"0000"),'Kategorie ZBP'!$A$2:$E$30,5,TRUE) -> MD | O89: =VLOOKUP(N89,'Kategorie ZBP'!$E:$F,2,0) -> Muži nad 60 | P89: =VLOOKUP(H89&"x"&A89,Stopky!I:J,2,0) -> 0.02054398148 | Q89: 27 | R89: 4 | S89: 4 | T89: =IF(ISERROR(VLOOKUP(H89&"x"&F89&"xANO",'Závody a tratě'!L:L,1,0))=TRUE,0,_xlfn.IFNA(VLOOKUP(S89,'Body ZBP'!$A$1:$B$40,2,1),0)) -> 18 | U89: =H89&"x"&A89 -> 2x56 | V89: =IF(U89<>"x",COUNTIF($U$2:$U$3000,U89),"") -> 1 | W89: =IF(I89<>"xxxxx",COUNTIF($I$2:$I$3000,I89),"") -> 1
A90: 55 | B90: Marek | C90: Ludvík | D90: m | E90: 1958 | F90: M6 | G90: Popocatepetl Znojmo | H90: 2 | I90: =B90&"x"&C90&"x"&D90&"x"&E90&"x"&H90&"x"&F90 -> MarekxLudvíkxmx1958x2xM6 | J90: =VLOOKUP(H90,'Závody a tratě'!$B:$C,2,0) -> „Sokolák“ Plaveč u Znojma | K90: =VLOOKUP(H90&"x"&F90,'Závody a tratě'!$A:$F,6,0) -> 6 | L90: =VLOOKUP(TEXT(H90,"000")&UPPER(D90)&TEXT(E90,"0000"),'Kategorie lokální'!$A$2:$F$300,6,TRUE) -> LMD | M90: =VLOOKUP(TEXT(H90,"000")&UPPER(D90)&TEXT(E90,"0000"),'Kategorie lokální'!$A$2:$G$300,7,TRUE) -> L: Muži od 60 | N90: =VLOOKUP(UPPER(D90)&TEXT(E90,"0000"),'Kategorie ZBP'!$A$2:$E$30,5,TRUE) -> MD | O90: =VLOOKUP(N90,'Kategorie ZBP'!$E:$F,2,0) -> Muži nad 60 | P90: =VLOOKUP(H90&"x"&A90,Stopky!I:J,2,0) -> 0.02150462963 | Q90: 30 | R90: 5 | S90: 5 | T90: =IF(ISERROR(VLOOKUP(H90&"x"&F90&"xANO",'Závody a tratě'!L:L,1,0))=TRUE,0,_xlfn.IFNA(VLOOKUP(S90,'Body ZBP'!$A$1:$B$40,2,1),0)) -> 16 | U90: =H90&"x"&A90 -> 2x55 | V90: =IF(U90<>"x",COUNTIF($U$2:$U$3000,U90),"") -> 1 | W90: =IF(I90<>"xxxxx",COUNTIF($I$2:$I$3000,I90),"") -> 1
A91: 16 | B91: Vacek | C91: Vladimír | D91: m | E91: 1951 | F91: M6 | G91: Poušov | H91: 2 | I91: =B91&"x"&C91&"x"&D91&"x"&E91&"x"&H91&"x"&F91 -> VacekxVladimírxmx1951x2xM6 | J91: =VLOOKUP(H91,'Závody a tratě'!$B:$C,2,0) -> „Sokolák“ Plaveč u Znojma | K91: =VLOOKUP(H91&"x"&F91,'Závody a tratě'!$A:$F,6,0) -> 6 | L91: =VLOOKUP(TEXT(H91,"000")&UPPER(D91)&TEXT(E91,"0000"),'Kategorie lokální'!$A$2:$F$300,6,TRUE) -> LMD | M91: =VLOOKUP(TEXT(H91,"000")&UPPER(D91)&TEXT(E91,"0000"),'Kategorie lokální'!$A$2:$G$300,7,TRUE) -> L: Muži od 60 | N91: =VLOOKUP(UPPER(D91)&TEXT(E91,"0000"),'Kategorie ZBP'!$A$2:$E$30,5,TRUE) -> MD | O91: =VLOOKUP(N91,'Kategorie ZBP'!$E:$F,2,0) -> Muži nad 60 | P91: =VLOOKUP(H91&"x"&A91,Stopky!I:J,2,0) -> 0.0227662037 | Q91: 33 | R91: 6 | S91: 6 | T91: =IF(ISERROR(VLOOKUP(H91&"x"&F91&"xANO",'Závody a tratě'!L:L,1,0))=TRUE,0,_xlfn.IFNA(VLOOKUP(S91,'Body ZBP'!$A$1:$B$40,2,1),0)) -> 15 | U91: =H91&"x"&A91 -> 2x16 | V91: =IF(U91<>"x",COUNTIF($U$2:$U$3000,U91),"") -> 1 | W91: =IF(I91<>"xxxxx",COUNTIF($I$2:$I$3000,I91),"") -> 1
A92: 44 | B92: Kuchařová | C92: Simona | D92: z | E92: 1996 | F92: Z3 | G92: TJ Znojmo | H92: 2 | I92: =B92&"x"&C92&"x"&D92&"x"&E92&"x"&H92&"x"&F92 -> KuchařováxSimonaxzx1996x2xZ3 | J92: =VLOOKUP(H92,'Závody a tratě'!$B:$C,2,0) -> „Sokolák“ Plaveč u Znojma | K92: =VLOOKUP(H92&"x"&F92,'Závody a tratě'!$A:$F,6,0) -> 3 | L92: =VLOOKUP(TEXT(H92,"000")&UPPER(D92)&TEXT(E92,"0000"),'Kategorie lokální'!$A$2:$F$300,6,TRUE) -> LZA | M92: =VLOOKUP(TEXT(H92,"000")&UPPER(D92)&TEXT(E92,"0000"),'Kategorie lokální'!$A$2:$G$300,7,TRUE) -> L: Ženy do 34 | N92: =VLOOKUP(UPPER(D92)&TEXT(E92,"0000"),'Kategorie ZBP'!$A$2:$E$30,5,TRUE) -> ZA | O92: =VLOOKUP(N92,'Kategorie ZBP'!$E:$F,2,0) -> Ženy do 34 | P92: =VLOOKUP(H92&"x"&A92,Stopky!I:J,2,0) -> 0.00875 | Q92: 1 | R92: 1 | S92: 1 | T92: =IF(ISERROR(VLOOKUP(H92&"x"&F92&"xANO",'Závody a tratě'!L:L,1,0))=TRUE,0,_xlfn.IFNA(VLOOKUP(S92,'Body ZBP'!$A$1:$B$40,2,1),0)) -> 30 | U92: =H92&"x"&A92 -> 2x44 | V92: =IF(U92<>"x",COUNTIF($U$2:$U$3000,U92),"") -> 1 | W92: =IF(I92<>"xxxxx",COUNTIF($I$2:$I$3000,I92),"") -> 1
A93: 45 | B93: Přistálová | C93: Veronika | D93: z | E93: 1984 | F93: Z3 | G93: Znojmo | H93: 2 | I93: =B93&"x"&C93&"x"&D93&"x"&E93&"x"&H93&"x"&F93 -> PřistálováxVeronikaxzx1984x2xZ3 | J93: =VLOOKUP(H93,'Závody a tratě'!$B:$C,2,0) -> „Sokolák“ Plaveč u Znojma | K93: =VLOOKUP(H93&"x"&F93,'Závody a tratě'!$A:$F,6,0) -> 3 | L93: =VLOOKUP(TEXT(H93,"000")&UPPER(D93)&TEXT(E93,"0000"),'Kategorie lokální'!$A$2:$F$300,6,TRUE) -> LZB | M93: =VLOOKUP(TEXT(H93,"000")&UPPER(D93)&TEXT(E93,"0000"),'Kategorie lokální'!$A$2:$G$300,7,TRUE) -> L: Ženy od 35 | N93: =VLOOKUP(UPPER(D93)&TEXT(E93,"0000"),'Kategorie ZBP'!$A$2:$E$30,5,TRUE) -> ZB | O93: =VLOOKUP(N93,'Kategorie ZBP'!$E:$F,2,0) -> Ženy 35 - 44 | P93: =VLOOKUP(H93&"x"&A93,Stopky!I:J,2,0) -> 0.008981481481 | Q93: 2 | R93: 1 | S93: 1 | T93: =IF(ISERROR(VLOOKUP(H93&"x"&F93&"xANO",'Závody a tratě'!L:L,1,0))=TRUE,0,_xlfn.IFNA(VLOOKUP(S93,'Body ZBP'!$A$1:$B$40,2,1),0)) -> 30 | U93: =H93&"x"&A93 -> 2x45 | V93: =IF(U93<>"x",COUNTIF($U$2:$U$3000,U93),"") -> 1 | W93: =IF(I93<>"xxxxx",COUNTIF($I$2:$I$3000,I93),"") -> 1
A94: 36 | B94: Szabó | C94: Lada | D94: z | E94: 1978 | F94: Z3 | H94: 2 | I94: =B94&"x"&C94&"x"&D94&"x"&E94&"x"&H94&"x"&F94 -> SzabóxLadaxzx1978x2xZ3 | J94: =VLOOKUP(H94,'Závody a tratě'!$B:$C,2,0) -> „Sokolák“ Plaveč u Znojma | K94: =VLOOKUP(H94&"x"&F94,'Závody a tratě'!$A:$F,6,0) -> 3 | L94: =VLOOKUP(TEXT(H94,"000")&UPPER(D94)&TEXT(E94,"0000"),'Kategorie lokální'!$A$2:$F$300,6,TRUE) -> LZB | M94: =VLOOKUP(TEXT(H94,"000")&UPPER(D94)&TEXT(E94,"0000"),'Kategorie lokální'!$A$2:$G$300,7,TRUE) -> L: Ženy od 35 | N94: =VLOOKUP(UPPER(D94)&TEXT(E94,"0000"),'Kategorie ZBP'!$A$2:$E$30,5,TRUE) -> ZB | O94: =VLOOKUP(N94,'Kategorie ZBP'!$E:$F,2,0) -> Ženy 35 - 44 | P94: =VLOOKUP(H94&"x"&A94,Stopky!I:J,2,0) -> 0.01017361111 | Q94: 5 | R94: 2 | S94: 2 | T94: =IF(ISERROR(VLOOKUP(H94&"x"&F94&"xANO",'Závody a tratě'!L:L,1,0))=TRUE,0,_xlfn.IFNA(VLOOKUP(S94,'Body ZBP'!$A$1:$B$40,2,1),0)) -> 25 | U94: =H94&"x"&A94 -> 2x36 | V94: =IF(U94<>"x",COUNTIF($U$2:$U$3000,U94),"") -> 1 | W94: =IF(I94<>"xxxxx",COUNTIF($I$2:$I$3000,I94),"") -> 1
A95: 1 | B95: Bartůňková | C95: Světlana | D95: z | E95: 1976 | F95: Z3 | G95: Rabbits Znojmo | H95: 2 | I95: =B95&"x"&C95&"x"&D95&"x"&E95&"x"&H95&"x"&F95 -> BartůňkováxSvětlanaxzx1976x2xZ3 | J95: =VLOOKUP(H95,'Závody a tratě'!$B:$C,2,0) -> „Sokolák“ Plaveč u Znojma | K95: =VLOOKUP(H95&"x"&F95,'Závody a tratě'!$A:$F,6,0) -> 3 | L95: =VLOOKUP(TEXT(H95,"000")&UPPER(D95)&TEXT(E95,"0000"),'Kategorie lokální'!$A$2:$F$300,6,TRUE) -> LZB | M95: =VLOOKUP(TEXT(H95,"000")&UPPER(D95)&TEXT(E95,"0000"),'Kategorie lokální'!$A$2:$G$300,7,TRUE) -> L: Ženy od 35 | N95: =VLOOKUP(UPPER(D95)&TEXT(E95,"0000"),'Kategorie ZBP'!$A$2:$E$30,5,TRUE) -> ZB | O95: =VLOOKUP(N95,'Kategorie ZBP'!$E:$F,2,0) -> Ženy 35 - 44 | P95: =VLOOKUP(H95&"x"&A95,Stopky!I:J,2,0) -> 0.01019675926 | Q95: 6 | R95: 3 | S95: 3 | T95: =IF(ISERROR(VLOOKUP(H95&"x"&F95&"xANO",'Závody a tratě'!L:L,1,0))=TRUE,0,_xlfn.IFNA(VLOOKUP(S95,'Body ZBP'!$A$1:$B$40,2,1),0)) -> 21 | U95: =H95&"x"&A95 -> 2x1 | V95: =IF(U95<>"x",COUNTIF($U$2:$U$3000,U95),"") -> 1 | W95: =IF(I95<>"xxxxx",COUNTIF($I$2:$I$3000,I95),"") -> 1
A96: 35 | B96: Růžičková | C96: Zuzana | D96: z | E96: 1983 | F96: Z3 | G96: Znojmo | H96: 2 | I96: =B96&"x"&C96&"x"&D96&"x"&E96&"x"&H96&"x"&F96 -> RůžičkováxZuzanaxzx1983x2xZ3 | J96: =VLOOKUP(H96,'Závody a tratě'!$B:$C,2,0) -> „Sokolák“ Plaveč u Znojma | K96: =VLOOKUP(H96&"x"&F96,'Závody a tratě'!$A:$F,6,0) -> 3 | L96: =VLOOKUP(TEXT(H96,"000")&UPPER(D96)&TEXT(E96,"0000"),'Kategorie lokální'!$A$2:$F$300,6,TRUE) -> LZB | M96: =VLOOKUP(TEXT(H96,"000")&UPPER(D96)&TEXT(E96,"0000"),'Kategorie lokální'!$A$2:$G$300,7,TRUE) -> L: Ženy od 35 | N96: =VLOOKUP(UPPER(D96)&TEXT(E96,"0000"),'Kategorie ZBP'!$A$2:$E$30,5,TRUE) -> ZB | O96: =VLOOKUP(N96,'Kategorie ZBP'!$E:$F,2,0) -> Ženy 35 - 44 | P96: =VLOOKUP(H96&"x"&A96,Stopky!I:J,2,0) -> 0.01066319444 | Q96: 8 | R96: 4 | S96: 4 | T96: =IF(ISERROR(VLOOKUP(H96&"x"&F96&"xANO",'Závody a tratě'!L:L,1,0))=TRUE,0,_xlfn.IFNA(VLOOKUP(S96,'Body ZBP'!$A$1:$B$40,2,1),0)) -> 18 | U96: =H96&"x"&A96 -> 2x35 | V96: =IF(U96<>"x",COUNTIF($U$2:$U$3000,U96),"") -> 1 | W96: =IF(I96<>"xxxxx",COUNTIF($I$2:$I$3000,I96),"") -> 1
A97: 27 | B97: Zelená | C97: Irena | D97: z | E97: 1976 | F97: Z3 | G97: Atletic Třebíč | H97: 2 | I97: =B97&"x"&C97&"x"&D97&"x"&E97&"x"&H97&"x"&F97 -> ZelenáxIrenaxzx1976x2xZ3 | J97: =VLOOKUP(H97,'Závody a tratě'!$B:$C,2,0) -> „Sokolák“ Plaveč u Znojma | K97: =VLOOKUP(H97&"x"&F97,'Závody a tratě'!$A:$F,6,0) -> 3 | L97: =VLOOKUP(TEXT(H97,"000")&UPPER(D97)&TEXT(E97,"0000"),'Kategorie lokální'!$A$2:$F$300,6,TRUE) -> LZB | M97: =VLOOKUP(TEXT(H97,"000")&UPPER(D97)&TEXT(E97,"0000"),'Kategorie lokální'!$A$2:$G$300,7,TRUE) -> L: Ženy od 35 | N97: =VLOOKUP(UPPER(D97)&TEXT(E97,"0000"),'Kategorie ZBP'!$A$2:$E$30,5,TRUE) -> ZB | O97: =VLOOKUP(N97,'Kategorie ZBP'!$E:$F,2,0) -> Ženy 35 - 44 | P97: =VLOOKUP(H97&"x"&A97,Stopky!I:J,2,0) -> 0.01066435185 | Q97: 9 | R97: 5 | S97: 5 | T97: =IF(ISERROR(VLOOKUP(H97&"x"&F97&"xANO",'Závody a tratě'!L:L,1,0))=TRUE,0,_xlfn.IFNA(VLOOKUP(S97,'Body ZBP'!$A$1:$B$40,2,1),0)) -> 16 | U97: =H97&"x"&A97 -> 2x27 | V97: =IF(U97<>"x",COUNTIF($U$2:$U$3000,U97),"") -> 1 | W97: =IF(I97<>"xxxxx",COUNTIF($I$2:$I$3000,I97),"") -> 1
A98: 12 | B98: Orawská | C98: Lucie | D98: z | E98: 1983 | F98: Z3 | H98: 2 | I98: =B98&"x"&C98&"x"&D98&"x"&E98&"x"&H98&"x"&F98 -> OrawskáxLuciexzx1983x2xZ3 | J98: =VLOOKUP(H98,'Závody a tratě'!$B:$C,2,0) -> „Sokolák“ Plaveč u Znojma | K98: =VLOOKUP(H98&"x"&F98,'Závody a tratě'!$A:$F,6,0) -> 3 | L98: =VLOOKUP(TEXT(H98,"000")&UPPER(D98)&TEXT(E98,"0000"),'Kategorie lokální'!$A$2:$F$300,6,TRUE) -> LZB | M98: =VLOOKUP(TEXT(H98,"000")&UPPER(D98)&TEXT(E98,"0000"),'Kategorie lokální'!$A$2:$G$300,7,TRUE) -> L: Ženy od 35 | N98: =VLOOKUP(UPPER(D98)&TEXT(E98,"0000"),'Kategorie ZBP'!$A$2:$E$30,5,TRUE) -> ZB | O98: =VLOOKUP(N98,'Kategorie ZBP'!$E:$F,2,0) -> Ženy 35 - 44 | P98: =VLOOKUP(H98&"x"&A98,Stopky!I:J,2,0) -> 0.0106724537 | Q98: 10 | R98: 6 | S98: 6 | T98: =IF(ISERROR(VLOOKUP(H98&"x"&F98&"xANO",'Závody a tratě'!L:L,1,0))=TRUE,0,_xlfn.IFNA(VLOOKUP(S98,'Body ZBP'!$A$1:$B$40,2,1),0)) -> 15 | U98: =H98&"x"&A98 -> 2x12 | V98: =IF(U98<>"x",COUNTIF($U$2:$U$3000,U98),"") -> 1 | W98: =IF(I98<>"xxxxx",COUNTIF($I$2:$I$3000,I98),"") -> 1
A99: 31 | B99: Šinkovič | C99: Irena | D99: z | E99: 1981 | F99: Z3 | H99: 2 | I99: =B99&"x"&C99&"x"&D99&"x"&E99&"x"&H99&"x"&F99 -> ŠinkovičxIrenaxzx1981x2xZ3 | J99: =VLOOKUP(H99,'Závody a tratě'!$B:$C,2,0) -> „Sokolák“ Plaveč u Znojma | K99: =VLOOKUP(H99&"x"&F99,'Závody a tratě'!$A:$F,6,0) -> 3 | L99: =VLOOKUP(TEXT(H99,"000")&UPPER(D99)&TEXT(E99,"0000"),'Kategorie lokální'!$A$2:$F$300,6,TRUE) -> LZB | M99: =VLOOKUP(TEXT(H99,"000")&UPPER(D99)&TEXT(E99,"0000"),'Kategorie lokální'!$A$2:$G$300,7,TRUE) -> L: Ženy od 35 | N99: =VLOOKUP(UPPER(D99)&TEXT(E99,"0000"),'Kategorie ZBP'!$A$2:$E$30,5,TRUE) -> ZB | O99: =VLOOKUP(N99,'Kategorie ZBP'!$E:$F,2,0) -> Ženy 35 - 44 | P99: =VLOOKUP(H99&"x"&A99,Stopky!I:J,2,0) -> 0.01067361111 | Q99: 11 | R99: 7 | S99: 7 | T99: =IF(ISERROR(VLOOKUP(H99&"x"&F99&"xANO",'Závody a tratě'!L:L,1,0))=TRUE,0,_xlfn.IFNA(VLOOKUP(S99,'Body ZBP'!$A$1:$B$40,2,1),0)) -> 14 | U99: =H99&"x"&A99 -> 2x31 | V99: =IF(U99<>"x",COUNTIF($U$2:$U$3000,U99),"") -> 1 | W99: =IF(I99<>"xxxxx",COUNTIF($I$2:$I$3000,I99),"") -> 1
A100: 65 | B100: Kučerová | C100: Petra | D100: z | E100: 1980 | F100: Z3 | G100: Znojmo | H100: 2 | I100: =B100&"x"&C100&"x"&D100&"x"&E100&"x"&H100&"x"&F100 -> KučerováxPetraxzx1980x2xZ3 | J100: =VLOOKUP(H100,'Závody a tratě'!$B:$C,2,0) -> „Sokolák“ Plaveč u Znojma | K100: =VLOOKUP(H100&"x"&F100,'Závody a tratě'!$A:$F,6,0) -> 3 | L100: =VLOOKUP(TEXT(H100,"000")&UPPER(D100)&TEXT(E100,"0000"),'Kategorie lokální'!$A$2:$F$300,6,TRUE) -> LZB | M100: =VLOOKUP(TEXT(H100,"000")&UPPER(D100)&TEXT(E100,"0000"),'Kategorie lokální'!$A$2:$G$300,7,TRUE) -> L: Ženy od 35 | N100: =VLOOKUP(UPPER(D100)&TEXT(E100,"0000"),'Kategorie ZBP'!$A$2:$E$30,5,TRUE) -> ZB | O100: =VLOOKUP(N100,'Kategorie ZBP'!$E:$F,2,0) -> Ženy 35 - 44 | P100: =VLOOKUP(H100&"x"&A100,Stopky!I:J,2,0) -> 0.01067592593 | Q100: 13 | R100: 8 | S100: 8 | T100: =IF(ISERROR(VLOOKUP(H100&"x"&F100&"xANO",'Závody a tratě'!L:L,1,0))=TRUE,0,_xlfn.IFNA(VLOOKUP(S100,'Body ZBP'!$A$1:$B$40,2,1),0)) -> 13 | U100: =H100&"x"&A100 -> 2x65 | V100: =IF(U100<>"x",COUNTIF($U$2:$U$3000,U100),"") -> 1 | W100: =IF(I100<>"xxxxx",COUNTIF($I$2:$I$3000,I100),"") -> 1
A101: 46 | B101: Auerová | C101: Stanislava | D101: z | E101: 1983 | F101: Z3 | G101: Hluboké Mašůvky | H101: 2 | I101: =B101&"x"&C101&"x"&D101&"x"&E101&"x"&H101&"x"&F101 -> AuerováxStanislavaxzx1983x2xZ3 | J101: =VLOOKUP(H101,'Závody a tratě'!$B:$C,2,0) -> „Sokolák“ Plaveč u Znojma | K101: =VLOOKUP(H101&"x"&F101,'Závody a tratě'!$A:$F,6,0) -> 3 | L101: =VLOOKUP(TEXT(H101,"000")&UPPER(D101)&TEXT(E101,"0000"),'Kategorie lokální'!$A$2:$F$300,6,TRUE) -> LZB | M101: =VLOOKUP(TEXT(H101,"000")&UPPER(D101)&TEXT(E101,"0000"),'Kategorie lokální'!$A$2:$G$300,7,TRUE) -> L: Ženy od 35 | N101: =VLOOKUP(UPPER(D101)&TEXT(E101,"0000"),'Kategorie ZBP'!$A$2:$E$30,5,TRUE) -> ZB | O101: =VLOOKUP(N101,'Kategorie ZBP'!$E:$F,2,0) -> Ženy 35 - 44 | P101: =VLOOKUP(H101&"x"&A101,Stopky!I:J,2,0) -> 0.01071759259 | Q101: 14 | R101: 9 | S101: 9 | T101: =IF(ISERROR(VLOOKUP(H101&"x"&F101&"xANO",'Závody a tratě'!L:L,1,0))=TRUE,0,_xlfn.IFNA(VLOOKUP(S101,'Body ZBP'!$A$1:$B$40,2,1),0)) -> 12 | U101: =H101&"x"&A101 -> 2x46 | V101: =IF(U101<>"x",COUNTIF($U$2:$U$3000,U101),"") -> 1 | W101: =IF(I101<>"xxxxx",COUNTIF($I$2:$I$3000,I101),"") -> 1
A102: 41 | B102: Čermáková | C102: Věra | D102: z | E102: 1978 | F102: Z3 | G102: Turtles Znojmo | H102: 2 | I102: =B102&"x"&C102&"x"&D102&"x"&E102&"x"&H102&"x"&F102 -> ČermákováxVěraxzx1978x2xZ3 | J102: =VLOOKUP(H102,'Závody a tratě'!$B:$C,2,0) -> „Sokolák“ Plaveč u Znojma | K102: =VLOOKUP(H102&"x"&F102,'Závody a tratě'!$A:$F,6,0) -> 3 | L102: =VLOOKUP(TEXT(H102,"000")&UPPER(D102)&TEXT(E102,"0000"),'Kategorie lokální'!$A$2:$F$300,6,TRUE) -> LZB | M102: =VLOOKUP(TEXT(H102,"000")&UPPER(D102)&TEXT(E102,"0000"),'Kategorie lokální'!$A$2:$G$300,7,TRUE) -> L: Ženy od 35 | N102: =VLOOKUP(UPPER(D102)&TEXT(E102,"0000"),'Kategorie ZBP'!$A$2:$E$30,5,TRUE) -> ZB | O102: =VLOOKUP(N102,'Kategorie ZBP'!$E:$F,2,0) -> Ženy 35 - 44 | P102: =VLOOKUP(H102&"x"&A102,Stopky!I:J,2,0) -> 0.01097222222 | Q102: 15 | R102: 10 | S102: 10 | T102: =IF(ISERROR(VLOOKUP(H102&"x"&F102&"xANO",'Závody a tratě'!L:L,1,0))=TRUE,0,_xlfn.IFNA(VLOOKUP(S102,'Body ZBP'!$A$1:$B$40,2,1),0)) -> 11 | U102: =H102&"x"&A102 -> 2x41 | V102: =IF(U102<>"x",COUNTIF($U$2:$U$3000,U102),"") -> 1 | W102: =IF(I102<>"xxxxx",COUNTIF($I$2:$I$3000,I102),"") -> 1
A103: 13 | B103: Mlátilíková | C103: Tamara | D103: z | E103: 1982 | F103: Z3 | H103: 2 | I103: =B103&"x"&C103&"x"&D103&"x"&E103&"x"&H103&"x"&F103 -> MlátilíkováxTamaraxzx1982x2xZ3 | J103: =VLOOKUP(H103,'Závody a tratě'!$B:$C,2,0) -> „Sokolák“ Plaveč u Znojma | K103: =VLOOKUP(H103&"x"&F103,'Závody a tratě'!$A:$F,6,0) -> 3 | L103: =VLOOKUP(TEXT(H103,"000")&UPPER(D103)&TEXT(E103,"0000"),'Kategorie lokální'!$A$2:$F$300,6,TRUE) -> LZB | M103: =VLOOKUP(TEXT(H103,"000")&UPPER(D103)&TEXT(E103,"0000"),'Kategorie lokální'!$A$2:$G$300,7,TRUE) -> L: Ženy od 35 | N103: =VLOOKUP(UPPER(D103)&TEXT(E103,"0000"),'Kategorie ZBP'!$A$2:$E$30,5,TRUE) -> ZB | O103: =VLOOKUP(N103,'Kategorie ZBP'!$E:$F,2,0) -> Ženy 35 - 44 | P103: =VLOOKUP(H103&"x"&A103,Stopky!I:J,2,0) -> 0.0115162037 | Q103: 16 | R103: 11 | S103: 11 | T103: =IF(ISERROR(VLOOKUP(H103&"x"&F103&"xANO",'Závody a tratě'!L:L,1,0))=TRUE,0,_xlfn.IFNA(VLOOKUP(S103,'Body ZBP'!$A$1:$B$40,2,1),0)) -> 10 | U103: =H103&"x"&A103 -> 2x13 | V103: =IF(U103<>"x",COUNTIF($U$2:$U$3000,U103),"") -> 1 | W103: =IF(I103<>"xxxxx",COUNTIF($I$2:$I$3000,I103),"") -> 1
A104: 5 | B104: Sikorová | C104: Jana | D104: z | E104: 1980 | F104: Z3 | G104: Mašovice | H104: 2 | I104: =B104&"x"&C104&"x"&D104&"x"&E104&"x"&H104&"x"&F104 -> SikorováxJanaxzx1980x2xZ3 | J104: =VLOOKUP(H104,'Závody a tratě'!$B:$C,2,0) -> „Sokolák“ Plaveč u Znojma | K104: =VLOOKUP(H104&"x"&F104,'Závody a tratě'!$A:$F,6,0) -> 3 | L104: =VLOOKUP(TEXT(H104,"000")&UPPER(D104)&TEXT(E104,"0000"),'Kategorie lokální'!$A$2:$F$300,6,TRUE) -> LZB | M104: =VLOOKUP(TEXT(H104,"000")&UPPER(D104)&TEXT(E104,"0000"),'Kategorie lokální'!$A$2:$G$300,7,TRUE) -> L: Ženy od 35 | N104: =VLOOKUP(UPPER(D104)&TEXT(E104,"0000"),'Kategorie ZBP'!$A$2:$E$30,5,TRUE) -> ZB | O104: =VLOOKUP(N104,'Kategorie ZBP'!$E:$F,2,0) -> Ženy 35 - 44 | P104: =VLOOKUP(H104&"x"&A104,Stopky!I:J,2,0) -> 0.01228009259 | Q104: 17 | R104: 12 | S104: 12 | T104: =IF(ISERROR(VLOOKUP(H104&"x"&F104&"xANO",'Závody a tratě'!L:L,1,0))=TRUE,0,_xlfn.IFNA(VLOOKUP(S104,'Body ZBP'!$A$1:$B$40,2,1),0)) -> 9 | U104: =H104&"x"&A104 -> 2x5 | V104: =IF(U104<>"x",COUNTIF($U$2:$U$3000,U104),"") -> 1 | W104: =IF(I104<>"xxxxx",COUNTIF($I$2:$I$3000,I104),"") -> 1
A105: 20 | B105: Dočekalová | C105: Vladislava | D105: z | E105: 1980 | F105: Z3 | G105: Znojmo | H105: 2 | I105: =B105&"x"&C105&"x"&D105&"x"&E105&"x"&H105&"x"&F105 -> DočekalováxVladislavaxzx1980x2xZ3 | J105: =VLOOKUP(H105,'Závody a tratě'!$B:$C,2,0) -> „Sokolák“ Plaveč u Znojma | K105: =VLOOKUP(H105&"x"&F105,'Závody a tratě'!$A:$F,6,0) -> 3 | L105: =VLOOKUP(TEXT(H105,"000")&UPPER(D105)&TEXT(E105,"0000"),'Kategorie lokální'!$A$2:$F$300,6,TRUE) -> LZB | M105: =VLOOKUP(TEXT(H105,"000")&UPPER(D105)&TEXT(E105,"0000"),'Kategorie lokální'!$A$2:$G$300,7,TRUE) -> L: Ženy od 35 | N105: =VLOOKUP(UPPER(D105)&TEXT(E105,"0000"),'Kategorie ZBP'!$A$2:$E$30,5,TRUE) -> ZB | O105: =VLOOKUP(N105,'Kategorie ZBP'!$E:$F,2,0) -> Ženy 35 - 44 | P105: =VLOOKUP(H105&"x"&A105,Stopky!I:J,2,0) -> 0.0127662037 | Q105: 20 | R105: 13 | S105: 13 | T105: =IF(ISERROR(VLOOKUP(H105&"x"&F105&"xANO",'Závody a tratě'!L:L,1,0))=TRUE,0,_xlfn.IFNA(VLOOKUP(S105,'Body ZBP'!$A$1:$B$40,2,1),0)) -> 8 | U105: =H105&"x"&A105 -> 2x20 | V105: =IF(U105<>"x",COUNTIF($U$2:$U$3000,U105),"") -> 1 | W105: =IF(I105<>"xxxxx",COUNTIF($I$2:$I$3000,I105),"") -> 1
A106: 21 | B106: Marešová | C106: Karla | D106: z | E106: 1975 | F106: Z3 | G106: Znojmo | H106: 2 | I106: =B106&"x"&C106&"x"&D106&"x"&E106&"x"&H106&"x"&F106 -> MarešováxKarlaxzx1975x2xZ3 | J106: =VLOOKUP(H106,'Závody a tratě'!$B:$C,2,0) -> „Sokolák“ Plaveč u Znojma | K106: =VLOOKUP(H106&"x"&F106,'Závody a tratě'!$A:$F,6,0) -> 3 | L106: =VLOOKUP(TEXT(H106,"000")&UPPER(D106)&TEXT(E106,"0000"),'Kategorie lokální'!$A$2:$F$300,6,TRUE) -> LZB | M106: =VLOOKUP(TEXT(H106,"000")&UPPER(D106)&TEXT(E106,"0000"),'Kategorie lokální'!$A$2:$G$300,7,TRUE) -> L: Ženy od 35 | N106: =VLOOKUP(UPPER(D106)&TEXT(E106,"0000"),'Kategorie ZBP'!$A$2:$E$30,5,TRUE) -> ZB | O106: =VLOOKUP(N106,'Kategorie ZBP'!$E:$F,2,0) -> Ženy 35 - 44 | P106: =VLOOKUP(H106&"x"&A106,Stopky!I:J,2,0) -> 0.01309027778 | Q106: 21 | R106: 14 | S106: 14 | T106: =IF(ISERROR(VLOOKUP(H106&"x"&F106&"xANO",'Závody a tratě'!L:L,1,0))=TRUE,0,_xlfn.IFNA(VLOOKUP(S106,'Body ZBP'!$A$1:$B$40,2,1),0)) -> 7 | U106: =H106&"x"&A106 -> 2x21 | V106: =IF(U106<>"x",COUNTIF($U$2:$U$3000,U106),"") -> 1 | W106: =IF(I106<>"xxxxx",COUNTIF($I$2:$I$3000,I106),"") -> 1
A107: 26 | B107: Kučerová | C107: Jana | D107: z | E107: 1971 | F107: Z3 | G107: Rohatec | H107: 2 | I107: =B107&"x"&C107&"x"&D107&"x"&E107&"x"&H107&"x"&F107 -> KučerováxJanaxzx1971x2xZ3 | J107: =VLOOKUP(H107,'Závody a tratě'!$B:$C,2,0) -> „Sokolák“ Plaveč u Znojma | K107: =VLOOKUP(H107&"x"&F107,'Závody a tratě'!$A:$F,6,0) -> 3 | L107: =VLOOKUP(TEXT(H107,"000")&UPPER(D107)&TEXT(E107,"0000"),'Kategorie lokální'!$A$2:$F$300,6,TRUE) -> LZC | M107: =VLOOKUP(TEXT(H107,"000")&UPPER(D107)&TEXT(E107,"0000"),'Kategorie lokální'!$A$2:$G$300,7,TRUE) -> L: Ženy od 35 | N107: =VLOOKUP(UPPER(D107)&TEXT(E107,"0000"),'Kategorie ZBP'!$A$2:$E$30,5,TRUE) -> ZC | O107: =VLOOKUP(N107,'Kategorie ZBP'!$E:$F,2,0) -> Ženy nad 45 | P107: =VLOOKUP(H107&"x"&A107,Stopky!I:J,2,0) -> 0.01009259259 | Q107: 3 | R107: 1 | S107: 1 | T107: =IF(ISERROR(VLOOKUP(H107&"x"&F107&"xANO",'Závody a tratě'!L:L,1,0))=TRUE,0,_xlfn.IFNA(VLOOKUP(S107,'Body ZBP'!$A$1:$B$40,2,1),0)) -> 30 | U107: =H107&"x"&A107 -> 2x26 | V107: =IF(U107<>"x",COUNTIF($U$2:$U$3000,U107),"") -> 1 | W107: =IF(I107<>"xxxxx",COUNTIF($I$2:$I$3000,I107),"") -> 1
A108: 38 | B108: Jičínská | C108: Lenka | D108: z | E108: 1974 | F108: Z3 | G108: Orel Mor. Budějovice | H108: 2 | I108: =B108&"x"&C108&"x"&D108&"x"&E108&"x"&H108&"x"&F108 -> JičínskáxLenkaxzx1974x2xZ3 | J108: =VLOOKUP(H108,'Závody a tratě'!$B:$C,2,0) -> „Sokolák“ Plaveč u Znojma | K108: =VLOOKUP(H108&"x"&F108,'Závody a tratě'!$A:$F,6,0) -> 3 | L108: =VLOOKUP(TEXT(H108,"000")&UPPER(D108)&TEXT(E108,"0000"),'Kategorie lokální'!$A$2:$F$300,6,TRUE) -> LZC | M108: =VLOOKUP(TEXT(H108,"000")&UPPER(D108)&TEXT(E108,"0000"),'Kategorie lokální'!$A$2:$G$300,7,TRUE) -> L: Ženy od 35 | N108: =VLOOKUP(UPPER(D108)&TEXT(E108,"0000"),'Kategorie ZBP'!$A$2:$E$30,5,TRUE) -> ZC | O108: =VLOOKUP(N108,'Kategorie ZBP'!$E:$F,2,0) -> Ženy nad 45 | P108: =VLOOKUP(H108&"x"&A108,Stopky!I:J,2,0) -> 0.01016203704 | Q108: 4 | R108: 2 | S108: 2 | T108: =IF(ISERROR(VLOOKUP(H108&"x"&F108&"xANO",'Závody a tratě'!L:L,1,0))=TRUE,0,_xlfn.IFNA(VLOOKUP(S108,'Body ZBP'!$A$1:$B$40,2,1),0)) -> 25 | U108: =H108&"x"&A108 -> 2x38 | V108: =IF(U108<>"x",COUNTIF($U$2:$U$3000,U108),"") -> 1 | W108: =IF(I108<>"xxxxx",COUNTIF($I$2:$I$3000,I108),"") -> 1
A109: 23 | B109: Bulínová | C109: Jitka | D109: z | E109: 1970 | F109: Z3 | G109: TJ Sokol Plaveč | H109: 2 | I109: =B109&"x"&C109&"x"&D109&"x"&E109&"x"&H109&"x"&F109 -> BulínováxJitkaxzx1970x2xZ3 | J109: =VLOOKUP(H109,'Závody a tratě'!$B:$C,2,0) -> „Sokolák“ Plaveč u Znojma | K109: =VLOOKUP(H109&"x"&F109,'Závody a tratě'!$A:$F,6,0) -> 3 | L109: =VLOOKUP(TEXT(H109,"000")&UPPER(D109)&TEXT(E109,"0000"),'Kategorie lokální'!$A$2:$F$300,6,TRUE) -> LZC | M109: =VLOOKUP(TEXT(H109,"000")&UPPER(D109)&TEXT(E109,"0000"),'Kategorie lokální'!$A$2:$G$300,7,TRUE) -> L: Ženy od 35 | N109: =VLOOKUP(UPPER(D109)&TEXT(E109,"0000"),'Kategorie ZBP'!$A$2:$E$30,5,TRUE) -> ZC | O109: =VLOOKUP(N109,'Kategorie ZBP'!$E:$F,2,0) -> Ženy nad 45 | P109: =VLOOKUP(H109&"x"&A109,Stopky!I:J,2,0) -> 0.01049768519 | Q109: 7 | R109: 3 | S109: 3 | T109: =IF(ISERROR(VLOOKUP(H109&"x"&F109&"xANO",'Závody a tratě'!L:L,1,0))=TRUE,0,_xlfn.IFNA(VLOOKUP(S109,'Body ZBP'!$A$1:$B$40,2,1),0)) -> 21 | U109: =H109&"x"&A109 -> 2x23 | V109: =IF(U109<>"x",COUNTIF($U$2:$U$3000,U109),"") -> 1 | W109: =IF(I109<>"xxxxx",COUNTIF($I$2:$I$3000,I109),"") -> 1
A110: 51 | B110: Valášková | C110: Jana | D110: z | E110: 1965 | F110: Z3 | H110: 2 | I110: =B110&"x"&C110&"x"&D110&"x"&E110&"x"&H110&"x"&F110 -> ValáškováxJanaxzx1965x2xZ3 | J110: =VLOOKUP(H110,'Závody a tratě'!$B:$C,2,0) -> „Sokolák“ Plaveč u Znojma | K110: =VLOOKUP(H110&"x"&F110,'Závody a tratě'!$A:$F,6,0) -> 3 | L110: =VLOOKUP(TEXT(H110,"000")&UPPER(D110)&TEXT(E110,"0000"),'Kategorie lokální'!$A$2:$F$300,6,TRUE) -> LZC | M110: =VLOOKUP(TEXT(H110,"000")&UPPER(D110)&TEXT(E110,"0000"),'Kategorie lokální'!$A$2:$G$300,7,TRUE) -> L: Ženy od 35 | N110: =VLOOKUP(UPPER(D110)&TEXT(E110,"0000"),'Kategorie ZBP'!$A$2:$E$30,5,TRUE) -> ZC | O110: =VLOOKUP(N110,'Kategorie ZBP'!$E:$F,2,0) -> Ženy nad 45 | P110: =VLOOKUP(H110&"x"&A110,Stopky!I:J,2,0) -> 0.01067476852 | Q110: 12 | R110: 4 | S110: 4 | T110: =IF(ISERROR(VLOOKUP(H110&"x"&F110&"xANO",'Závody a tratě'!L:L,1,0))=TRUE,0,_xlfn.IFNA(VLOOKUP(S110,'Body ZBP'!$A$1:$B$40,2,1),0)) -> 18 | U110: =H110&"x"&A110 -> 2x51 | V110: =IF(U110<>"x",COUNTIF($U$2:$U$3000,U110),"") -> 1 | W110: =IF(I110<>"xxxxx",COUNTIF($I$2:$I$3000,I110),"") -> 1
A111: 47 | B111: Hlívová | C111: Iva | D111: z | E111: 1974 | F111: Z3 | G111: Kravák | H111: 2 | I111: =B111&"x"&C111&"x"&D111&"x"&E111&"x"&H111&"x"&F111 -> HlívováxIvaxzx1974x2xZ3 | J111: =VLOOKUP(H111,'Závody a tratě'!$B:$C,2,0) -> „Sokolák“ Plaveč u Znojma | K111: =VLOOKUP(H111&"x"&F111,'Závody a tratě'!$A:$F,6,0) -> 3 | L111: =VLOOKUP(TEXT(H111,"000")&UPPER(D111)&TEXT(E111,"0000"),'Kategorie lokální'!$A$2:$F$300,6,TRUE) -> LZC | M111: =VLOOKUP(TEXT(H111,"000")&UPPER(D111)&TEXT(E111,"0000"),'Kategorie lokální'!$A$2:$G$300,7,TRUE) -> L: Ženy od 35 | N111: =VLOOKUP(UPPER(D111)&TEXT(E111,"0000"),'Kategorie ZBP'!$A$2:$E$30,5,TRUE) -> ZC | O111: =VLOOKUP(N111,'Kategorie ZBP'!$E:$F,2,0) -> Ženy nad 45 | P111: =VLOOKUP(H111&"x"&A111,Stopky!I:J,2,0) -> 0.01230324074 | Q111: 18 | R111: 5 | S111: 5 | T111: =IF(ISERROR(VLOOKUP(H111&"x"&F111&"xANO",'Závody a tratě'!L:L,1,0))=TRUE,0,_xlfn.IFNA(VLOOKUP(S111,'Body ZBP'!$A$1:$B$40,2,1),0)) -> 16 | U111: =H111&"x"&A111 -> 2x47 | V111: =IF(U111<>"x",COUNTIF($U$2:$U$3000,U111),"") -> 1 | W111: =IF(I111<>"xxxxx",COUNTIF($I$2:$I$3000,I111),"") -> 1
A112: 50 | B112: Jindrová | C112: Ilona | D112: z | E112: 1967 | F112: Z3 | G112: Dačice | H112: 2 | I112: =B112&"x"&C112&"x"&D112&"x"&E112&"x"&H112&"x"&F112 -> JindrováxIlonaxzx1967x2xZ3 | J112: =VLOOKUP(H112,'Závody a tratě'!$B:$C,2,0) -> „Sokolák“ Plaveč u Znojma | K112: =VLOOKUP(H112&"x"&F112,'Závody a tratě'!$A:$F,6,0) -> 3 | L112: =VLOOKUP(TEXT(H112,"000")&UPPER(D112)&TEXT(E112,"0000"),'Kategorie lokální'!$A$2:$F$300,6,TRUE) -> LZC | M112: =VLOOKUP(TEXT(H112,"000")&UPPER(D112)&TEXT(E112,"0000"),'Kategorie lokální'!$A$2:$G$300,7,TRUE) -> L: Ženy od 35 | N112: =VLOOKUP(UPPER(D112)&TEXT(E112,"0000"),'Kategorie ZBP'!$A$2:$E$30,5,TRUE) -> ZC | O112: =VLOOKUP(N112,'Kategorie ZBP'!$E:$F,2,0) -> Ženy nad 45 | P112: =VLOOKUP(H112&"x"&A112,Stopky!I:J,2,0) -> 0.01275462963 | Q112: 19 | R112: 6 | S112: 6 | T112: =IF(ISERROR(VLOOKUP(H112&"x"&F112&"xANO",'Závody a tratě'!L:L,1,0))=TRUE,0,_xlfn.IFNA(VLOOKUP(S112,'Body ZBP'!$A$1:$B$40,2,1),0)) -> 15 | U112: =H112&"x"&A112 -> 2x50 | V112: =IF(U112<>"x",COUNTIF($U$2:$U$3000,U112),"") -> 1 | W112: =IF(I112<>"xxxxx",COUNTIF($I$2:$I$3000,I112),"") -> 1
I113: =B113&"x"&C113&"x"&D113&"x"&E113&"x"&H113&"x"&F113 -> xxxxx | J113: =VLOOKUP(H113,'Závody a tratě'!$B:$C,2,0) ->  | K113: =VLOOKUP(H113&"x"&F113,'Závody a tratě'!$A:$F,6,0) -> 0 | L113: =VLOOKUP(TEXT(H113,"000")&UPPER(D113)&TEXT(E113,"0000"),'Kategorie lokální'!$A$2:$F$300,6,TRUE) ->  | M113: =VLOOKUP(TEXT(H113,"000")&UPPER(D113)&TEXT(E113,"0000"),'Kategorie lokální'!$A$2:$G$300,7,TRUE) ->  | N113: =VLOOKUP(UPPER(D113)&TEXT(E113,"0000"),'Kategorie ZBP'!$A$2:$E$30,5,TRUE) ->  | O113: =VLOOKUP(N113,'Kategorie ZBP'!$E:$F,2,0) ->  | P113: =VLOOKUP(H113&"x"&A113,Stopky!I:J,2,0) -> - | T113: =IF(ISERROR(VLOOKUP(H113&"x"&F113&"xANO",'Závody a tratě'!L:L,1,0))=TRUE,0,_xlfn.IFNA(VLOOKUP(S113,'Body ZBP'!$A$1:$B$40,2,1),0)) -> 0 | U113: =H113&"x"&A113 -> x | V113: =IF(U113<>"x",COUNTIF($U$2:$U$3000,U113),"") ->  | W113: =IF(I113<>"xxxxx",COUNTIF($I$2:$I$3000,I113),"") -> 
I114: =B114&"x"&C114&"x"&D114&"x"&E114&"x"&H114&"x"&F114 -> xxxxx | J114: =VLOOKUP(H114,'Závody a tratě'!$B:$C,2,0) ->  | K114: =VLOOKUP(H114&"x"&F114,'Závody a tratě'!$A:$F,6,0) -> 0 | L114: =VLOOKUP(TEXT(H114,"000")&UPPER(D114)&TEXT(E114,"0000"),'Kategorie lokální'!$A$2:$F$300,6,TRUE) ->  | M114: =VLOOKUP(TEXT(H114,"000")&UPPER(D114)&TEXT(E114,"0000"),'Kategorie lokální'!$A$2:$G$300,7,TRUE) ->  | N114: =VLOOKUP(UPPER(D114)&TEXT(E114,"0000"),'Kategorie ZBP'!$A$2:$E$30,5,TRUE) ->  | O114: =VLOOKUP(N114,'Kategorie ZBP'!$E:$F,2,0) ->  | P114: =VLOOKUP(H114&"x"&A114,Stopky!I:J,2,0) -> - | T114: =IF(ISERROR(VLOOKUP(H114&"x"&F114&"xANO",'Závody a tratě'!L:L,1,0))=TRUE,0,_xlfn.IFNA(VLOOKUP(S114,'Body ZBP'!$A$1:$B$40,2,1),0)) -> 0 | U114: =H114&"x"&A114 -> x | V114: =IF(U114<>"x",COUNTIF($U$2:$U$3000,U114),"") ->  | W114: =IF(I114<>"xxxxx",COUNTIF($I$2:$I$3000,I114),"") -> 
I115: =B115&"x"&C115&"x"&D115&"x"&E115&"x"&H115&"x"&F115 -> xxxxx | J115: =VLOOKUP(H115,'Závody a tratě'!$B:$C,2,0) ->  | K115: =VLOOKUP(H115&"x"&F115,'Závody a tratě'!$A:$F,6,0) -> 0 | L115: =VLOOKUP(TEXT(H115,"000")&UPPER(D115)&TEXT(E115,"0000"),'Kategorie lokální'!$A$2:$F$300,6,TRUE) ->  | M115: =VLOOKUP(TEXT(H115,"000")&UPPER(D115)&TEXT(E115,"0000"),'Kategorie lokální'!$A$2:$G$300,7,TRUE) ->  | N115: =VLOOKUP(UPPER(D115)&TEXT(E115,"0000"),'Kategorie ZBP'!$A$2:$E$30,5,TRUE) ->  | O115: =VLOOKUP(N115,'Kategorie ZBP'!$E:$F,2,0) ->  | P115: =VLOOKUP(H115&"x"&A115,Stopky!I:J,2,0) -> - | T115: =IF(ISERROR(VLOOKUP(H115&"x"&F115&"xANO",'Závody a tratě'!L:L,1,0))=TRUE,0,_xlfn.IFNA(VLOOKUP(S115,'Body ZBP'!$A$1:$B$40,2,1),0)) -> 0 | U115: =H115&"x"&A115 -> x | V115: =IF(U115<>"x",COUNTIF($U$2:$U$3000,U115),"") ->  | W115: =IF(I115<>"xxxxx",COUNTIF($I$2:$I$3000,I115),"") -> 
I116: =B116&"x"&C116&"x"&D116&"x"&E116&"x"&H116&"x"&F116 -> xxxxx | J116: =VLOOKUP(H116,'Závody a tratě'!$B:$C,2,0) ->  | K116: =VLOOKUP(H116&"x"&F116,'Závody a tratě'!$A:$F,6,0) -> 0 | L116: =VLOOKUP(TEXT(H116,"000")&UPPER(D116)&TEXT(E116,"0000"),'Kategorie lokální'!$A$2:$F$300,6,TRUE) ->  | M116: =VLOOKUP(TEXT(H116,"000")&UPPER(D116)&TEXT(E116,"0000"),'Kategorie lokální'!$A$2:$G$300,7,TRUE) ->  | N116: =VLOOKUP(UPPER(D116)&TEXT(E116,"0000"),'Kategorie ZBP'!$A$2:$E$30,5,TRUE) ->  | O116: =VLOOKUP(N116,'Kategorie ZBP'!$E:$F,2,0) ->  | P116: =VLOOKUP(H116&"x"&A116,Stopky!I:J,2,0) -> - | T116: =IF(ISERROR(VLOOKUP(H116&"x"&F116&"xANO",'Závody a tratě'!L:L,1,0))=TRUE,0,_xlfn.IFNA(VLOOKUP(S116,'Body ZBP'!$A$1:$B$40,2,1),0)) -> 0 | U116: =H116&"x"&A116 -> x | V116: =IF(U116<>"x",COUNTIF($U$2:$U$3000,U116),"") ->  | W116: =IF(I116<>"xxxxx",COUNTIF($I$2:$I$3000,I116),"") -> 
I117: =B117&"x"&C117&"x"&D117&"x"&E117&"x"&H117&"x"&F117 -> xxxxx | J117: =VLOOKUP(H117,'Závody a tratě'!$B:$C,2,0) ->  | K117: =VLOOKUP(H117&"x"&F117,'Závody a tratě'!$A:$F,6,0) -> 0 | L117: =VLOOKUP(TEXT(H117,"000")&UPPER(D117)&TEXT(E117,"0000"),'Kategorie lokální'!$A$2:$F$300,6,TRUE) ->  | M117: =VLOOKUP(TEXT(H117,"000")&UPPER(D117)&TEXT(E117,"0000"),'Kategorie lokální'!$A$2:$G$300,7,TRUE) ->  | N117: =VLOOKUP(UPPER(D117)&TEXT(E117,"0000"),'Kategorie ZBP'!$A$2:$E$30,5,TRUE) ->  | O117: =VLOOKUP(N117,'Kategorie ZBP'!$E:$F,2,0) ->  | P117: =VLOOKUP(H117&"x"&A117,Stopky!I:J,2,0) -> - | T117: =IF(ISERROR(VLOOKUP(H117&"x"&F117&"xANO",'Závody a tratě'!L:L,1,0))=TRUE,0,_xlfn.IFNA(VLOOKUP(S117,'Body ZBP'!$A$1:$B$40,2,1),0)) -> 0 | U117: =H117&"x"&A117 -> x | V117: =IF(U117<>"x",COUNTIF($U$2:$U$3000,U117),"") ->  | W117: =IF(I117<>"xxxxx",COUNTIF($I$2:$I$3000,I117),"") -> 
I118: =B118&"x"&C118&"x"&D118&"x"&E118&"x"&H118&"x"&F118 -> xxxxx | J118: =VLOOKUP(H118,'Závody a tratě'!$B:$C,2,0) ->  | K118: =VLOOKUP(H118&"x"&F118,'Závody a tratě'!$A:$F,6,0) -> 0 | L118: =VLOOKUP(TEXT(H118,"000")&UPPER(D118)&TEXT(E118,"0000"),'Kategorie lokální'!$A$2:$F$300,6,TRUE) ->  | M118: =VLOOKUP(TEXT(H118,"000")&UPPER(D118)&TEXT(E118,"0000"),'Kategorie lokální'!$A$2:$G$300,7,TRUE) ->  | N118: =VLOOKUP(UPPER(D118)&TEXT(E118,"0000"),'Kategorie ZBP'!$A$2:$E$30,5,TRUE) ->  | O118: =VLOOKUP(N118,'Kategorie ZBP'!$E:$F,2,0) ->  | P118: =VLOOKUP(H118&"x"&A118,Stopky!I:J,2,0) -> - | T118: =IF(ISERROR(VLOOKUP(H118&"x"&F118&"xANO",'Závody a tratě'!L:L,1,0))=TRUE,0,_xlfn.IFNA(VLOOKUP(S118,'Body ZBP'!$A$1:$B$40,2,1),0)) -> 0 | U118: =H118&"x"&A118 -> x | V118: =IF(U118<>"x",COUNTIF($U$2:$U$3000,U118),"") ->  | W118: =IF(I118<>"xxxxx",COUNTIF($I$2:$I$3000,I118),"") -> 
I119: =B119&"x"&C119&"x"&D119&"x"&E119&"x"&H119&"x"&F119 -> xxxxx | J119: =VLOOKUP(H119,'Závody a tratě'!$B:$C,2,0) ->  | K119: =VLOOKUP(H119&"x"&F119,'Závody a tratě'!$A:$F,6,0) -> 0 | L119: =VLOOKUP(TEXT(H119,"000")&UPPER(D119)&TEXT(E119,"0000"),'Kategorie lokální'!$A$2:$F$300,6,TRUE) ->  | M119: =VLOOKUP(TEXT(H119,"000")&UPPER(D119)&TEXT(E119,"0000"),'Kategorie lokální'!$A$2:$G$300,7,TRUE) ->  | N119: =VLOOKUP(UPPER(D119)&TEXT(E119,"0000"),'Kategorie ZBP'!$A$2:$E$30,5,TRUE) ->  | O119: =VLOOKUP(N119,'Kategorie ZBP'!$E:$F,2,0) ->  | P119: =VLOOKUP(H119&"x"&A119,Stopky!I:J,2,0) -> - | T119: =IF(ISERROR(VLOOKUP(H119&"x"&F119&"xANO",'Závody a tratě'!L:L,1,0))=TRUE,0,_xlfn.IFNA(VLOOKUP(S119,'Body ZBP'!$A$1:$B$40,2,1),0)) -> 0 | U119: =H119&"x"&A119 -> x | V119: =IF(U119<>"x",COUNTIF($U$2:$U$3000,U119),"") ->  | W119: =IF(I119<>"xxxxx",COUNTIF($I$2:$I$3000,I119),"") -> 
I120: =B120&"x"&C120&"x"&D120&"x"&E120&"x"&H120&"x"&F120 -> xxxxx | J120: =VLOOKUP(H120,'Závody a tratě'!$B:$C,2,0) ->  | K120: =VLOOKUP(H120&"x"&F120,'Závody a tratě'!$A:$F,6,0) -> 0 | L120: =VLOOKUP(TEXT(H120,"000")&UPPER(D120)&TEXT(E120,"0000"),'Kategorie lokální'!$A$2:$F$300,6,TRUE) ->  | M120: =VLOOKUP(TEXT(H120,"000")&UPPER(D120)&TEXT(E120,"0000"),'Kategorie lokální'!$A$2:$G$300,7,TRUE) ->  | N120: =VLOOKUP(UPPER(D120)&TEXT(E120,"0000"),'Kategorie ZBP'!$A$2:$E$30,5,TRUE) ->  | O120: =VLOOKUP(N120,'Kategorie ZBP'!$E:$F,2,0) ->  | P120: =VLOOKUP(H120&"x"&A120,Stopky!I:J,2,0) -> - | T120: =IF(ISERROR(VLOOKUP(H120&"x"&F120&"xANO",'Závody a tratě'!L:L,1,0))=TRUE,0,_xlfn.IFNA(VLOOKUP(S120,'Body ZBP'!$A$1:$B$40,2,1),0)) -> 0 | U120: =H120&"x"&A120 -> x | V120: =IF(U120<>"x",COUNTIF($U$2:$U$3000,U120),"") ->  | W120: =IF(I120<>"xxxxx",COUNTIF($I$2:$I$3000,I120),"") -> 
I121: =B121&"x"&C121&"x"&D121&"x"&E121&"x"&H121&"x"&F121 -> xxxxx | J121: =VLOOKUP(H121,'Závody a tratě'!$B:$C,2,0) ->  | K121: =VLOOKUP(H121&"x"&F121,'Závody a tratě'!$A:$F,6,0) -> 0 | L121: =VLOOKUP(TEXT(H121,"000")&UPPER(D121)&TEXT(E121,"0000"),'Kategorie lokální'!$A$2:$F$300,6,TRUE) ->  | M121: =VLOOKUP(TEXT(H121,"000")&UPPER(D121)&TEXT(E121,"0000"),'Kategorie lokální'!$A$2:$G$300,7,TRUE) ->  | N121: =VLOOKUP(UPPER(D121)&TEXT(E121,"0000"),'Kategorie ZBP'!$A$2:$E$30,5,TRUE) ->  | O121: =VLOOKUP(N121,'Kategorie ZBP'!$E:$F,2,0) ->  | P121: =VLOOKUP(H121&"x"&A121,Stopky!I:J,2,0) -> - | T121: =IF(ISERROR(VLOOKUP(H121&"x"&F121&"xANO",'Závody a tratě'!L:L,1,0))=TRUE,0,_xlfn.IFNA(VLOOKUP(S121,'Body ZBP'!$A$1:$B$40,2,1),0)) -> 0 | U121: =H121&"x"&A121 -> x | V121: =IF(U121<>"x",COUNTIF($U$2:$U$3000,U121),"") ->  | W121: =IF(I121<>"xxxxx",COUNTIF($I$2:$I$3000,I121),"") -> 
I122: =B122&"x"&C122&"x"&D122&"x"&E122&"x"&H122&"x"&F122 -> xxxxx | J122: =VLOOKUP(H122,'Závody a tratě'!$B:$C,2,0) ->  | K122: =VLOOKUP(H122&"x"&F122,'Závody a tratě'!$A:$F,6,0) -> 0 | L122: =VLOOKUP(TEXT(H122,"000")&UPPER(D122)&TEXT(E122,"0000"),'Kategorie lokální'!$A$2:$F$300,6,TRUE) ->  | M122: =VLOOKUP(TEXT(H122,"000")&UPPER(D122)&TEXT(E122,"0000"),'Kategorie lokální'!$A$2:$G$300,7,TRUE) ->  | N122: =VLOOKUP(UPPER(D122)&TEXT(E122,"0000"),'Kategorie ZBP'!$A$2:$E$30,5,TRUE) ->  | O122: =VLOOKUP(N122,'Kategorie ZBP'!$E:$F,2,0) ->  | P122: =VLOOKUP(H122&"x"&A122,Stopky!I:J,2,0) -> - | T122: =IF(ISERROR(VLOOKUP(H122&"x"&F122&"xANO",'Závody a tratě'!L:L,1,0))=TRUE,0,_xlfn.IFNA(VLOOKUP(S122,'Body ZBP'!$A$1:$B$40,2,1),0)) -> 0 | U122: =H122&"x"&A122 -> x | V122: =IF(U122<>"x",COUNTIF($U$2:$U$3000,U122),"") ->  | W122: =IF(I122<>"xxxxx",COUNTIF($I$2:$I$3000,I122),"") -> 
I123: =B123&"x"&C123&"x"&D123&"x"&E123&"x"&H123&"x"&F123 -> xxxxx | J123: =VLOOKUP(H123,'Závody a tratě'!$B:$C,2,0) ->  | K123: =VLOOKUP(H123&"x"&F123,'Závody a tratě'!$A:$F,6,0) -> 0 | L123: =VLOOKUP(TEXT(H123,"000")&UPPER(D123)&TEXT(E123,"0000"),'Kategorie lokální'!$A$2:$F$300,6,TRUE) ->  | M123: =VLOOKUP(TEXT(H123,"000")&UPPER(D123)&TEXT(E123,"0000"),'Kategorie lokální'!$A$2:$G$300,7,TRUE) ->  | N123: =VLOOKUP(UPPER(D123)&TEXT(E123,"0000"),'Kategorie ZBP'!$A$2:$E$30,5,TRUE) ->  | O123: =VLOOKUP(N123,'Kategorie ZBP'!$E:$F,2,0) ->  | P123: =VLOOKUP(H123&"x"&A123,Stopky!I:J,2,0) -> - | T123: =IF(ISERROR(VLOOKUP(H123&"x"&F123&"xANO",'Závody a tratě'!L:L,1,0))=TRUE,0,_xlfn.IFNA(VLOOKUP(S123,'Body ZBP'!$A$1:$B$40,2,1),0)) -> 0 | U123: =H123&"x"&A123 -> x | V123: =IF(U123<>"x",COUNTIF($U$2:$U$3000,U123),"") ->  | W123: =IF(I123<>"xxxxx",COUNTIF($I$2:$I$3000,I123),"") -> 
I124: =B124&"x"&C124&"x"&D124&"x"&E124&"x"&H124&"x"&F124 -> xxxxx | J124: =VLOOKUP(H124,'Závody a tratě'!$B:$C,2,0) ->  | K124: =VLOOKUP(H124&"x"&F124,'Závody a tratě'!$A:$F,6,0) -> 0 | L124: =VLOOKUP(TEXT(H124,"000")&UPPER(D124)&TEXT(E124,"0000"),'Kategorie lokální'!$A$2:$F$300,6,TRUE) ->  | M124: =VLOOKUP(TEXT(H124,"000")&UPPER(D124)&TEXT(E124,"0000"),'Kategorie lokální'!$A$2:$G$300,7,TRUE) ->  | N124: =VLOOKUP(UPPER(D124)&TEXT(E124,"0000"),'Kategorie ZBP'!$A$2:$E$30,5,TRUE) ->  | O124: =VLOOKUP(N124,'Kategorie ZBP'!$E:$F,2,0) ->  | P124: =VLOOKUP(H124&"x"&A124,Stopky!I:J,2,0) -> - | T124: =IF(ISERROR(VLOOKUP(H124&"x"&F124&"xANO",'Závody a tratě'!L:L,1,0))=TRUE,0,_xlfn.IFNA(VLOOKUP(S124,'Body ZBP'!$A$1:$B$40,2,1),0)) -> 0 | U124: =H124&"x"&A124 -> x | V124: =IF(U124<>"x",COUNTIF($U$2:$U$3000,U124),"") ->  | W124: =IF(I124<>"xxxxx",COUNTIF($I$2:$I$3000,I124),"") -> 
I125: =B125&"x"&C125&"x"&D125&"x"&E125&"x"&H125&"x"&F125 -> xxxxx | J125: =VLOOKUP(H125,'Závody a tratě'!$B:$C,2,0) ->  | K125: =VLOOKUP(H125&"x"&F125,'Závody a tratě'!$A:$F,6,0) -> 0 | L125: =VLOOKUP(TEXT(H125,"000")&UPPER(D125)&TEXT(E125,"0000"),'Kategorie lokální'!$A$2:$F$300,6,TRUE) ->  | M125: =VLOOKUP(TEXT(H125,"000")&UPPER(D125)&TEXT(E125,"0000"),'Kategorie lokální'!$A$2:$G$300,7,TRUE) ->  | N125: =VLOOKUP(UPPER(D125)&TEXT(E125,"0000"),'Kategorie ZBP'!$A$2:$E$30,5,TRUE) ->  | O125: =VLOOKUP(N125,'Kategorie ZBP'!$E:$F,2,0) ->  | P125: =VLOOKUP(H125&"x"&A125,Stopky!I:J,2,0) -> - | T125: =IF(ISERROR(VLOOKUP(H125&"x"&F125&"xANO",'Závody a tratě'!L:L,1,0))=TRUE,0,_xlfn.IFNA(VLOOKUP(S125,'Body ZBP'!$A$1:$B$40,2,1),0)) -> 0 | U125: =H125&"x"&A125 -> x | V125: =IF(U125<>"x",COUNTIF($U$2:$U$3000,U125),"") ->  | W125: =IF(I125<>"xxxxx",COUNTIF($I$2:$I$3000,I125),"") -> 
I126: =B126&"x"&C126&"x"&D126&"x"&E126&"x"&H126&"x"&F126 -> xxxxx | J126: =VLOOKUP(H126,'Závody a tratě'!$B:$C,2,0) ->  | K126: =VLOOKUP(H126&"x"&F126,'Závody a tratě'!$A:$F,6,0) -> 0 | L126: =VLOOKUP(TEXT(H126,"000")&UPPER(D126)&TEXT(E126,"0000"),'Kategorie lokální'!$A$2:$F$300,6,TRUE) ->  | M126: =VLOOKUP(TEXT(H126,"000")&UPPER(D126)&TEXT(E126,"0000"),'Kategorie lokální'!$A$2:$G$300,7,TRUE) ->  | N126: =VLOOKUP(UPPER(D126)&TEXT(E126,"0000"),'Kategorie ZBP'!$A$2:$E$30,5,TRUE) ->  | O126: =VLOOKUP(N126,'Kategorie ZBP'!$E:$F,2,0) ->  | P126: =VLOOKUP(H126&"x"&A126,Stopky!I:J,2,0) -> - | T126: =IF(ISERROR(VLOOKUP(H126&"x"&F126&"xANO",'Závody a tratě'!L:L,1,0))=TRUE,0,_xlfn.IFNA(VLOOKUP(S126,'Body ZBP'!$A$1:$B$40,2,1),0)) -> 0 | U126: =H126&"x"&A126 -> x | V126: =IF(U126<>"x",COUNTIF($U$2:$U$3000,U126),"") ->  | W126: =IF(I126<>"xxxxx",COUNTIF($I$2:$I$3000,I126),"") -> 
I127: =B127&"x"&C127&"x"&D127&"x"&E127&"x"&H127&"x"&F127 -> xxxxx | J127: =VLOOKUP(H127,'Závody a tratě'!$B:$C,2,0) ->  | K127: =VLOOKUP(H127&"x"&F127,'Závody a tratě'!$A:$F,6,0) -> 0 | L127: =VLOOKUP(TEXT(H127,"000")&UPPER(D127)&TEXT(E127,"0000"),'Kategorie lokální'!$A$2:$F$300,6,TRUE) ->  | M127: =VLOOKUP(TEXT(H127,"000")&UPPER(D127)&TEXT(E127,"0000"),'Kategorie lokální'!$A$2:$G$300,7,TRUE) ->  | N127: =VLOOKUP(UPPER(D127)&TEXT(E127,"0000"),'Kategorie ZBP'!$A$2:$E$30,5,TRUE) ->  | O127: =VLOOKUP(N127,'Kategorie ZBP'!$E:$F,2,0) ->  | P127: =VLOOKUP(H127&"x"&A127,Stopky!I:J,2,0) -> - | T127: =IF(ISERROR(VLOOKUP(H127&"x"&F127&"xANO",'Závody a tratě'!L:L,1,0))=TRUE,0,_xlfn.IFNA(VLOOKUP(S127,'Body ZBP'!$A$1:$B$40,2,1),0)) -> 0 | U127: =H127&"x"&A127 -> x | V127: =IF(U127<>"x",COUNTIF($U$2:$U$3000,U127),"") ->  | W127: =IF(I127<>"xxxxx",COUNTIF($I$2:$I$3000,I127),"") -> 
I128: =B128&"x"&C128&"x"&D128&"x"&E128&"x"&H128&"x"&F128 -> xxxxx | J128: =VLOOKUP(H128,'Závody a tratě'!$B:$C,2,0) ->  | K128: =VLOOKUP(H128&"x"&F128,'Závody a tratě'!$A:$F,6,0) -> 0 | L128: =VLOOKUP(TEXT(H128,"000")&UPPER(D128)&TEXT(E128,"0000"),'Kategorie lokální'!$A$2:$F$300,6,TRUE) ->  | M128: =VLOOKUP(TEXT(H128,"000")&UPPER(D128)&TEXT(E128,"0000"),'Kategorie lokální'!$A$2:$G$300,7,TRUE) ->  | N128: =VLOOKUP(UPPER(D128)&TEXT(E128,"0000"),'Kategorie ZBP'!$A$2:$E$30,5,TRUE) ->  | O128: =VLOOKUP(N128,'Kategorie ZBP'!$E:$F,2,0) ->  | P128: =VLOOKUP(H128&"x"&A128,Stopky!I:J,2,0) -> - | T128: =IF(ISERROR(VLOOKUP(H128&"x"&F128&"xANO",'Závody a tratě'!L:L,1,0))=TRUE,0,_xlfn.IFNA(VLOOKUP(S128,'Body ZBP'!$A$1:$B$40,2,1),0)) -> 0 | U128: =H128&"x"&A128 -> x | V128: =IF(U128<>"x",COUNTIF($U$2:$U$3000,U128),"") ->  | W128: =IF(I128<>"xxxxx",COUNTIF($I$2:$I$3000,I128),"") -> 
I129: =B129&"x"&C129&"x"&D129&"x"&E129&"x"&H129&"x"&F129 -> xxxxx | J129: =VLOOKUP(H129,'Závody a tratě'!$B:$C,2,0) ->  | K129: =VLOOKUP(H129&"x"&F129,'Závody a tratě'!$A:$F,6,0) -> 0 | L129: =VLOOKUP(TEXT(H129,"000")&UPPER(D129)&TEXT(E129,"0000"),'Kategorie lokální'!$A$2:$F$300,6,TRUE) ->  | M129: =VLOOKUP(TEXT(H129,"000")&UPPER(D129)&TEXT(E129,"0000"),'Kategorie lokální'!$A$2:$G$300,7,TRUE) ->  | N129: =VLOOKUP(UPPER(D129)&TEXT(E129,"0000"),'Kategorie ZBP'!$A$2:$E$30,5,TRUE) ->  | O129: =VLOOKUP(N129,'Kategorie ZBP'!$E:$F,2,0) ->  | P129: =VLOOKUP(H129&"x"&A129,Stopky!I:J,2,0) -> - | T129: =IF(ISERROR(VLOOKUP(H129&"x"&F129&"xANO",'Závody a tratě'!L:L,1,0))=TRUE,0,_xlfn.IFNA(VLOOKUP(S129,'Body ZBP'!$A$1:$B$40,2,1),0)) -> 0 | U129: =H129&"x"&A129 -> x | V129: =IF(U129<>"x",COUNTIF($U$2:$U$3000,U129),"") ->  | W129: =IF(I129<>"xxxxx",COUNTIF($I$2:$I$3000,I129),"") -> 
I130: =B130&"x"&C130&"x"&D130&"x"&E130&"x"&H130&"x"&F130 -> xxxxx | J130: =VLOOKUP(H130,'Závody a tratě'!$B:$C,2,0) ->  | K130: =VLOOKUP(H130&"x"&F130,'Závody a tratě'!$A:$F,6,0) -> 0 | L130: =VLOOKUP(TEXT(H130,"000")&UPPER(D130)&TEXT(E130,"0000"),'Kategorie lokální'!$A$2:$F$300,6,TRUE) ->  | M130: =VLOOKUP(TEXT(H130,"000")&UPPER(D130)&TEXT(E130,"0000"),'Kategorie lokální'!$A$2:$G$300,7,TRUE) ->  | N130: =VLOOKUP(UPPER(D130)&TEXT(E130,"0000"),'Kategorie ZBP'!$A$2:$E$30,5,TRUE) ->  | O130: =VLOOKUP(N130,'Kategorie ZBP'!$E:$F,2,0) ->  | P130: =VLOOKUP(H130&"x"&A130,Stopky!I:J,2,0) -> - | T130: =IF(ISERROR(VLOOKUP(H130&"x"&F130&"xANO",'Závody a tratě'!L:L,1,0))=TRUE,0,_xlfn.IFNA(VLOOKUP(S130,'Body ZBP'!$A$1:$B$40,2,1),0)) -> 0 | U130: =H130&"x"&A130 -> x | V130: =IF(U130<>"x",COUNTIF($U$2:$U$3000,U130),"") ->  | W130: =IF(I130<>"xxxxx",COUNTIF($I$2:$I$3000,I130),"") -> 
I131: =B131&"x"&C131&"x"&D131&"x"&E131&"x"&H131&"x"&F131 -> xxxxx | J131: =VLOOKUP(H131,'Závody a tratě'!$B:$C,2,0) ->  | K131: =VLOOKUP(H131&"x"&F131,'Závody a tratě'!$A:$F,6,0) -> 0 | L131: =VLOOKUP(TEXT(H131,"000")&UPPER(D131)&TEXT(E131,"0000"),'Kategorie lokální'!$A$2:$F$300,6,TRUE) ->  | M131: =VLOOKUP(TEXT(H131,"000")&UPPER(D131)&TEXT(E131,"0000"),'Kategorie lokální'!$A$2:$G$300,7,TRUE) ->  | N131: =VLOOKUP(UPPER(D131)&TEXT(E131,"0000"),'Kategorie ZBP'!$A$2:$E$30,5,TRUE) ->  | O131: =VLOOKUP(N131,'Kategorie ZBP'!$E:$F,2,0) ->  | P131: =VLOOKUP(H131&"x"&A131,Stopky!I:J,2,0) -> - | T131: =IF(ISERROR(VLOOKUP(H131&"x"&F131&"xANO",'Závody a tratě'!L:L,1,0))=TRUE,0,_xlfn.IFNA(VLOOKUP(S131,'Body ZBP'!$A$1:$B$40,2,1),0)) -> 0 | U131: =H131&"x"&A131 -> x | V131: =IF(U131<>"x",COUNTIF($U$2:$U$3000,U131),"") ->  | W131: =IF(I131<>"xxxxx",COUNTIF($I$2:$I$3000,I131),"") -> 
I132: =B132&"x"&C132&"x"&D132&"x"&E132&"x"&H132&"x"&F132 -> xxxxx | J132: =VLOOKUP(H132,'Závody a tratě'!$B:$C,2,0) ->  | K132: =VLOOKUP(H132&"x"&F132,'Závody a tratě'!$A:$F,6,0) -> 0 | L132: =VLOOKUP(TEXT(H132,"000")&UPPER(D132)&TEXT(E132,"0000"),'Kategorie lokální'!$A$2:$F$300,6,TRUE) ->  | M132: =VLOOKUP(TEXT(H132,"000")&UPPER(D132)&TEXT(E132,"0000"),'Kategorie lokální'!$A$2:$G$300,7,TRUE) ->  | N132: =VLOOKUP(UPPER(D132)&TEXT(E132,"0000"),'Kategorie ZBP'!$A$2:$E$30,5,TRUE) ->  | O132: =VLOOKUP(N132,'Kategorie ZBP'!$E:$F,2,0) ->  | P132: =VLOOKUP(H132&"x"&A132,Stopky!I:J,2,0) -> - | T132: =IF(ISERROR(VLOOKUP(H132&"x"&F132&"xANO",'Závody a tratě'!L:L,1,0))=TRUE,0,_xlfn.IFNA(VLOOKUP(S132,'Body ZBP'!$A$1:$B$40,2,1),0)) -> 0 | U132: =H132&"x"&A132 -> x | V132: =IF(U132<>"x",COUNTIF($U$2:$U$3000,U132),"") ->  | W132: =IF(I132<>"xxxxx",COUNTIF($I$2:$I$3000,I132),"") -> 
I133: =B133&"x"&C133&"x"&D133&"x"&E133&"x"&H133&"x"&F133 -> xxxxx | J133: =VLOOKUP(H133,'Závody a tratě'!$B:$C,2,0) ->  | K133: =VLOOKUP(H133&"x"&F133,'Závody a tratě'!$A:$F,6,0) -> 0 | L133: =VLOOKUP(TEXT(H133,"000")&UPPER(D133)&TEXT(E133,"0000"),'Kategorie lokální'!$A$2:$F$300,6,TRUE) ->  | M133: =VLOOKUP(TEXT(H133,"000")&UPPER(D133)&TEXT(E133,"0000"),'Kategorie lokální'!$A$2:$G$300,7,TRUE) ->  | N133: =VLOOKUP(UPPER(D133)&TEXT(E133,"0000"),'Kategorie ZBP'!$A$2:$E$30,5,TRUE) ->  | O133: =VLOOKUP(N133,'Kategorie ZBP'!$E:$F,2,0) ->  | P133: =VLOOKUP(H133&"x"&A133,Stopky!I:J,2,0) -> - | T133: =IF(ISERROR(VLOOKUP(H133&"x"&F133&"xANO",'Závody a tratě'!L:L,1,0))=TRUE,0,_xlfn.IFNA(VLOOKUP(S133,'Body ZBP'!$A$1:$B$40,2,1),0)) -> 0 | U133: =H133&"x"&A133 -> x | V133: =IF(U133<>"x",COUNTIF($U$2:$U$3000,U133),"") ->  | W133: =IF(I133<>"xxxxx",COUNTIF($I$2:$I$3000,I133),"") -> 
I134: =B134&"x"&C134&"x"&D134&"x"&E134&"x"&H134&"x"&F134 -> xxxxx | J134: =VLOOKUP(H134,'Závody a tratě'!$B:$C,2,0) ->  | K134: =VLOOKUP(H134&"x"&F134,'Závody a tratě'!$A:$F,6,0) -> 0 | L134: =VLOOKUP(TEXT(H134,"000")&UPPER(D134)&TEXT(E134,"0000"),'Kategorie lokální'!$A$2:$F$300,6,TRUE) ->  | M134: =VLOOKUP(TEXT(H134,"000")&UPPER(D134)&TEXT(E134,"0000"),'Kategorie lokální'!$A$2:$G$300,7,TRUE) ->  | N134: =VLOOKUP(UPPER(D134)&TEXT(E134,"0000"),'Kategorie ZBP'!$A$2:$E$30,5,TRUE) ->  | O134: =VLOOKUP(N134,'Kategorie ZBP'!$E:$F,2,0) ->  | P134: =VLOOKUP(H134&"x"&A134,Stopky!I:J,2,0) -> - | T134: =IF(ISERROR(VLOOKUP(H134&"x"&F134&"xANO",'Závody a tratě'!L:L,1,0))=TRUE,0,_xlfn.IFNA(VLOOKUP(S134,'Body ZBP'!$A$1:$B$40,2,1),0)) -> 0 | U134: =H134&"x"&A134 -> x | V134: =IF(U134<>"x",COUNTIF($U$2:$U$3000,U134),"") ->  | W134: =IF(I134<>"xxxxx",COUNTIF($I$2:$I$3000,I134),"") -> 
I135: =B135&"x"&C135&"x"&D135&"x"&E135&"x"&H135&"x"&F135 -> xxxxx | J135: =VLOOKUP(H135,'Závody a tratě'!$B:$C,2,0) ->  | K135: =VLOOKUP(H135&"x"&F135,'Závody a tratě'!$A:$F,6,0) -> 0 | L135: =VLOOKUP(TEXT(H135,"000")&UPPER(D135)&TEXT(E135,"0000"),'Kategorie lokální'!$A$2:$F$300,6,TRUE) ->  | M135: =VLOOKUP(TEXT(H135,"000")&UPPER(D135)&TEXT(E135,"0000"),'Kategorie lokální'!$A$2:$G$300,7,TRUE) ->  | N135: =VLOOKUP(UPPER(D135)&TEXT(E135,"0000"),'Kategorie ZBP'!$A$2:$E$30,5,TRUE) ->  | O135: =VLOOKUP(N135,'Kategorie ZBP'!$E:$F,2,0) ->  | P135: =VLOOKUP(H135&"x"&A135,Stopky!I:J,2,0) -> - | T135: =IF(ISERROR(VLOOKUP(H135&"x"&F135&"xANO",'Závody a tratě'!L:L,1,0))=TRUE,0,_xlfn.IFNA(VLOOKUP(S135,'Body ZBP'!$A$1:$B$40,2,1),0)) -> 0 | U135: =H135&"x"&A135 -> x | V135: =IF(U135<>"x",COUNTIF($U$2:$U$3000,U135),"") ->  | W135: =IF(I135<>"xxxxx",COUNTIF($I$2:$I$3000,I135),"") -> 
I136: =B136&"x"&C136&"x"&D136&"x"&E136&"x"&H136&"x"&F136 -> xxxxx | J136: =VLOOKUP(H136,'Závody a tratě'!$B:$C,2,0) ->  | K136: =VLOOKUP(H136&"x"&F136,'Závody a tratě'!$A:$F,6,0) -> 0 | L136: =VLOOKUP(TEXT(H136,"000")&UPPER(D136)&TEXT(E136,"0000"),'Kategorie lokální'!$A$2:$F$300,6,TRUE) ->  | M136: =VLOOKUP(TEXT(H136,"000")&UPPER(D136)&TEXT(E136,"0000"),'Kategorie lokální'!$A$2:$G$300,7,TRUE) ->  | N136: =VLOOKUP(UPPER(D136)&TEXT(E136,"0000"),'Kategorie ZBP'!$A$2:$E$30,5,TRUE) ->  | O136: =VLOOKUP(N136,'Kategorie ZBP'!$E:$F,2,0) ->  | P136: =VLOOKUP(H136&"x"&A136,Stopky!I:J,2,0) -> - | T136: =IF(ISERROR(VLOOKUP(H136&"x"&F136&"xANO",'Závody a tratě'!L:L,1,0))=TRUE,0,_xlfn.IFNA(VLOOKUP(S136,'Body ZBP'!$A$1:$B$40,2,1),0)) -> 0 | U136: =H136&"x"&A136 -> x | V136: =IF(U136<>"x",COUNTIF($U$2:$U$3000,U136),"") ->  | W136: =IF(I136<>"xxxxx",COUNTIF($I$2:$I$3000,I136),"") -> 
I137: =B137&"x"&C137&"x"&D137&"x"&E137&"x"&H137&"x"&F137 -> xxxxx | J137: =VLOOKUP(H137,'Závody a tratě'!$B:$C,2,0) ->  | K137: =VLOOKUP(H137&"x"&F137,'Závody a tratě'!$A:$F,6,0) -> 0 | L137: =VLOOKUP(TEXT(H137,"000")&UPPER(D137)&TEXT(E137,"0000"),'Kategorie lokální'!$A$2:$F$300,6,TRUE) ->  | M137: =VLOOKUP(TEXT(H137,"000")&UPPER(D137)&TEXT(E137,"0000"),'Kategorie lokální'!$A$2:$G$300,7,TRUE) ->  | N137: =VLOOKUP(UPPER(D137)&TEXT(E137,"0000"),'Kategorie ZBP'!$A$2:$E$30,5,TRUE) ->  | O137: =VLOOKUP(N137,'Kategorie ZBP'!$E:$F,2,0) ->  | P137: =VLOOKUP(H137&"x"&A137,Stopky!I:J,2,0) -> - | T137: =IF(ISERROR(VLOOKUP(H137&"x"&F137&"xANO",'Závody a tratě'!L:L,1,0))=TRUE,0,_xlfn.IFNA(VLOOKUP(S137,'Body ZBP'!$A$1:$B$40,2,1),0)) -> 0 | U137: =H137&"x"&A137 -> x | V137: =IF(U137<>"x",COUNTIF($U$2:$U$3000,U137),"") ->  | W137: =IF(I137<>"xxxxx",COUNTIF($I$2:$I$3000,I137),"") -> 
I138: =B138&"x"&C138&"x"&D138&"x"&E138&"x"&H138&"x"&F138 -> xxxxx | J138: =VLOOKUP(H138,'Závody a tratě'!$B:$C,2,0) ->  | K138: =VLOOKUP(H138&"x"&F138,'Závody a tratě'!$A:$F,6,0) -> 0 | L138: =VLOOKUP(TEXT(H138,"000")&UPPER(D138)&TEXT(E138,"0000"),'Kategorie lokální'!$A$2:$F$300,6,TRUE) ->  | M138: =VLOOKUP(TEXT(H138,"000")&UPPER(D138)&TEXT(E138,"0000"),'Kategorie lokální'!$A$2:$G$300,7,TRUE) ->  | N138: =VLOOKUP(UPPER(D138)&TEXT(E138,"0000"),'Kategorie ZBP'!$A$2:$E$30,5,TRUE) ->  | O138: =VLOOKUP(N138,'Kategorie ZBP'!$E:$F,2,0) ->  | P138: =VLOOKUP(H138&"x"&A138,Stopky!I:J,2,0) -> - | T138: =IF(ISERROR(VLOOKUP(H138&"x"&F138&"xANO",'Závody a tratě'!L:L,1,0))=TRUE,0,_xlfn.IFNA(VLOOKUP(S138,'Body ZBP'!$A$1:$B$40,2,1),0)) -> 0 | U138: =H138&"x"&A138 -> x | V138: =IF(U138<>"x",COUNTIF($U$2:$U$3000,U138),"") ->  | W138: =IF(I138<>"xxxxx",COUNTIF($I$2:$I$3000,I138),"") -> 
I139: =B139&"x"&C139&"x"&D139&"x"&E139&"x"&H139&"x"&F139 -> xxxxx | J139: =VLOOKUP(H139,'Závody a tratě'!$B:$C,2,0) ->  | K139: =VLOOKUP(H139&"x"&F139,'Závody a tratě'!$A:$F,6,0) -> 0 | L139: =VLOOKUP(TEXT(H139,"000")&UPPER(D139)&TEXT(E139,"0000"),'Kategorie lokální'!$A$2:$F$300,6,TRUE) ->  | M139: =VLOOKUP(TEXT(H139,"000")&UPPER(D139)&TEXT(E139,"0000"),'Kategorie lokální'!$A$2:$G$300,7,TRUE) ->  | N139: =VLOOKUP(UPPER(D139)&TEXT(E139,"0000"),'Kategorie ZBP'!$A$2:$E$30,5,TRUE) ->  | O139: =VLOOKUP(N139,'Kategorie ZBP'!$E:$F,2,0) ->  | P139: =VLOOKUP(H139&"x"&A139,Stopky!I:J,2,0) -> - | T139: =IF(ISERROR(VLOOKUP(H139&"x"&F139&"xANO",'Závody a tratě'!L:L,1,0))=TRUE,0,_xlfn.IFNA(VLOOKUP(S139,'Body ZBP'!$A$1:$B$40,2,1),0)) -> 0 | U139: =H139&"x"&A139 -> x | V139: =IF(U139<>"x",COUNTIF($U$2:$U$3000,U139),"") ->  | W139: =IF(I139<>"xxxxx",COUNTIF($I$2:$I$3000,I139),"") -> 
I140: =B140&"x"&C140&"x"&D140&"x"&E140&"x"&H140&"x"&F140 -> xxxxx | J140: =VLOOKUP(H140,'Závody a tratě'!$B:$C,2,0) ->  | K140: =VLOOKUP(H140&"x"&F140,'Závody a tratě'!$A:$F,6,0) -> 0 | L140: =VLOOKUP(TEXT(H140,"000")&UPPER(D140)&TEXT(E140,"0000"),'Kategorie lokální'!$A$2:$F$300,6,TRUE) ->  | M140: =VLOOKUP(TEXT(H140,"000")&UPPER(D140)&TEXT(E140,"0000"),'Kategorie lokální'!$A$2:$G$300,7,TRUE) ->  | N140: =VLOOKUP(UPPER(D140)&TEXT(E140,"0000"),'Kategorie ZBP'!$A$2:$E$30,5,TRUE) ->  | O140: =VLOOKUP(N140,'Kategorie ZBP'!$E:$F,2,0) ->  | P140: =VLOOKUP(H140&"x"&A140,Stopky!I:J,2,0) -> - | T140: =IF(ISERROR(VLOOKUP(H140&"x"&F140&"xANO",'Závody a tratě'!L:L,1,0))=TRUE,0,_xlfn.IFNA(VLOOKUP(S140,'Body ZBP'!$A$1:$B$40,2,1),0)) -> 0 | U140: =H140&"x"&A140 -> x | V140: =IF(U140<>"x",COUNTIF($U$2:$U$3000,U140),"") ->  | W140: =IF(I140<>"xxxxx",COUNTIF($I$2:$I$3000,I140),"") -> 
I141: =B141&"x"&C141&"x"&D141&"x"&E141&"x"&H141&"x"&F141 -> xxxxx | J141: =VLOOKUP(H141,'Závody a tratě'!$B:$C,2,0) ->  | K141: =VLOOKUP(H141&"x"&F141,'Závody a tratě'!$A:$F,6,0) -> 0 | L141: =VLOOKUP(TEXT(H141,"000")&UPPER(D141)&TEXT(E141,"0000"),'Kategorie lokální'!$A$2:$F$300,6,TRUE) ->  | M141: =VLOOKUP(TEXT(H141,"000")&UPPER(D141)&TEXT(E141,"0000"),'Kategorie lokální'!$A$2:$G$300,7,TRUE) ->  | N141: =VLOOKUP(UPPER(D141)&TEXT(E141,"0000"),'Kategorie ZBP'!$A$2:$E$30,5,TRUE) ->  | O141: =VLOOKUP(N141,'Kategorie ZBP'!$E:$F,2,0) ->  | P141: =VLOOKUP(H141&"x"&A141,Stopky!I:J,2,0) -> - | T141: =IF(ISERROR(VLOOKUP(H141&"x"&F141&"xANO",'Závody a tratě'!L:L,1,0))=TRUE,0,_xlfn.IFNA(VLOOKUP(S141,'Body ZBP'!$A$1:$B$40,2,1),0)) -> 0 | U141: =H141&"x"&A141 -> x | V141: =IF(U141<>"x",COUNTIF($U$2:$U$3000,U141),"") ->  | W141: =IF(I141<>"xxxxx",COUNTIF($I$2:$I$3000,I141),"") -> 
I142: =B142&"x"&C142&"x"&D142&"x"&E142&"x"&H142&"x"&F142 -> xxxxx | J142: =VLOOKUP(H142,'Závody a tratě'!$B:$C,2,0) ->  | K142: =VLOOKUP(H142&"x"&F142,'Závody a tratě'!$A:$F,6,0) -> 0 | L142: =VLOOKUP(TEXT(H142,"000")&UPPER(D142)&TEXT(E142,"0000"),'Kategorie lokální'!$A$2:$F$300,6,TRUE) ->  | M142: =VLOOKUP(TEXT(H142,"000")&UPPER(D142)&TEXT(E142,"0000"),'Kategorie lokální'!$A$2:$G$300,7,TRUE) ->  | N142: =VLOOKUP(UPPER(D142)&TEXT(E142,"0000"),'Kategorie ZBP'!$A$2:$E$30,5,TRUE) ->  | O142: =VLOOKUP(N142,'Kategorie ZBP'!$E:$F,2,0) ->  | P142: =VLOOKUP(H142&"x"&A142,Stopky!I:J,2,0) -> - | T142: =IF(ISERROR(VLOOKUP(H142&"x"&F142&"xANO",'Závody a tratě'!L:L,1,0))=TRUE,0,_xlfn.IFNA(VLOOKUP(S142,'Body ZBP'!$A$1:$B$40,2,1),0)) -> 0 | U142: =H142&"x"&A142 -> x | V142: =IF(U142<>"x",COUNTIF($U$2:$U$3000,U142),"") ->  | W142: =IF(I142<>"xxxxx",COUNTIF($I$2:$I$3000,I142),"") -> 
I143: =B143&"x"&C143&"x"&D143&"x"&E143&"x"&H143&"x"&F143 -> xxxxx | J143: =VLOOKUP(H143,'Závody a tratě'!$B:$C,2,0) ->  | K143: =VLOOKUP(H143&"x"&F143,'Závody a tratě'!$A:$F,6,0) -> 0 | L143: =VLOOKUP(TEXT(H143,"000")&UPPER(D143)&TEXT(E143,"0000"),'Kategorie lokální'!$A$2:$F$300,6,TRUE) ->  | M143: =VLOOKUP(TEXT(H143,"000")&UPPER(D143)&TEXT(E143,"0000"),'Kategorie lokální'!$A$2:$G$300,7,TRUE) ->  | N143: =VLOOKUP(UPPER(D143)&TEXT(E143,"0000"),'Kategorie ZBP'!$A$2:$E$30,5,TRUE) ->  | O143: =VLOOKUP(N143,'Kategorie ZBP'!$E:$F,2,0) ->  | P143: =VLOOKUP(H143&"x"&A143,Stopky!I:J,2,0) -> - | T143: =IF(ISERROR(VLOOKUP(H143&"x"&F143&"xANO",'Závody a tratě'!L:L,1,0))=TRUE,0,_xlfn.IFNA(VLOOKUP(S143,'Body ZBP'!$A$1:$B$40,2,1),0)) -> 0 | U143: =H143&"x"&A143 -> x | V143: =IF(U143<>"x",COUNTIF($U$2:$U$3000,U143),"") ->  | W143: =IF(I143<>"xxxxx",COUNTIF($I$2:$I$3000,I143),"") -> 
I144: =B144&"x"&C144&"x"&D144&"x"&E144&"x"&H144&"x"&F144 -> xxxxx | J144: =VLOOKUP(H144,'Závody a tratě'!$B:$C,2,0) ->  | K144: =VLOOKUP(H144&"x"&F144,'Závody a tratě'!$A:$F,6,0) -> 0 | L144: =VLOOKUP(TEXT(H144,"000")&UPPER(D144)&TEXT(E144,"0000"),'Kategorie lokální'!$A$2:$F$300,6,TRUE) ->  | M144: =VLOOKUP(TEXT(H144,"000")&UPPER(D144)&TEXT(E144,"0000"),'Kategorie lokální'!$A$2:$G$300,7,TRUE) ->  | N144: =VLOOKUP(UPPER(D144)&TEXT(E144,"0000"),'Kategorie ZBP'!$A$2:$E$30,5,TRUE) ->  | O144: =VLOOKUP(N144,'Kategorie ZBP'!$E:$F,2,0) ->  | P144: =VLOOKUP(H144&"x"&A144,Stopky!I:J,2,0) -> - | T144: =IF(ISERROR(VLOOKUP(H144&"x"&F144&"xANO",'Závody a tratě'!L:L,1,0))=TRUE,0,_xlfn.IFNA(VLOOKUP(S144,'Body ZBP'!$A$1:$B$40,2,1),0)) -> 0 | U144: =H144&"x"&A144 -> x | V144: =IF(U144<>"x",COUNTIF($U$2:$U$3000,U144),"") ->  | W144: =IF(I144<>"xxxxx",COUNTIF($I$2:$I$3000,I144),"") -> 
I145: =B145&"x"&C145&"x"&D145&"x"&E145&"x"&H145&"x"&F145 -> xxxxx | J145: =VLOOKUP(H145,'Závody a tratě'!$B:$C,2,0) ->  | K145: =VLOOKUP(H145&"x"&F145,'Závody a tratě'!$A:$F,6,0) -> 0 | L145: =VLOOKUP(TEXT(H145,"000")&UPPER(D145)&TEXT(E145,"0000"),'Kategorie lokální'!$A$2:$F$300,6,TRUE) ->  | M145: =VLOOKUP(TEXT(H145,"000")&UPPER(D145)&TEXT(E145,"0000"),'Kategorie lokální'!$A$2:$G$300,7,TRUE) ->  | N145: =VLOOKUP(UPPER(D145)&TEXT(E145,"0000"),'Kategorie ZBP'!$A$2:$E$30,5,TRUE) ->  | O145: =VLOOKUP(N145,'Kategorie ZBP'!$E:$F,2,0) ->  | P145: =VLOOKUP(H145&"x"&A145,Stopky!I:J,2,0) -> - | T145: =IF(ISERROR(VLOOKUP(H145&"x"&F145&"xANO",'Závody a tratě'!L:L,1,0))=TRUE,0,_xlfn.IFNA(VLOOKUP(S145,'Body ZBP'!$A$1:$B$40,2,1),0)) -> 0 | U145: =H145&"x"&A145 -> x | V145: =IF(U145<>"x",COUNTIF($U$2:$U$3000,U145),"") ->  | W145: =IF(I145<>"xxxxx",COUNTIF($I$2:$I$3000,I145),"") -> 
I146: =B146&"x"&C146&"x"&D146&"x"&E146&"x"&H146&"x"&F146 -> xxxxx | J146: =VLOOKUP(H146,'Závody a tratě'!$B:$C,2,0) ->  | K146: =VLOOKUP(H146&"x"&F146,'Závody a tratě'!$A:$F,6,0) -> 0 | L146: =VLOOKUP(TEXT(H146,"000")&UPPER(D146)&TEXT(E146,"0000"),'Kategorie lokální'!$A$2:$F$300,6,TRUE) ->  | M146: =VLOOKUP(TEXT(H146,"000")&UPPER(D146)&TEXT(E146,"0000"),'Kategorie lokální'!$A$2:$G$300,7,TRUE) ->  | N146: =VLOOKUP(UPPER(D146)&TEXT(E146,"0000"),'Kategorie ZBP'!$A$2:$E$30,5,TRUE) ->  | O146: =VLOOKUP(N146,'Kategorie ZBP'!$E:$F,2,0) ->  | P146: =VLOOKUP(H146&"x"&A146,Stopky!I:J,2,0) -> - | T146: =IF(ISERROR(VLOOKUP(H146&"x"&F146&"xANO",'Závody a tratě'!L:L,1,0))=TRUE,0,_xlfn.IFNA(VLOOKUP(S146,'Body ZBP'!$A$1:$B$40,2,1),0)) -> 0 | U146: =H146&"x"&A146 -> x | V146: =IF(U146<>"x",COUNTIF($U$2:$U$3000,U146),"") ->  | W146: =IF(I146<>"xxxxx",COUNTIF($I$2:$I$3000,I146),"") -> 
I147: =B147&"x"&C147&"x"&D147&"x"&E147&"x"&H147&"x"&F147 -> xxxxx | J147: =VLOOKUP(H147,'Závody a tratě'!$B:$C,2,0) ->  | K147: =VLOOKUP(H147&"x"&F147,'Závody a tratě'!$A:$F,6,0) -> 0 | L147: =VLOOKUP(TEXT(H147,"000")&UPPER(D147)&TEXT(E147,"0000"),'Kategorie lokální'!$A$2:$F$300,6,TRUE) ->  | M147: =VLOOKUP(TEXT(H147,"000")&UPPER(D147)&TEXT(E147,"0000"),'Kategorie lokální'!$A$2:$G$300,7,TRUE) ->  | N147: =VLOOKUP(UPPER(D147)&TEXT(E147,"0000"),'Kategorie ZBP'!$A$2:$E$30,5,TRUE) ->  | O147: =VLOOKUP(N147,'Kategorie ZBP'!$E:$F,2,0) ->  | P147: =VLOOKUP(H147&"x"&A147,Stopky!I:J,2,0) -> - | T147: =IF(ISERROR(VLOOKUP(H147&"x"&F147&"xANO",'Závody a tratě'!L:L,1,0))=TRUE,0,_xlfn.IFNA(VLOOKUP(S147,'Body ZBP'!$A$1:$B$40,2,1),0)) -> 0 | U147: =H147&"x"&A147 -> x | V147: =IF(U147<>"x",COUNTIF($U$2:$U$3000,U147),"") ->  | W147: =IF(I147<>"xxxxx",COUNTIF($I$2:$I$3000,I147),"") -> 
I148: =B148&"x"&C148&"x"&D148&"x"&E148&"x"&H148&"x"&F148 -> xxxxx | J148: =VLOOKUP(H148,'Závody a tratě'!$B:$C,2,0) ->  | K148: =VLOOKUP(H148&"x"&F148,'Závody a tratě'!$A:$F,6,0) -> 0 | L148: =VLOOKUP(TEXT(H148,"000")&UPPER(D148)&TEXT(E148,"0000"),'Kategorie lokální'!$A$2:$F$300,6,TRUE) ->  | M148: =VLOOKUP(TEXT(H148,"000")&UPPER(D148)&TEXT(E148,"0000"),'Kategorie lokální'!$A$2:$G$300,7,TRUE) ->  | N148: =VLOOKUP(UPPER(D148)&TEXT(E148,"0000"),'Kategorie ZBP'!$A$2:$E$30,5,TRUE) ->  | O148: =VLOOKUP(N148,'Kategorie ZBP'!$E:$F,2,0) ->  | P148: =VLOOKUP(H148&"x"&A148,Stopky!I:J,2,0) -> - | T148: =IF(ISERROR(VLOOKUP(H148&"x"&F148&"xANO",'Závody a tratě'!L:L,1,0))=TRUE,0,_xlfn.IFNA(VLOOKUP(S148,'Body ZBP'!$A$1:$B$40,2,1),0)) -> 0 | U148: =H148&"x"&A148 -> x | V148: =IF(U148<>"x",COUNTIF($U$2:$U$3000,U148),"") ->  | W148: =IF(I148<>"xxxxx",COUNTIF($I$2:$I$3000,I148),"") -> 
I149: =B149&"x"&C149&"x"&D149&"x"&E149&"x"&H149&"x"&F149 -> xxxxx | J149: =VLOOKUP(H149,'Závody a tratě'!$B:$C,2,0) ->  | K149: =VLOOKUP(H149&"x"&F149,'Závody a tratě'!$A:$F,6,0) -> 0 | L149: =VLOOKUP(TEXT(H149,"000")&UPPER(D149)&TEXT(E149,"0000"),'Kategorie lokální'!$A$2:$F$300,6,TRUE) ->  | M149: =VLOOKUP(TEXT(H149,"000")&UPPER(D149)&TEXT(E149,"0000"),'Kategorie lokální'!$A$2:$G$300,7,TRUE) ->  | N149: =VLOOKUP(UPPER(D149)&TEXT(E149,"0000"),'Kategorie ZBP'!$A$2:$E$30,5,TRUE) ->  | O149: =VLOOKUP(N149,'Kategorie ZBP'!$E:$F,2,0) ->  | P149: =VLOOKUP(H149&"x"&A149,Stopky!I:J,2,0) -> - | T149: =IF(ISERROR(VLOOKUP(H149&"x"&F149&"xANO",'Závody a tratě'!L:L,1,0))=TRUE,0,_xlfn.IFNA(VLOOKUP(S149,'Body ZBP'!$A$1:$B$40,2,1),0)) -> 0 | U149: =H149&"x"&A149 -> x | V149: =IF(U149<>"x",COUNTIF($U$2:$U$3000,U149),"") ->  | W149: =IF(I149<>"xxxxx",COUNTIF($I$2:$I$3000,I149),"") -> 
I150: =B150&"x"&C150&"x"&D150&"x"&E150&"x"&H150&"x"&F150 -> xxxxx | J150: =VLOOKUP(H150,'Závody a tratě'!$B:$C,2,0) ->  | K150: =VLOOKUP(H150&"x"&F150,'Závody a tratě'!$A:$F,6,0) -> 0 | L150: =VLOOKUP(TEXT(H150,"000")&UPPER(D150)&TEXT(E150,"0000"),'Kategorie lokální'!$A$2:$F$300,6,TRUE) ->  | M150: =VLOOKUP(TEXT(H150,"000")&UPPER(D150)&TEXT(E150,"0000"),'Kategorie lokální'!$A$2:$G$300,7,TRUE) ->  | N150: =VLOOKUP(UPPER(D150)&TEXT(E150,"0000"),'Kategorie ZBP'!$A$2:$E$30,5,TRUE) ->  | O150: =VLOOKUP(N150,'Kategorie ZBP'!$E:$F,2,0) ->  | P150: =VLOOKUP(H150&"x"&A150,Stopky!I:J,2,0) -> - | T150: =IF(ISERROR(VLOOKUP(H150&"x"&F150&"xANO",'Závody a tratě'!L:L,1,0))=TRUE,0,_xlfn.IFNA(VLOOKUP(S150,'Body ZBP'!$A$1:$B$40,2,1),0)) -> 0 | U150: =H150&"x"&A150 -> x | V150: =IF(U150<>"x",COUNTIF($U$2:$U$3000,U150),"") ->  | W150: =IF(I150<>"xxxxx",COUNTIF($I$2:$I$3000,I150),"") -> 
I151: =B151&"x"&C151&"x"&D151&"x"&E151&"x"&H151&"x"&F151 -> xxxxx | J151: =VLOOKUP(H151,'Závody a tratě'!$B:$C,2,0) ->  | K151: =VLOOKUP(H151&"x"&F151,'Závody a tratě'!$A:$F,6,0) -> 0 | L151: =VLOOKUP(TEXT(H151,"000")&UPPER(D151)&TEXT(E151,"0000"),'Kategorie lokální'!$A$2:$F$300,6,TRUE) ->  | M151: =VLOOKUP(TEXT(H151,"000")&UPPER(D151)&TEXT(E151,"0000"),'Kategorie lokální'!$A$2:$G$300,7,TRUE) ->  | N151: =VLOOKUP(UPPER(D151)&TEXT(E151,"0000"),'Kategorie ZBP'!$A$2:$E$30,5,TRUE) ->  | O151: =VLOOKUP(N151,'Kategorie ZBP'!$E:$F,2,0) ->  | P151: =VLOOKUP(H151&"x"&A151,Stopky!I:J,2,0) -> - | T151: =IF(ISERROR(VLOOKUP(H151&"x"&F151&"xANO",'Závody a tratě'!L:L,1,0))=TRUE,0,_xlfn.IFNA(VLOOKUP(S151,'Body ZBP'!$A$1:$B$40,2,1),0)) -> 0 | U151: =H151&"x"&A151 -> x | V151: =IF(U151<>"x",COUNTIF($U$2:$U$3000,U151),"") ->  | W151: =IF(I151<>"xxxxx",COUNTIF($I$2:$I$3000,I151),"") -> 
I152: =B152&"x"&C152&"x"&D152&"x"&E152&"x"&H152&"x"&F152 -> xxxxx | J152: =VLOOKUP(H152,'Závody a tratě'!$B:$C,2,0) ->  | K152: =VLOOKUP(H152&"x"&F152,'Závody a tratě'!$A:$F,6,0) -> 0 | L152: =VLOOKUP(TEXT(H152,"000")&UPPER(D152)&TEXT(E152,"0000"),'Kategorie lokální'!$A$2:$F$300,6,TRUE) ->  | M152: =VLOOKUP(TEXT(H152,"000")&UPPER(D152)&TEXT(E152,"0000"),'Kategorie lokální'!$A$2:$G$300,7,TRUE) ->  | N152: =VLOOKUP(UPPER(D152)&TEXT(E152,"0000"),'Kategorie ZBP'!$A$2:$E$30,5,TRUE) ->  | O152: =VLOOKUP(N152,'Kategorie ZBP'!$E:$F,2,0) ->  | P152: =VLOOKUP(H152&"x"&A152,Stopky!I:J,2,0) -> - | T152: =IF(ISERROR(VLOOKUP(H152&"x"&F152&"xANO",'Závody a tratě'!L:L,1,0))=TRUE,0,_xlfn.IFNA(VLOOKUP(S152,'Body ZBP'!$A$1:$B$40,2,1),0)) -> 0 | U152: =H152&"x"&A152 -> x | V152: =IF(U152<>"x",COUNTIF($U$2:$U$3000,U152),"") ->  | W152: =IF(I152<>"xxxxx",COUNTIF($I$2:$I$3000,I152),"") -> 
I153: =B153&"x"&C153&"x"&D153&"x"&E153&"x"&H153&"x"&F153 -> xxxxx | J153: =VLOOKUP(H153,'Závody a tratě'!$B:$C,2,0) ->  | K153: =VLOOKUP(H153&"x"&F153,'Závody a tratě'!$A:$F,6,0) -> 0 | L153: =VLOOKUP(TEXT(H153,"000")&UPPER(D153)&TEXT(E153,"0000"),'Kategorie lokální'!$A$2:$F$300,6,TRUE) ->  | M153: =VLOOKUP(TEXT(H153,"000")&UPPER(D153)&TEXT(E153,"0000"),'Kategorie lokální'!$A$2:$G$300,7,TRUE) ->  | N153: =VLOOKUP(UPPER(D153)&TEXT(E153,"0000"),'Kategorie ZBP'!$A$2:$E$30,5,TRUE) ->  | O153: =VLOOKUP(N153,'Kategorie ZBP'!$E:$F,2,0) ->  | P153: =VLOOKUP(H153&"x"&A153,Stopky!I:J,2,0) -> - | T153: =IF(ISERROR(VLOOKUP(H153&"x"&F153&"xANO",'Závody a tratě'!L:L,1,0))=TRUE,0,_xlfn.IFNA(VLOOKUP(S153,'Body ZBP'!$A$1:$B$40,2,1),0)) -> 0 | U153: =H153&"x"&A153 -> x | V153: =IF(U153<>"x",COUNTIF($U$2:$U$3000,U153),"") ->  | W153: =IF(I153<>"xxxxx",COUNTIF($I$2:$I$3000,I153),"") -> 
I154: =B154&"x"&C154&"x"&D154&"x"&E154&"x"&H154&"x"&F154 -> xxxxx | J154: =VLOOKUP(H154,'Závody a tratě'!$B:$C,2,0) ->  | K154: =VLOOKUP(H154&"x"&F154,'Závody a tratě'!$A:$F,6,0) -> 0 | L154: =VLOOKUP(TEXT(H154,"000")&UPPER(D154)&TEXT(E154,"0000"),'Kategorie lokální'!$A$2:$F$300,6,TRUE) ->  | M154: =VLOOKUP(TEXT(H154,"000")&UPPER(D154)&TEXT(E154,"0000"),'Kategorie lokální'!$A$2:$G$300,7,TRUE) ->  | N154: =VLOOKUP(UPPER(D154)&TEXT(E154,"0000"),'Kategorie ZBP'!$A$2:$E$30,5,TRUE) ->  | O154: =VLOOKUP(N154,'Kategorie ZBP'!$E:$F,2,0) ->  | P154: =VLOOKUP(H154&"x"&A154,Stopky!I:J,2,0) -> - | T154: =IF(ISERROR(VLOOKUP(H154&"x"&F154&"xANO",'Závody a tratě'!L:L,1,0))=TRUE,0,_xlfn.IFNA(VLOOKUP(S154,'Body ZBP'!$A$1:$B$40,2,1),0)) -> 0 | U154: =H154&"x"&A154 -> x | V154: =IF(U154<>"x",COUNTIF($U$2:$U$3000,U154),"") ->  | W154: =IF(I154<>"xxxxx",COUNTIF($I$2:$I$3000,I154),"") -> 
I155: =B155&"x"&C155&"x"&D155&"x"&E155&"x"&H155&"x"&F155 -> xxxxx | J155: =VLOOKUP(H155,'Závody a tratě'!$B:$C,2,0) ->  | K155: =VLOOKUP(H155&"x"&F155,'Závody a tratě'!$A:$F,6,0) -> 0 | L155: =VLOOKUP(TEXT(H155,"000")&UPPER(D155)&TEXT(E155,"0000"),'Kategorie lokální'!$A$2:$F$300,6,TRUE) ->  | M155: =VLOOKUP(TEXT(H155,"000")&UPPER(D155)&TEXT(E155,"0000"),'Kategorie lokální'!$A$2:$G$300,7,TRUE) ->  | N155: =VLOOKUP(UPPER(D155)&TEXT(E155,"0000"),'Kategorie ZBP'!$A$2:$E$30,5,TRUE) ->  | O155: =VLOOKUP(N155,'Kategorie ZBP'!$E:$F,2,0) ->  | P155: =VLOOKUP(H155&"x"&A155,Stopky!I:J,2,0) -> - | T155: =IF(ISERROR(VLOOKUP(H155&"x"&F155&"xANO",'Závody a tratě'!L:L,1,0))=TRUE,0,_xlfn.IFNA(VLOOKUP(S155,'Body ZBP'!$A$1:$B$40,2,1),0)) -> 0 | U155: =H155&"x"&A155 -> x | V155: =IF(U155<>"x",COUNTIF($U$2:$U$3000,U155),"") ->  | W155: =IF(I155<>"xxxxx",COUNTIF($I$2:$I$3000,I155),"") -> 
I156: =B156&"x"&C156&"x"&D156&"x"&E156&"x"&H156&"x"&F156 -> xxxxx | J156: =VLOOKUP(H156,'Závody a tratě'!$B:$C,2,0) ->  | K156: =VLOOKUP(H156&"x"&F156,'Závody a tratě'!$A:$F,6,0) -> 0 | L156: =VLOOKUP(TEXT(H156,"000")&UPPER(D156)&TEXT(E156,"0000"),'Kategorie lokální'!$A$2:$F$300,6,TRUE) ->  | M156: =VLOOKUP(TEXT(H156,"000")&UPPER(D156)&TEXT(E156,"0000"),'Kategorie lokální'!$A$2:$G$300,7,TRUE) ->  | N156: =VLOOKUP(UPPER(D156)&TEXT(E156,"0000"),'Kategorie ZBP'!$A$2:$E$30,5,TRUE) ->  | O156: =VLOOKUP(N156,'Kategorie ZBP'!$E:$F,2,0) ->  | P156: =VLOOKUP(H156&"x"&A156,Stopky!I:J,2,0) -> - | T156: =IF(ISERROR(VLOOKUP(H156&"x"&F156&"xANO",'Závody a tratě'!L:L,1,0))=TRUE,0,_xlfn.IFNA(VLOOKUP(S156,'Body ZBP'!$A$1:$B$40,2,1),0)) -> 0 | U156: =H156&"x"&A156 -> x | V156: =IF(U156<>"x",COUNTIF($U$2:$U$3000,U156),"") ->  | W156: =IF(I156<>"xxxxx",COUNTIF($I$2:$I$3000,I156),"") -> 
I157: =B157&"x"&C157&"x"&D157&"x"&E157&"x"&H157&"x"&F157 -> xxxxx | J157: =VLOOKUP(H157,'Závody a tratě'!$B:$C,2,0) ->  | K157: =VLOOKUP(H157&"x"&F157,'Závody a tratě'!$A:$F,6,0) -> 0 | L157: =VLOOKUP(TEXT(H157,"000")&UPPER(D157)&TEXT(E157,"0000"),'Kategorie lokální'!$A$2:$F$300,6,TRUE) ->  | M157: =VLOOKUP(TEXT(H157,"000")&UPPER(D157)&TEXT(E157,"0000"),'Kategorie lokální'!$A$2:$G$300,7,TRUE) ->  | N157: =VLOOKUP(UPPER(D157)&TEXT(E157,"0000"),'Kategorie ZBP'!$A$2:$E$30,5,TRUE) ->  | O157: =VLOOKUP(N157,'Kategorie ZBP'!$E:$F,2,0) ->  | P157: =VLOOKUP(H157&"x"&A157,Stopky!I:J,2,0) -> - | T157: =IF(ISERROR(VLOOKUP(H157&"x"&F157&"xANO",'Závody a tratě'!L:L,1,0))=TRUE,0,_xlfn.IFNA(VLOOKUP(S157,'Body ZBP'!$A$1:$B$40,2,1),0)) -> 0 | U157: =H157&"x"&A157 -> x | V157: =IF(U157<>"x",COUNTIF($U$2:$U$3000,U157),"") ->  | W157: =IF(I157<>"xxxxx",COUNTIF($I$2:$I$3000,I157),"") -> 
I158: =B158&"x"&C158&"x"&D158&"x"&E158&"x"&H158&"x"&F158 -> xxxxx | J158: =VLOOKUP(H158,'Závody a tratě'!$B:$C,2,0) ->  | K158: =VLOOKUP(H158&"x"&F158,'Závody a tratě'!$A:$F,6,0) -> 0 | L158: =VLOOKUP(TEXT(H158,"000")&UPPER(D158)&TEXT(E158,"0000"),'Kategorie lokální'!$A$2:$F$300,6,TRUE) ->  | M158: =VLOOKUP(TEXT(H158,"000")&UPPER(D158)&TEXT(E158,"0000"),'Kategorie lokální'!$A$2:$G$300,7,TRUE) ->  | N158: =VLOOKUP(UPPER(D158)&TEXT(E158,"0000"),'Kategorie ZBP'!$A$2:$E$30,5,TRUE) ->  | O158: =VLOOKUP(N158,'Kategorie ZBP'!$E:$F,2,0) ->  | P158: =VLOOKUP(H158&"x"&A158,Stopky!I:J,2,0) -> - | T158: =IF(ISERROR(VLOOKUP(H158&"x"&F158&"xANO",'Závody a tratě'!L:L,1,0))=TRUE,0,_xlfn.IFNA(VLOOKUP(S158,'Body ZBP'!$A$1:$B$40,2,1),0)) -> 0 | U158: =H158&"x"&A158 -> x | V158: =IF(U158<>"x",COUNTIF($U$2:$U$3000,U158),"") ->  | W158: =IF(I158<>"xxxxx",COUNTIF($I$2:$I$3000,I158),"") -> 
I159: =B159&"x"&C159&"x"&D159&"x"&E159&"x"&H159&"x"&F159 -> xxxxx | J159: =VLOOKUP(H159,'Závody a tratě'!$B:$C,2,0) ->  | K159: =VLOOKUP(H159&"x"&F159,'Závody a tratě'!$A:$F,6,0) -> 0 | L159: =VLOOKUP(TEXT(H159,"000")&UPPER(D159)&TEXT(E159,"0000"),'Kategorie lokální'!$A$2:$F$300,6,TRUE) ->  | M159: =VLOOKUP(TEXT(H159,"000")&UPPER(D159)&TEXT(E159,"0000"),'Kategorie lokální'!$A$2:$G$300,7,TRUE) ->  | N159: =VLOOKUP(UPPER(D159)&TEXT(E159,"0000"),'Kategorie ZBP'!$A$2:$E$30,5,TRUE) ->  | O159: =VLOOKUP(N159,'Kategorie ZBP'!$E:$F,2,0) ->  | P159: =VLOOKUP(H159&"x"&A159,Stopky!I:J,2,0) -> - | T159: =IF(ISERROR(VLOOKUP(H159&"x"&F159&"xANO",'Závody a tratě'!L:L,1,0))=TRUE,0,_xlfn.IFNA(VLOOKUP(S159,'Body ZBP'!$A$1:$B$40,2,1),0)) -> 0 | U159: =H159&"x"&A159 -> x | V159: =IF(U159<>"x",COUNTIF($U$2:$U$3000,U159),"") ->  | W159: =IF(I159<>"xxxxx",COUNTIF($I$2:$I$3000,I159),"") -> 
I160: =B160&"x"&C160&"x"&D160&"x"&E160&"x"&H160&"x"&F160 -> xxxxx | J160: =VLOOKUP(H160,'Závody a tratě'!$B:$C,2,0) ->  | K160: =VLOOKUP(H160&"x"&F160,'Závody a tratě'!$A:$F,6,0) -> 0 | L160: =VLOOKUP(TEXT(H160,"000")&UPPER(D160)&TEXT(E160,"0000"),'Kategorie lokální'!$A$2:$F$300,6,TRUE) ->  | M160: =VLOOKUP(TEXT(H160,"000")&UPPER(D160)&TEXT(E160,"0000"),'Kategorie lokální'!$A$2:$G$300,7,TRUE) ->  | N160: =VLOOKUP(UPPER(D160)&TEXT(E160,"0000"),'Kategorie ZBP'!$A$2:$E$30,5,TRUE) ->  | O160: =VLOOKUP(N160,'Kategorie ZBP'!$E:$F,2,0) ->  | P160: =VLOOKUP(H160&"x"&A160,Stopky!I:J,2,0) -> - | T160: =IF(ISERROR(VLOOKUP(H160&"x"&F160&"xANO",'Závody a tratě'!L:L,1,0))=TRUE,0,_xlfn.IFNA(VLOOKUP(S160,'Body ZBP'!$A$1:$B$40,2,1),0)) -> 0 | U160: =H160&"x"&A160 -> x | V160: =IF(U160<>"x",COUNTIF($U$2:$U$3000,U160),"") ->  | W160: =IF(I160<>"xxxxx",COUNTIF($I$2:$I$3000,I160),"") -> 
I161: =B161&"x"&C161&"x"&D161&"x"&E161&"x"&H161&"x"&F161 -> xxxxx | J161: =VLOOKUP(H161,'Závody a tratě'!$B:$C,2,0) ->  | K161: =VLOOKUP(H161&"x"&F161,'Závody a tratě'!$A:$F,6,0) -> 0 | L161: =VLOOKUP(TEXT(H161,"000")&UPPER(D161)&TEXT(E161,"0000"),'Kategorie lokální'!$A$2:$F$300,6,TRUE) ->  | M161: =VLOOKUP(TEXT(H161,"000")&UPPER(D161)&TEXT(E161,"0000"),'Kategorie lokální'!$A$2:$G$300,7,TRUE) ->  | N161: =VLOOKUP(UPPER(D161)&TEXT(E161,"0000"),'Kategorie ZBP'!$A$2:$E$30,5,TRUE) ->  | O161: =VLOOKUP(N161,'Kategorie ZBP'!$E:$F,2,0) ->  | P161: =VLOOKUP(H161&"x"&A161,Stopky!I:J,2,0) -> - | T161: =IF(ISERROR(VLOOKUP(H161&"x"&F161&"xANO",'Závody a tratě'!L:L,1,0))=TRUE,0,_xlfn.IFNA(VLOOKUP(S161,'Body ZBP'!$A$1:$B$40,2,1),0)) -> 0 | U161: =H161&"x"&A161 -> x | V161: =IF(U161<>"x",COUNTIF($U$2:$U$3000,U161),"") ->  | W161: =IF(I161<>"xxxxx",COUNTIF($I$2:$I$3000,I161),"") -> 
I162: =B162&"x"&C162&"x"&D162&"x"&E162&"x"&H162&"x"&F162 -> xxxxx | J162: =VLOOKUP(H162,'Závody a tratě'!$B:$C,2,0) ->  | K162: =VLOOKUP(H162&"x"&F162,'Závody a tratě'!$A:$F,6,0) -> 0 | L162: =VLOOKUP(TEXT(H162,"000")&UPPER(D162)&TEXT(E162,"0000"),'Kategorie lokální'!$A$2:$F$300,6,TRUE) ->  | M162: =VLOOKUP(TEXT(H162,"000")&UPPER(D162)&TEXT(E162,"0000"),'Kategorie lokální'!$A$2:$G$300,7,TRUE) ->  | N162: =VLOOKUP(UPPER(D162)&TEXT(E162,"0000"),'Kategorie ZBP'!$A$2:$E$30,5,TRUE) ->  | O162: =VLOOKUP(N162,'Kategorie ZBP'!$E:$F,2,0) ->  | P162: =VLOOKUP(H162&"x"&A162,Stopky!I:J,2,0) -> - | T162: =IF(ISERROR(VLOOKUP(H162&"x"&F162&"xANO",'Závody a tratě'!L:L,1,0))=TRUE,0,_xlfn.IFNA(VLOOKUP(S162,'Body ZBP'!$A$1:$B$40,2,1),0)) -> 0 | U162: =H162&"x"&A162 -> x | V162: =IF(U162<>"x",COUNTIF($U$2:$U$3000,U162),"") ->  | W162: =IF(I162<>"xxxxx",COUNTIF($I$2:$I$3000,I162),"") -> 
I163: =B163&"x"&C163&"x"&D163&"x"&E163&"x"&H163&"x"&F163 -> xxxxx | J163: =VLOOKUP(H163,'Závody a tratě'!$B:$C,2,0) ->  | K163: =VLOOKUP(H163&"x"&F163,'Závody a tratě'!$A:$F,6,0) -> 0 | L163: =VLOOKUP(TEXT(H163,"000")&UPPER(D163)&TEXT(E163,"0000"),'Kategorie lokální'!$A$2:$F$300,6,TRUE) ->  | M163: =VLOOKUP(TEXT(H163,"000")&UPPER(D163)&TEXT(E163,"0000"),'Kategorie lokální'!$A$2:$G$300,7,TRUE) ->  | N163: =VLOOKUP(UPPER(D163)&TEXT(E163,"0000"),'Kategorie ZBP'!$A$2:$E$30,5,TRUE) ->  | O163: =VLOOKUP(N163,'Kategorie ZBP'!$E:$F,2,0) ->  | P163: =VLOOKUP(H163&"x"&A163,Stopky!I:J,2,0) -> - | T163: =IF(ISERROR(VLOOKUP(H163&"x"&F163&"xANO",'Závody a tratě'!L:L,1,0))=TRUE,0,_xlfn.IFNA(VLOOKUP(S163,'Body ZBP'!$A$1:$B$40,2,1),0)) -> 0 | U163: =H163&"x"&A163 -> x | V163: =IF(U163<>"x",COUNTIF($U$2:$U$3000,U163),"") ->  | W163: =IF(I163<>"xxxxx",COUNTIF($I$2:$I$3000,I163),"") -> 
I164: =B164&"x"&C164&"x"&D164&"x"&E164&"x"&H164&"x"&F164 -> xxxxx | J164: =VLOOKUP(H164,'Závody a tratě'!$B:$C,2,0) ->  | K164: =VLOOKUP(H164&"x"&F164,'Závody a tratě'!$A:$F,6,0) -> 0 | L164: =VLOOKUP(TEXT(H164,"000")&UPPER(D164)&TEXT(E164,"0000"),'Kategorie lokální'!$A$2:$F$300,6,TRUE) ->  | M164: =VLOOKUP(TEXT(H164,"000")&UPPER(D164)&TEXT(E164,"0000"),'Kategorie lokální'!$A$2:$G$300,7,TRUE) ->  | N164: =VLOOKUP(UPPER(D164)&TEXT(E164,"0000"),'Kategorie ZBP'!$A$2:$E$30,5,TRUE) ->  | O164: =VLOOKUP(N164,'Kategorie ZBP'!$E:$F,2,0) ->  | P164: =VLOOKUP(H164&"x"&A164,Stopky!I:J,2,0) -> - | T164: =IF(ISERROR(VLOOKUP(H164&"x"&F164&"xANO",'Závody a tratě'!L:L,1,0))=TRUE,0,_xlfn.IFNA(VLOOKUP(S164,'Body ZBP'!$A$1:$B$40,2,1),0)) -> 0 | U164: =H164&"x"&A164 -> x | V164: =IF(U164<>"x",COUNTIF($U$2:$U$3000,U164),"") ->  | W164: =IF(I164<>"xxxxx",COUNTIF($I$2:$I$3000,I164),"") -> 
I165: =B165&"x"&C165&"x"&D165&"x"&E165&"x"&H165&"x"&F165 -> xxxxx | J165: =VLOOKUP(H165,'Závody a tratě'!$B:$C,2,0) ->  | K165: =VLOOKUP(H165&"x"&F165,'Závody a tratě'!$A:$F,6,0) -> 0 | L165: =VLOOKUP(TEXT(H165,"000")&UPPER(D165)&TEXT(E165,"0000"),'Kategorie lokální'!$A$2:$F$300,6,TRUE) ->  | M165: =VLOOKUP(TEXT(H165,"000")&UPPER(D165)&TEXT(E165,"0000"),'Kategorie lokální'!$A$2:$G$300,7,TRUE) ->  | N165: =VLOOKUP(UPPER(D165)&TEXT(E165,"0000"),'Kategorie ZBP'!$A$2:$E$30,5,TRUE) ->  | O165: =VLOOKUP(N165,'Kategorie ZBP'!$E:$F,2,0) ->  | P165: =VLOOKUP(H165&"x"&A165,Stopky!I:J,2,0) -> - | T165: =IF(ISERROR(VLOOKUP(H165&"x"&F165&"xANO",'Závody a tratě'!L:L,1,0))=TRUE,0,_xlfn.IFNA(VLOOKUP(S165,'Body ZBP'!$A$1:$B$40,2,1),0)) -> 0 | U165: =H165&"x"&A165 -> x | V165: =IF(U165<>"x",COUNTIF($U$2:$U$3000,U165),"") ->  | W165: =IF(I165<>"xxxxx",COUNTIF($I$2:$I$3000,I165),"") -> 
I166: =B166&"x"&C166&"x"&D166&"x"&E166&"x"&H166&"x"&F166 -> xxxxx | J166: =VLOOKUP(H166,'Závody a tratě'!$B:$C,2,0) ->  | K166: =VLOOKUP(H166&"x"&F166,'Závody a tratě'!$A:$F,6,0) -> 0 | L166: =VLOOKUP(TEXT(H166,"000")&UPPER(D166)&TEXT(E166,"0000"),'Kategorie lokální'!$A$2:$F$300,6,TRUE) ->  | M166: =VLOOKUP(TEXT(H166,"000")&UPPER(D166)&TEXT(E166,"0000"),'Kategorie lokální'!$A$2:$G$300,7,TRUE) ->  | N166: =VLOOKUP(UPPER(D166)&TEXT(E166,"0000"),'Kategorie ZBP'!$A$2:$E$30,5,TRUE) ->  | O166: =VLOOKUP(N166,'Kategorie ZBP'!$E:$F,2,0) ->  | P166: =VLOOKUP(H166&"x"&A166,Stopky!I:J,2,0) -> - | T166: =IF(ISERROR(VLOOKUP(H166&"x"&F166&"xANO",'Závody a tratě'!L:L,1,0))=TRUE,0,_xlfn.IFNA(VLOOKUP(S166,'Body ZBP'!$A$1:$B$40,2,1),0)) -> 0 | U166: =H166&"x"&A166 -> x | V166: =IF(U166<>"x",COUNTIF($U$2:$U$3000,U166),"") ->  | W166: =IF(I166<>"xxxxx",COUNTIF($I$2:$I$3000,I166),"") -> 
I167: =B167&"x"&C167&"x"&D167&"x"&E167&"x"&H167&"x"&F167 -> xxxxx | J167: =VLOOKUP(H167,'Závody a tratě'!$B:$C,2,0) ->  | K167: =VLOOKUP(H167&"x"&F167,'Závody a tratě'!$A:$F,6,0) -> 0 | L167: =VLOOKUP(TEXT(H167,"000")&UPPER(D167)&TEXT(E167,"0000"),'Kategorie lokální'!$A$2:$F$300,6,TRUE) ->  | M167: =VLOOKUP(TEXT(H167,"000")&UPPER(D167)&TEXT(E167,"0000"),'Kategorie lokální'!$A$2:$G$300,7,TRUE) ->  | N167: =VLOOKUP(UPPER(D167)&TEXT(E167,"0000"),'Kategorie ZBP'!$A$2:$E$30,5,TRUE) ->  | O167: =VLOOKUP(N167,'Kategorie ZBP'!$E:$F,2,0) ->  | P167: =VLOOKUP(H167&"x"&A167,Stopky!I:J,2,0) -> - | T167: =IF(ISERROR(VLOOKUP(H167&"x"&F167&"xANO",'Závody a tratě'!L:L,1,0))=TRUE,0,_xlfn.IFNA(VLOOKUP(S167,'Body ZBP'!$A$1:$B$40,2,1),0)) -> 0 | U167: =H167&"x"&A167 -> x | V167: =IF(U167<>"x",COUNTIF($U$2:$U$3000,U167),"") ->  | W167: =IF(I167<>"xxxxx",COUNTIF($I$2:$I$3000,I167),"") -> 
I168: =B168&"x"&C168&"x"&D168&"x"&E168&"x"&H168&"x"&F168 -> xxxxx | J168: =VLOOKUP(H168,'Závody a tratě'!$B:$C,2,0) ->  | K168: =VLOOKUP(H168&"x"&F168,'Závody a tratě'!$A:$F,6,0) -> 0 | L168: =VLOOKUP(TEXT(H168,"000")&UPPER(D168)&TEXT(E168,"0000"),'Kategorie lokální'!$A$2:$F$300,6,TRUE) ->  | M168: =VLOOKUP(TEXT(H168,"000")&UPPER(D168)&TEXT(E168,"0000"),'Kategorie lokální'!$A$2:$G$300,7,TRUE) ->  | N168: =VLOOKUP(UPPER(D168)&TEXT(E168,"0000"),'Kategorie ZBP'!$A$2:$E$30,5,TRUE) ->  | O168: =VLOOKUP(N168,'Kategorie ZBP'!$E:$F,2,0) ->  | P168: =VLOOKUP(H168&"x"&A168,Stopky!I:J,2,0) -> - | T168: =IF(ISERROR(VLOOKUP(H168&"x"&F168&"xANO",'Závody a tratě'!L:L,1,0))=TRUE,0,_xlfn.IFNA(VLOOKUP(S168,'Body ZBP'!$A$1:$B$40,2,1),0)) -> 0 | U168: =H168&"x"&A168 -> x | V168: =IF(U168<>"x",COUNTIF($U$2:$U$3000,U168),"") ->  | W168: =IF(I168<>"xxxxx",COUNTIF($I$2:$I$3000,I168),"") -> 
I169: =B169&"x"&C169&"x"&D169&"x"&E169&"x"&H169&"x"&F169 -> xxxxx | J169: =VLOOKUP(H169,'Závody a tratě'!$B:$C,2,0) ->  | K169: =VLOOKUP(H169&"x"&F169,'Závody a tratě'!$A:$F,6,0) -> 0 | L169: =VLOOKUP(TEXT(H169,"000")&UPPER(D169)&TEXT(E169,"0000"),'Kategorie lokální'!$A$2:$F$300,6,TRUE) ->  | M169: =VLOOKUP(TEXT(H169,"000")&UPPER(D169)&TEXT(E169,"0000"),'Kategorie lokální'!$A$2:$G$300,7,TRUE) ->  | N169: =VLOOKUP(UPPER(D169)&TEXT(E169,"0000"),'Kategorie ZBP'!$A$2:$E$30,5,TRUE) ->  | O169: =VLOOKUP(N169,'Kategorie ZBP'!$E:$F,2,0) ->  | P169: =VLOOKUP(H169&"x"&A169,Stopky!I:J,2,0) -> - | T169: =IF(ISERROR(VLOOKUP(H169&"x"&F169&"xANO",'Závody a tratě'!L:L,1,0))=TRUE,0,_xlfn.IFNA(VLOOKUP(S169,'Body ZBP'!$A$1:$B$40,2,1),0)) -> 0 | U169: =H169&"x"&A169 -> x | V169: =IF(U169<>"x",COUNTIF($U$2:$U$3000,U169),"") ->  | W169: =IF(I169<>"xxxxx",COUNTIF($I$2:$I$3000,I169),"") -> 
I170: =B170&"x"&C170&"x"&D170&"x"&E170&"x"&H170&"x"&F170 -> xxxxx | J170: =VLOOKUP(H170,'Závody a tratě'!$B:$C,2,0) ->  | K170: =VLOOKUP(H170&"x"&F170,'Závody a tratě'!$A:$F,6,0) -> 0 | L170: =VLOOKUP(TEXT(H170,"000")&UPPER(D170)&TEXT(E170,"0000"),'Kategorie lokální'!$A$2:$F$300,6,TRUE) ->  | M170: =VLOOKUP(TEXT(H170,"000")&UPPER(D170)&TEXT(E170,"0000"),'Kategorie lokální'!$A$2:$G$300,7,TRUE) ->  | N170: =VLOOKUP(UPPER(D170)&TEXT(E170,"0000"),'Kategorie ZBP'!$A$2:$E$30,5,TRUE) ->  | O170: =VLOOKUP(N170,'Kategorie ZBP'!$E:$F,2,0) ->  | P170: =VLOOKUP(H170&"x"&A170,Stopky!I:J,2,0) -> - | T170: =IF(ISERROR(VLOOKUP(H170&"x"&F170&"xANO",'Závody a tratě'!L:L,1,0))=TRUE,0,_xlfn.IFNA(VLOOKUP(S170,'Body ZBP'!$A$1:$B$40,2,1),0)) -> 0 | U170: =H170&"x"&A170 -> x | V170: =IF(U170<>"x",COUNTIF($U$2:$U$3000,U170),"") ->  | W170: =IF(I170<>"xxxxx",COUNTIF($I$2:$I$3000,I170),"") -> 
I171: =B171&"x"&C171&"x"&D171&"x"&E171&"x"&H171&"x"&F171 -> xxxxx | J171: =VLOOKUP(H171,'Závody a tratě'!$B:$C,2,0) ->  | K171: =VLOOKUP(H171&"x"&F171,'Závody a tratě'!$A:$F,6,0) -> 0 | L171: =VLOOKUP(TEXT(H171,"000")&UPPER(D171)&TEXT(E171,"0000"),'Kategorie lokální'!$A$2:$F$300,6,TRUE) ->  | M171: =VLOOKUP(TEXT(H171,"000")&UPPER(D171)&TEXT(E171,"0000"),'Kategorie lokální'!$A$2:$G$300,7,TRUE) ->  | N171: =VLOOKUP(UPPER(D171)&TEXT(E171,"0000"),'Kategorie ZBP'!$A$2:$E$30,5,TRUE) ->  | O171: =VLOOKUP(N171,'Kategorie ZBP'!$E:$F,2,0) ->  | P171: =VLOOKUP(H171&"x"&A171,Stopky!I:J,2,0) -> - | T171: =IF(ISERROR(VLOOKUP(H171&"x"&F171&"xANO",'Závody a tratě'!L:L,1,0))=TRUE,0,_xlfn.IFNA(VLOOKUP(S171,'Body ZBP'!$A$1:$B$40,2,1),0)) -> 0 | U171: =H171&"x"&A171 -> x | V171: =IF(U171<>"x",COUNTIF($U$2:$U$3000,U171),"") ->  | W171: =IF(I171<>"xxxxx",COUNTIF($I$2:$I$3000,I171),"") -> 
I172: =B172&"x"&C172&"x"&D172&"x"&E172&"x"&H172&"x"&F172 -> xxxxx | J172: =VLOOKUP(H172,'Závody a tratě'!$B:$C,2,0) ->  | K172: =VLOOKUP(H172&"x"&F172,'Závody a tratě'!$A:$F,6,0) -> 0 | L172: =VLOOKUP(TEXT(H172,"000")&UPPER(D172)&TEXT(E172,"0000"),'Kategorie lokální'!$A$2:$F$300,6,TRUE) ->  | M172: =VLOOKUP(TEXT(H172,"000")&UPPER(D172)&TEXT(E172,"0000"),'Kategorie lokální'!$A$2:$G$300,7,TRUE) ->  | N172: =VLOOKUP(UPPER(D172)&TEXT(E172,"0000"),'Kategorie ZBP'!$A$2:$E$30,5,TRUE) ->  | O172: =VLOOKUP(N172,'Kategorie ZBP'!$E:$F,2,0) ->  | P172: =VLOOKUP(H172&"x"&A172,Stopky!I:J,2,0) -> - | T172: =IF(ISERROR(VLOOKUP(H172&"x"&F172&"xANO",'Závody a tratě'!L:L,1,0))=TRUE,0,_xlfn.IFNA(VLOOKUP(S172,'Body ZBP'!$A$1:$B$40,2,1),0)) -> 0 | U172: =H172&"x"&A172 -> x | V172: =IF(U172<>"x",COUNTIF($U$2:$U$3000,U172),"") ->  | W172: =IF(I172<>"xxxxx",COUNTIF($I$2:$I$3000,I172),"") -> 
I173: =B173&"x"&C173&"x"&D173&"x"&E173&"x"&H173&"x"&F173 -> xxxxx | J173: =VLOOKUP(H173,'Závody a tratě'!$B:$C,2,0) ->  | K173: =VLOOKUP(H173&"x"&F173,'Závody a tratě'!$A:$F,6,0) -> 0 | L173: =VLOOKUP(TEXT(H173,"000")&UPPER(D173)&TEXT(E173,"0000"),'Kategorie lokální'!$A$2:$F$300,6,TRUE) ->  | M173: =VLOOKUP(TEXT(H173,"000")&UPPER(D173)&TEXT(E173,"0000"),'Kategorie lokální'!$A$2:$G$300,7,TRUE) ->  | N173: =VLOOKUP(UPPER(D173)&TEXT(E173,"0000"),'Kategorie ZBP'!$A$2:$E$30,5,TRUE) ->  | O173: =VLOOKUP(N173,'Kategorie ZBP'!$E:$F,2,0) ->  | P173: =VLOOKUP(H173&"x"&A173,Stopky!I:J,2,0) -> - | T173: =IF(ISERROR(VLOOKUP(H173&"x"&F173&"xANO",'Závody a tratě'!L:L,1,0))=TRUE,0,_xlfn.IFNA(VLOOKUP(S173,'Body ZBP'!$A$1:$B$40,2,1),0)) -> 0 | U173: =H173&"x"&A173 -> x | V173: =IF(U173<>"x",COUNTIF($U$2:$U$3000,U173),"") ->  | W173: =IF(I173<>"xxxxx",COUNTIF($I$2:$I$3000,I173),"") -> 
I174: =B174&"x"&C174&"x"&D174&"x"&E174&"x"&H174&"x"&F174 -> xxxxx | J174: =VLOOKUP(H174,'Závody a tratě'!$B:$C,2,0) ->  | K174: =VLOOKUP(H174&"x"&F174,'Závody a tratě'!$A:$F,6,0) -> 0 | L174: =VLOOKUP(TEXT(H174,"000")&UPPER(D174)&TEXT(E174,"0000"),'Kategorie lokální'!$A$2:$F$300,6,TRUE) ->  | M174: =VLOOKUP(TEXT(H174,"000")&UPPER(D174)&TEXT(E174,"0000"),'Kategorie lokální'!$A$2:$G$300,7,TRUE) ->  | N174: =VLOOKUP(UPPER(D174)&TEXT(E174,"0000"),'Kategorie ZBP'!$A$2:$E$30,5,TRUE) ->  | O174: =VLOOKUP(N174,'Kategorie ZBP'!$E:$F,2,0) ->  | P174: =VLOOKUP(H174&"x"&A174,Stopky!I:J,2,0) -> - | T174: =IF(ISERROR(VLOOKUP(H174&"x"&F174&"xANO",'Závody a tratě'!L:L,1,0))=TRUE,0,_xlfn.IFNA(VLOOKUP(S174,'Body ZBP'!$A$1:$B$40,2,1),0)) -> 0 | U174: =H174&"x"&A174 -> x | V174: =IF(U174<>"x",COUNTIF($U$2:$U$3000,U174),"") ->  | W174: =IF(I174<>"xxxxx",COUNTIF($I$2:$I$3000,I174),"") -> 
I175: =B175&"x"&C175&"x"&D175&"x"&E175&"x"&H175&"x"&F175 -> xxxxx | J175: =VLOOKUP(H175,'Závody a tratě'!$B:$C,2,0) ->  | K175: =VLOOKUP(H175&"x"&F175,'Závody a tratě'!$A:$F,6,0) -> 0 | L175: =VLOOKUP(TEXT(H175,"000")&UPPER(D175)&TEXT(E175,"0000"),'Kategorie lokální'!$A$2:$F$300,6,TRUE) ->  | M175: =VLOOKUP(TEXT(H175,"000")&UPPER(D175)&TEXT(E175,"0000"),'Kategorie lokální'!$A$2:$G$300,7,TRUE) ->  | N175: =VLOOKUP(UPPER(D175)&TEXT(E175,"0000"),'Kategorie ZBP'!$A$2:$E$30,5,TRUE) ->  | O175: =VLOOKUP(N175,'Kategorie ZBP'!$E:$F,2,0) ->  | P175: =VLOOKUP(H175&"x"&A175,Stopky!I:J,2,0) -> - | T175: =IF(ISERROR(VLOOKUP(H175&"x"&F175&"xANO",'Závody a tratě'!L:L,1,0))=TRUE,0,_xlfn.IFNA(VLOOKUP(S175,'Body ZBP'!$A$1:$B$40,2,1),0)) -> 0 | U175: =H175&"x"&A175 -> x | V175: =IF(U175<>"x",COUNTIF($U$2:$U$3000,U175),"") ->  | W175: =IF(I175<>"xxxxx",COUNTIF($I$2:$I$3000,I175),"") -> 
I176: =B176&"x"&C176&"x"&D176&"x"&E176&"x"&H176&"x"&F176 -> xxxxx | J176: =VLOOKUP(H176,'Závody a tratě'!$B:$C,2,0) ->  | K176: =VLOOKUP(H176&"x"&F176,'Závody a tratě'!$A:$F,6,0) -> 0 | L176: =VLOOKUP(TEXT(H176,"000")&UPPER(D176)&TEXT(E176,"0000"),'Kategorie lokální'!$A$2:$F$300,6,TRUE) ->  | M176: =VLOOKUP(TEXT(H176,"000")&UPPER(D176)&TEXT(E176,"0000"),'Kategorie lokální'!$A$2:$G$300,7,TRUE) ->  | N176: =VLOOKUP(UPPER(D176)&TEXT(E176,"0000"),'Kategorie ZBP'!$A$2:$E$30,5,TRUE) ->  | O176: =VLOOKUP(N176,'Kategorie ZBP'!$E:$F,2,0) ->  | P176: =VLOOKUP(H176&"x"&A176,Stopky!I:J,2,0) -> - | T176: =IF(ISERROR(VLOOKUP(H176&"x"&F176&"xANO",'Závody a tratě'!L:L,1,0))=TRUE,0,_xlfn.IFNA(VLOOKUP(S176,'Body ZBP'!$A$1:$B$40,2,1),0)) -> 0 | U176: =H176&"x"&A176 -> x | V176: =IF(U176<>"x",COUNTIF($U$2:$U$3000,U176),"") ->  | W176: =IF(I176<>"xxxxx",COUNTIF($I$2:$I$3000,I176),"") -> 
I177: =B177&"x"&C177&"x"&D177&"x"&E177&"x"&H177&"x"&F177 -> xxxxx | J177: =VLOOKUP(H177,'Závody a tratě'!$B:$C,2,0) ->  | K177: =VLOOKUP(H177&"x"&F177,'Závody a tratě'!$A:$F,6,0) -> 0 | L177: =VLOOKUP(TEXT(H177,"000")&UPPER(D177)&TEXT(E177,"0000"),'Kategorie lokální'!$A$2:$F$300,6,TRUE) ->  | M177: =VLOOKUP(TEXT(H177,"000")&UPPER(D177)&TEXT(E177,"0000"),'Kategorie lokální'!$A$2:$G$300,7,TRUE) ->  | N177: =VLOOKUP(UPPER(D177)&TEXT(E177,"0000"),'Kategorie ZBP'!$A$2:$E$30,5,TRUE) ->  | O177: =VLOOKUP(N177,'Kategorie ZBP'!$E:$F,2,0) ->  | P177: =VLOOKUP(H177&"x"&A177,Stopky!I:J,2,0) -> - | T177: =IF(ISERROR(VLOOKUP(H177&"x"&F177&"xANO",'Závody a tratě'!L:L,1,0))=TRUE,0,_xlfn.IFNA(VLOOKUP(S177,'Body ZBP'!$A$1:$B$40,2,1),0)) -> 0 | U177: =H177&"x"&A177 -> x | V177: =IF(U177<>"x",COUNTIF($U$2:$U$3000,U177),"") ->  | W177: =IF(I177<>"xxxxx",COUNTIF($I$2:$I$3000,I177),"") -> 
I178: =B178&"x"&C178&"x"&D178&"x"&E178&"x"&H178&"x"&F178 -> xxxxx | J178: =VLOOKUP(H178,'Závody a tratě'!$B:$C,2,0) ->  | K178: =VLOOKUP(H178&"x"&F178,'Závody a tratě'!$A:$F,6,0) -> 0 | L178: =VLOOKUP(TEXT(H178,"000")&UPPER(D178)&TEXT(E178,"0000"),'Kategorie lokální'!$A$2:$F$300,6,TRUE) ->  | M178: =VLOOKUP(TEXT(H178,"000")&UPPER(D178)&TEXT(E178,"0000"),'Kategorie lokální'!$A$2:$G$300,7,TRUE) ->  | N178: =VLOOKUP(UPPER(D178)&TEXT(E178,"0000"),'Kategorie ZBP'!$A$2:$E$30,5,TRUE) ->  | O178: =VLOOKUP(N178,'Kategorie ZBP'!$E:$F,2,0) ->  | P178: =VLOOKUP(H178&"x"&A178,Stopky!I:J,2,0) -> - | T178: =IF(ISERROR(VLOOKUP(H178&"x"&F178&"xANO",'Závody a tratě'!L:L,1,0))=TRUE,0,_xlfn.IFNA(VLOOKUP(S178,'Body ZBP'!$A$1:$B$40,2,1),0)) -> 0 | U178: =H178&"x"&A178 -> x | V178: =IF(U178<>"x",COUNTIF($U$2:$U$3000,U178),"") ->  | W178: =IF(I178<>"xxxxx",COUNTIF($I$2:$I$3000,I178),"") -> 
I179: =B179&"x"&C179&"x"&D179&"x"&E179&"x"&H179&"x"&F179 -> xxxxx | J179: =VLOOKUP(H179,'Závody a tratě'!$B:$C,2,0) ->  | K179: =VLOOKUP(H179&"x"&F179,'Závody a tratě'!$A:$F,6,0) -> 0 | L179: =VLOOKUP(TEXT(H179,"000")&UPPER(D179)&TEXT(E179,"0000"),'Kategorie lokální'!$A$2:$F$300,6,TRUE) ->  | M179: =VLOOKUP(TEXT(H179,"000")&UPPER(D179)&TEXT(E179,"0000"),'Kategorie lokální'!$A$2:$G$300,7,TRUE) ->  | N179: =VLOOKUP(UPPER(D179)&TEXT(E179,"0000"),'Kategorie ZBP'!$A$2:$E$30,5,TRUE) ->  | O179: =VLOOKUP(N179,'Kategorie ZBP'!$E:$F,2,0) ->  | P179: =VLOOKUP(H179&"x"&A179,Stopky!I:J,2,0) -> - | T179: =IF(ISERROR(VLOOKUP(H179&"x"&F179&"xANO",'Závody a tratě'!L:L,1,0))=TRUE,0,_xlfn.IFNA(VLOOKUP(S179,'Body ZBP'!$A$1:$B$40,2,1),0)) -> 0 | U179: =H179&"x"&A179 -> x | V179: =IF(U179<>"x",COUNTIF($U$2:$U$3000,U179),"") ->  | W179: =IF(I179<>"xxxxx",COUNTIF($I$2:$I$3000,I179),"") -> 
I180: =B180&"x"&C180&"x"&D180&"x"&E180&"x"&H180&"x"&F180 -> xxxxx | J180: =VLOOKUP(H180,'Závody a tratě'!$B:$C,2,0) ->  | K180: =VLOOKUP(H180&"x"&F180,'Závody a tratě'!$A:$F,6,0) -> 0 | L180: =VLOOKUP(TEXT(H180,"000")&UPPER(D180)&TEXT(E180,"0000"),'Kategorie lokální'!$A$2:$F$300,6,TRUE) ->  | M180: =VLOOKUP(TEXT(H180,"000")&UPPER(D180)&TEXT(E180,"0000"),'Kategorie lokální'!$A$2:$G$300,7,TRUE) ->  | N180: =VLOOKUP(UPPER(D180)&TEXT(E180,"0000"),'Kategorie ZBP'!$A$2:$E$30,5,TRUE) ->  | O180: =VLOOKUP(N180,'Kategorie ZBP'!$E:$F,2,0) ->  | P180: =VLOOKUP(H180&"x"&A180,Stopky!I:J,2,0) -> - | T180: =IF(ISERROR(VLOOKUP(H180&"x"&F180&"xANO",'Závody a tratě'!L:L,1,0))=TRUE,0,_xlfn.IFNA(VLOOKUP(S180,'Body ZBP'!$A$1:$B$40,2,1),0)) -> 0 | U180: =H180&"x"&A180 -> x | V180: =IF(U180<>"x",COUNTIF($U$2:$U$3000,U180),"") ->  | W180: =IF(I180<>"xxxxx",COUNTIF($I$2:$I$3000,I180),"") -> 
I181: =B181&"x"&C181&"x"&D181&"x"&E181&"x"&H181&"x"&F181 -> xxxxx | J181: =VLOOKUP(H181,'Závody a tratě'!$B:$C,2,0) ->  | K181: =VLOOKUP(H181&"x"&F181,'Závody a tratě'!$A:$F,6,0) -> 0 | L181: =VLOOKUP(TEXT(H181,"000")&UPPER(D181)&TEXT(E181,"0000"),'Kategorie lokální'!$A$2:$F$300,6,TRUE) ->  | M181: =VLOOKUP(TEXT(H181,"000")&UPPER(D181)&TEXT(E181,"0000"),'Kategorie lokální'!$A$2:$G$300,7,TRUE) ->  | N181: =VLOOKUP(UPPER(D181)&TEXT(E181,"0000"),'Kategorie ZBP'!$A$2:$E$30,5,TRUE) ->  | O181: =VLOOKUP(N181,'Kategorie ZBP'!$E:$F,2,0) ->  | P181: =VLOOKUP(H181&"x"&A181,Stopky!I:J,2,0) -> - | T181: =IF(ISERROR(VLOOKUP(H181&"x"&F181&"xANO",'Závody a tratě'!L:L,1,0))=TRUE,0,_xlfn.IFNA(VLOOKUP(S181,'Body ZBP'!$A$1:$B$40,2,1),0)) -> 0 | U181: =H181&"x"&A181 -> x | V181: =IF(U181<>"x",COUNTIF($U$2:$U$3000,U181),"") ->  | W181: =IF(I181<>"xxxxx",COUNTIF($I$2:$I$3000,I181),"") -> 
I182: =B182&"x"&C182&"x"&D182&"x"&E182&"x"&H182&"x"&F182 -> xxxxx | J182: =VLOOKUP(H182,'Závody a tratě'!$B:$C,2,0) ->  | K182: =VLOOKUP(H182&"x"&F182,'Závody a tratě'!$A:$F,6,0) -> 0 | L182: =VLOOKUP(TEXT(H182,"000")&UPPER(D182)&TEXT(E182,"0000"),'Kategorie lokální'!$A$2:$F$300,6,TRUE) ->  | M182: =VLOOKUP(TEXT(H182,"000")&UPPER(D182)&TEXT(E182,"0000"),'Kategorie lokální'!$A$2:$G$300,7,TRUE) ->  | N182: =VLOOKUP(UPPER(D182)&TEXT(E182,"0000"),'Kategorie ZBP'!$A$2:$E$30,5,TRUE) ->  | O182: =VLOOKUP(N182,'Kategorie ZBP'!$E:$F,2,0) ->  | P182: =VLOOKUP(H182&"x"&A182,Stopky!I:J,2,0) -> - | T182: =IF(ISERROR(VLOOKUP(H182&"x"&F182&"xANO",'Závody a tratě'!L:L,1,0))=TRUE,0,_xlfn.IFNA(VLOOKUP(S182,'Body ZBP'!$A$1:$B$40,2,1),0)) -> 0 | U182: =H182&"x"&A182 -> x | V182: =IF(U182<>"x",COUNTIF($U$2:$U$3000,U182),"") ->  | W182: =IF(I182<>"xxxxx",COUNTIF($I$2:$I$3000,I182),"") -> 
I183: =B183&"x"&C183&"x"&D183&"x"&E183&"x"&H183&"x"&F183 -> xxxxx | J183: =VLOOKUP(H183,'Závody a tratě'!$B:$C,2,0) ->  | K183: =VLOOKUP(H183&"x"&F183,'Závody a tratě'!$A:$F,6,0) -> 0 | L183: =VLOOKUP(TEXT(H183,"000")&UPPER(D183)&TEXT(E183,"0000"),'Kategorie lokální'!$A$2:$F$300,6,TRUE) ->  | M183: =VLOOKUP(TEXT(H183,"000")&UPPER(D183)&TEXT(E183,"0000"),'Kategorie lokální'!$A$2:$G$300,7,TRUE) ->  | N183: =VLOOKUP(UPPER(D183)&TEXT(E183,"0000"),'Kategorie ZBP'!$A$2:$E$30,5,TRUE) ->  | O183: =VLOOKUP(N183,'Kategorie ZBP'!$E:$F,2,0) ->  | P183: =VLOOKUP(H183&"x"&A183,Stopky!I:J,2,0) -> - | T183: =IF(ISERROR(VLOOKUP(H183&"x"&F183&"xANO",'Závody a tratě'!L:L,1,0))=TRUE,0,_xlfn.IFNA(VLOOKUP(S183,'Body ZBP'!$A$1:$B$40,2,1),0)) -> 0 | U183: =H183&"x"&A183 -> x | V183: =IF(U183<>"x",COUNTIF($U$2:$U$3000,U183),"") ->  | W183: =IF(I183<>"xxxxx",COUNTIF($I$2:$I$3000,I183),"") -> 
I184: =B184&"x"&C184&"x"&D184&"x"&E184&"x"&H184&"x"&F184 -> xxxxx | J184: =VLOOKUP(H184,'Závody a tratě'!$B:$C,2,0) ->  | K184: =VLOOKUP(H184&"x"&F184,'Závody a tratě'!$A:$F,6,0) -> 0 | L184: =VLOOKUP(TEXT(H184,"000")&UPPER(D184)&TEXT(E184,"0000"),'Kategorie lokální'!$A$2:$F$300,6,TRUE) ->  | M184: =VLOOKUP(TEXT(H184,"000")&UPPER(D184)&TEXT(E184,"0000"),'Kategorie lokální'!$A$2:$G$300,7,TRUE) ->  | N184: =VLOOKUP(UPPER(D184)&TEXT(E184,"0000"),'Kategorie ZBP'!$A$2:$E$30,5,TRUE) ->  | O184: =VLOOKUP(N184,'Kategorie ZBP'!$E:$F,2,0) ->  | P184: =VLOOKUP(H184&"x"&A184,Stopky!I:J,2,0) -> - | T184: =IF(ISERROR(VLOOKUP(H184&"x"&F184&"xANO",'Závody a tratě'!L:L,1,0))=TRUE,0,_xlfn.IFNA(VLOOKUP(S184,'Body ZBP'!$A$1:$B$40,2,1),0)) -> 0 | U184: =H184&"x"&A184 -> x | V184: =IF(U184<>"x",COUNTIF($U$2:$U$3000,U184),"") ->  | W184: =IF(I184<>"xxxxx",COUNTIF($I$2:$I$3000,I184),"") -> 
I185: =B185&"x"&C185&"x"&D185&"x"&E185&"x"&H185&"x"&F185 -> xxxxx | J185: =VLOOKUP(H185,'Závody a tratě'!$B:$C,2,0) ->  | K185: =VLOOKUP(H185&"x"&F185,'Závody a tratě'!$A:$F,6,0) -> 0 | L185: =VLOOKUP(TEXT(H185,"000")&UPPER(D185)&TEXT(E185,"0000"),'Kategorie lokální'!$A$2:$F$300,6,TRUE) ->  | M185: =VLOOKUP(TEXT(H185,"000")&UPPER(D185)&TEXT(E185,"0000"),'Kategorie lokální'!$A$2:$G$300,7,TRUE) ->  | N185: =VLOOKUP(UPPER(D185)&TEXT(E185,"0000"),'Kategorie ZBP'!$A$2:$E$30,5,TRUE) ->  | O185: =VLOOKUP(N185,'Kategorie ZBP'!$E:$F,2,0) ->  | P185: =VLOOKUP(H185&"x"&A185,Stopky!I:J,2,0) -> - | T185: =IF(ISERROR(VLOOKUP(H185&"x"&F185&"xANO",'Závody a tratě'!L:L,1,0))=TRUE,0,_xlfn.IFNA(VLOOKUP(S185,'Body ZBP'!$A$1:$B$40,2,1),0)) -> 0 | U185: =H185&"x"&A185 -> x | V185: =IF(U185<>"x",COUNTIF($U$2:$U$3000,U185),"") ->  | W185: =IF(I185<>"xxxxx",COUNTIF($I$2:$I$3000,I185),"") -> 
I186: =B186&"x"&C186&"x"&D186&"x"&E186&"x"&H186&"x"&F186 -> xxxxx | J186: =VLOOKUP(H186,'Závody a tratě'!$B:$C,2,0) ->  | K186: =VLOOKUP(H186&"x"&F186,'Závody a tratě'!$A:$F,6,0) -> 0 | L186: =VLOOKUP(TEXT(H186,"000")&UPPER(D186)&TEXT(E186,"0000"),'Kategorie lokální'!$A$2:$F$300,6,TRUE) ->  | M186: =VLOOKUP(TEXT(H186,"000")&UPPER(D186)&TEXT(E186,"0000"),'Kategorie lokální'!$A$2:$G$300,7,TRUE) ->  | N186: =VLOOKUP(UPPER(D186)&TEXT(E186,"0000"),'Kategorie ZBP'!$A$2:$E$30,5,TRUE) ->  | O186: =VLOOKUP(N186,'Kategorie ZBP'!$E:$F,2,0) ->  | P186: =VLOOKUP(H186&"x"&A186,Stopky!I:J,2,0) -> - | T186: =IF(ISERROR(VLOOKUP(H186&"x"&F186&"xANO",'Závody a tratě'!L:L,1,0))=TRUE,0,_xlfn.IFNA(VLOOKUP(S186,'Body ZBP'!$A$1:$B$40,2,1),0)) -> 0 | U186: =H186&"x"&A186 -> x | V186: =IF(U186<>"x",COUNTIF($U$2:$U$3000,U186),"") ->  | W186: =IF(I186<>"xxxxx",COUNTIF($I$2:$I$3000,I186),"") -> 
I187: =B187&"x"&C187&"x"&D187&"x"&E187&"x"&H187&"x"&F187 -> xxxxx | J187: =VLOOKUP(H187,'Závody a tratě'!$B:$C,2,0) ->  | K187: =VLOOKUP(H187&"x"&F187,'Závody a tratě'!$A:$F,6,0) -> 0 | L187: =VLOOKUP(TEXT(H187,"000")&UPPER(D187)&TEXT(E187,"0000"),'Kategorie lokální'!$A$2:$F$300,6,TRUE) ->  | M187: =VLOOKUP(TEXT(H187,"000")&UPPER(D187)&TEXT(E187,"0000"),'Kategorie lokální'!$A$2:$G$300,7,TRUE) ->  | N187: =VLOOKUP(UPPER(D187)&TEXT(E187,"0000"),'Kategorie ZBP'!$A$2:$E$30,5,TRUE) ->  | O187: =VLOOKUP(N187,'Kategorie ZBP'!$E:$F,2,0) ->  | P187: =VLOOKUP(H187&"x"&A187,Stopky!I:J,2,0) -> - | T187: =IF(ISERROR(VLOOKUP(H187&"x"&F187&"xANO",'Závody a tratě'!L:L,1,0))=TRUE,0,_xlfn.IFNA(VLOOKUP(S187,'Body ZBP'!$A$1:$B$40,2,1),0)) -> 0 | U187: =H187&"x"&A187 -> x | V187: =IF(U187<>"x",COUNTIF($U$2:$U$3000,U187),"") ->  | W187: =IF(I187<>"xxxxx",COUNTIF($I$2:$I$3000,I187),"") -> 
I188: =B188&"x"&C188&"x"&D188&"x"&E188&"x"&H188&"x"&F188 -> xxxxx | J188: =VLOOKUP(H188,'Závody a tratě'!$B:$C,2,0) ->  | K188: =VLOOKUP(H188&"x"&F188,'Závody a tratě'!$A:$F,6,0) -> 0 | L188: =VLOOKUP(TEXT(H188,"000")&UPPER(D188)&TEXT(E188,"0000"),'Kategorie lokální'!$A$2:$F$300,6,TRUE) ->  | M188: =VLOOKUP(TEXT(H188,"000")&UPPER(D188)&TEXT(E188,"0000"),'Kategorie lokální'!$A$2:$G$300,7,TRUE) ->  | N188: =VLOOKUP(UPPER(D188)&TEXT(E188,"0000"),'Kategorie ZBP'!$A$2:$E$30,5,TRUE) ->  | O188: =VLOOKUP(N188,'Kategorie ZBP'!$E:$F,2,0) ->  | P188: =VLOOKUP(H188&"x"&A188,Stopky!I:J,2,0) -> - | T188: =IF(ISERROR(VLOOKUP(H188&"x"&F188&"xANO",'Závody a tratě'!L:L,1,0))=TRUE,0,_xlfn.IFNA(VLOOKUP(S188,'Body ZBP'!$A$1:$B$40,2,1),0)) -> 0 | U188: =H188&"x"&A188 -> x | V188: =IF(U188<>"x",COUNTIF($U$2:$U$3000,U188),"") ->  | W188: =IF(I188<>"xxxxx",COUNTIF($I$2:$I$3000,I188),"") -> 
I189: =B189&"x"&C189&"x"&D189&"x"&E189&"x"&H189&"x"&F189 -> xxxxx | J189: =VLOOKUP(H189,'Závody a tratě'!$B:$C,2,0) ->  | K189: =VLOOKUP(H189&"x"&F189,'Závody a tratě'!$A:$F,6,0) -> 0 | L189: =VLOOKUP(TEXT(H189,"000")&UPPER(D189)&TEXT(E189,"0000"),'Kategorie lokální'!$A$2:$F$300,6,TRUE) ->  | M189: =VLOOKUP(TEXT(H189,"000")&UPPER(D189)&TEXT(E189,"0000"),'Kategorie lokální'!$A$2:$G$300,7,TRUE) ->  | N189: =VLOOKUP(UPPER(D189)&TEXT(E189,"0000"),'Kategorie ZBP'!$A$2:$E$30,5,TRUE) ->  | O189: =VLOOKUP(N189,'Kategorie ZBP'!$E:$F,2,0) ->  | P189: =VLOOKUP(H189&"x"&A189,Stopky!I:J,2,0) -> - | T189: =IF(ISERROR(VLOOKUP(H189&"x"&F189&"xANO",'Závody a tratě'!L:L,1,0))=TRUE,0,_xlfn.IFNA(VLOOKUP(S189,'Body ZBP'!$A$1:$B$40,2,1),0)) -> 0 | U189: =H189&"x"&A189 -> x | V189: =IF(U189<>"x",COUNTIF($U$2:$U$3000,U189),"") ->  | W189: =IF(I189<>"xxxxx",COUNTIF($I$2:$I$3000,I189),"") -> 
I190: =B190&"x"&C190&"x"&D190&"x"&E190&"x"&H190&"x"&F190 -> xxxxx | J190: =VLOOKUP(H190,'Závody a tratě'!$B:$C,2,0) ->  | K190: =VLOOKUP(H190&"x"&F190,'Závody a tratě'!$A:$F,6,0) -> 0 | L190: =VLOOKUP(TEXT(H190,"000")&UPPER(D190)&TEXT(E190,"0000"),'Kategorie lokální'!$A$2:$F$300,6,TRUE) ->  | M190: =VLOOKUP(TEXT(H190,"000")&UPPER(D190)&TEXT(E190,"0000"),'Kategorie lokální'!$A$2:$G$300,7,TRUE) ->  | N190: =VLOOKUP(UPPER(D190)&TEXT(E190,"0000"),'Kategorie ZBP'!$A$2:$E$30,5,TRUE) ->  | O190: =VLOOKUP(N190,'Kategorie ZBP'!$E:$F,2,0) ->  | P190: =VLOOKUP(H190&"x"&A190,Stopky!I:J,2,0) -> - | T190: =IF(ISERROR(VLOOKUP(H190&"x"&F190&"xANO",'Závody a tratě'!L:L,1,0))=TRUE,0,_xlfn.IFNA(VLOOKUP(S190,'Body ZBP'!$A$1:$B$40,2,1),0)) -> 0 | U190: =H190&"x"&A190 -> x | V190: =IF(U190<>"x",COUNTIF($U$2:$U$3000,U190),"") ->  | W190: =IF(I190<>"xxxxx",COUNTIF($I$2:$I$3000,I190),"") -> 
I191: =B191&"x"&C191&"x"&D191&"x"&E191&"x"&H191&"x"&F191 -> xxxxx | J191: =VLOOKUP(H191,'Závody a tratě'!$B:$C,2,0) ->  | K191: =VLOOKUP(H191&"x"&F191,'Závody a tratě'!$A:$F,6,0) -> 0 | L191: =VLOOKUP(TEXT(H191,"000")&UPPER(D191)&TEXT(E191,"0000"),'Kategorie lokální'!$A$2:$F$300,6,TRUE) ->  | M191: =VLOOKUP(TEXT(H191,"000")&UPPER(D191)&TEXT(E191,"0000"),'Kategorie lokální'!$A$2:$G$300,7,TRUE) ->  | N191: =VLOOKUP(UPPER(D191)&TEXT(E191,"0000"),'Kategorie ZBP'!$A$2:$E$30,5,TRUE) ->  | O191: =VLOOKUP(N191,'Kategorie ZBP'!$E:$F,2,0) ->  | P191: =VLOOKUP(H191&"x"&A191,Stopky!I:J,2,0) -> - | T191: =IF(ISERROR(VLOOKUP(H191&"x"&F191&"xANO",'Závody a tratě'!L:L,1,0))=TRUE,0,_xlfn.IFNA(VLOOKUP(S191,'Body ZBP'!$A$1:$B$40,2,1),0)) -> 0 | U191: =H191&"x"&A191 -> x | V191: =IF(U191<>"x",COUNTIF($U$2:$U$3000,U191),"") ->  | W191: =IF(I191<>"xxxxx",COUNTIF($I$2:$I$3000,I191),"") -> 
I192: =B192&"x"&C192&"x"&D192&"x"&E192&"x"&H192&"x"&F192 -> xxxxx | J192: =VLOOKUP(H192,'Závody a tratě'!$B:$C,2,0) ->  | K192: =VLOOKUP(H192&"x"&F192,'Závody a tratě'!$A:$F,6,0) -> 0 | L192: =VLOOKUP(TEXT(H192,"000")&UPPER(D192)&TEXT(E192,"0000"),'Kategorie lokální'!$A$2:$F$300,6,TRUE) ->  | M192: =VLOOKUP(TEXT(H192,"000")&UPPER(D192)&TEXT(E192,"0000"),'Kategorie lokální'!$A$2:$G$300,7,TRUE) ->  | N192: =VLOOKUP(UPPER(D192)&TEXT(E192,"0000"),'Kategorie ZBP'!$A$2:$E$30,5,TRUE) ->  | O192: =VLOOKUP(N192,'Kategorie ZBP'!$E:$F,2,0) ->  | P192: =VLOOKUP(H192&"x"&A192,Stopky!I:J,2,0) -> - | T192: =IF(ISERROR(VLOOKUP(H192&"x"&F192&"xANO",'Závody a tratě'!L:L,1,0))=TRUE,0,_xlfn.IFNA(VLOOKUP(S192,'Body ZBP'!$A$1:$B$40,2,1),0)) -> 0 | U192: =H192&"x"&A192 -> x | V192: =IF(U192<>"x",COUNTIF($U$2:$U$3000,U192),"") ->  | W192: =IF(I192<>"xxxxx",COUNTIF($I$2:$I$3000,I192),"") -> 
I193: =B193&"x"&C193&"x"&D193&"x"&E193&"x"&H193&"x"&F193 -> xxxxx | J193: =VLOOKUP(H193,'Závody a tratě'!$B:$C,2,0) ->  | K193: =VLOOKUP(H193&"x"&F193,'Závody a tratě'!$A:$F,6,0) -> 0 | L193: =VLOOKUP(TEXT(H193,"000")&UPPER(D193)&TEXT(E193,"0000"),'Kategorie lokální'!$A$2:$F$300,6,TRUE) ->  | M193: =VLOOKUP(TEXT(H193,"000")&UPPER(D193)&TEXT(E193,"0000"),'Kategorie lokální'!$A$2:$G$300,7,TRUE) ->  | N193: =VLOOKUP(UPPER(D193)&TEXT(E193,"0000"),'Kategorie ZBP'!$A$2:$E$30,5,TRUE) ->  | O193: =VLOOKUP(N193,'Kategorie ZBP'!$E:$F,2,0) ->  | P193: =VLOOKUP(H193&"x"&A193,Stopky!I:J,2,0) -> - | T193: =IF(ISERROR(VLOOKUP(H193&"x"&F193&"xANO",'Závody a tratě'!L:L,1,0))=TRUE,0,_xlfn.IFNA(VLOOKUP(S193,'Body ZBP'!$A$1:$B$40,2,1),0)) -> 0 | U193: =H193&"x"&A193 -> x | V193: =IF(U193<>"x",COUNTIF($U$2:$U$3000,U193),"") ->  | W193: =IF(I193<>"xxxxx",COUNTIF($I$2:$I$3000,I193),"") -> 
I194: =B194&"x"&C194&"x"&D194&"x"&E194&"x"&H194&"x"&F194 -> xxxxx | J194: =VLOOKUP(H194,'Závody a tratě'!$B:$C,2,0) ->  | K194: =VLOOKUP(H194&"x"&F194,'Závody a tratě'!$A:$F,6,0) -> 0 | L194: =VLOOKUP(TEXT(H194,"000")&UPPER(D194)&TEXT(E194,"0000"),'Kategorie lokální'!$A$2:$F$300,6,TRUE) ->  | M194: =VLOOKUP(TEXT(H194,"000")&UPPER(D194)&TEXT(E194,"0000"),'Kategorie lokální'!$A$2:$G$300,7,TRUE) ->  | N194: =VLOOKUP(UPPER(D194)&TEXT(E194,"0000"),'Kategorie ZBP'!$A$2:$E$30,5,TRUE) ->  | O194: =VLOOKUP(N194,'Kategorie ZBP'!$E:$F,2,0) ->  | P194: =VLOOKUP(H194&"x"&A194,Stopky!I:J,2,0) -> - | T194: =IF(ISERROR(VLOOKUP(H194&"x"&F194&"xANO",'Závody a tratě'!L:L,1,0))=TRUE,0,_xlfn.IFNA(VLOOKUP(S194,'Body ZBP'!$A$1:$B$40,2,1),0)) -> 0 | U194: =H194&"x"&A194 -> x | V194: =IF(U194<>"x",COUNTIF($U$2:$U$3000,U194),"") ->  | W194: =IF(I194<>"xxxxx",COUNTIF($I$2:$I$3000,I194),"") -> 
I195: =B195&"x"&C195&"x"&D195&"x"&E195&"x"&H195&"x"&F195 -> xxxxx | J195: =VLOOKUP(H195,'Závody a tratě'!$B:$C,2,0) ->  | K195: =VLOOKUP(H195&"x"&F195,'Závody a tratě'!$A:$F,6,0) -> 0 | L195: =VLOOKUP(TEXT(H195,"000")&UPPER(D195)&TEXT(E195,"0000"),'Kategorie lokální'!$A$2:$F$300,6,TRUE) ->  | M195: =VLOOKUP(TEXT(H195,"000")&UPPER(D195)&TEXT(E195,"0000"),'Kategorie lokální'!$A$2:$G$300,7,TRUE) ->  | N195: =VLOOKUP(UPPER(D195)&TEXT(E195,"0000"),'Kategorie ZBP'!$A$2:$E$30,5,TRUE) ->  | O195: =VLOOKUP(N195,'Kategorie ZBP'!$E:$F,2,0) ->  | P195: =VLOOKUP(H195&"x"&A195,Stopky!I:J,2,0) -> - | T195: =IF(ISERROR(VLOOKUP(H195&"x"&F195&"xANO",'Závody a tratě'!L:L,1,0))=TRUE,0,_xlfn.IFNA(VLOOKUP(S195,'Body ZBP'!$A$1:$B$40,2,1),0)) -> 0 | U195: =H195&"x"&A195 -> x | V195: =IF(U195<>"x",COUNTIF($U$2:$U$3000,U195),"") ->  | W195: =IF(I195<>"xxxxx",COUNTIF($I$2:$I$3000,I195),"") -> 
I196: =B196&"x"&C196&"x"&D196&"x"&E196&"x"&H196&"x"&F196 -> xxxxx | J196: =VLOOKUP(H196,'Závody a tratě'!$B:$C,2,0) ->  | K196: =VLOOKUP(H196&"x"&F196,'Závody a tratě'!$A:$F,6,0) -> 0 | L196: =VLOOKUP(TEXT(H196,"000")&UPPER(D196)&TEXT(E196,"0000"),'Kategorie lokální'!$A$2:$F$300,6,TRUE) ->  | M196: =VLOOKUP(TEXT(H196,"000")&UPPER(D196)&TEXT(E196,"0000"),'Kategorie lokální'!$A$2:$G$300,7,TRUE) ->  | N196: =VLOOKUP(UPPER(D196)&TEXT(E196,"0000"),'Kategorie ZBP'!$A$2:$E$30,5,TRUE) ->  | O196: =VLOOKUP(N196,'Kategorie ZBP'!$E:$F,2,0) ->  | P196: =VLOOKUP(H196&"x"&A196,Stopky!I:J,2,0) -> - | T196: =IF(ISERROR(VLOOKUP(H196&"x"&F196&"xANO",'Závody a tratě'!L:L,1,0))=TRUE,0,_xlfn.IFNA(VLOOKUP(S196,'Body ZBP'!$A$1:$B$40,2,1),0)) -> 0 | U196: =H196&"x"&A196 -> x | V196: =IF(U196<>"x",COUNTIF($U$2:$U$3000,U196),"") ->  | W196: =IF(I196<>"xxxxx",COUNTIF($I$2:$I$3000,I196),"") -> 
I197: =B197&"x"&C197&"x"&D197&"x"&E197&"x"&H197&"x"&F197 -> xxxxx | J197: =VLOOKUP(H197,'Závody a tratě'!$B:$C,2,0) ->  | K197: =VLOOKUP(H197&"x"&F197,'Závody a tratě'!$A:$F,6,0) -> 0 | L197: =VLOOKUP(TEXT(H197,"000")&UPPER(D197)&TEXT(E197,"0000"),'Kategorie lokální'!$A$2:$F$300,6,TRUE) ->  | M197: =VLOOKUP(TEXT(H197,"000")&UPPER(D197)&TEXT(E197,"0000"),'Kategorie lokální'!$A$2:$G$300,7,TRUE) ->  | N197: =VLOOKUP(UPPER(D197)&TEXT(E197,"0000"),'Kategorie ZBP'!$A$2:$E$30,5,TRUE) ->  | O197: =VLOOKUP(N197,'Kategorie ZBP'!$E:$F,2,0) ->  | P197: =VLOOKUP(H197&"x"&A197,Stopky!I:J,2,0) -> - | T197: =IF(ISERROR(VLOOKUP(H197&"x"&F197&"xANO",'Závody a tratě'!L:L,1,0))=TRUE,0,_xlfn.IFNA(VLOOKUP(S197,'Body ZBP'!$A$1:$B$40,2,1),0)) -> 0 | U197: =H197&"x"&A197 -> x | V197: =IF(U197<>"x",COUNTIF($U$2:$U$3000,U197),"") ->  | W197: =IF(I197<>"xxxxx",COUNTIF($I$2:$I$3000,I197),"") -> 
I198: =B198&"x"&C198&"x"&D198&"x"&E198&"x"&H198&"x"&F198 -> xxxxx | J198: =VLOOKUP(H198,'Závody a tratě'!$B:$C,2,0) ->  | K198: =VLOOKUP(H198&"x"&F198,'Závody a tratě'!$A:$F,6,0) -> 0 | L198: =VLOOKUP(TEXT(H198,"000")&UPPER(D198)&TEXT(E198,"0000"),'Kategorie lokální'!$A$2:$F$300,6,TRUE) ->  | M198: =VLOOKUP(TEXT(H198,"000")&UPPER(D198)&TEXT(E198,"0000"),'Kategorie lokální'!$A$2:$G$300,7,TRUE) ->  | N198: =VLOOKUP(UPPER(D198)&TEXT(E198,"0000"),'Kategorie ZBP'!$A$2:$E$30,5,TRUE) ->  | O198: =VLOOKUP(N198,'Kategorie ZBP'!$E:$F,2,0) ->  | P198: =VLOOKUP(H198&"x"&A198,Stopky!I:J,2,0) -> - | T198: =IF(ISERROR(VLOOKUP(H198&"x"&F198&"xANO",'Závody a tratě'!L:L,1,0))=TRUE,0,_xlfn.IFNA(VLOOKUP(S198,'Body ZBP'!$A$1:$B$40,2,1),0)) -> 0 | U198: =H198&"x"&A198 -> x | V198: =IF(U198<>"x",COUNTIF($U$2:$U$3000,U198),"") ->  | W198: =IF(I198<>"xxxxx",COUNTIF($I$2:$I$3000,I198),"") -> 
I199: =B199&"x"&C199&"x"&D199&"x"&E199&"x"&H199&"x"&F199 -> xxxxx | J199: =VLOOKUP(H199,'Závody a tratě'!$B:$C,2,0) ->  | K199: =VLOOKUP(H199&"x"&F199,'Závody a tratě'!$A:$F,6,0) -> 0 | L199: =VLOOKUP(TEXT(H199,"000")&UPPER(D199)&TEXT(E199,"0000"),'Kategorie lokální'!$A$2:$F$300,6,TRUE) ->  | M199: =VLOOKUP(TEXT(H199,"000")&UPPER(D199)&TEXT(E199,"0000"),'Kategorie lokální'!$A$2:$G$300,7,TRUE) ->  | N199: =VLOOKUP(UPPER(D199)&TEXT(E199,"0000"),'Kategorie ZBP'!$A$2:$E$30,5,TRUE) ->  | O199: =VLOOKUP(N199,'Kategorie ZBP'!$E:$F,2,0) ->  | P199: =VLOOKUP(H199&"x"&A199,Stopky!I:J,2,0) -> - | T199: =IF(ISERROR(VLOOKUP(H199&"x"&F199&"xANO",'Závody a tratě'!L:L,1,0))=TRUE,0,_xlfn.IFNA(VLOOKUP(S199,'Body ZBP'!$A$1:$B$40,2,1),0)) -> 0 | U199: =H199&"x"&A199 -> x | V199: =IF(U199<>"x",COUNTIF($U$2:$U$3000,U199),"") ->  | W199: =IF(I199<>"xxxxx",COUNTIF($I$2:$I$3000,I199),"") -> 
I200: =B200&"x"&C200&"x"&D200&"x"&E200&"x"&H200&"x"&F200 -> xxxxx | J200: =VLOOKUP(H200,'Závody a tratě'!$B:$C,2,0) ->  | K200: =VLOOKUP(H200&"x"&F200,'Závody a tratě'!$A:$F,6,0) -> 0 | L200: =VLOOKUP(TEXT(H200,"000")&UPPER(D200)&TEXT(E200,"0000"),'Kategorie lokální'!$A$2:$F$300,6,TRUE) ->  | M200: =VLOOKUP(TEXT(H200,"000")&UPPER(D200)&TEXT(E200,"0000"),'Kategorie lokální'!$A$2:$G$300,7,TRUE) ->  | N200: =VLOOKUP(UPPER(D200)&TEXT(E200,"0000"),'Kategorie ZBP'!$A$2:$E$30,5,TRUE) ->  | O200: =VLOOKUP(N200,'Kategorie ZBP'!$E:$F,2,0) ->  | P200: =VLOOKUP(H200&"x"&A200,Stopky!I:J,2,0) -> - | T200: =IF(ISERROR(VLOOKUP(H200&"x"&F200&"xANO",'Závody a tratě'!L:L,1,0))=TRUE,0,_xlfn.IFNA(VLOOKUP(S200,'Body ZBP'!$A$1:$B$40,2,1),0)) -> 0 | U200: =H200&"x"&A200 -> x | V200: =IF(U200<>"x",COUNTIF($U$2:$U$3000,U200),"") ->  | W200: =IF(I200<>"xxxxx",COUNTIF($I$2:$I$3000,I200),"") -> 
... 2800 more rows

Sheet Stopky
A1: Startovní číslo | B1: Hodiny | C1: Minuty | D1: Sekundy | E1: Setiny | F1: ID závodu | G1: Kontrola chyb | H1: Jsou časy vzestupně? | I1: ID String | J1: Výsledný čas | K1: Duplicity? | L1: čas kontrola | M1: St. Č. kontrola
A2: 39 | B2: 0 | C2: 36 | D2: 38 | F2: 1 | G2: =IF(AND(F2<>"",A2&B2&C2&D2&E2=""),"Nevyplněný řádek. Smaž ID závodu nebo doplň záznam.",IF(AND(F2<>"",K2>1),"Duplicitní záznam!",IF(AND(F2="",A2&B2&C2&D2&E2<>""),"Doplň ID závodu",IF(AND(A2="",B2&C2&D2&E2&F2<>""),"Doplň startovní číslo",IF(AND(A2<>"",B2&C2&D2&E2=""),"Doplň čas nebo dej DNF do sloupce Setiny.",IF(AND(A2<>"",F2<>"",ISNA(M2)),"Startovní číslo nenalezeno v REGISTRACI.","OK")))))) -> OK | H2: =IF(F2<>F1,IF(OR(L2<L3,L2=L3,F2=""),"OK","Potenciální chyba. Záznamy nejdou vzestupně."),IF(OR(L2>L1,L2=L1),"OK","Potenciální chyba. Záznamy nejdou vzestupně.")) -> OK | I2: =F2&"x"&A2 -> 1x39 | J2: =IF(B2+C2+D2+E2<>0,B2/24+C2/60/24+(D2+E2/100)/60/60/24,"-") -> 00:36:38 | K2: =IF(A2<>"",COUNTIF(I:I,I2),1) -> 1 | L2: =IF(F2<>F1,IFERROR(J2,0),IFERROR(J2,L1)) -> 0.02543981481 | M2: =VLOOKUP(I2,'Registrace ZBP'!U:U,1,0) -> 1x39
A3: 49 | B3: 0 | C3: 37 | D3: 42 | F3: 1 | G3: OK | H3: OK | I3: 1x49 | J3: 00:37:42 | K3: 1 | L3: 0.02618055556 | M3: =VLOOKUP(I3,'Registrace ZBP'!U:U,1,0) -> 1x49
A4: 33 | B4: 0 | C4: 38 | D4: 7 | F4: 1 | G4: OK | H4: OK | I4: 1x33 | J4: 00:38:07 | K4: 1 | L4: 0.02646990741 | M4: =VLOOKUP(I4,'Registrace ZBP'!U:U,1,0) -> 1x33
A5: 61 | B5: 0 | C5: 38 | D5: 9 | F5: 1 | G5: OK | H5: OK | I5: 1x61 | J5: 00:38:09 | K5: 1 | L5: 0.02649305556 | M5: =VLOOKUP(I5,'Registrace ZBP'!U:U,1,0) -> 1x61
A6: 35 | B6: 0 | C6: 38 | D6: 54 | F6: 1 | G6: OK | H6: OK | I6: 1x35 | J6: 00:38:54 | K6: 1 | L6: 0.02701388889 | M6: =VLOOKUP(I6,'Registrace ZBP'!U:U,1,0) -> 1x35
A7: 36 | B7: 0 | C7: 39 | D7: 56 | F7: 1 | G7: OK | H7: OK | I7: 1x36 | J7: 00:39:56 | K7: 1 | L7: 0.02773148148 | M7: =VLOOKUP(I7,'Registrace ZBP'!U:U,1,0) -> 1x36
A8: 38 | B8: 0 | C8: 39 | D8: 56 | F8: 1 | G8: OK | H8: OK | I8: 1x38 | J8: 00:39:56 | K8: 1 | L8: 0.02773148148 | M8: =VLOOKUP(I8,'Registrace ZBP'!U:U,1,0) -> 1x38
A9: 42 | B9: 0 | C9: 40 | D9: 19 | F9: 1 | G9: OK | H9: OK | I9: 1x42 | J9: 00:40:19 | K9: 1 | L9: 0.02799768519 | M9: =VLOOKUP(I9,'Registrace ZBP'!U:U,1,0) -> 1x42
A10: 4 | B10: 0 | C10: 40 | D10: 27 | F10: 1 | G10: OK | H10: OK | I10: 1x4 | J10: 00:40:27 | K10: 1 | L10: 0.02809027778 | M10: =VLOOKUP(I10,'Registrace ZBP'!U:U,1,0) -> 1x4
A11: 41 | B11: 0 | C11: 41 | D11: 15 | F11: 1 | G11: OK | H11: OK | I11: 1x41 | J11: 00:41:15 | K11: 1 | L11: 0.02864583333 | M11: =VLOOKUP(I11,'Registrace ZBP'!U:U,1,0) -> 1x41
A12: 25 | B12: 0 | C12: 41 | D12: 27 | F12: 1 | G12: OK | H12: OK | I12: 1x25 | J12: 00:41:27 | K12: 1 | L12: 0.02878472222 | M12: =VLOOKUP(I12,'Registrace ZBP'!U:U,1,0) -> 1x25
A13: 20 | B13: 0 | C13: 41 | D13: 52 | F13: 1 | G13: OK | H13: OK | I13: 1x20 | J13: 00:41:52 | K13: 1 | L13: 0.02907407407 | M13: =VLOOKUP(I13,'Registrace ZBP'!U:U,1,0) -> 1x20
A14: 40 | B14: 0 | C14: 41 | D14: 55 | F14: 1 | G14: OK | H14: OK | I14: 1x40 | J14: 00:41:55 | K14: 1 | L14: 0.0291087963 | M14: =VLOOKUP(I14,'Registrace ZBP'!U:U,1,0) -> 1x40
A15: 34 | B15: 0 | C15: 41 | D15: 56 | F15: 1 | G15: OK | H15: OK | I15: 1x34 | J15: 00:41:56 | K15: 1 | L15: 0.02912037037 | M15: =VLOOKUP(I15,'Registrace ZBP'!U:U,1,0) -> 1x34
A16: 7 | B16: 0 | C16: 41 | D16: 57 | F16: 1 | G16: OK | H16: OK | I16: 1x7 | J16: 00:41:57 | K16: 1 | L16: 0.02913194444 | M16: =VLOOKUP(I16,'Registrace ZBP'!U:U,1,0) -> 1x7
A17: 46 | B17: 0 | C17: 42 | D17: 18 | F17: 1 | G17: OK | H17: OK | I17: 1x46 | J17: 00:42:18 | K17: 1 | L17: 0.029375 | M17: =VLOOKUP(I17,'Registrace ZBP'!U:U,1,0) -> 1x46
A18: 58 | B18: 0 | C18: 42 | D18: 32 | F18: 1 | G18: OK | H18: OK | I18: 1x58 | J18: 00:42:32 | K18: 1 | L18: 0.02953703704 | M18: =VLOOKUP(I18,'Registrace ZBP'!U:U,1,0) -> 1x58
A19: 18 | B19: 0 | C19: 42 | D19: 37 | F19: 1 | G19: OK | H19: OK | I19: 1x18 | J19: 00:42:37 | K19: 1 | L19: 0.02959490741 | M19: =VLOOKUP(I19,'Registrace ZBP'!U:U,1,0) -> 1x18
A20: 8 | B20: 0 | C20: 42 | D20: 38 | F20: 1 | G20: OK | H20: OK | I20: 1x8 | J20: 00:42:38 | K20: 1 | L20: 0.02960648148 | M20: =VLOOKUP(I20,'Registrace ZBP'!U:U,1,0) -> 1x8
A21: 11 | B21: 0 | C21: 43 | D21: 44 | F21: 1 | G21: OK | H21: OK | I21: 1x11 | J21: 00:43:44 | K21: 1 | L21: 0.03037037037 | M21: =VLOOKUP(I21,'Registrace ZBP'!U:U,1,0) -> 1x11
A22: 6 | B22: 0 | C22: 44 | D22: 39 | F22: 1 | G22: OK | H22: OK | I22: 1x6 | J22: 00:44:39 | K22: 1 | L22: 0.03100694444 | M22: =VLOOKUP(I22,'Registrace ZBP'!U:U,1,0) -> 1x6
A23: 21 | B23: 0 | C23: 44 | D23: 46 | F23: 1 | G23: OK | H23: OK | I23: 1x21 | J23: 00:44:46 | K23: 1 | L23: 0.03108796296 | M23: =VLOOKUP(I23,'Registrace ZBP'!U:U,1,0) -> 1x21
A24: 52 | B24: 0 | C24: 45 | D24: 14 | F24: 1 | G24: OK | H24: OK | I24: 1x52 | J24: 00:45:14 | K24: 1 | L24: 0.03141203704 | M24: =VLOOKUP(I24,'Registrace ZBP'!U:U,1,0) -> 1x52
A25: 23 | B25: 0 | C25: 45 | D25: 47 | F25: 1 | G25: OK | H25: OK | I25: 1x23 | J25: 00:45:47 | K25: 1 | L25: 0.03179398148 | M25: =VLOOKUP(I25,'Registrace ZBP'!U:U,1,0) -> 1x23
A26: 32 | B26: 0 | C26: 46 | D26: 41 | F26: 1 | G26: OK | H26: OK | I26: 1x32 | J26: 00:46:41 | K26: 1 | L26: 0.03241898148 | M26: =VLOOKUP(I26,'Registrace ZBP'!U:U,1,0) -> 1x32
A27: 2 | B27: 0 | C27: 46 | D27: 46 | F27: 1 | G27: OK | H27: OK | I27: 1x2 | J27: 00:46:46 | K27: 1 | L27: 0.03247685185 | M27: =VLOOKUP(I27,'Registrace ZBP'!U:U,1,0) -> 1x2
A28: 48 | B28: 0 | C28: 46 | D28: 54 | F28: 1 | G28: OK | H28: OK | I28: 1x48 | J28: 00:46:54 | K28: 1 | L28: 0.03256944444 | M28: =VLOOKUP(I28,'Registrace ZBP'!U:U,1,0) -> 1x48
A29: 19 | B29: 0 | C29: 47 | D29: 0 | F29: 1 | G29: OK | H29: OK | I29: 1x19 | J29: 00:47:00 | K29: 1 | L29: 0.03263888889 | M29: =VLOOKUP(I29,'Registrace ZBP'!U:U,1,0) -> 1x19
A30: 50 | B30: 0 | C30: 48 | D30: 50 | F30: 1 | G30: OK | H30: OK | I30: 1x50 | J30: 00:48:50 | K30: 1 | L30: 0.03391203704 | M30: =VLOOKUP(I30,'Registrace ZBP'!U:U,1,0) -> 1x50
A31: 10 | B31: 0 | C31: 49 | D31: 56 | F31: 1 | G31: OK | H31: OK | I31: 1x10 | J31: 00:49:56 | K31: 1 | L31: 0.03467592593 | M31: =VLOOKUP(I31,'Registrace ZBP'!U:U,1,0) -> 1x10
A32: 12 | B32: 0 | C32: 50 | D32: 4 | F32: 1 | G32: OK | H32: OK | I32: 1x12 | J32: 00:50:04 | K32: 1 | L32: 0.03476851852 | M32: =VLOOKUP(I32,'Registrace ZBP'!U:U,1,0) -> 1x12
A33: 16 | B33: 0 | C33: 50 | D33: 5 | F33: 1 | G33: OK | H33: OK | I33: 1x16 | J33: 00:50:05 | K33: 1 | L33: 0.03478009259 | M33: =VLOOKUP(I33,'Registrace ZBP'!U:U,1,0) -> 1x16
A34: 51 | B34: 0 | C34: 52 | D34: 0 | F34: 1 | G34: OK | H34: OK | I34: 1x51 | J34: 00:52:00 | K34: 1 | L34: 0.03611111111 | M34: =VLOOKUP(I34,'Registrace ZBP'!U:U,1,0) -> 1x51
A35: 57 | B35: 0 | C35: 52 | D35: 18 | F35: 1 | G35: OK | H35: OK | I35: 1x57 | J35: 00:52:18 | K35: 1 | L35: 0.03631944444 | M35: =VLOOKUP(I35,'Registrace ZBP'!U:U,1,0) -> 1x57
A36: 26 | B36: 0 | C36: 53 | D36: 40 | F36: 1 | G36: OK | H36: OK | I36: 1x26 | J36: 00:53:40 | K36: 1 | L36: 0.03726851852 | M36: =VLOOKUP(I36,'Registrace ZBP'!U:U,1,0) -> 1x26
A37: 9 | B37: 1 | C37: 0 | D37: 45 | F37: 1 | G37: OK | H37: OK | I37: 1x9 | J37: 01:00:45 | K37: 1 | L37: 0.0421875 | M37: =VLOOKUP(I37,'Registrace ZBP'!U:U,1,0) -> 1x9
A38: 60 | B38: 0 | C38: 29 | D38: 5 | F38: 1 | G38: OK | H38: Potenciální chyba. Záznamy nejdou vzestupně. | I38: 1x60 | J38: 00:29:05 | K38: 1 | L38: 0.02019675926 | M38: =VLOOKUP(I38,'Registrace ZBP'!U:U,1,0) -> 1x60
A39: 43 | B39: 0 | C39: 29 | D39: 18 | F39: 1 | G39: OK | H39: OK | I39: 1x43 | J39: 00:29:18 | K39: 1 | L39: 0.02034722222 | M39: =VLOOKUP(I39,'Registrace ZBP'!U:U,1,0) -> 1x43
A40: 28 | B40: 0 | C40: 29 | D40: 42 | F40: 1 | G40: OK | H40: OK | I40: 1x28 | J40: 00:29:42 | K40: 1 | L40: 0.020625 | M40: =VLOOKUP(I40,'Registrace ZBP'!U:U,1,0) -> 1x28
A41: 13 | B41: 0 | C41: 30 | D41: 17 | F41: 1 | G41: OK | H41: OK | I41: 1x13 | J41: 00:30:17 | K41: 1 | L41: 0.02103009259 | M41: =VLOOKUP(I41,'Registrace ZBP'!U:U,1,0) -> 1x13
A42: 47 | B42: 0 | C42: 30 | D42: 34 | F42: 1 | G42: OK | H42: OK | I42: 1x47 | J42: 00:30:34 | K42: 1 | L42: 0.02122685185 | M42: =VLOOKUP(I42,'Registrace ZBP'!U:U,1,0) -> 1x47
A43: 14 | B43: 0 | C43: 31 | D43: 29 | F43: 1 | G43: OK | H43: OK | I43: 1x14 | J43: 00:31:29 | K43: 1 | L43: 0.02186342593 | M43: =VLOOKUP(I43,'Registrace ZBP'!U:U,1,0) -> 1x14
A44: 37 | B44: 0 | C44: 31 | D44: 41 | F44: 1 | G44: OK | H44: OK | I44: 1x37 | J44: 00:31:41 | K44: 1 | L44: 0.02200231481 | M44: =VLOOKUP(I44,'Registrace ZBP'!U:U,1,0) -> 1x37
A45: 59 | B45: 0 | C45: 32 | D45: 9 | F45: 1 | G45: OK | H45: OK | I45: 1x59 | J45: 00:32:09 | K45: 1 | L45: 0.02232638889 | M45: =VLOOKUP(I45,'Registrace ZBP'!U:U,1,0) -> 1x59
A46: 53 | B46: 0 | C46: 33 | D46: 5 | F46: 1 | G46: OK | H46: OK | I46: 1x53 | J46: 00:33:05 | K46: 1 | L46: 0.02297453704 | M46: =VLOOKUP(I46,'Registrace ZBP'!U:U,1,0) -> 1x53
A47: 56 | B47: 0 | C47: 34 | D47: 25 | F47: 1 | G47: OK | H47: OK | I47: 1x56 | J47: 00:34:25 | K47: 1 | L47: 0.02390046296 | M47: =VLOOKUP(I47,'Registrace ZBP'!U:U,1,0) -> 1x56
A48: 15 | B48: 0 | C48: 34 | D48: 40 | F48: 1 | G48: OK | H48: OK | I48: 1x15 | J48: 00:34:40 | K48: 1 | L48: 0.02407407407 | M48: =VLOOKUP(I48,'Registrace ZBP'!U:U,1,0) -> 1x15
A49: 31 | B49: 0 | C49: 35 | D49: 1 | F49: 1 | G49: OK | H49: OK | I49: 1x31 | J49: 00:35:01 | K49: 1 | L49: 0.02431712963 | M49: =VLOOKUP(I49,'Registrace ZBP'!U:U,1,0) -> 1x31
A50: 29 | B50: 0 | C50: 35 | D50: 16 | F50: 1 | G50: OK | H50: OK | I50: 1x29 | J50: 00:35:16 | K50: 1 | L50: 0.02449074074 | M50: =VLOOKUP(I50,'Registrace ZBP'!U:U,1,0) -> 1x29
A51: 24 | B51: 0 | C51: 35 | D51: 25 | F51: 1 | G51: OK | H51: OK | I51: 1x24 | J51: 00:35:25 | K51: 1 | L51: 0.02459490741 | M51: =VLOOKUP(I51,'Registrace ZBP'!U:U,1,0) -> 1x24
A52: 17 | B52: 0 | C52: 36 | D52: 13 | F52: 1 | G52: OK | H52: OK | I52: 1x17 | J52: 00:36:13 | K52: 1 | L52: 0.02515046296 | M52: =VLOOKUP(I52,'Registrace ZBP'!U:U,1,0) -> 1x17
A53: 30 | B53: 0 | C53: 39 | D53: 6 | F53: 1 | G53: OK | H53: OK | I53: 1x30 | J53: 00:39:06 | K53: 1 | L53: 0.02715277778 | M53: =VLOOKUP(I53,'Registrace ZBP'!U:U,1,0) -> 1x30
A54: 55 | B54: 0 | C54: 44 | D54: 24 | F54: 1 | G54: OK | H54: OK | I54: 1x55 | J54: 00:44:24 | K54: 1 | L54: 0.03083333333 | M54: =VLOOKUP(I54,'Registrace ZBP'!U:U,1,0) -> 1x55
A55: 54 | B55: 0 | C55: 44 | D55: 25 | F55: 1 | G55: OK | H55: OK | I55: 1x54 | J55: 00:44:25 | K55: 1 | L55: 0.03084490741 | M55: =VLOOKUP(I55,'Registrace ZBP'!U:U,1,0) -> 1x54
A56: 44 | B56: 0 | C56: 12 | D56: 36 | F56: 2 | G56: OK | H56: OK | I56: 2x44 | J56: 00:12:36 | K56: 1 | L56: 0.00875 | M56: =VLOOKUP(I56,'Registrace ZBP'!U:U,1,0) -> 2x44
A57: 45 | B57: 0 | C57: 12 | D57: 56 | F57: 2 | G57: OK | H57: OK | I57: 2x45 | J57: 00:12:56 | K57: 1 | L57: 0.008981481481 | M57: =VLOOKUP(I57,'Registrace ZBP'!U:U,1,0) -> 2x45
A58: 26 | B58: 0 | C58: 14 | D58: 32 | F58: 2 | G58: OK | H58: OK | I58: 2x26 | J58: 00:14:32 | K58: 1 | L58: 0.01009259259 | M58: =VLOOKUP(I58,'Registrace ZBP'!U:U,1,0) -> 2x26
A59: 38 | B59: 0 | C59: 14 | D59: 38 | F59: 2 | G59: OK | H59: OK | I59: 2x38 | J59: 00:14:38 | K59: 1 | L59: 0.01016203704 | M59: =VLOOKUP(I59,'Registrace ZBP'!U:U,1,0) -> 2x38
A60: 36 | B60: 0 | C60: 14 | D60: 39 | F60: 2 | G60: OK | H60: OK | I60: 2x36 | J60: 00:14:39 | K60: 1 | L60: 0.01017361111 | M60: =VLOOKUP(I60,'Registrace ZBP'!U:U,1,0) -> 2x36
A61: 1 | B61: 0 | C61: 14 | D61: 41 | F61: 2 | G61: OK | H61: OK | I61: 2x1 | J61: 00:14:41 | K61: 1 | L61: 0.01019675926 | M61: =VLOOKUP(I61,'Registrace ZBP'!U:U,1,0) -> 2x1
A62: 23 | B62: 0 | C62: 15 | D62: 7 | F62: 2 | G62: OK | H62: OK | I62: 2x23 | J62: 00:15:07 | K62: 1 | L62: 0.01049768519 | M62: =VLOOKUP(I62,'Registrace ZBP'!U:U,1,0) -> 2x23
A63: 35 | B63: 0 | C63: 15 | D63: 21 | E63: 30 | F63: 2 | G63: OK | H63: OK | I63: 2x35 | J63: 00:15:21.300 | K63: 1 | L63: 0.01066319444 | M63: =VLOOKUP(I63,'Registrace ZBP'!U:U,1,0) -> 2x35
A64: 27 | B64: 0 | C64: 15 | D64: 21 | E64: 40 | F64: 2 | G64: OK | H64: OK | I64: 2x27 | J64: 00:15:21.400 | K64: 1 | L64: 0.01066435185 | M64: =VLOOKUP(I64,'Registrace ZBP'!U:U,1,0) -> 2x27
A65: 12 | B65: 0 | C65: 15 | D65: 22 | E65: 10 | F65: 2 | G65: OK | H65: OK | I65: 2x12 | J65: 00:15:22.100 | K65: 1 | L65: 0.0106724537 | M65: =VLOOKUP(I65,'Registrace ZBP'!U:U,1,0) -> 2x12
A66: 31 | B66: 0 | C66: 15 | D66: 22 | E66: 20 | F66: 2 | G66: =IF(AND(F66<>"",A66&B66&C66&D66&E66=""),"Nevyplněný řádek. Smaž ID závodu nebo doplň záznam.",IF(AND(F66<>"",K66>1),"Duplicitní záznam!",IF(AND(F66="",A66&B66&C66&D66&E66<>""),"Doplň ID závodu",IF(AND(A66="",B66&C66&D66&E66&F66<>""),"Doplň startovní číslo",IF(AND(A66<>"",B66&C66&D66&E66=""),"Doplň čas nebo dej DNF do sloupce Setiny.",IF(AND(A66<>"",F66<>"",ISNA(M66)),"Startovní číslo nenalezeno v REGISTRACI.","OK")))))) -> OK | H66: =IF(F66<>F65,IF(OR(L66<L67,L66=L67,F66=""),"OK","Potenciální chyba. Záznamy nejdou vzestupně."),IF(OR(L66>L65,L66=L65),"OK","Potenciální chyba. Záznamy nejdou vzestupně.")) -> OK | I66: =F66&"x"&A66 -> 2x31 | J66: =IF(B66+C66+D66+E66<>0,B66/24+C66/60/24+(D66+E66/100)/60/60/24,"-") -> 00:15:22.200 | K66: =IF(A66<>"",COUNTIF(I:I,I66),1) -> 1 | L66: =IF(F66<>F65,IFERROR(J66,0),IFERROR(J66,L65)) -> 0.01067361111 | M66: =VLOOKUP(I66,'Registrace ZBP'!U:U,1,0) -> 2x31
A67: 51 | B67: 0 | C67: 15 | D67: 22 | E67: 30 | F67: 2 | G67: OK | H67: OK | I67: 2x51 | J67: 00:15:22.300 | K67: 1 | L67: 0.01067476852 | M67: =VLOOKUP(I67,'Registrace ZBP'!U:U,1,0) -> 2x51
A68: 46 | B68: 0 | C68: 15 | D68: 26 | F68: 2 | G68: OK | H68: OK | I68: 2x46 | J68: 00:15:26 | K68: 1 | L68: 0.01071759259 | M68: =VLOOKUP(I68,'Registrace ZBP'!U:U,1,0) -> 2x46
A69: 41 | B69: 0 | C69: 15 | D69: 48 | F69: 2 | G69: OK | H69: OK | I69: 2x41 | J69: 00:15:48 | K69: 1 | L69: 0.01097222222 | M69: =VLOOKUP(I69,'Registrace ZBP'!U:U,1,0) -> 2x41
A70: 13 | B70: 0 | C70: 16 | D70: 35 | F70: 2 | G70: OK | H70: OK | I70: 2x13 | J70: 00:16:35 | K70: 1 | L70: 0.0115162037 | M70: =VLOOKUP(I70,'Registrace ZBP'!U:U,1,0) -> 2x13
A71: 5 | B71: 0 | C71: 17 | D71: 41 | F71: 2 | G71: OK | H71: OK | I71: 2x5 | J71: 00:17:41 | K71: 1 | L71: 0.01228009259 | M71: =VLOOKUP(I71,'Registrace ZBP'!U:U,1,0) -> 2x5
A72: 47 | B72: 0 | C72: 17 | D72: 43 | F72: 2 | G72: OK | H72: OK | I72: 2x47 | J72: 00:17:43 | K72: 1 | L72: 0.01230324074 | M72: =VLOOKUP(I72,'Registrace ZBP'!U:U,1,0) -> 2x47
A73: 50 | B73: 0 | C73: 18 | D73: 22 | F73: 2 | G73: OK | H73: OK | I73: 2x50 | J73: 00:18:22 | K73: 1 | L73: 0.01275462963 | M73: =VLOOKUP(I73,'Registrace ZBP'!U:U,1,0) -> 2x50
A74: 20 | B74: 0 | C74: 18 | D74: 23 | F74: 2 | G74: OK | H74: OK | I74: 2x20 | J74: 00:18:23 | K74: 1 | L74: 0.0127662037 | M74: =VLOOKUP(I74,'Registrace ZBP'!U:U,1,0) -> 2x20
A75: 21 | B75: 0 | C75: 18 | D75: 51 | F75: 2 | G75: OK | H75: OK | I75: 2x21 | J75: 00:18:51 | K75: 1 | L75: 0.01309027778 | M75: =VLOOKUP(I75,'Registrace ZBP'!U:U,1,0) -> 2x21
A76: 15 | B76: 0 | C76: 21 | D76: 37 | F76: 2 | G76: OK | H76: OK | I76: 2x15 | J76: 00:21:37 | K76: 1 | L76: 0.01501157407 | M76: =VLOOKUP(I76,'Registrace ZBP'!U:U,1,0) -> 2x15
A77: 18 | B77: 0 | C77: 22 | D77: 8 | F77: 2 | G77: OK | H77: OK | I77: 2x18 | J77: 00:22:08 | K77: 1 | L77: 0.01537037037 | M77: =VLOOKUP(I77,'Registrace ZBP'!U:U,1,0) -> 2x18
A78: 48 | B78: 0 | C78: 22 | D78: 44 | F78: 2 | G78: OK | H78: OK | I78: 2x48 | J78: 00:22:44 | K78: 1 | L78: 0.01578703704 | M78: =VLOOKUP(I78,'Registrace ZBP'!U:U,1,0) -> 2x48
A79: 33 | B79: 0 | C79: 22 | D79: 44 | E79: 10 | F79: 2 | G79: OK | H79: OK | I79: 2x33 | J79: 00:22:44.100 | K79: 1 | L79: 0.01578819444 | M79: =VLOOKUP(I79,'Registrace ZBP'!U:U,1,0) -> 2x33
A80: 11 | B80: 0 | C80: 24 | D80: 1 | F80: 2 | G80: OK | H80: OK | I80: 2x11 | J80: 00:24:01 | K80: 1 | L80: 0.01667824074 | M80: =VLOOKUP(I80,'Registrace ZBP'!U:U,1,0) -> 2x11
A81: 7 | B81: 0 | C81: 24 | D81: 29 | F81: 2 | G81: OK | H81: OK | I81: 2x7 | J81: 00:24:29 | K81: 1 | L81: 0.01700231481 | M81: =VLOOKUP(I81,'Registrace ZBP'!U:U,1,0) -> 2x7
A82: 40 | B82: 0 | C82: 24 | D82: 41 | F82: 2 | G82: OK | H82: OK | I82: 2x40 | J82: 00:24:41 | K82: 1 | L82: 0.0171412037 | M82: =VLOOKUP(I82,'Registrace ZBP'!U:U,1,0) -> 2x40
A83: 10 | B83: 0 | C83: 24 | D83: 56 | F83: 2 | G83: OK | H83: OK | I83: 2x10 | J83: 00:24:56 | K83: 1 | L83: 0.01731481481 | M83: =VLOOKUP(I83,'Registrace ZBP'!U:U,1,0) -> 2x10
A84: 25 | B84: 0 | C84: 25 | D84: 2 | F84: 2 | G84: OK | H84: OK | I84: 2x25 | J84: 00:25:02 | K84: 1 | L84: 0.01738425926 | M84: =VLOOKUP(I84,'Registrace ZBP'!U:U,1,0) -> 2x25
A85: 4 | B85: 0 | C85: 25 | D85: 46 | F85: 2 | G85: OK | H85: OK | I85: 2x4 | J85: 00:25:46 | K85: 1 | L85: 0.01789351852 | M85: =VLOOKUP(I85,'Registrace ZBP'!U:U,1,0) -> 2x4
A86: 39 | B86: 0 | C86: 26 | D86: 5 | F86: 2 | G86: OK | H86: OK | I86: 2x39 | J86: 00:26:05 | K86: 1 | L86: 0.01811342593 | M86: =VLOOKUP(I86,'Registrace ZBP'!U:U,1,0) -> 2x39
A87: 17 | B87: 0 | C87: 26 | D87: 55 | F87: 2 | G87: OK | H87: OK | I87: 2x17 | J87: 00:26:55 | K87: 1 | L87: 0.01869212963 | M87: =VLOOKUP(I87,'Registrace ZBP'!U:U,1,0) -> 2x17
A88: 9 | B88: 0 | C88: 26 | D88: 59 | F88: 2 | G88: OK | H88: OK | I88: 2x9 | J88: 00:26:59 | K88: 1 | L88: 0.01873842593 | M88: =VLOOKUP(I88,'Registrace ZBP'!U:U,1,0) -> 2x9
A89: 57 | B89: 0 | C89: 27 | D89: 9 | F89: 2 | G89: OK | H89: OK | I89: 2x57 | J89: 00:27:09 | K89: 1 | L89: 0.01885416667 | M89: =VLOOKUP(I89,'Registrace ZBP'!U:U,1,0) -> 2x57
A90: 43 | B90: 0 | C90: 27 | D90: 16 | F90: 2 | G90: OK | H90: OK | I90: 2x43 | J90: 00:27:16 | K90: 1 | L90: 0.01893518519 | M90: =VLOOKUP(I90,'Registrace ZBP'!U:U,1,0) -> 2x43
A91: 32 | B91: 0 | C91: 27 | D91: 20 | F91: 2 | G91: OK | H91: OK | I91: 2x32 | J91: 00:27:20 | K91: 1 | L91: 0.01898148148 | M91: =VLOOKUP(I91,'Registrace ZBP'!U:U,1,0) -> 2x32
A92: 19 | B92: 0 | C92: 27 | D92: 25 | F92: 2 | G92: OK | H92: OK | I92: 2x19 | J92: 00:27:25 | K92: 1 | L92: 0.01903935185 | M92: =VLOOKUP(I92,'Registrace ZBP'!U:U,1,0) -> 2x19
A93: 2 | B93: 0 | C93: 27 | D93: 31 | F93: 2 | G93: OK | H93: OK | I93: 2x2 | J93: 00:27:31 | K93: 1 | L93: 0.0191087963 | M93: =VLOOKUP(I93,'Registrace ZBP'!U:U,1,0) -> 2x2
A94: 54 | B94: 0 | C94: 27 | D94: 43 | F94: 2 | G94: OK | H94: OK | I94: 2x54 | J94: 00:27:43 | K94: 1 | L94: 0.01924768519 | M94: =VLOOKUP(I94,'Registrace ZBP'!U:U,1,0) -> 2x54
A95: 6 | B95: 0 | C95: 27 | D95: 45 | F95: 2 | G95: OK | H95: OK | I95: 2x6 | J95: 00:27:45 | K95: 1 | L95: 0.01927083333 | M95: =VLOOKUP(I95,'Registrace ZBP'!U:U,1,0) -> 2x6
A96: 8 | B96: 0 | C96: 27 | D96: 49 | F96: 2 | G96: OK | H96: OK | I96: 2x8 | J96: 00:27:49 | K96: 1 | L96: 0.01931712963 | M96: =VLOOKUP(I96,'Registrace ZBP'!U:U,1,0) -> 2x8
A97: 29 | B97: 0 | C97: 27 | D97: 53 | F97: 2 | G97: OK | H97: OK | I97: 2x29 | J97: 00:27:53 | K97: 1 | L97: 0.01936342593 | M97: =VLOOKUP(I97,'Registrace ZBP'!U:U,1,0) -> 2x29
A98: 14 | B98: 0 | C98: 27 | D98: 57 | F98: 2 | G98: OK | H98: OK | I98: 2x14 | J98: 00:27:57 | K98: 1 | L98: 0.01940972222 | M98: =VLOOKUP(I98,'Registrace ZBP'!U:U,1,0) -> 2x14
A99: 52 | B99: 0 | C99: 28 | D99: 3 | F99: 2 | G99: OK | H99: OK | I99: 2x52 | J99: 00:28:03 | K99: 1 | L99: 0.01947916667 | M99: =VLOOKUP(I99,'Registrace ZBP'!U:U,1,0) -> 2x52
A100: 24 | B100: 0 | C100: 28 | D100: 8 | F100: 2 | G100: OK | H100: OK | I100: 2x24 | J100: 00:28:08 | K100: 1 | L100: 0.01953703704 | M100: =VLOOKUP(I100,'Registrace ZBP'!U:U,1,0) -> 2x24
A101: 22 | B101: 0 | C101: 29 | D101: 25 | F101: 2 | G101: OK | H101: OK | I101: 2x22 | J101: 00:29:25 | K101: 1 | L101: 0.02042824074 | M101: =VLOOKUP(I101,'Registrace ZBP'!U:U,1,0) -> 2x22
A102: 56 | B102: 0 | C102: 29 | D102: 35 | F102: 2 | G102: OK | H102: OK | I102: 2x56 | J102: 00:29:35 | K102: 1 | L102: 0.02054398148 | M102: =VLOOKUP(I102,'Registrace ZBP'!U:U,1,0) -> 2x56
A103: 34 | B103: 0 | C103: 29 | D103: 38 | F103: 2 | G103: OK | H103: OK | I103: 2x34 | J103: 00:29:38 | K103: 1 | L103: 0.0205787037 | M103: =VLOOKUP(I103,'Registrace ZBP'!U:U,1,0) -> 2x34
A104: 49 | B104: 0 | C104: 30 | D104: 34 | F104: 2 | G104: OK | H104: OK | I104: 2x49 | J104: 00:30:34 | K104: 1 | L104: 0.02122685185 | M104: =VLOOKUP(I104,'Registrace ZBP'!U:U,1,0) -> 2x49
A105: 55 | B105: 0 | C105: 30 | D105: 58 | F105: 2 | G105: OK | H105: OK | I105: 2x55 | J105: 00:30:58 | K105: 1 | L105: 0.02150462963 | M105: =VLOOKUP(I105,'Registrace ZBP'!U:U,1,0) -> 2x55
A106: 30 | B106: 0 | C106: 31 | D106: 36 | F106: 2 | G106: OK | H106: OK | I106: 2x30 | J106: 00:31:36 | K106: 1 | L106: 0.02194444444 | M106: =VLOOKUP(I106,'Registrace ZBP'!U:U,1,0) -> 2x30
A107: 42 | B107: 0 | C107: 31 | D107: 49 | F107: 2 | G107: OK | H107: OK | I107: 2x42 | J107: 00:31:49 | K107: 1 | L107: 0.02209490741 | M107: =VLOOKUP(I107,'Registrace ZBP'!U:U,1,0) -> 2x42
A108: 16 | B108: 0 | C108: 32 | D108: 47 | F108: 2 | G108: OK | H108: OK | I108: 2x16 | J108: 00:32:47 | K108: 1 | L108: 0.0227662037 | M108: =VLOOKUP(I108,'Registrace ZBP'!U:U,1,0) -> 2x16
A109: 37 | B109: 0 | C109: 33 | D109: 3 | F109: 2 | G109: OK | H109: OK | I109: 2x37 | J109: 00:33:03 | K109: 1 | L109: 0.02295138889 | M109: =VLOOKUP(I109,'Registrace ZBP'!U:U,1,0) -> 2x37
A110: 3 | B110: 0 | C110: 39 | D110: 21 | F110: 2 | G110: OK | H110: OK | I110: 2x3 | J110: 00:39:21 | K110: 1 | L110: 0.02732638889 | M110: =VLOOKUP(I110,'Registrace ZBP'!U:U,1,0) -> 2x3
A111: 65 | B111: 0 | C111: 15 | D111: 22 | E111: 40 | F111: 2 | G111: OK | H111: Potenciální chyba. Záznamy nejdou vzestupně. | I111: 2x65 | J111: 00:15:22.400 | K111: 1 | L111: 0.01067592593 | M111: =VLOOKUP(I111,'Registrace ZBP'!U:U,1,0) -> 2x65
A112: 28 | B112: 0 | C112: 36 | D112: 56 | F112: 2 | G112: OK | H112: OK | I112: 2x28 | J112: 00:36:56 | K112: 1 | L112: 0.02564814815 | M112: =VLOOKUP(I112,'Registrace ZBP'!U:U,1,0) -> 2x28
G113: OK | H113: OK | I113: x | J113: - | K113: 1 | L113: - | M113: =VLOOKUP(I113,'Registrace ZBP'!U:U,1,0) -> x
G114: OK | H114: OK | I114: x | J114: - | K114: 1 | L114: - | M114: =VLOOKUP(I114,'Registrace ZBP'!U:U,1,0) -> x
G115: OK | H115: OK | I115: x | J115: - | K115: 1 | L115: - | M115: =VLOOKUP(I115,'Registrace ZBP'!U:U,1,0) -> x
G116: OK | H116: OK | I116: x | J116: - | K116: 1 | L116: - | M116: =VLOOKUP(I116,'Registrace ZBP'!U:U,1,0) -> x
G117: OK | H117: OK | I117: x | J117: - | K117: 1 | L117: - | M117: =VLOOKUP(I117,'Registrace ZBP'!U:U,1,0) -> x
G118: OK | H118: OK | I118: x | J118: - | K118: 1 | L118: - | M118: =VLOOKUP(I118,'Registrace ZBP'!U:U,1,0) -> x
G119: OK | H119: OK | I119: x | J119: - | K119: 1 | L119: - | M119: =VLOOKUP(I119,'Registrace ZBP'!U:U,1,0) -> x
G120: OK | H120: OK | I120: x | J120: - | K120: 1 | L120: - | M120: =VLOOKUP(I120,'Registrace ZBP'!U:U,1,0) -> x
G121: OK | H121: OK | I121: x | J121: - | K121: 1 | L121: - | M121: =VLOOKUP(I121,'Registrace ZBP'!U:U,1,0) -> x
G122: OK | H122: OK | I122: x | J122: - | K122: 1 | L122: - | M122: =VLOOKUP(I122,'Registrace ZBP'!U:U,1,0) -> x
G123: OK | H123: OK | I123: x | J123: - | K123: 1 | L123: - | M123: =VLOOKUP(I123,'Registrace ZBP'!U:U,1,0) -> x
G124: OK | H124: OK | I124: x | J124: - | K124: 1 | L124: - | M124: =VLOOKUP(I124,'Registrace ZBP'!U:U,1,0) -> x
G125: OK | H125: OK | I125: x | J125: - | K125: 1 | L125: - | M125: =VLOOKUP(I125,'Registrace ZBP'!U:U,1,0) -> x
G126: OK | H126: OK | I126: x | J126: - | K126: 1 | L126: - | M126: =VLOOKUP(I126,'Registrace ZBP'!U:U,1,0) -> x
G127: OK | H127: OK | I127: x | J127: - | K127: 1 | L127: - | M127: =VLOOKUP(I127,'Registrace ZBP'!U:U,1,0) -> x
G128: OK | H128: OK | I128: x | J128: - | K128: 1 | L128: - | M128: =VLOOKUP(I128,'Registrace ZBP'!U:U,1,0) -> x
G129: OK | H129: OK | I129: x | J129: - | K129: 1 | L129: - | M129: =VLOOKUP(I129,'Registrace ZBP'!U:U,1,0) -> x
G130: =IF(AND(F130<>"",A130&B130&C130&D130&E130=""),"Nevyplněný řádek. Smaž ID závodu nebo doplň záznam.",IF(AND(F130<>"",K130>1),"Duplicitní záznam!",IF(AND(F130="",A130&B130&C130&D130&E130<>""),"Doplň ID závodu",IF(AND(A130="",B130&C130&D130&E130&F130<>""),"Doplň startovní číslo",IF(AND(A130<>"",B130&C130&D130&E130=""),"Doplň čas nebo dej DNF do sloupce Setiny.",IF(AND(A130<>"",F130<>"",ISNA(M130)),"Startovní číslo nenalezeno v REGISTRACI.","OK")))))) -> OK | H130: =IF(F130<>F129,IF(OR(L130<L131,L130=L131,F130=""),"OK","Potenciální chyba. Záznamy nejdou vzestupně."),IF(OR(L130>L129,L130=L129),"OK","Potenciální chyba. Záznamy nejdou vzestupně.")) -> OK | I130: =F130&"x"&A130 -> x | J130: =IF(B130+C130+D130+E130<>0,B130/24+C130/60/24+(D130+E130/100)/60/60/24,"-") -> - | K130: =IF(A130<>"",COUNTIF(I:I,I130),1) -> 1 | L130: =IF(F130<>F129,IFERROR(J130,0),IFERROR(J130,L129)) -> - | M130: =VLOOKUP(I130,'Registrace ZBP'!U:U,1,0) -> x
G131: OK | H131: OK | I131: x | J131: - | K131: 1 | L131: - | M131: =VLOOKUP(I131,'Registrace ZBP'!U:U,1,0) -> x
G132: OK | H132: OK | I132: x | J132: - | K132: 1 | L132: - | M132: =VLOOKUP(I132,'Registrace ZBP'!U:U,1,0) -> x
G133: OK | H133: OK | I133: x | J133: - | K133: 1 | L133: - | M133: =VLOOKUP(I133,'Registrace ZBP'!U:U,1,0) -> x
G134: OK | H134: OK | I134: x | J134: - | K134: 1 | L134: - | M134: =VLOOKUP(I134,'Registrace ZBP'!U:U,1,0) -> x
G135: OK | H135: OK | I135: x | J135: - | K135: 1 | L135: - | M135: =VLOOKUP(I135,'Registrace ZBP'!U:U,1,0) -> x
G136: OK | H136: OK | I136: x | J136: - | K136: 1 | L136: - | M136: =VLOOKUP(I136,'Registrace ZBP'!U:U,1,0) -> x
G137: OK | H137: OK | I137: x | J137: - | K137: 1 | L137: - | M137: =VLOOKUP(I137,'Registrace ZBP'!U:U,1,0) -> x
G138: OK | H138: OK | I138: x | J138: - | K138: 1 | L138: - | M138: =VLOOKUP(I138,'Registrace ZBP'!U:U,1,0) -> x
G139: OK | H139: OK | I139: x | J139: - | K139: 1 | L139: - | M139: =VLOOKUP(I139,'Registrace ZBP'!U:U,1,0) -> x
G140: OK | H140: OK | I140: x | J140: - | K140: 1 | L140: - | M140: =VLOOKUP(I140,'Registrace ZBP'!U:U,1,0) -> x
G141: OK | H141: OK | I141: x | J141: - | K141: 1 | L141: - | M141: =VLOOKUP(I141,'Registrace ZBP'!U:U,1,0) -> x
G142: OK | H142: OK | I142: x | J142: - | K142: 1 | L142: - | M142: =VLOOKUP(I142,'Registrace ZBP'!U:U,1,0) -> x
G143: OK | H143: OK | I143: x | J143: - | K143: 1 | L143: - | M143: =VLOOKUP(I143,'Registrace ZBP'!U:U,1,0) -> x
G144: OK | H144: OK | I144: x | J144: - | K144: 1 | L144: - | M144: =VLOOKUP(I144,'Registrace ZBP'!U:U,1,0) -> x
G145: OK | H145: OK | I145: x | J145: - | K145: 1 | L145: - | M145: =VLOOKUP(I145,'Registrace ZBP'!U:U,1,0) -> x
G146: OK | H146: OK | I146: x | J146: - | K146: 1 | L146: - | M146: =VLOOKUP(I146,'Registrace ZBP'!U:U,1,0) -> x
G147: OK | H147: OK | I147: x | J147: - | K147: 1 | L147: - | M147: =VLOOKUP(I147,'Registrace ZBP'!U:U,1,0) -> x
G148: OK | H148: OK | I148: x | J148: - | K148: 1 | L148: - | M148: =VLOOKUP(I148,'Registrace ZBP'!U:U,1,0) -> x
G149: OK | H149: OK | I149: x | J149: - | K149: 1 | L149: - | M149: =VLOOKUP(I149,'Registrace ZBP'!U:U,1,0) -> x
G150: OK | H150: OK | I150: x | J150: - | K150: 1 | L150: - | M150: =VLOOKUP(I150,'Registrace ZBP'!U:U,1,0) -> x
G151: OK | H151: OK | I151: x | J151: - | K151: 1 | L151: - | M151: =VLOOKUP(I151,'Registrace ZBP'!U:U,1,0) -> x
G152: OK | H152: OK | I152: x | J152: - | K152: 1 | L152: - | M152: =VLOOKUP(I152,'Registrace ZBP'!U:U,1,0) -> x
G153: OK | H153: OK | I153: x | J153: - | K153: 1 | L153: - | M153: =VLOOKUP(I153,'Registrace ZBP'!U:U,1,0) -> x
G154: OK | H154: OK | I154: x | J154: - | K154: 1 | L154: - | M154: =VLOOKUP(I154,'Registrace ZBP'!U:U,1,0) -> x
G155: OK | H155: OK | I155: x | J155: - | K155: 1 | L155: - | M155: =VLOOKUP(I155,'Registrace ZBP'!U:U,1,0) -> x
G156: OK | H156: OK | I156: x | J156: - | K156: 1 | L156: - | M156: =VLOOKUP(I156,'Registrace ZBP'!U:U,1,0) -> x
G157: OK | H157: OK | I157: x | J157: - | K157: 1 | L157: - | M157: =VLOOKUP(I157,'Registrace ZBP'!U:U,1,0) -> x
G158: OK | H158: OK | I158: x | J158: - | K158: 1 | L158: - | M158: =VLOOKUP(I158,'Registrace ZBP'!U:U,1,0) -> x
G159: OK | H159: OK | I159: x | J159: - | K159: 1 | L159: - | M159: =VLOOKUP(I159,'Registrace ZBP'!U:U,1,0) -> x
G160: OK | H160: OK | I160: x | J160: - | K160: 1 | L160: - | M160: =VLOOKUP(I160,'Registrace ZBP'!U:U,1,0) -> x
G161: OK | H161: OK | I161: x | J161: - | K161: 1 | L161: - | M161: =VLOOKUP(I161,'Registrace ZBP'!U:U,1,0) -> x
G162: OK | H162: OK | I162: x | J162: - | K162: 1 | L162: - | M162: =VLOOKUP(I162,'Registrace ZBP'!U:U,1,0) -> x
G163: OK | H163: OK | I163: x | J163: - | K163: 1 | L163: - | M163: =VLOOKUP(I163,'Registrace ZBP'!U:U,1,0) -> x
G164: OK | H164: OK | I164: x | J164: - | K164: 1 | L164: - | M164: =VLOOKUP(I164,'Registrace ZBP'!U:U,1,0) -> x
G165: OK | H165: OK | I165: x | J165: - | K165: 1 | L165: - | M165: =VLOOKUP(I165,'Registrace ZBP'!U:U,1,0) -> x
G166: OK | H166: OK | I166: x | J166: - | K166: 1 | L166: - | M166: =VLOOKUP(I166,'Registrace ZBP'!U:U,1,0) -> x
G167: OK | H167: OK | I167: x | J167: - | K167: 1 | L167: - | M167: =VLOOKUP(I167,'Registrace ZBP'!U:U,1,0) -> x
G168: OK | H168: OK | I168: x | J168: - | K168: 1 | L168: - | M168: =VLOOKUP(I168,'Registrace ZBP'!U:U,1,0) -> x
G169: OK | H169: OK | I169: x | J169: - | K169: 1 | L169: - | M169: =VLOOKUP(I169,'Registrace ZBP'!U:U,1,0) -> x
G170: OK | H170: OK | I170: x | J170: - | K170: 1 | L170: - | M170: =VLOOKUP(I170,'Registrace ZBP'!U:U,1,0) -> x
G171: OK | H171: OK | I171: x | J171: - | K171: 1 | L171: - | M171: =VLOOKUP(I171,'Registrace ZBP'!U:U,1,0) -> x
G172: OK | H172: OK | I172: x | J172: - | K172: 1 | L172: - | M172: =VLOOKUP(I172,'Registrace ZBP'!U:U,1,0) -> x
G173: OK | H173: OK | I173: x | J173: - | K173: 1 | L173: - | M173: =VLOOKUP(I173,'Registrace ZBP'!U:U,1,0) -> x
G174: OK | H174: OK | I174: x | J174: - | K174: 1 | L174: - | M174: =VLOOKUP(I174,'Registrace ZBP'!U:U,1,0) -> x
G175: OK | H175: OK | I175: x | J175: - | K175: 1 | L175: - | M175: =VLOOKUP(I175,'Registrace ZBP'!U:U,1,0) -> x
G176: OK | H176: OK | I176: x | J176: - | K176: 1 | L176: - | M176: =VLOOKUP(I176,'Registrace ZBP'!U:U,1,0) -> x
G177: OK | H177: OK | I177: x | J177: - | K177: 1 | L177: - | M177: =VLOOKUP(I177,'Registrace ZBP'!U:U,1,0) -> x
G178: OK | H178: OK | I178: x | J178: - | K178: 1 | L178: - | M178: =VLOOKUP(I178,'Registrace ZBP'!U:U,1,0) -> x
G179: OK | H179: OK | I179: x | J179: - | K179: 1 | L179: - | M179: =VLOOKUP(I179,'Registrace ZBP'!U:U,1,0) -> x
G180: OK | H180: OK | I180: x | J180: - | K180: 1 | L180: - | M180: =VLOOKUP(I180,'Registrace ZBP'!U:U,1,0) -> x
G181: OK | H181: OK | I181: x | J181: - | K181: 1 | L181: - | M181: =VLOOKUP(I181,'Registrace ZBP'!U:U,1,0) -> x
G182: OK | H182: OK | I182: x | J182: - | K182: 1 | L182: - | M182: =VLOOKUP(I182,'Registrace ZBP'!U:U,1,0) -> x
G183: OK | H183: OK | I183: x | J183: - | K183: 1 | L183: - | M183: =VLOOKUP(I183,'Registrace ZBP'!U:U,1,0) -> x
G184: OK | H184: OK | I184: x | J184: - | K184: 1 | L184: - | M184: =VLOOKUP(I184,'Registrace ZBP'!U:U,1,0) -> x
G185: OK | H185: OK | I185: x | J185: - | K185: 1 | L185: - | M185: =VLOOKUP(I185,'Registrace ZBP'!U:U,1,0) -> x
G186: OK | H186: OK | I186: x | J186: - | K186: 1 | L186: - | M186: =VLOOKUP(I186,'Registrace ZBP'!U:U,1,0) -> x
G187: OK | H187: OK | I187: x | J187: - | K187: 1 | L187: - | M187: =VLOOKUP(I187,'Registrace ZBP'!U:U,1,0) -> x
G188: OK | H188: OK | I188: x | J188: - | K188: 1 | L188: - | M188: =VLOOKUP(I188,'Registrace ZBP'!U:U,1,0) -> x
G189: OK | H189: OK | I189: x | J189: - | K189: 1 | L189: - | M189: =VLOOKUP(I189,'Registrace ZBP'!U:U,1,0) -> x
G190: OK | H190: OK | I190: x | J190: - | K190: 1 | L190: - | M190: =VLOOKUP(I190,'Registrace ZBP'!U:U,1,0) -> x
G191: OK | H191: OK | I191: x | J191: - | K191: 1 | L191: - | M191: =VLOOKUP(I191,'Registrace ZBP'!U:U,1,0) -> x
G192: OK | H192: OK | I192: x | J192: - | K192: 1 | L192: - | M192: =VLOOKUP(I192,'Registrace ZBP'!U:U,1,0) -> x
G193: OK | H193: OK | I193: x | J193: - | K193: 1 | L193: - | M193: =VLOOKUP(I193,'Registrace ZBP'!U:U,1,0) -> x
G194: =IF(AND(F194<>"",A194&B194&C194&D194&E194=""),"Nevyplněný řádek. Smaž ID závodu nebo doplň záznam.",IF(AND(F194<>"",K194>1),"Duplicitní záznam!",IF(AND(F194="",A194&B194&C194&D194&E194<>""),"Doplň ID závodu",IF(AND(A194="",B194&C194&D194&E194&F194<>""),"Doplň startovní číslo",IF(AND(A194<>"",B194&C194&D194&E194=""),"Doplň čas nebo dej DNF do sloupce Setiny.",IF(AND(A194<>"",F194<>"",ISNA(M194)),"Startovní číslo nenalezeno v REGISTRACI.","OK")))))) -> OK | H194: =IF(F194<>F193,IF(OR(L194<L195,L194=L195,F194=""),"OK","Potenciální chyba. Záznamy nejdou vzestupně."),IF(OR(L194>L193,L194=L193),"OK","Potenciální chyba. Záznamy nejdou vzestupně.")) -> OK | I194: =F194&"x"&A194 -> x | J194: =IF(B194+C194+D194+E194<>0,B194/24+C194/60/24+(D194+E194/100)/60/60/24,"-") -> - | K194: =IF(A194<>"",COUNTIF(I:I,I194),1) -> 1 | L194: =IF(F194<>F193,IFERROR(J194,0),IFERROR(J194,L193)) -> - | M194: =VLOOKUP(I194,'Registrace ZBP'!U:U,1,0) -> x
G195: OK | H195: OK | I195: x | J195: - | K195: 1 | L195: - | M195: =VLOOKUP(I195,'Registrace ZBP'!U:U,1,0) -> x
G196: OK | H196: OK | I196: x | J196: - | K196: 1 | L196: - | M196: =VLOOKUP(I196,'Registrace ZBP'!U:U,1,0) -> x
G197: OK | H197: OK | I197: x | J197: - | K197: 1 | L197: - | M197: =VLOOKUP(I197,'Registrace ZBP'!U:U,1,0) -> x
G198: OK | H198: OK | I198: x | J198: - | K198: 1 | L198: - | M198: =VLOOKUP(I198,'Registrace ZBP'!U:U,1,0) -> x
G199: OK | H199: OK | I199: x | J199: - | K199: 1 | L199: - | M199: =VLOOKUP(I199,'Registrace ZBP'!U:U,1,0) -> x
G200: OK | H200: OK | I200: x | J200: - | K200: 1 | L200: - | M200: =VLOOKUP(I200,'Registrace ZBP'!U:U,1,0) -> x
... 2800 more rows

Sheet Výsledky
F1: 1 | G1: 1
A3: =IF(OR(Config!D1=FALSE,Config!D2=FALSE,Config!D3=FALSE,Config!D4=FALSE),"!!! ZPRACUJ VÝSLEDKY. DOŠLO KE ZMĚNÁM !!!","") & " " & _xlfn.IFNA(IF(VLOOKUP(TRUE,Config!$D$5:$D$8,1,0)=TRUE, "VSTUPNÍ DATA OBSAHUJÍ CHYBY !!!",""),"") ->  | J3: Datum: | K3: =VLOOKUP($A$4,'Závody a tratě'!$B:$K,6,0) -> 2019-10-12
A4: =IFERROR(IF(Config!$E$13="X",INDEX(Config!$A$2:$A$100,$G$1),Config!$D$13),0) -> 2 | B4: =VLOOKUP(A4,'Závody a tratě'!$B$1:$C$100,2,0) -> „Sokolák“ Plaveč u Znojma | J4: =IF(VLOOKUP($A$4,'Závody a tratě'!$B:$K,8,0)="","-",VLOOKUP($A$4,'Závody a tratě'!$B:$K,8,0)) -> zamračeno, trvalý déšť | L4: =IF(VLOOKUP($A$4,'Závody a tratě'!$B:$K,9,0)="","-",VLOOKUP($A$4,'Závody a tratě'!$B:$K,9,0)) -> 18°C
A5: Výsledky podle lokálních kategorií | E5: =IF(ISNA(VLOOKUP($A$4&"xM6xANO",'Závody a tratě'!$L:$L,1,0)),"NEBODOVANÝ ZÁVOD","") ->  | F5: Trať: | G5: ="M6 ("&(VLOOKUP($A$4&"xM6",'Závody a tratě'!$A:$F,5,0))&")" -> M6 (Muži 6 km) | J5: Délka: | K5: =VLOOKUP($A$4&"xM6",'Závody a tratě'!$A:$F,6,0) -> 6 | L5: km
A6: Poř. | B6: St. č. | C6: Příjmení | D6: Jméno | E6: Klub | F6: Rok narození | G6: Celkové pořadí | H6: Kat. | I6: Kat. ZBP | J6: Čas | K6: Body ZBP | L6: Čas na 1 km
A7: LMA | B7: L: Muži do 39
A8: 1 | B8: 15 | C8: Soural | D8: Lukáš | E8: VSK UNI Brno | F8: 1982 | G8: 1 | H8: LMA | I8: MA | J8: 0.01501157407 | K8: 30 | L8: 00:03:36.167
A9: 2 | B9: 18 | C9: Čabala | D9: Vojtěch | E9: Rabbits Znojmo | F9: 1993 | G9: 2 | H9: LMA | I9: MA | J9: 0.01537037037 | K9: 25 | L9: 00:03:41.333
A10: 3 | B10: 48 | C10: Mahr | D10: Daniel | E10: Znojmo | F10: 1983 | G10: 3 | H10: LMA | I10: MA | J10: 0.01578703704 | K10: 21 | L10: 00:03:47.333
A11: 4 | B11: 33 | C11: Blaha | D11: Daniel | F11: 2002 | G11: 4 | H11: LMA | I11: MA | J11: 0.01578819444 | K11: 18 | L11: 00:03:47.350
A12: 5 | B12: 11 | C12: Hrubý | D12: Josef | E12: TJ Znojmo | F12: 1992 | G12: 5 | H12: LMA | I12: MA | J12: 0.01667824074 | K12: 16 | L12: 00:04:00.167
A13: 6 | B13: 10 | C13: Šrámek | D13: Ondřej | E13: Rabbits Znojmo | F13: 1997 | G13: 8 | H13: LMA | I13: MA | J13: 0.01731481481 | K13: 15 | L13: 00:04:09.333
A14: 7 | B14: 19 | C14: Brandl | D14: Tomáš | F14: 1998 | G14: 17 | H14: LMA | I14: MA | J14: 0.01903935185 | K14: 14 | L14: 00:04:34.167
A15: 8 | B15: 14 | C15: Koc | D15: Dušan | E15: TJ Sokol Plaveč | F15: 1990 | G15: 23 | H15: LMA | I15: MA | J15: 0.01940972222 | K15: 13 | L15: 00:04:39.500
A16: 9 | B16: 22 | C16: Dočekal | D16: Jan | E16: TJ Znojmo | F16: 2004 | G16: 26 | H16: LMA | I16: MA | J16: 0.02042824074 | K16: 12 | L16: 00:04:54.167
A17: 10 | B17: 30 | C17: Kaidl | D17: Pavel | E17: Němčičky | F17: 1987 | G17: 31 | H17: LMA | I17: MA | J17: 0.02194444444 | K17: 11 | L17: 00:05:16
A18: 11 | B18: 42 | C18: Paulíček | D18: Tomáš | E18: Šanov | F18: 2005 | G18: 32 | H18: LMA | I18: MA | J18: 0.02209490741 | K18: 10 | L18: 00:05:18.167
A19: 12 | B19: 3 | C19: Papoušek | D19: Ondřej | E19: Přímětice | F19: 2006 | G19: 36 | H19: LMA | I19: MA | J19: 0.02732638889 | K19: 9 | L19: 00:06:33.500
A20: LMB | B20: L: Muži 40 - 49
A21: 1 | B21: 7 | C21: Vala | D21: Robert | E21: Znojmo | F21: 1977 | G21: 6 | H21: LMB | I21: MB | J21: 0.01700231481 | K21: 30 | L21: 00:04:04.833
A22: 2 | B22: 40 | C22: Čermák | D22: Bedřich | E22: Turtles Znojmo | F22: 1974 | G22: 7 | H22: LMB | I22: MB | J22: 0.0171412037 | K22: 25 | L22: 00:04:06.833
A23: 3 | B23: 39 | C23: Jičínský | D23: Petr | E23: Orel Mor. Budějovice | F23: 1972 | G23: 11 | H23: LMB | I23: MB | J23: 0.01811342593 | K23: 21 | L23: 00:04:20.833
A24: 4 | B24: 57 | C24: Dvořák | D24: Leoš | E24: Znojmo | F24: 1971 | G24: 14 | H24: LMB | I24: MB | J24: 0.01885416667 | K24: 18 | L24: 00:04:31.500
A25: 5 | B25: 43 | C25: Novosad | D25: Miroslav | E25: Šanov | F25: 1974 | G25: 15 | H25: LMB | I25: MB | J25: 0.01893518519 | K25: 16 | L25: 00:04:32.667
A26: 6 | B26: 32 | C26: Hrubý | D26: Karel | F26: 1974 | G26: 16 | H26: LMB | I26: MB | J26: 0.01898148148 | K26: 15 | L26: 00:04:33.333
A27: 7 | B27: 29 | C27: Kuda | D27: Lubomír | E27: Hrušovany n/J | F27: 1977 | G27: 22 | H27: LMB | I27: MB | J27: 0.01936342593 | K27: 14 | L27: 00:04:38.833
A28: 8 | B28: 34 | C28: Nejedlý | D28: Jiří | E28: Němčičky | F28: 1971 | G28: 28 | H28: LMB | I28: MB | J28: 0.0205787037 | K28: 13 | L28: 00:04:56.333
A29: 9 | B29: 37 | C29: Fila | D29: Radek | F29: 1979 | G29: 34 | H29: LMB | I29: MB | J29: 0.02295138889 | K29: 12 | L29: 00:05:30.500
A30: 10 | B30: 28 | C30: Šoba | D30: Petr | E30: Mikulovice | F30: 1976 | G30: 35 | H30: LMB | I30: MB | J30: 0.02564814815 | K30: 11 | L30: 00:06:09.333
A31: LMC | B31: L: Muži 50 - 59
A32: 1 | B32: 25 | C32: Kratochvíl | D32: Pavel | E32: Atletic Třebíč | F32: 1960 | G32: 9 | H32: LMC | I32: MC | J32: 0.01738425926 | K32: 30 | L32: 00:04:10.333
A33: 2 | B33: 4 | C33: Vlčan | D33: Luboš | E33: Atletic Třebíč | F33: 1968 | G33: 10 | H33: LMC | I33: MC | J33: 0.01789351852 | K33: 25 | L33: 00:04:17.667
A34: 3 | B34: 17 | C34: Nožka | D34: Jiří | E34: Dinosport Ivančice | F34: 1963 | G34: 12 | H34: LMC | I34: MC | J34: 0.01869212963 | K34: 21 | L34: 00:04:29.167
A35: 4 | B35: 2 | C35: Tesař | D35: Miroslav | E35: Znojmo | F35: 1969 | G35: 18 | H35: LMC | I35: MC | J35: 0.0191087963 | K35: 18 | L35: 00:04:35.167
A36: 5 | B36: 8 | C36: Němec | D36: Bedřich | E36: Hornice | F36: 1964 | G36: 21 | H36: LMC | I36: MC | J36: 0.01931712963 | K36: 16 | L36: 00:04:38.167
A37: 6 | B37: 52 | C37: Soukup | D37: Milan | E37: TJ Znojmo | F37: 1964 | G37: 24 | H37: LMC | I37: MC | J37: 0.01947916667 | K37: 15 | L37: 00:04:40.500
A38: 7 | B38: 24 | C38: Bulín | D38: Jindřich | E38: TJ Sokol Plaveč | F38: 1967 | G38: 25 | H38: LMC | I38: MC | J38: 0.01953703704 | K38: 14 | L38: 00:04:41.333
A39: 8 | B39: 49 | C39: Jindra | D39: Vítězslav | E39: Dačice | F39: 1965 | G39: 29 | H39: LMC | I39: MC | J39: 0.02122685185 | K39: 13 | L39: 00:05:05.667
A40: LMD | B40: L: Muži od 60
A41: 1 | B41: 9 | C41: Januška | D41: Ivan | E41: Šanov | F41: 1958 | G41: 13 | H41: LMD | I41: MD | J41: 0.01873842593 | K41: 30 | L41: 00:04:29.833
A42: 2 | B42: 54 | C42: Nováček | D42: Josef | E42: SDH Čučice | F42: 1958 | G42: 19 | H42: LMD | I42: MD | J42: 0.01924768519 | K42: 25 | L42: 00:04:37.167
A43: 3 | B43: 6 | C43: Klusáček | D43: Pavel | E43: Rokytnice n/R | F43: 1956 | G43: 20 | H43: LMD | I43: MD | J43: 0.01927083333 | K43: 21 | L43: 00:04:37.500
A44: 4 | B44: 56 | C44: Danielovič | D44: Leo | E44: Hradiště Znojmo | F44: 1958 | G44: 27 | H44: LMD | I44: MD | J44: 0.02054398148 | K44: 18 | L44: 00:04:55.833
A45: 5 | B45: 55 | C45: Marek | D45: Ludvík | E45: Popocatepetl Znojmo | F45: 1958 | G45: 30 | H45: LMD | I45: MD | J45: 0.02150462963 | K45: 16 | L45: 00:05:09.667
A46: 6 | B46: 16 | C46: Vacek | D46: Vladimír | E46: Poušov | F46: 1951 | G46: 33 | H46: LMD | I46: MD | J46: 0.0227662037 | K46: 15 | L46: 00:05:27.833
A48: Výsledky podle lokálních kategorií | E48: =IF(ISNA(VLOOKUP($A$4&"xZ3xANO",'Závody a tratě'!$L:$L,1,0)),"NEBODOVANÝ ZÁVOD","") ->  | F48: Trať: | G48: ="Z3 ("&(VLOOKUP($A$4&"xZ3",'Závody a tratě'!$A:$F,5,0))&")" -> Z3 (Ženy 3 km) | J48: Délka: | K48: =VLOOKUP($A$4&"xZ3",'Závody a tratě'!$A:$F,6,0) -> 3 | L48: km
A49: Poř. | B49: St. č. | C49: Příjmení | D49: Jméno | E49: Klub | F49: Rok narození | G49: Celkové pořadí | H49: Kat. | I49: Kat. ZBP | J49: Čas | K49: Body ZBP | L49: Čas na 1 km
A50: LZA | B50: L: Ženy do 34
A51: 1 | B51: 44 | C51: Kuchařová | D51: Simona | E51: TJ Znojmo | F51: 1996 | G51: 1 | H51: LZA | I51: ZA | J51: 0.00875 | K51: 30 | L51: 00:04:12
A52: LZB | B52: L: Ženy od 35
A53: 1 | B53: 45 | C53: Přistálová | D53: Veronika | E53: Znojmo | F53: 1984 | G53: 2 | H53: LZB | I53: ZB | J53: 0.008981481481 | K53: 30 | L53: 00:04:18.667
A54: 2 | B54: 36 | C54: Szabó | D54: Lada | F54: 1978 | G54: 5 | H54: LZB | I54: ZB | J54: 0.01017361111 | K54: 25 | L54: 00:04:53
A55: 3 | B55: 1 | C55: Bartůňková | D55: Světlana | E55: Rabbits Znojmo | F55: 1976 | G55: 6 | H55: LZB | I55: ZB | J55: 0.01019675926 | K55: 21 | L55: 00:04:53.667
A56: 4 | B56: 35 | C56: Růžičková | D56: Zuzana | E56: Znojmo | F56: 1983 | G56: 8 | H56: LZB | I56: ZB | J56: 0.01066319444 | K56: 18 | L56: 00:05:07.100
A57: 5 | B57: 27 | C57: Zelená | D57: Irena | E57: Atletic Třebíč | F57: 1976 | G57: 9 | H57: LZB | I57: ZB | J57: 0.01066435185 | K57: 16 | L57: 00:05:07.133
A58: 6 | B58: 12 | C58: Orawská | D58: Lucie | F58: 1983 | G58: 10 | H58: LZB | I58: ZB | J58: 0.0106724537 | K58: 15 | L58: 00:05:07.367
A59: 7 | B59: 31 | C59: Šinkovič | D59: Irena | F59: 1981 | G59: 11 | H59: LZB | I59: ZB | J59: 0.01067361111 | K59: 14 | L59: 00:05:07.400
A60: 8 | B60: 65 | C60: Kučerová | D60: Petra | E60: Znojmo | F60: 1980 | G60: 13 | H60: LZB | I60: ZB | J60: 0.01067592593 | K60: 13 | L60: 00:05:07.467
A61: 9 | B61: 46 | C61: Auerová | D61: Stanislava | E61: Hluboké Mašůvky | F61: 1983 | G61: 14 | H61: LZB | I61: ZB | J61: 0.01071759259 | K61: 12 | L61: 00:05:08.667
A62: 10 | B62: 41 | C62: Čermáková | D62: Věra | E62: Turtles Znojmo | F62: 1978 | G62: 15 | H62: LZB | I62: ZB | J62: 0.01097222222 | K62: 11 | L62: 00:05:16
A63: 11 | B63: 13 | C63: Mlátilíková | D63: Tamara | F63: 1982 | G63: 16 | H63: LZB | I63: ZB | J63: 0.0115162037 | K63: 10 | L63: 00:05:31.667
A64: 12 | B64: 5 | C64: Sikorová | D64: Jana | E64: Mašovice | F64: 1980 | G64: 17 | H64: LZB | I64: ZB | J64: 0.01228009259 | K64: 9 | L64: 00:05:53.667
A65: 13 | B65: 20 | C65: Dočekalová | D65: Vladislava | E65: Znojmo | F65: 1980 | G65: 20 | H65: LZB | I65: ZB | J65: 0.0127662037 | K65: 8 | L65: 00:06:07.667
A66: 14 | B66: 21 | C66: Marešová | D66: Karla | E66: Znojmo | F66: 1975 | G66: 21 | H66: LZB | I66: ZB | J66: 0.01309027778 | K66: 7 | L66: 00:06:17
A67: LZC | B67: L: Ženy od 35
A68: 1 | B68: 26 | C68: Kučerová | D68: Jana | E68: Rohatec | F68: 1971 | G68: 3 | H68: LZC | I68: ZC | J68: 0.01009259259 | K68: 30 | L68: 00:04:50.667
A69: 2 | B69: 38 | C69: Jičínská | D69: Lenka | E69: Orel Mor. Budějovice | F69: 1974 | G69: 4 | H69: LZC | I69: ZC | J69: 0.01016203704 | K69: 25 | L69: 00:04:52.667
A70: 3 | B70: 23 | C70: Bulínová | D70: Jitka | E70: TJ Sokol Plaveč | F70: 1970 | G70: 7 | H70: LZC | I70: ZC | J70: 0.01049768519 | K70: 21 | L70: 00:05:02.333
A71: 4 | B71: 51 | C71: Valášková | D71: Jana | F71: 1965 | G71: 12 | H71: LZC | I71: ZC | J71: 0.01067476852 | K71: 18 | L71: 00:05:07.433
A72: 5 | B72: 47 | C72: Hlívová | D72: Iva | E72: Kravák | F72: 1974 | G72: 18 | H72: LZC | I72: ZC | J72: 0.01230324074 | K72: 16 | L72: 00:05:54.333
A73: 6 | B73: 50 | C73: Jindrová | D73: Ilona | E73: Dačice | F73: 1967 | G73: 19 | H73: LZC | I73: ZC | J73: 0.01275462963 | K73: 15 | L73: 00:06:07.333
A75: Výsledky podle kategorií ZBP | E75: =IF(ISNA(VLOOKUP($A$4&"xM6xANO",'Závody a tratě'!$L:$L,1,0)),"NEBODOVANÝ ZÁVOD","") ->  | F75: Trať: | G75: ="M6 ("&(VLOOKUP($A$4&"xM6",'Závody a tratě'!$A:$F,5,0))&")" -> M6 (Muži 6 km) | J75: Délka: | K75: =VLOOKUP($A$4&"xM6",'Závody a tratě'!$A:$F,6,0) -> 6 | L75: km
A76: Poř. | B76: St. č. | C76: Příjmení | D76: Jméno | E76: Klub | F76: Rok narození | G76: Celkové pořadí | H76: Kat. | I76: Kat. ZBP | J76: Čas | K76: Body ZBP | L76: Čas na 1 km
A77: MA | B77: Muži do 39
A78: 1 | B78: 15 | C78: Soural | D78: Lukáš | E78: VSK UNI Brno | F78: 1982 | G78: 1 | H78: LMA | I78: MA | J78: 0.01501157407 | K78: 30 | L78: 00:03:36.167
A79: 2 | B79: 18 | C79: Čabala | D79: Vojtěch | E79: Rabbits Znojmo | F79: 1993 | G79: 2 | H79: LMA | I79: MA | J79: 0.01537037037 | K79: 25 | L79: 00:03:41.333
A80: 3 | B80: 48 | C80: Mahr | D80: Daniel | E80: Znojmo | F80: 1983 | G80: 3 | H80: LMA | I80: MA | J80: 0.01578703704 | K80: 21 | L80: 00:03:47.333
A81: 4 | B81: 33 | C81: Blaha | D81: Daniel | F81: 2002 | G81: 4 | H81: LMA | I81: MA | J81: 0.01578819444 | K81: 18 | L81: 00:03:47.350
A82: 5 | B82: 11 | C82: Hrubý | D82: Josef | E82: TJ Znojmo | F82: 1992 | G82: 5 | H82: LMA | I82: MA | J82: 0.01667824074 | K82: 16 | L82: 00:04:00.167
A83: 6 | B83: 10 | C83: Šrámek | D83: Ondřej | E83: Rabbits Znojmo | F83: 1997 | G83: 8 | H83: LMA | I83: MA | J83: 0.01731481481 | K83: 15 | L83: 00:04:09.333
A84: 7 | B84: 19 | C84: Brandl | D84: Tomáš | F84: 1998 | G84: 17 | H84: LMA | I84: MA | J84: 0.01903935185 | K84: 14 | L84: 00:04:34.167
A85: 8 | B85: 14 | C85: Koc | D85: Dušan | E85: TJ Sokol Plaveč | F85: 1990 | G85: 23 | H85: LMA | I85: MA | J85: 0.01940972222 | K85: 13 | L85: 00:04:39.500
A86: 9 | B86: 22 | C86: Dočekal | D86: Jan | E86: TJ Znojmo | F86: 2004 | G86: 26 | H86: LMA | I86: MA | J86: 0.02042824074 | K86: 12 | L86: 00:04:54.167
A87: 10 | B87: 30 | C87: Kaidl | D87: Pavel | E87: Němčičky | F87: 1987 | G87: 31 | H87: LMA | I87: MA | J87: 0.02194444444 | K87: 11 | L87: 00:05:16
A88: 11 | B88: 42 | C88: Paulíček | D88: Tomáš | E88: Šanov | F88: 2005 | G88: 32 | H88: LMA | I88: MA | J88: 0.02209490741 | K88: 10 | L88: 00:05:18.167
A89: 12 | B89: 3 | C89: Papoušek | D89: Ondřej | E89: Přímětice | F89: 2006 | G89: 36 | H89: LMA | I89: MA | J89: 0.02732638889 | K89: 9 | L89: 00:06:33.500
A90: MB | B90: Muži 40 - 49
A91: 1 | B91: 7 | C91: Vala | D91: Robert | E91: Znojmo | F91: 1977 | G91: 6 | H91: LMB | I91: MB | J91: 0.01700231481 | K91: 30 | L91: 00:04:04.833
A92: 2 | B92: 40 | C92: Čermák | D92: Bedřich | E92: Turtles Znojmo | F92: 1974 | G92: 7 | H92: LMB | I92: MB | J92: 0.0171412037 | K92: 25 | L92: 00:04:06.833
A93: 3 | B93: 39 | C93: Jičínský | D93: Petr | E93: Orel Mor. Budějovice | F93: 1972 | G93: 11 | H93: LMB | I93: MB | J93: 0.01811342593 | K93: 21 | L93: 00:04:20.833
A94: 4 | B94: 57 | C94: Dvořák | D94: Leoš | E94: Znojmo | F94: 1971 | G94: 14 | H94: LMB | I94: MB | J94: 0.01885416667 | K94: 18 | L94: 00:04:31.500
A95: 5 | B95: 43 | C95: Novosad | D95: Miroslav | E95: Šanov | F95: 1974 | G95: 15 | H95: LMB | I95: MB | J95: 0.01893518519 | K95: 16 | L95: 00:04:32.667
A96: 6 | B96: 32 | C96: Hrubý | D96: Karel | F96: 1974 | G96: 16 | H96: LMB | I96: MB | J96: 0.01898148148 | K96: 15 | L96: 00:04:33.333
A97: 7 | B97: 29 | C97: Kuda | D97: Lubomír | E97: Hrušovany n/J | F97: 1977 | G97: 22 | H97: LMB | I97: MB | J97: 0.01936342593 | K97: 14 | L97: 00:04:38.833
A98: 8 | B98: 34 | C98: Nejedlý | D98: Jiří | E98: Němčičky | F98: 1971 | G98: 28 | H98: LMB | I98: MB | J98: 0.0205787037 | K98: 13 | L98: 00:04:56.333
A99: 9 | B99: 37 | C99: Fila | D99: Radek | F99: 1979 | G99: 34 | H99: LMB | I99: MB | J99: 0.02295138889 | K99: 12 | L99: 00:05:30.500
A100: 10 | B100: 28 | C100: Šoba | D100: Petr | E100: Mikulovice | F100: 1976 | G100: 35 | H100: LMB | I100: MB | J100: 0.02564814815 | K100: 11 | L100: 00:06:09.333
A101: MC | B101: Muži 50 - 59
A102: 1 | B102: 25 | C102: Kratochvíl | D102: Pavel | E102: Atletic Třebíč | F102: 1960 | G102: 9 | H102: LMC | I102: MC | J102: 0.01738425926 | K102: 30 | L102: 00:04:10.333
A103: 2 | B103: 4 | C103: Vlčan | D103: Luboš | E103: Atletic Třebíč | F103: 1968 | G103: 10 | H103: LMC | I103: MC | J103: 0.01789351852 | K103: 25 | L103: 00:04:17.667
A104: 3 | B104: 17 | C104: Nožka | D104: Jiří | E104: Dinosport Ivančice | F104: 1963 | G104: 12 | H104: LMC | I104: MC | J104: 0.01869212963 | K104: 21 | L104: 00:04:29.167
A105: 4 | B105: 2 | C105: Tesař | D105: Miroslav | E105: Znojmo | F105: 1969 | G105: 18 | H105: LMC | I105: MC | J105: 0.0191087963 | K105: 18 | L105: 00:04:35.167
A106: 5 | B106: 8 | C106: Němec | D106: Bedřich | E106: Hornice | F106: 1964 | G106: 21 | H106: LMC | I106: MC | J106: 0.01931712963 | K106: 16 | L106: 00:04:38.167
A107: 6 | B107: 52 | C107: Soukup | D107: Milan | E107: TJ Znojmo | F107: 1964 | G107: 24 | H107: LMC | I107: MC | J107: 0.01947916667 | K107: 15 | L107: 00:04:40.500
A108: 7 | B108: 24 | C108: Bulín | D108: Jindřich | E108: TJ Sokol Plaveč | F108: 1967 | G108: 25 | H108: LMC | I108: MC | J108: 0.01953703704 | K108: 14 | L108: 00:04:41.333
A109: 8 | B109: 49 | C109: Jindra | D109: Vítězslav | E109: Dačice | F109: 1965 | G109: 29 | H109: LMC | I109: MC | J109: 0.02122685185 | K109: 13 | L109: 00:05:05.667
A110: MD | B110: Muži nad 60
A111: 1 | B111: 9 | C111: Januška | D111: Ivan | E111: Šanov | F111: 1958 | G111: 13 | H111: LMD | I111: MD | J111: 0.01873842593 | K111: 30 | L111: 00:04:29.833
A112: 2 | B112: 54 | C112: Nováček | D112: Josef | E112: SDH Čučice | F112: 1958 | G112: 19 | H112: LMD | I112: MD | J112: 0.01924768519 | K112: 25 | L112: 00:04:37.167
A113: 3 | B113: 6 | C113: Klusáček | D113: Pavel | E113: Rokytnice n/R | F113: 1956 | G113: 20 | H113: LMD | I113: MD | J113: 0.01927083333 | K113: 21 | L113: 00:04:37.500
A114: 4 | B114: 56 | C114: Danielovič | D114: Leo | E114: Hradiště Znojmo | F114: 1958 | G114: 27 | H114: LMD | I114: MD | J114: 0.02054398148 | K114: 18 | L114: 00:04:55.833
A115: 5 | B115: 55 | C115: Marek | D115: Ludvík | E115: Popocatepetl Znojmo | F115: 1958 | G115: 30 | H115: LMD | I115: MD | J115: 0.02150462963 | K115: 16 | L115: 00:05:09.667
A116: 6 | B116: 16 | C116: Vacek | D116: Vladimír | E116: Poušov | F116: 1951 | G116: 33 | H116: LMD | I116: MD | J116: 0.0227662037 | K116: 15 | L116: 00:05:27.833
A118: Výsledky podle kategorií ZBP | E118: =IF(ISNA(VLOOKUP($A$4&"xZ3xANO",'Závody a tratě'!$L:$L,1,0)),"NEBODOVANÝ ZÁVOD","") ->  | F118: Trať: | G118: ="Z3 ("&(VLOOKUP($A$4&"xZ3",'Závody a tratě'!$A:$F,5,0))&")" -> Z3 (Ženy 3 km) | J118: Délka: | K118: =VLOOKUP($A$4&"xZ3",'Závody a tratě'!$A:$F,6,0) -> 3 | L118: km
A119: Poř. | B119: St. č. | C119: Příjmení | D119: Jméno | E119: Klub | F119: Rok narození | G119: Celkové pořadí | H119: Kat. | I119: Kat. ZBP | J119: Čas | K119: Body ZBP | L119: Čas na 1 km
A120: ZA | B120: Ženy do 34
A121: 1 | B121: 44 | C121: Kuchařová | D121: Simona | E121: TJ Znojmo | F121: 1996 | G121: 1 | H121: LZA | I121: ZA | J121: 0.00875 | K121: 30 | L121: 00:04:12
A122: ZB | B122: Ženy 35 - 44
A123: 1 | B123: 45 | C123: Přistálová | D123: Veronika | E123: Znojmo | F123: 1984 | G123: 2 | H123: LZB | I123: ZB | J123: 0.008981481481 | K123: 30 | L123: 00:04:18.667
A124: 2 | B124: 36 | C124: Szabó | D124: Lada | F124: 1978 | G124: 5 | H124: LZB | I124: ZB | J124: 0.01017361111 | K124: 25 | L124: 00:04:53
A125: 3 | B125: 1 | C125: Bartůňková | D125: Světlana | E125: Rabbits Znojmo | F125: 1976 | G125: 6 | H125: LZB | I125: ZB | J125: 0.01019675926 | K125: 21 | L125: 00:04:53.667
A126: 4 | B126: 35 | C126: Růžičková | D126: Zuzana | E126: Znojmo | F126: 1983 | G126: 8 | H126: LZB | I126: ZB | J126: 0.01066319444 | K126: 18 | L126: 00:05:07.100
A127: 5 | B127: 27 | C127: Zelená | D127: Irena | E127: Atletic Třebíč | F127: 1976 | G127: 9 | H127: LZB | I127: ZB | J127: 0.01066435185 | K127: 16 | L127: 00:05:07.133
A128: 6 | B128: 12 | C128: Orawská | D128: Lucie | F128: 1983 | G128: 10 | H128: LZB | I128: ZB | J128: 0.0106724537 | K128: 15 | L128: 00:05:07.367
A129: 7 | B129: 31 | C129: Šinkovič | D129: Irena | F129: 1981 | G129: 11 | H129: LZB | I129: ZB | J129: 0.01067361111 | K129: 14 | L129: 00:05:07.400
A130: 8 | B130: 65 | C130: Kučerová | D130: Petra | E130: Znojmo | F130: 1980 | G130: 13 | H130: LZB | I130: ZB | J130: 0.01067592593 | K130: 13 | L130: 00:05:07.467
A131: 9 | B131: 46 | C131: Auerová | D131: Stanislava | E131: Hluboké Mašůvky | F131: 1983 | G131: 14 | H131: LZB | I131: ZB | J131: 0.01071759259 | K131: 12 | L131: 00:05:08.667
A132: 10 | B132: 41 | C132: Čermáková | D132: Věra | E132: Turtles Znojmo | F132: 1978 | G132: 15 | H132: LZB | I132: ZB | J132: 0.01097222222 | K132: 11 | L132: 00:05:16
A133: 11 | B133: 13 | C133: Mlátilíková | D133: Tamara | F133: 1982 | G133: 16 | H133: LZB | I133: ZB | J133: 0.0115162037 | K133: 10 | L133: 00:05:31.667
A134: 12 | B134: 5 | C134: Sikorová | D134: Jana | E134: Mašovice | F134: 1980 | G134: 17 | H134: LZB | I134: ZB | J134: 0.01228009259 | K134: 9 | L134: 00:05:53.667
A135: 13 | B135: 20 | C135: Dočekalová | D135: Vladislava | E135: Znojmo | F135: 1980 | G135: 20 | H135: LZB | I135: ZB | J135: 0.0127662037 | K135: 8 | L135: 00:06:07.667
A136: 14 | B136: 21 | C136: Marešová | D136: Karla | E136: Znojmo | F136: 1975 | G136: 21 | H136: LZB | I136: ZB | J136: 0.01309027778 | K136: 7 | L136: 00:06:17
A137: ZC | B137: Ženy nad 45
A138: 1 | B138: 26 | C138: Kučerová | D138: Jana | E138: Rohatec | F138: 1971 | G138: 3 | H138: LZC | I138: ZC | J138: 0.01009259259 | K138: 30 | L138: 00:04:50.667
A139: 2 | B139: 38 | C139: Jičínská | D139: Lenka | E139: Orel Mor. Budějovice | F139: 1974 | G139: 4 | H139: LZC | I139: ZC | J139: 0.01016203704 | K139: 25 | L139: 00:04:52.667
A140: 3 | B140: 23 | C140: Bulínová | D140: Jitka | E140: TJ Sokol Plaveč | F140: 1970 | G140: 7 | H140: LZC | I140: ZC | J140: 0.01049768519 | K140: 21 | L140: 00:05:02.333
A141: 4 | B141: 51 | C141: Valášková | D141: Jana | F141: 1965 | G141: 12 | H141: LZC | I141: ZC | J141: 0.01067476852 | K141: 18 | L141: 00:05:07.433
A142: 5 | B142: 47 | C142: Hlívová | D142: Iva | E142: Kravák | F142: 1974 | G142: 18 | H142: LZC | I142: ZC | J142: 0.01230324074 | K142: 16 | L142: 00:05:54.333
A143: 6 | B143: 50 | C143: Jindrová | D143: Ilona | E143: Dačice | F143: 1967 | G143: 19 | H143: LZC | I143: ZC | J143: 0.01275462963 | K143: 15 | L143: 00:06:07.333
A145: Celkové pořadí | E145: =IF(ISNA(VLOOKUP($A$4&"xM6xANO",'Závody a tratě'!$L:$L,1,0)),"NEBODOVANÝ ZÁVOD","") ->  | F145: Trať: | G145: ="M6 ("&(VLOOKUP($A$4&"xM6",'Závody a tratě'!$A:$F,5,0))&")" -> M6 (Muži 6 km) | J145: Délka: | K145: =VLOOKUP($A$4&"xM6",'Závody a tratě'!$A:$F,6,0) -> 6 | L145: km
A146: Poř. | B146: St. č. | C146: Příjmení | D146: Jméno | E146: Klub | F146: Rok narození | G146: Celkové pořadí | H146: Kat. | I146: Kat. ZBP | J146: Čas | K146: Body ZBP | L146: Čas na 1 km
A147: 1 | B147: 15 | C147: Soural | D147: Lukáš | E147: VSK UNI Brno | F147: 1982 | G147: 1 | H147: LMA | I147: MA | J147: 0.01501157407 | K147: 30 | L147: 00:03:36.167
A148: 2 | B148: 18 | C148: Čabala | D148: Vojtěch | E148: Rabbits Znojmo | F148: 1993 | G148: 2 | H148: LMA | I148: MA | J148: 0.01537037037 | K148: 25 | L148: 00:03:41.333
A149: 3 | B149: 48 | C149: Mahr | D149: Daniel | E149: Znojmo | F149: 1983 | G149: 3 | H149: LMA | I149: MA | J149: 0.01578703704 | K149: 21 | L149: 00:03:47.333
A150: 4 | B150: 33 | C150: Blaha | D150: Daniel | F150: 2002 | G150: 4 | H150: LMA | I150: MA | J150: 0.01578819444 | K150: 18 | L150: 00:03:47.350
A151: 5 | B151: 11 | C151: Hrubý | D151: Josef | E151: TJ Znojmo | F151: 1992 | G151: 5 | H151: LMA | I151: MA | J151: 0.01667824074 | K151: 16 | L151: 00:04:00.167
A152: 6 | B152: 7 | C152: Vala | D152: Robert | E152: Znojmo | F152: 1977 | G152: 6 | H152: LMB | I152: MB | J152: 0.01700231481 | K152: 30 | L152: 00:04:04.833
A153: 7 | B153: 40 | C153: Čermák | D153: Bedřich | E153: Turtles Znojmo | F153: 1974 | G153: 7 | H153: LMB | I153: MB | J153: 0.0171412037 | K153: 25 | L153: 00:04:06.833
A154: 8 | B154: 10 | C154: Šrámek | D154: Ondřej | E154: Rabbits Znojmo | F154: 1997 | G154: 8 | H154: LMA | I154: MA | J154: 0.01731481481 | K154: 15 | L154: 00:04:09.333
A155: 9 | B155: 25 | C155: Kratochvíl | D155: Pavel | E155: Atletic Třebíč | F155: 1960 | G155: 9 | H155: LMC | I155: MC | J155: 0.01738425926 | K155: 30 | L155: 00:04:10.333
A156: 10 | B156: 4 | C156: Vlčan | D156: Luboš | E156: Atletic Třebíč | F156: 1968 | G156: 10 | H156: LMC | I156: MC | J156: 0.01789351852 | K156: 25 | L156: 00:04:17.667
A157: 11 | B157: 39 | C157: Jičínský | D157: Petr | E157: Orel Mor. Budějovice | F157: 1972 | G157: 11 | H157: LMB | I157: MB | J157: 0.01811342593 | K157: 21 | L157: 00:04:20.833
A158: 12 | B158: 17 | C158: Nožka | D158: Jiří | E158: Dinosport Ivančice | F158: 1963 | G158: 12 | H158: LMC | I158: MC | J158: 0.01869212963 | K158: 21 | L158: 00:04:29.167
A159: 13 | B159: 9 | C159: Januška | D159: Ivan | E159: Šanov | F159: 1958 | G159: 13 | H159: LMD | I159: MD | J159: 0.01873842593 | K159: 30 | L159: 00:04:29.833
A160: 14 | B160: 57 | C160: Dvořák | D160: Leoš | E160: Znojmo | F160: 1971 | G160: 14 | H160: LMB | I160: MB | J160: 0.01885416667 | K160: 18 | L160: 00:04:31.500
A161: 15 | B161: 43 | C161: Novosad | D161: Miroslav | E161: Šanov | F161: 1974 | G161: 15 | H161: LMB | I161: MB | J161: 0.01893518519 | K161: 16 | L161: 00:04:32.667
A162: 16 | B162: 32 | C162: Hrubý | D162: Karel | F162: 1974 | G162: 16 | H162: LMB | I162: MB | J162: 0.01898148148 | K162: 15 | L162: 00:04:33.333
A163: 17 | B163: 19 | C163: Brandl | D163: Tomáš | F163: 1998 | G163: 17 | H163: LMA | I163: MA | J163: 0.01903935185 | K163: 14 | L163: 00:04:34.167
A164: 18 | B164: 2 | C164: Tesař | D164: Miroslav | E164: Znojmo | F164: 1969 | G164: 18 | H164: LMC | I164: MC | J164: 0.0191087963 | K164: 18 | L164: 00:04:35.167
A165: 19 | B165: 54 | C165: Nováček | D165: Josef | E165: SDH Čučice | F165: 1958 | G165: 19 | H165: LMD | I165: MD | J165: 0.01924768519 | K165: 25 | L165: 00:04:37.167
A166: 20 | B166: 6 | C166: Klusáček | D166: Pavel | E166: Rokytnice n/R | F166: 1956 | G166: 20 | H166: LMD | I166: MD | J166: 0.01927083333 | K166: 21 | L166: 00:04:37.500
A167: 21 | B167: 8 | C167: Němec | D167: Bedřich | E167: Hornice | F167: 1964 | G167: 21 | H167: LMC | I167: MC | J167: 0.01931712963 | K167: 16 | L167: 00:04:38.167
A168: 22 | B168: 29 | C168: Kuda | D168: Lubomír | E168: Hrušovany n/J | F168: 1977 | G168: 22 | H168: LMB | I168: MB | J168: 0.01936342593 | K168: 14 | L168: 00:04:38.833
A169: 23 | B169: 14 | C169: Koc | D169: Dušan | E169: TJ Sokol Plaveč | F169: 1990 | G169: 23 | H169: LMA | I169: MA | J169: 0.01940972222 | K169: 13 | L169: 00:04:39.500
A170: 24 | B170: 52 | C170: Soukup | D170: Milan | E170: TJ Znojmo | F170: 1964 | G170: 24 | H170: LMC | I170: MC | J170: 0.01947916667 | K170: 15 | L170: 00:04:40.500
A171: 25 | B171: 24 | C171: Bulín | D171: Jindřich | E171: TJ Sokol Plaveč | F171: 1967 | G171: 25 | H171: LMC | I171: MC | J171: 0.01953703704 | K171: 14 | L171: 00:04:41.333
A172: 26 | B172: 22 | C172: Dočekal | D172: Jan | E172: TJ Znojmo | F172: 2004 | G172: 26 | H172: LMA | I172: MA | J172: 0.02042824074 | K172: 12 | L172: 00:04:54.167
A173: 27 | B173: 56 | C173: Danielovič | D173: Leo | E173: Hradiště Znojmo | F173: 1958 | G173: 27 | H173: LMD | I173: MD | J173: 0.02054398148 | K173: 18 | L173: 00:04:55.833
A174: 28 | B174: 34 | C174: Nejedlý | D174: Jiří | E174: Němčičky | F174: 1971 | G174: 28 | H174: LMB | I174: MB | J174: 0.0205787037 | K174: 13 | L174: 00:04:56.333
A175: 29 | B175: 49 | C175: Jindra | D175: Vítězslav | E175: Dačice | F175: 1965 | G175: 29 | H175: LMC | I175: MC | J175: 0.02122685185 | K175: 13 | L175: 00:05:05.667
A176: 30 | B176: 55 | C176: Marek | D176: Ludvík | E176: Popocatepetl Znojmo | F176: 1958 | G176: 30 | H176: LMD | I176: MD | J176: 0.02150462963 | K176: 16 | L176: 00:05:09.667
A177: 31 | B177: 30 | C177: Kaidl | D177: Pavel | E177: Němčičky | F177: 1987 | G177: 31 | H177: LMA | I177: MA | J177: 0.02194444444 | K177: 11 | L177: 00:05:16
A178: 32 | B178: 42 | C178: Paulíček | D178: Tomáš | E178: Šanov | F178: 2005 | G178: 32 | H178: LMA | I178: MA | J178: 0.02209490741 | K178: 10 | L178: 00:05:18.167
A179: 33 | B179: 16 | C179: Vacek | D179: Vladimír | E179: Poušov | F179: 1951 | G179: 33 | H179: LMD | I179: MD | J179: 0.0227662037 | K179: 15 | L179: 00:05:27.833
A180: 34 | B180: 37 | C180: Fila | D180: Radek | F180: 1979 | G180: 34 | H180: LMB | I180: MB | J180: 0.02295138889 | K180: 12 | L180: 00:05:30.500
A181: 35 | B181: 28 | C181: Šoba | D181: Petr | E181: Mikulovice | F181: 1976 | G181: 35 | H181: LMB | I181: MB | J181: 0.02564814815 | K181: 11 | L181: 00:06:09.333
A182: 36 | B182: 3 | C182: Papoušek | D182: Ondřej | E182: Přímětice | F182: 2006 | G182: 36 | H182: LMA | I182: MA | J182: 0.02732638889 | K182: 9 | L182: 00:06:33.500
A184: Celkové pořadí | E184: =IF(ISNA(VLOOKUP($A$4&"xZ3xANO",'Závody a tratě'!$L:$L,1,0)),"NEBODOVANÝ ZÁVOD","") ->  | F184: Trať: | G184: ="Z3 ("&(VLOOKUP($A$4&"xZ3",'Závody a tratě'!$A:$F,5,0))&")" -> Z3 (Ženy 3 km) | J184: Délka: | K184: =VLOOKUP($A$4&"xZ3",'Závody a tratě'!$A:$F,6,0) -> 3 | L184: km
A185: Poř. | B185: St. č. | C185: Příjmení | D185: Jméno | E185: Klub | F185: Rok narození | G185: Celkové pořadí | H185: Kat. | I185: Kat. ZBP | J185: Čas | K185: Body ZBP | L185: Čas na 1 km
A186: 1 | B186: 44 | C186: Kuchařová | D186: Simona | E186: TJ Znojmo | F186: 1996 | G186: 1 | H186: LZA | I186: ZA | J186: 0.00875 | K186: 30 | L186: 00:04:12
A187: 2 | B187: 45 | C187: Přistálová | D187: Veronika | E187: Znojmo | F187: 1984 | G187: 2 | H187: LZB | I187: ZB | J187: 0.008981481481 | K187: 30 | L187: 00:04:18.667
A188: 3 | B188: 26 | C188: Kučerová | D188: Jana | E188: Rohatec | F188: 1971 | G188: 3 | H188: LZC | I188: ZC | J188: 0.01009259259 | K188: 30 | L188: 00:04:50.667
A189: 4 | B189: 38 | C189: Jičínská | D189: Lenka | E189: Orel Mor. Budějovice | F189: 1974 | G189: 4 | H189: LZC | I189: ZC | J189: 0.01016203704 | K189: 25 | L189: 00:04:52.667
A190: 5 | B190: 36 | C190: Szabó | D190: Lada | F190: 1978 | G190: 5 | H190: LZB | I190: ZB | J190: 0.01017361111 | K190: 25 | L190: 00:04:53
A191: 6 | B191: 1 | C191: Bartůňková | D191: Světlana | E191: Rabbits Znojmo | F191: 1976 | G191: 6 | H191: LZB | I191: ZB | J191: 0.01019675926 | K191: 21 | L191: 00:04:53.667
A192: 7 | B192: 23 | C192: Bulínová | D192: Jitka | E192: TJ Sokol Plaveč | F192: 1970 | G192: 7 | H192: LZC | I192: ZC | J192: 0.01049768519 | K192: 21 | L192: 00:05:02.333
A193: 8 | B193: 35 | C193: Růžičková | D193: Zuzana | E193: Znojmo | F193: 1983 | G193: 8 | H193: LZB | I193: ZB | J193: 0.01066319444 | K193: 18 | L193: 00:05:07.100
A194: 9 | B194: 27 | C194: Zelená | D194: Irena | E194: Atletic Třebíč | F194: 1976 | G194: 9 | H194: LZB | I194: ZB | J194: 0.01066435185 | K194: 16 | L194: 00:05:07.133
A195: 10 | B195: 12 | C195: Orawská | D195: Lucie | F195: 1983 | G195: 10 | H195: LZB | I195: ZB | J195: 0.0106724537 | K195: 15 | L195: 00:05:07.367
A196: 11 | B196: 31 | C196: Šinkovič | D196: Irena | F196: 1981 | G196: 11 | H196: LZB | I196: ZB | J196: 0.01067361111 | K196: 14 | L196: 00:05:07.400
A197: 12 | B197: 51 | C197: Valášková | D197: Jana | F197: 1965 | G197: 12 | H197: LZC | I197: ZC | J197: 0.01067476852 | K197: 18 | L197: 00:05:07.433
A198: 13 | B198: 65 | C198: Kučerová | D198: Petra | E198: Znojmo | F198: 1980 | G198: 13 | H198: LZB | I198: ZB | J198: 0.01067592593 | K198: 13 | L198: 00:05:07.467
A199: 14 | B199: 46 | C199: Auerová | D199: Stanislava | E199: Hluboké Mašůvky | F199: 1983 | G199: 14 | H199: LZB | I199: ZB | J199: 0.01071759259 | K199: 12 | L199: 00:05:08.667
A200: 15 | B200: 41 | C200: Čermáková | D200: Věra | E200: Turtles Znojmo | F200: 1978 | G200: 15 | H200: LZB | I200: ZB | J200: 0.01097222222 | K200: 11 | L200: 00:05:16
A201: 16 | B201: 13 | C201: Mlátilíková | D201: Tamara | F201: 1982 | G201: 16 | H201: LZB | I201: ZB | J201: 0.0115162037 | K201: 10 | L201: 00:05:31.667
A202: 17 | B202: 5 | C202: Sikorová | D202: Jana | E202: Mašovice | F202: 1980 | G202: 17 | H202: LZB | I202: ZB | J202: 0.01228009259 | K202: 9 | L202: 00:05:53.667
A203: 18 | B203: 47 | C203: Hlívová | D203: Iva | E203: Kravák | F203: 1974 | G203: 18 | H203: LZC | I203: ZC | J203: 0.01230324074 | K203: 16 | L203: 00:05:54.333
A204: 19 | B204: 50 | C204: Jindrová | D204: Ilona | E204: Dačice | F204: 1967 | G204: 19 | H204: LZC | I204: ZC | J204: 0.01275462963 | K204: 15 | L204: 00:06:07.333
A205: 20 | B205: 20 | C205: Dočekalová | D205: Vladislava | E205: Znojmo | F205: 1980 | G205: 20 | H205: LZB | I205: ZB | J205: 0.0127662037 | K205: 8 | L205: 00:06:07.667
A206: 21 | B206: 21 | C206: Marešová | D206: Karla | E206: Znojmo | F206: 1975 | G206: 21 | H206: LZB | I206: ZB | J206: 0.01309027778 | K206: 7 | L206: 00:06:17

Sheet Vyhodnocení ZBP
I1: Trať | J1: Muži 10 km | K1: Ženy 6,7 km | L1: Muži 6 km | M1: Ženy 3 km | N1: Muži 10,9 km | O1: Ženy 4,5 km | P1: Muži 9 km | Q1: Ženy 4,5 km | R1: Běh 9,8 km | S1: Běh 10,58 km | T1: Muži 10,2 km | U1: Ženy 5 km | V1: Muži 6,4 km | W1: Ženy 3,2 km | X1: Muži 8,1 km | Y1: Ženy 4,1 km | Z1: Muži 7 km | AA1: Ženy 3,5 km
A2: =IF(OR(Config!D1=FALSE,Config!D2=FALSE,Config!D3=FALSE,Config!D11=FALSE),"!!! ZPRACUJ VÝSLEDKY. DOŠLO KE ZMENÁM !!!","") & " " & _xlfn.IFNA(IF(VLOOKUP(TRUE,Config!$D$5:$D$8,1,0)=TRUE, "VSTUPNÍ DATA OBSAHUJÍ CHYBY !!!",""),"") ->  | I2: Závod | J2: Borovinská desítka | K2: Borovinská desítka | L2: „Sokolák“ Plaveč u Znojma | M2: „Sokolák“ Plaveč u Znojma | N2: Krumlovský běh | O2: Krumlovský běh | P2: Běh Avanti | Q2: Běh Avanti | R2: Běh pod Pálavou | S2: Vánoční Běh Elektrokov Znojmo | T2: Silvestrovský běh Třebíč | U2: Silvestrovský běh Třebíč | V2: VC Vinných sklepů Lechovice | W2: VC Vinných sklepů Lechovice | X2: MirRunCup | Y2: MirRunCup | Z2: Běh o pohár starosty Znojmo | AA2: Běh o pohár starosty Znojmo
A3: Příjmení | B3: Jméno | C3: Poh. | D3: Rok narození | E3: Kat. ZBP | F3: Pořadí kat. ZBP | G3: Pořadí celkové | H3: Body Top 5 | I3: Body Celkem | J3: 1 | K3: 1 | L3: 2 | M3: 2 | N3: 3 | O3: 3 | P3: 4 | Q3: 4 | R3: 5 | S3: 6 | T3: 7 | U3: 7 | V3: 8 | W3: 8 | X3: 9 | Y3: 9 | Z3: 10 | AA3: 10
J4: M10 | K4: Z6 | L4: M6 | M4: Z3 | N4: M11 | O4: Z4 | P4: M9 | Q4: Z4 | R4: A10 | S4: A10 | T4: M10 | U4: Z5 | V4: M6 | W4: Z3 | X4: M8 | Y4: Z4 | Z4: M7 | AA4: Z3
A5: ="MA: "&VLOOKUP("MA",'Kategorie ZBP'!$E:$F,2,0) -> MA: Muži do 39
A6: Čabala | B6: Vojtěch | C6: m | D6: 1993 | E6: MA | F6: 1 | G6: 2 | H6: 55 | I6: 55 | J6: 30 | L6: 25
A7: Hrubý | B7: Josef | C7: m | D7: 1992 | E7: MA | F7: 2 | G7: 14 | H7: 31 | I7: 31 | J7: 15 | L7: 16
A8: Soural | B8: Lukáš | C8: m | D8: 1982 | E8: MA | F8: 3 | G8: 15 | H8: 30 | I8: 30 | L8: 30
A9: Šrámek | B9: Ondřej | C9: m | D9: 1997 | E9: MA | F9: 4 | G9: 24 | H9: 27 | I9: 27 | J9: 12 | L9: 15
A10: Mahr | B10: David | C10: m | D10: 1983 | E10: MA | F10: 5 | G10: 25 | H10: 25 | I10: 25 | J10: 25
A11: Vrba | B11: Ondřej | C11: m | D11: 1984 | E11: MA | F11: 6 | G11: 35 | H11: 21 | I11: 21 | J11: 21
A12: Mahr | B12: Daniel | C12: m | D12: 1983 | E12: MA | F12: 6 | G12: 35 | H12: 21 | I12: 21 | L12: 21
A13: Ryšavý | B13: Zdeněk | C13: m | D13: 1991 | E13: MA | F13: 8 | G13: 41 | H13: 18 | I13: 18 | J13: 18
A14: Blaha | B14: Daniel | C14: m | D14: 2002 | E14: MA | F14: 8 | G14: 41 | H14: 18 | I14: 18 | L14: 18
A15: Spáčil | B15: Josef | C15: m | D15: 1995 | E15: MA | F15: 10 | G15: 50 | H15: 16 | I15: 16 | J15: 16
A16: Tajbr | B16: Aleš | C16: m | D16: 1981 | E16: MA | F16: 11 | G16: 63 | H16: 14 | I16: 14 | J16: 14
A17: Brandl | B17: Tomáš | C17: m | D17: 1998 | E17: MA | F17: 11 | G17: 63 | H17: 14 | I17: 14 | L17: 14
A18: Caha | B18: Zbyněk | C18: m | D18: 1984 | E18: MA | F18: 13 | G18: 69 | H18: 13 | I18: 13 | J18: 13
A19: Koc | B19: Dušan | C19: m | D19: 1990 | E19: MA | F19: 13 | G19: 69 | H19: 13 | I19: 13 | L19: 13
A20: Dočekal | B20: Jan | C20: m | D20: 2004 | E20: MA | F20: 15 | G20: 75 | H20: 12 | I20: 12 | L20: 12
A21: Janík | B21: Pavel | C21: m | D21: 1984 | E21: MA | F21: 16 | G21: 79 | H21: 11 | I21: 11 | J21: 11
A22: Kaidl | B22: Pavel | C22: m | D22: 1987 | E22: MA | F22: 16 | G22: 79 | H22: 11 | I22: 11 | L22: 11
A23: Voda | B23: Karel | C23: m | D23: 1981 | E23: MA | F23: 18 | G23: 84 | H23: 10 | I23: 10 | J23: 10
A24: Paulíček | B24: Tomáš | C24: m | D24: 2005 | E24: MA | F24: 18 | G24: 84 | H24: 10 | I24: 10 | L24: 10
A25: Papoušek | B25: Ondřej | C25: m | D25: 2006 | E25: MA | F25: 20 | G25: 88 | H25: 9 | I25: 9 | L25: 9
A26: ="MB: "&VLOOKUP("MB",'Kategorie ZBP'!$E:$F,2,0) -> MB: Muži 40 - 49
A27: Jičínský | B27: Petr | C27: m | D27: 1972 | E27: MB | F27: 1 | G27: 9 | H27: 35 | I27: 35 | J27: 14 | L27: 21
A28: Hanáček | B28: Martin | C28: m | D28: 1977 | E28: MB | F28: 2 | G28: 15 | H28: 30 | I28: 30 | J28: 30
A29: Vala | B29: Robert | C29: m | D29: 1977 | E29: MB | F29: 2 | G29: 15 | H29: 30 | I29: 30 | L29: 30
A30: Liška | B30: Aleš | C30: m | D30: 1977 | E30: MB | F30: 4 | G30: 25 | H30: 25 | I30: 25 | J30: 25
A31: Khyr | B31: Rostislav | C31: m | D31: 1976 | E31: MB | F31: 4 | G31: 25 | H31: 25 | I31: 25 | J31: 25
A32: Čermák | B32: Bedřich | C32: m | D32: 1974 | E32: MB | F32: 4 | G32: 25 | H32: 25 | I32: 25 | L32: 25
A33: Vostál | B33: Petr | C33: m | D33: 1974 | E33: MB | F33: 7 | G33: 41 | H33: 18 | I33: 18 | J33: 18
A34: Dvořák | B34: Leoš | C34: m | D34: 1971 | E34: MB | F34: 7 | G34: 41 | H34: 18 | I34: 18 | L34: 18
A35: Mityska | B35: Stanislav | C35: m | D35: 1973 | E35: MB | F35: 9 | G35: 50 | H35: 16 | I35: 16 | J35: 16
A36: Novosad | B36: Miroslav | C36: m | D36: 1974 | E36: MB | F36: 9 | G36: 50 | H36: 16 | I36: 16 | L36: 16
A37: Konečný | B37: Karel | C37: m | D37: 1970 | E37: MB | F37: 11 | G37: 57 | H37: 15 | I37: 15 | J37: 15
A38: Hrubý | B38: Karel | C38: m | D38: 1974 | E38: MB | F38: 11 | G38: 57 | H38: 15 | I38: 15 | L38: 15
A39: Kuda | B39: Lubomír | C39: m | D39: 1977 | E39: MB | F39: 13 | G39: 63 | H39: 14 | I39: 14 | L39: 14
A40: Koukal | B40: Jan | C40: m | D40: 1979 | E40: MB | F40: 14 | G40: 69 | H40: 13 | I40: 13 | J40: 13
A41: Nejedlý | B41: Jiří | C41: m | D41: 1971 | E41: MB | F41: 14 | G41: 69 | H41: 13 | I41: 13 | L41: 13
A42: Peitz | B42: Michal | C42: m | D42: 1971 | E42: MB | F42: 16 | G42: 75 | H42: 12 | I42: 12 | J42: 12
A43: Fila | B43: Radek | C43: m | D43: 1979 | E43: MB | F43: 16 | G43: 75 | H43: 12 | I43: 12 | L43: 12
A44: Studený | B44: Pavel | C44: m | D44: 1971 | E44: MB | F44: 18 | G44: 79 | H44: 11 | I44: 11 | J44: 11
A45: Šoba | B45: Petr | C45: m | D45: 1976 | E45: MB | F45: 18 | G45: 79 | H45: 11 | I45: 11 | L45: 11
A46: Chodur | B46: Josef | C46: m | D46: 1975 | E46: MB | F46: 20 | G46: 84 | H46: 10 | I46: 10 | J46: 10
A47: Kuba | B47: Lubomír | C47: m | D47: 1977 | E47: MB | F47: 21 | G47: 88 | H47: 9 | I47: 9 | J47: 9
A48: Petráš | B48: Miroslav | C48: m | D48: 1979 | E48: MB | F48: 22 | G48: 91 | H48: 8 | I48: 8 | J48: 8
A49: Zelený | B49: Jiří | C49: m | D49: 1976 | E49: MB | F49: 23 | G49: 93 | H49: 7 | I49: 7 | J49: 7
A50: Dvořák | B50: Rostislav | C50: m | D50: 1974 | E50: MB | F50: 24 | G50: 95 | H50: 6 | I50: 6 | J50: 6
A51: ="MC: "&VLOOKUP("MC",'Kategorie ZBP'!$E:$F,2,0) -> MC: Muži 50 - 59
A52: Vlčan | B52: Luboš | C52: m | D52: 1968 | E52: MC | F52: 1 | G52: 2 | H52: 55 | I52: 55 | J52: 30 | L52: 25
A53: Němec | B53: Bedřich | C53: m | D53: 1964 | E53: MC | F53: 2 | G53: 7 | H53: 41 | I53: 41 | J53: 25 | L53: 16
A54: Bulín | B54: Jindřich | C54: m | D54: 1967 | E54: MC | F54: 3 | G54: 9 | H54: 35 | I54: 35 | J54: 21 | L54: 14
A55: Soukup | B55: Milan | C55: m | D55: 1964 | E55: MC | F55: 4 | G55: 11 | H55: 33 | I55: 33 | J55: 18 | L55: 15
A56: Kratochvíl | B56: Pavel | C56: m | D56: 1960 | E56: MC | F56: 5 | G56: 15 | H56: 30 | I56: 30 | L56: 30
A57: Jindra | B57: Vítězslav | C57: m | D57: 1965 | E57: MC | F57: 6 | G57: 23 | H57: 28 | I57: 28 | J57: 15 | L57: 13
A58: Nožka | B58: Jiří | C58: m | D58: 1963 | E58: MC | F58: 7 | G58: 35 | H58: 21 | I58: 21 | L58: 21
A59: Tesař | B59: Miroslav | C59: m | D59: 1969 | E59: MC | F59: 8 | G59: 41 | H59: 18 | I59: 18 | L59: 18
A60: Belán | B60: Luděk | C60: m | D60: 1966 | E60: MC | F60: 9 | G60: 50 | H60: 16 | I60: 16 | J60: 16
A61: Halbrštat | B61: Petr | C61: m | D61: 1967 | E61: MC | F61: 10 | G61: 63 | H61: 14 | I61: 14 | J61: 14
A62: ="MD: "&VLOOKUP("MD",'Kategorie ZBP'!$E:$F,2,0) -> MD: Muži nad 60
A63: Klusáček | B63: Pavel | C63: m | D63: 1956 | E63: MD | F63: 1 | G63: 5 | H63: 51 | I63: 51 | J63: 30 | L63: 21
A64: Vacek | B64: Vladimír | C64: m | D64: 1951 | E64: MD | F64: 2 | G64: 8 | H64: 36 | I64: 36 | J64: 21 | L64: 15
A65: Januška | B65: Ivan | C65: m | D65: 1958 | E65: MD | F65: 3 | G65: 15 | H65: 30 | I65: 30 | L65: 30
A66: Koreš | B66: Arnošt | C66: m | D66: 1950 | E66: MD | F66: 4 | G66: 25 | H66: 25 | I66: 25 | J66: 25
A67: Nováček | B67: Josef | C67: m | D67: 1958 | E67: MD | F67: 4 | G67: 25 | H67: 25 | I67: 25 | L67: 25
A68: Danielovič | B68: Leo | C68: m | D68: 1958 | E68: MD | F68: 6 | G68: 41 | H68: 18 | I68: 18 | L68: 18
A69: Marek | B69: Ludvík | C69: m | D69: 1958 | E69: MD | F69: 7 | G69: 50 | H69: 16 | I69: 16 | L69: 16
A70: ="ZA: "&VLOOKUP("ZA",'Kategorie ZBP'!$E:$F,2,0) -> ZA: Ženy do 34
A71: Kuchařová | B71: Simona | C71: z | D71: 1996 | E71: ZA | F71: 1 | G71: 1 | H71: 60 | I71: 60 | K71: 30 | M71: 30
A72: Krčálová | B72: Blanka | C72: z | D72: 1986 | E72: ZA | F72: 2 | G72: 25 | H72: 25 | I72: 25 | K72: 25
A73: Březnová | B73: Radka | C73: z | D73: 1999 | E73: ZA | F73: 3 | G73: 35 | H73: 21 | I73: 21 | K73: 21
A74: Lesslová | B74: Denisa | C74: z | D74: 1987 | E74: ZA | F74: 4 | G74: 41 | H74: 18 | I74: 18 | K74: 18
A75: Havlíková | B75: Ifka | C75: z | D75: 1988 | E75: ZA | F75: 5 | G75: 50 | H75: 16 | I75: 16 | K75: 16
A76: Bulínová | B76: Jitka | C76: z | D76: 1993 | E76: ZA | F76: 6 | G76: 57 | H76: 15 | I76: 15 | K76: 15
A77: Hanáková | B77: Eva | C77: z | D77: 1986 | E77: ZA | F77: 7 | G77: 63 | H77: 14 | I77: 14 | K77: 14
A78: ="ZB: "&VLOOKUP("ZB",'Kategorie ZBP'!$E:$F,2,0) -> ZB: Ženy 35 - 44
A79: Zelená | B79: Irena | C79: z | D79: 1976 | E79: ZB | F79: 1 | G79: 12 | H79: 32 | I79: 32 | K79: 16 | M79: 16
A80: Růžičková | B80: Zuzana | C80: z | D80: 1983 | E80: ZB | F80: 1 | G80: 12 | H80: 32 | I80: 32 | K80: 14 | M80: 18
A81: Vrbová-Komárková | B81: Jana | C81: z | D81: 1984 | E81: ZB | F81: 3 | G81: 15 | H81: 30 | I81: 30 | K81: 30
A82: Přistálová | B82: Veronika | C82: z | D82: 1984 | E82: ZB | F82: 3 | G82: 15 | H82: 30 | I82: 30 | M82: 30
A83: Novotná | B83: Lucie | C83: z | D83: 1975 | E83: ZB | F83: 5 | G83: 25 | H83: 25 | I83: 25 | K83: 25
A84: Szabó | B84: Lada | C84: z | D84: 1978 | E84: ZB | F84: 5 | G84: 25 | H84: 25 | I84: 25 | M84: 25
A85: Vomelová | B85: Eva | C85: z | D85: 1977 | E85: ZB | F85: 7 | G85: 35 | H85: 21 | I85: 21 | K85: 21
A86: Bartůňková | B86: Světlana | C86: z | D86: 1976 | E86: ZB | F86: 7 | G86: 35 | H86: 21 | I86: 21 | M86: 21
A87: Dvořáková | B87: Šárka | C87: z | D87: 1978 | E87: ZB | F87: 9 | G87: 41 | H87: 18 | I87: 18 | K87: 18
A88: Peitz | B88: Slávka | C88: z | D88: 1978 | E88: ZB | F88: 10 | G88: 57 | H88: 15 | I88: 15 | K88: 15
A89: Orawská | B89: Lucie | C89: z | D89: 1983 | E89: ZB | F89: 10 | G89: 57 | H89: 15 | I89: 15 | M89: 15
A90: Šinkovič | B90: Irena | C90: z | D90: 1981 | E90: ZB | F90: 12 | G90: 63 | H90: 14 | I90: 14 | M90: 14
A91: Dobešová | B91: Ivona | C91: z | D91: 1984 | E91: ZB | F91: 13 | G91: 69 | H91: 13 | I91: 13 | K91: 13
A92: Kučerová | B92: Petra | C92: z | D92: 1980 | E92: ZB | F92: 13 | G92: 69 | H92: 13 | I92: 13 | M92: 13
A93: Auerová | B93: Stanislava | C93: z | D93: 1983 | E93: ZB | F93: 15 | G93: 75 | H93: 12 | I93: 12 | M93: 12
A94: Čermáková | B94: Věra | C94: z | D94: 1978 | E94: ZB | F94: 16 | G94: 79 | H94: 11 | I94: 11 | M94: 11
A95: Mlátilíková | B95: Tamara | C95: z | D95: 1982 | E95: ZB | F95: 17 | G95: 84 | H95: 10 | I95: 10 | M95: 10
A96: Sikorová | B96: Jana | C96: z | D96: 1980 | E96: ZB | F96: 18 | G96: 88 | H96: 9 | I96: 9 | M96: 9
A97: Dočekalová | B97: Vladislava | C97: z | D97: 1980 | E97: ZB | F97: 19 | G97: 91 | H97: 8 | I97: 8 | M97: 8
A98: Marešová | B98: Karla | C98: z | D98: 1975 | E98: ZB | F98: 20 | G98: 93 | H98: 7 | I98: 7 | M98: 7
A99: ="ZC: "&VLOOKUP("ZC",'Kategorie ZBP'!$E:$F,2,0) -> ZC: Ženy nad 45
A100: Jičínská | B100: Lenka | C100: z | D100: 1974 | E100: ZC | F100: 1 | G100: 2 | H100: 55 | I100: 55 | K100: 30 | M100: 25
A101: Bulínová | B101: Jitka | C101: z | D101: 1970 | E101: ZC | F101: 2 | G101: 6 | H101: 42 | I101: 42 | K101: 21 | M101: 21
A102: Kučerová | B102: Jana | C102: z | D102: 1971 | E102: ZC | F102: 3 | G102: 15 | H102: 30 | I102: 30 | M102: 30
A103: Březnová | B103: Ivana | C103: z | D103: 1969 | E103: ZC | F103: 4 | G103: 25 | H103: 25 | I103: 25 | K103: 25
A104: Valášková | B104: Jana | C104: z | D104: 1965 | E104: ZC | F104: 5 | G104: 41 | H104: 18 | I104: 18 | M104: 18
A105: Hlívová | B105: Iva | C105: z | D105: 1974 | E105: ZC | F105: 6 | G105: 50 | H105: 16 | I105: 16 | M105: 16
A106: Jindrová | B106: Ilona | C106: z | D106: 1967 | E106: ZC | F106: 7 | G106: 57 | H106: 15 | I106: 15 | M106: 15

Sheet Závody a tratě
A1: ID String | B1: ID závodu | C1: Název závodu | D1: ID tratě | E1: Název tratě | F1: Délka (km) | G1: Datum | H1: Součást ZBP | I1: Počasí | J1: Teplota | K1: Povrch | L1: ID String 2
A2: =B2&"x"&D2 -> 1xM10 | B2: 1 | C2: Borovinská desítka | D2: M10 | E2: Muži 10 km | F2: 10 | G2: 2019-09-28 | H2: Ano | K2: asfalt | L2: =B2&"x"&D2&"x"&UPPER(H2) -> 1xM10xANO
A3: 1xZ6 | B3: 1 | C3: Borovinská desítka | D3: Z6 | E3: Ženy 6,7 km | F3: 6.7 | G3: 2019-09-28 | H3: Ano | K3: asfalt | L3: 1xZ6xANO
A4: 2xH | B4: 2 | C4: „Sokolák“ Plaveč u Znojma | D4: H | E4: Hobby 3 km | F4: 3 | G4: 2019-10-12 | H4: Ne | I4: zamračeno, trvalý déšť | J4: 18°C | K4: terén a mírné převýšení | L4: 2xHxNE
A5: 2xM6 | B5: 2 | C5: „Sokolák“ Plaveč u Znojma | D5: M6 | E5: Muži 6 km | F5: 6 | G5: 2019-10-12 | H5: Ano | I5: zamračeno, trvalý déšť | J5: 18°C | K5: terén a mírné převýšení | L5: 2xM6xANO
A6: 2xZ3 | B6: 2 | C6: „Sokolák“ Plaveč u Znojma | D6: Z3 | E6: Ženy 3 km | F6: 3 | G6: 2019-10-12 | H6: Ano | I6: zamračeno, trvalý déšť | J6: 18°C | K6: terén a mírné převýšení | L6: 2xZ3xANO
A7: 3xM11 | B7: 3 | C7: Krumlovský běh | D7: M11 | E7: Muži 10,9 km | F7: 10.9 | H7: Ano | K7: asfalt | L7: 3xM11xANO
A8: 3xM4 | B8: 3 | C8: Krumlovský běh | D8: M4 | E8: Muži 4,5 km | F8: 4.5 | H8: Ne | K8: asfalt | L8: 3xM4xNE
A9: 3xZ11 | B9: 3 | C9: Krumlovský běh | D9: Z11 | E9: Ženy 10,9 km | F9: 10.9 | H9: Ne | K9: asfalt | L9: 3xZ11xNE
A10: 3xZ4 | B10: 3 | C10: Krumlovský běh | D10: Z4 | E10: Ženy 4,5 km | F10: 4.5 | H10: Ano | K10: asfalt | L10: 3xZ4xANO
A11: 4xH4 | B11: 4 | C11: Běh Avanti | D11: H4 | E11: Hobby 4,5 km | F11: 4.5 | H11: Ne | I11: zataženo | J11: 11°C | K11: asfalt, polní cesty | L11: 4xH4xNE
A12: 4xM9 | B12: 4 | C12: Běh Avanti | D12: M9 | E12: Muži 9 km | F12: 9 | H12: Ano | I12: zataženo | J12: 11°C | K12: asfalt, polní cesty | L12: 4xM9xANO
A13: 4xZ4 | B13: 4 | C13: Běh Avanti | D13: Z4 | E13: Ženy 4,5 km | F13: 4.5 | H13: Ano | I13: zataženo | J13: 11°C | K13: asfalt, polní cesty | L13: 4xZ4xANO
A14: 5xA10 | B14: 5 | C14: Běh pod Pálavou | D14: A10 | E14: Běh 9,8 km | F14: 9.8 | H14: Ano | K14: silnice, terén | L14: 5xA10xANO
A15: 6xA10 | B15: 6 | C15: Vánoční Běh Elektrokov Znojmo | D15: A10 | E15: Běh 10,58 km | F15: 10.58 | H15: Ano | I15: zataženo | J15: 0°C | K15: asfalt | L15: 6xA10xANO
A16: 7xM10 | B16: 7 | C16: Silvestrovský běh Třebíč | D16: M10 | E16: Muži 10,2 km | F16: 10.2 | H16: Ano | K16: asfalt | L16: 7xM10xANO
A17: 7xM5 | B17: 7 | C17: Silvestrovský běh Třebíč | D17: M5 | E17: Muži 5 km | F17: 5 | H17: Ne | K17: asfalt | L17: 7xM5xNE
A18: 7xZ10 | B18: 7 | C18: Silvestrovský běh Třebíč | D18: Z10 | E18: Ženy 10,2 km | F18: 10.2 | H18: Ne | K18: asfalt | L18: 7xZ10xNE
A19: 7xZ5 | B19: 7 | C19: Silvestrovský běh Třebíč | D19: Z5 | E19: Ženy 5 km | F19: 5 | H19: Ano | K19: asfalt | L19: 7xZ5xANO
A20: 8xM6 | B20: 8 | C20: VC Vinných sklepů Lechovice | D20: M6 | E20: Muži 6,4 km | F20: 6.4 | H20: Ano | K20: asfalt | L20: 8xM6xANO
A21: 8xZ3 | B21: 8 | C21: VC Vinných sklepů Lechovice | D21: Z3 | E21: Ženy 3,2 km | F21: 3.2 | H21: Ano | K21: asfalt | L21: 8xZ3xANO
A22: 9xHM2 | B22: 9 | C22: MirRunCup | D22: HM2 | E22: Hobby Muži 2 km | F22: 2.034 | H22: Ne | K22: asfalt | L22: 9xHM2xNE
A23: 9xHZ2 | B23: 9 | C23: MirRunCup | D23: HZ2 | E23: Hobby Ženy 2 km | F23: 2.034 | H23: Ne | K23: asfalt | L23: 9xHZ2xNE
A24: 9xM8 | B24: 9 | C24: MirRunCup | D24: M8 | E24: Muži 8,1 km | F24: 8.136 | H24: Ano | K24: asfalt | L24: 9xM8xANO
A25: 9xZ4 | B25: 9 | C25: MirRunCup | D25: Z4 | E25: Ženy 4,1 km | F25: 4.068 | H25: Ano | K25: asfalt | L25: 9xZ4xANO
A26: 10x100 | B26: 10 | C26: Běh o pohár starosty Znojmo | D26: 100 | E26: Děti 100 m | F26: 0.1 | H26: Ne | K26: dlažba | L26: 10x100xNE
A27: 10x200 | B27: 10 | C27: Běh o pohár starosty Znojmo | D27: 200 | E27: Žáci ml. 200 m | F27: 0.2 | H27: Ne | K27: dlažba | L27: 10x200xNE
A28: 10x400 | B28: 10 | C28: Běh o pohár starosty Znojmo | D28: 400 | E28: Žáci st. 400 m | F28: 0.4 | H28: Ne | K28: dlažba | L28: 10x400xNE
A29: 10x800 | B29: 10 | C29: Běh o pohár starosty Znojmo | D29: 800 | E29: dorostenci 800 m | F29: 0.8 | H29: Ne | K29: dlažba | L29: 10x800xNE
A30: 10xH2 | B30: 10 | C30: Běh o pohár starosty Znojmo | D30: H2 | E30: Hobby 1,75 km | F30: 1.75 | H30: Ne | K30: dlažba, zpevněný terén | L30: 10xH2xNE
A31: 10xJ2 | B31: 10 | C31: Běh o pohár starosty Znojmo | D31: J2 | E31: Junioři 1,75 km | F31: 1.75 | H31: Ne | K31: dlažba, zpevněný terén | L31: 10xJ2xNE
A32: 10xM7 | B32: 10 | C32: Běh o pohár starosty Znojmo | D32: M7 | E32: Muži 7 km | F32: 7 | H32: Ano | K32: dlažba, zpevněný terén | L32: 10xM7xANO
A33: 10xZ3 | B33: 10 | C33: Běh o pohár starosty Znojmo | D33: Z3 | E33: Ženy 3,5 km | F33: 3.5 | H33: Ano | K33: dlažba, zpevněný terén | L33: 10xZ3xANO
A34: =B34&"x"&D34 -> x | L34: =B34&"x"&D34&"x"&UPPER(H34) -> xx
A35: x | L35: xx
A36: x | L36: xx
A37: x | L37: xx
A38: x | L38: xx
A39: x | L39: xx
A40: x | L40: xx
A41: x | L41: xx
A42: x | L42: xx
A43: x | L43: xx
A44: x | L44: xx
A45: x | L45: xx
A46: x | L46: xx
A47: x | L47: xx
A48: x | L48: xx
A49: x | L49: xx
A50: x | L50: xx
A51: x | L51: xx
A52: x | L52: xx
A53: x | L53: xx
A54: x | L54: xx
A55: x | L55: xx
A56: x | L56: xx
A57: x | L57: xx
A58: x | L58: xx
A59: x | L59: xx
A60: x | L60: xx
A61: x | L61: xx
A62: x | L62: xx
A63: x | L63: xx
A64: x | L64: xx
A65: x | L65: xx
A66: =B66&"x"&D66 -> x | L66: =B66&"x"&D66&"x"&UPPER(H66) -> xx
A67: x | L67: xx
A68: x | L68: xx
A69: x | L69: xx
A70: x | L70: xx
A71: x | L71: xx
A72: x | L72: xx
A73: x | L73: xx
A74: x | L74: xx
A75: x | L75: xx
A76: x | L76: xx
A77: x | L77: xx
A78: x | L78: xx
A79: x | L79: xx
A80: x | L80: xx
A81: x | L81: xx
A82: x | L82: xx
A83: x | L83: xx
A84: x | L84: xx
A85: x | L85: xx
A86: x | L86: xx
A87: x | L87: xx
A88: x | L88: xx
A89: x | L89: xx
A90: x | L90: xx
A91: x | L91: xx
A92: x | L92: xx
A93: x | L93: xx
A94: x | L94: xx
A95: x | L95: xx
A96: x | L96: xx
A97: x | L97: xx
A98: =B98&"x"&D98 -> x | L98: xx
A99: x | L99: xx
A100: x | L100: xx

Sheet Kategorie ZBP
A1: ID | B1: Pohlaví | C1: OD | D1: DO | E1: Kategorie | F1: Název kategorie
A2: =IF(B2<>"",UPPER(B2)&TEXT(C2,"0000"),"ZZ") -> M0001 | B2: m | C2: 1 | D2: 1959 | E2: MD | F2: Muži nad 60
A3: M1960 | B3: m | C3: 1960 | D3: 1969 | E3: MC | F3: Muži 50 - 59
A4: M1970 | B4: m | C4: 1970 | D4: 1979 | E4: MB | F4: Muži 40 - 49
A5: M1980 | B5: m | C5: 1980 | D5: 2019 | E5: MA | F5: Muži do 39
A6: Z0001 | B6: z | C6: 1 | D6: 1974 | E6: ZC | F6: Ženy nad 45
A7: Z1975 | B7: z | C7: 1975 | D7: 1984 | E7: ZB | F7: Ženy 35 - 44
A8: Z1985 | B8: z | C8: 1985 | D8: 2019 | E8: ZA | F8: Ženy do 34
A9: ZZ
A10: ZZ
A11: ZZ
A12: ZZ
A13: ZZ
A14: ZZ
A15: ZZ
A16: ZZ
A17: ZZ
A18: ZZ
A19: ZZ
A20: ZZ
A21: ZZ
A22: ZZ
A23: ZZ
A24: ZZ
A25: ZZ
A26: ZZ
A27: ZZ
A28: ZZ
A29: ZZ
A30: ZZ

Sheet Kategorie lokální
A1: ID | B1: ID závodu | C1: Pohlaví | D1: OD | E1: DO | F1: Kategorie | G1: Název kategorie
A2: =IF(B2<>"",TEXT(B2,"000")&UPPER(C2)&TEXT(D2,"0000"),"X") -> 001M0001 | B2: 1 | C2: m | D2: 1 | E2: 1949 | F2: LME | G2: L: Muži nad 70
A3: 001M1950 | B3: 1 | C3: m | D3: 1950 | E3: 1959 | F3: LMD | G3: L: Muži 60 - 69
A4: 001M1960 | B4: 1 | C4: m | D4: 1960 | E4: 1969 | F4: LMC | G4: L: Muži 50 - 59
A5: 001M1970 | B5: 1 | C5: m | D5: 1970 | E5: 1979 | F5: LMB | G5: L: Muži 40 - 49
A6: 001M1980 | B6: 1 | C6: m | D6: 1980 | E6: 2019 | F6: LMA | G6: L: Muži do 39
A7: 001Z0001 | B7: 1 | C7: z | D7: 1 | E7: 1974 | F7: LZC | G7: L: Ženy od 45
A8: 001Z1975 | B8: 1 | C8: z | D8: 1975 | E8: 1984 | F8: LZB | G8: L: Ženy 35 - 44
A9: 001Z1985 | B9: 1 | C9: z | D9: 1985 | E9: 2019 | F9: LZA | G9: L: Ženy do 34
A10: 002M0001 | B10: 2 | C10: m | D10: 1 | E10: 1959 | F10: LMD | G10: L: Muži od 60
A11: 002M1960 | B11: 2 | C11: m | D11: 1960 | E11: 1969 | F11: LMC | G11: L: Muži 50 - 59
A12: 002M1970 | B12: 2 | C12: m | D12: 1970 | E12: 1979 | F12: LMB | G12: L: Muži 40 - 49
A13: 002M1980 | B13: 2 | C13: m | D13: 1980 | E13: 2019 | F13: LMA | G13: L: Muži do 39
A14: 002Z0001 | B14: 2 | C14: z | D14: 1 | E14: 1974 | F14: LZC | G14: L: Ženy od 35
A15: 002Z1975 | B15: 2 | C15: z | D15: 1975 | E15: 1984 | F15: LZB | G15: L: Ženy od 35
A16: 002Z1985 | B16: 2 | C16: z | D16: 1985 | E16: 2019 | F16: LZA | G16: L: Ženy do 34
A17: 003M0001 | B17: 3 | C17: m | D17: 1 | E17: 1958 | F17: LMD | G17: L: Muži nad 60
A18: 003M1959 | B18: 3 | C18: m | D18: 1959 | E18: 1968 | F18: LMC | G18: L: Muži 50 - 59
A19: 003M1969 | B19: 3 | C19: m | D19: 1969 | E19: 1978 | F19: LMB | G19: L: Muži 40 - 49
A20: 003M1979 | B20: 3 | C20: m | D20: 1979 | E20: 2018 | F20: LMA | G20: L: Muži do 39
A21: 003Z0001 | B21: 3 | C21: z | D21: 1 | E21: 1973 | F21: LZC | G21: L: Ženy nad 45
A22: 003Z1974 | B22: 3 | C22: z | D22: 1974 | E22: 1983 | F22: LZB | G22: L: Ženy 35 - 44
A23: 003Z1984 | B23: 3 | C23: z | D23: 1984 | E23: 2018 | F23: LZA | G23: L: Ženy do 34
A24: 004M0001 | B24: 4 | C24: m | D24: 1 | E24: 1958 | F24: LMD | G24: L: Muži nad 60
A25: 004M1959 | B25: 4 | C25: m | D25: 1959 | E25: 1968 | F25: LMC | G25: L: Muži 50 - 59
A26: 004M1969 | B26: 4 | C26: m | D26: 1969 | E26: 1978 | F26: LMB | G26: L: Muži 40 - 49
A27: 004M1979 | B27: 4 | C27: m | D27: 1979 | E27: 2018 | F27: LMA | G27: L: Muži do 39
A28: 004Z0001 | B28: 4 | C28: z | D28: 1 | E28: 1973 | F28: LZC | G28: L: Ženy nad 45
A29: 004Z1974 | B29: 4 | C29: z | D29: 1974 | E29: 1983 | F29: LZB | G29: L: Ženy 35 - 44
A30: 004Z1984 | B30: 4 | C30: z | D30: 1984 | E30: 2018 | F30: LZA | G30: L: Ženy do 34
A31: 005M0001 | B31: 5 | C31: m | D31: 1 | E31: 1948 | F31: LME | G31: L: Muži nad 70
A32: 005M1949 | B32: 5 | C32: m | D32: 1949 | E32: 1958 | F32: LMD | G32: L: Muži 60 - 69
A33: 005M1959 | B33: 5 | C33: m | D33: 1959 | E33: 1968 | F33: LMC | G33: L: Muži 50 - 59
A34: 005M1969 | B34: 5 | C34: m | D34: 1969 | E34: 1978 | F34: LMB | G34: L: Muži 40 - 49
A35: 005M1979 | B35: 5 | C35: m | D35: 1979 | E35: 1998 | F35: LMA | G35: L: Muži do 39
A36: 005M1999 | B36: 5 | C36: m | D36: 1999 | E36: 2018 | F36: LDM | G36: L: Dorostenci
A37: 005Z0001 | B37: 5 | C37: z | D37: 1 | E37: 1963 | F37: LZD | G37: L: Ženy nad 55
A38: 005Z1964 | B38: 5 | C38: z | D38: 1964 | E38: 1973 | F38: LZC | G38: L: Ženy 45 - 54
A39: 005Z1974 | B39: 5 | C39: z | D39: 1974 | E39: 1983 | F39: LZB | G39: L: Ženy 35 - 44
A40: 005Z1984 | B40: 5 | C40: z | D40: 1984 | E40: 1998 | F40: LZA | G40: L: Ženy do 34
A41: 005Z1999 | B41: 5 | C41: z | D41: 1999 | E41: 2018 | F41: LDZ | G41: L: Dorostenky
A42: 006M0001 | B42: 6 | C42: m | D42: 1 | E42: 1948 | F42: LME | G42: L: Muži nad 70
A43: 006M1949 | B43: 6 | C43: m | D43: 1949 | E43: 1958 | F43: LMD | G43: L: Muži 60 - 69
A44: 006M1959 | B44: 6 | C44: m | D44: 1959 | E44: 1968 | F44: LMC | G44: L: Muži 50 - 59
A45: 006M1969 | B45: 6 | C45: m | D45: 1969 | E45: 1978 | F45: LMB | G45: L: Muži 40 - 49
A46: 006M1979 | B46: 6 | C46: m | D46: 1979 | E46: 1999 | F46: LMA | G46: L: Muži do 39
A47: 006M2000 | B47: 6 | C47: m | D47: 2000 | E47: 2018 | F47: LDM | G47: L: Dorostenci
A48: 006Z0001 | B48: 6 | C48: z | D48: 1 | E48: 1973 | F48: LZC | G48: L: Ženy nad 45
A49: 006Z1974 | B49: 6 | C49: z | D49: 1974 | E49: 1983 | F49: LZB | G49: L: Ženy 35 - 44
A50: 006Z1984 | B50: 6 | C50: z | D50: 1984 | E50: 1999 | F50: LZA | G50: L: Ženy do 34
A51: 006Z2000 | B51: 6 | C51: z | D51: 2000 | E51: 2018 | F51: LDZ | G51: L: Dorostenky
A52: 007M0001 | B52: 7 | C52: m | D52: 1 | E52: 1948 | F52: LME | G52: L: Muži nad 70
A53: 007M1949 | B53: 7 | C53: m | D53: 1949 | E53: 1958 | F53: LMD | G53: L: Muži 60 - 69
A54: 007M1959 | B54: 7 | C54: m | D54: 1959 | E54: 1968 | F54: LMC | G54: L: Muži 50 - 59
A55: 007M1969 | B55: 7 | C55: m | D55: 1969 | E55: 1978 | F55: LMB | G55: L: Muži 40 - 49
A56: 007M1979 | B56: 7 | C56: m | D56: 1979 | E56: 2000 | F56: LMA | G56: L: Muži do 39
A57: 007M2001 | B57: 7 | C57: m | D57: 2001 | E57: 2018 | F57: LDM | G57: L: Dorostenci
A58: 007Z0001 | B58: 7 | C58: z | D58: 1 | E58: 1973 | F58: LZC | G58: L: Ženy nad 45
A59: 007Z1974 | B59: 7 | C59: z | D59: 1974 | E59: 1983 | F59: LZB | G59: L: Ženy 35 - 44
A60: 007Z1984 | B60: 7 | C60: z | D60: 1984 | E60: 2000 | F60: LZA | G60: L: Ženy do 34
A61: 007Z2001 | B61: 7 | C61: z | D61: 2001 | E61: 2018 | F61: LDZ | G61: L: Dorostenky
A62: 008M0001 | B62: 8 | C62: m | D62: 1 | E62: 1959 | F62: MD | G62: L: Muži nad 60
A63: 008M1960 | B63: 8 | C63: m | D63: 1960 | E63: 1969 | F63: MC | G63: L: Muži 50 - 59
A64: 008M1970 | B64: 8 | C64: m | D64: 1970 | E64: 1979 | F64: MB | G64: L: Muži 40 - 49
A65: 008M1980 | B65: 8 | C65: m | D65: 1980 | E65: 2018 | F65: MA | G65: L: Muži do 39
A66: =IF(B66<>"",TEXT(B66,"000")&UPPER(C66)&TEXT(D66,"0000"),"X") -> 008Z0001 | B66: 8 | C66: z | D66: 1 | E66: 1974 | F66: ZC | G66: L: Ženy nad 45
A67: 008Z1975 | B67: 8 | C67: z | D67: 1975 | E67: 1984 | F67: ZB | G67: L: Ženy 35 - 44
A68: 008Z1985 | B68: 8 | C68: z | D68: 1985 | E68: 2018 | F68: ZA | G68: L: Ženy do 34
A69: 009M0001 | B69: 9 | C69: m | D69: 1 | E69: 1949 | F69: ME | G69: L: Muži nad 70
A70: 009M1950 | B70: 9 | C70: m | D70: 1950 | E70: 1959 | F70: MD | G70: L: Muži 60 - 69
A71: 009M1960 | B71: 9 | C71: m | D71: 1960 | E71: 1969 | F71: MC | G71: L: Muži 50 - 59
A72: 009M1970 | B72: 9 | C72: m | D72: 1970 | E72: 1979 | F72: MB | G72: L: Muži 40 - 49
A73: 009M1980 | B73: 9 | C73: m | D73: 1980 | E73: 2018 | F73: MA | G73: L: Muži do 39
A74: 009Z0001 | B74: 9 | C74: z | D74: 1 | E74: 1974 | F74: ZC | G74: L: Ženy nad 45
A75: 009Z1975 | B75: 9 | C75: z | D75: 1975 | E75: 1984 | F75: ZB | G75: L: Ženy 35 - 44
A76: 009Z1985 | B76: 9 | C76: z | D76: 1985 | E76: 2018 | F76: ZA | G76: L: Ženy do 34
A77: 010M0001 | B77: 10 | C77: m | D77: 1 | E77: 1959 | F77: MD | G77: L: Muži 60 - 69
A78: 010M1960 | B78: 10 | C78: m | D78: 1960 | E78: 1969 | F78: MC | G78: L: Muži 50 - 59
A79: 010M1970 | B79: 10 | C79: m | D79: 1970 | E79: 1979 | F79: MB | G79: L: Muži 40 - 49
A80: 010M1980 | B80: 10 | C80: m | D80: 1980 | E80: 2000 | F80: MA | G80: L: Muži do 39
A81: 010M2001 | B81: 10 | C81: m | D81: 2001 | E81: 2003 | F81: JA | G81: L: Junioři
A82: 010M2004 | B82: 10 | C82: m | D82: 2004 | E82: 2006 | F82: DOA | G82: L: Dorostenci
A83: 010M2007 | B83: 10 | C83: m | D83: 2007 | E83: 2009 | F83: ZSA | G83: L: Starší žáci
A84: 010M2010 | B84: 10 | C84: m | D84: 2010 | E84: 2012 | F84: ZMA | G84: L: Mladší žáci
A85: 010M2013 | B85: 10 | C85: m | D85: 2013 | E85: 2019 | F85: DPA | G85: L: Předškoláci
A86: 010Z0001 | B86: 10 | C86: z | D86: 1 | E86: 1974 | F86: ZC | G86: L: Ženy nad 45
A87: 010Z1975 | B87: 10 | C87: z | D87: 1975 | E87: 1984 | F87: ZB | G87: L: Ženy 35 - 44
A88: 010Z1985 | B88: 10 | C88: z | D88: 1985 | E88: 2000 | F88: ZA | G88: L: Ženy do 34
A89: 010Z2001 | B89: 10 | C89: z | D89: 2001 | E89: 2003 | F89: JB | G89: L: Juniorky
A90: 010Z2004 | B90: 10 | C90: z | D90: 2004 | E90: 2006 | F90: DOB | G90: L: Dorostenky
A91: 010Z2007 | B91: 10 | C91: z | D91: 2007 | E91: 2009 | F91: ZSB | G91: L: Starší žačky
A92: 010Z2010 | B92: 10 | C92: z | D92: 2010 | E92: 2012 | F92: ZMB | G92: L: Mladší žačky
A93: 010Z2013 | B93: 10 | C93: z | D93: 2013 | E93: 2019 | F93: DPB | G93: L: Předškolačky
A94: X
A95: X
A96: X
A97: X
A98: X
A99: X
A100: X
A101: X
A102: X
A103: X
A104: X
A105: X
A106: X
A107: X
A108: X
A109: X
A110: X
A111: X
A112: X
A113: X
A114: X
A115: X
A116: X
A117: X
A118: X
A119: X
A120: X
A121: X
A122: X
A123: X
A124: X
A125: X
A126: X
A127: X
A128: X
A129: X
A130: =IF(B130<>"",TEXT(B130,"000")&UPPER(C130)&TEXT(D130,"0000"),"X") -> X
A131: X
A132: X
A133: X
A134: X
A135: X
A136: X
A137: X
A138: X
A139: X
A140: X
A141: X
A142: X
A143: X
A144: X
A145: X
A146: X
A147: X
A148: X
A149: X
A150: X
A151: X
A152: X
A153: X
A154: X
A155: X
A156: X
A157: X
A158: X
A159: X
A160: X
A161: X
A162: X
A163: X
A164: X
A165: X
A166: X
A167: X
A168: X
A169: X
A170: X
A171: X
A172: X
A173: X
A174: X
A175: X
A176: X
A177: X
A178: X
A179: X
A180: X
A181: X
A182: X
A183: X
A184: X
A185: X
A186: X
A187: X
A188: X
A189: X
A190: X
A191: X
A192: X
A193: X
A194: =IF(B194<>"",TEXT(B194,"000")&UPPER(C194)&TEXT(D194,"0000"),"X") -> X
A195: X
A196: X
A197: X
A198: X
A199: X
A200: X
... 100 more rows

Sheet Body ZBP
A1: Pořadí v kategorii | B1: Body
A2: 1 | B2: 30
A3: 2 | B3: 25
A4: 3 | B4: 21
A5: 4 | B5: 18
A6: 5 | B6: 16
A7: 6 | B7: 15
A8: 7 | B8: 14
A9: 8 | B9: 13
A10: 9 | B10: 12
A11: 10 | B11: 11
A12: 11 | B12: 10
A13: 12 | B13: 9
A14: 13 | B14: 8
A15: 14 | B15: 7
A16: 15 | B16: 6
A17: 16 | B17: 5
A18: 17 | B18: 4
A19: 18 | B19: 3
A20: 19 | B20: 2
A21: 20 | B21: 1

Sheet Config
A1: ID závodu | B1: Název závodu | C1: Seznam závodů je aktuální? | D1: TRUE | G1: Výsleky podle lokálních kategorií | L1: Trať: | M1: Trat (Nazev Trate) | P1: Délka: | Q1: Delka | R1: km
A2: 1 | B2: 1: Borovinská desítka | C2: Konfigurace aktuální a beze změn? | D2: TRUE | G2: Poř. | H2: St. č. | I2: Příjmení | J2: Jméno | K2: Klub | L2: Rok narození | M2: Celkové pořadí | N2: Kat. | O2: Kat. ZBP | P2: Čas | Q2: Body ZBP | R2: Čas na 1 km
A3: 2 | B3: 2: „Sokolák“ Plaveč u Znojma | C3: Data beze změn? | D3: TRUE | G3: Kat. | H3: Kat Popis
A4: 3 | B4: 3: Krumlovský běh | C4: Výběr závodu ve výsledcích beze změn? | D4: TRUE | P4: 0 | R4: 00:00:00
A5: 4 | B5: 4: Běh Avanti | C5: Chyby v "Registrace ZBP" | D5: =IF(($F$5-$E$5)<>0,TRUE,FALSE) -> FALSE | E5: =COUNT('Registrace ZBP'!V:V) -> 111 | F5: =SUM('Registrace ZBP'!V:V) -> 111 | P5: 0 | R5: 00:00:00
A6: 5 | B6: 5: Běh pod Pálavou | C6: Chyby v "Stopky" | D6: =IF(($F$6-$E$6)<>0,TRUE,FALSE) -> FALSE | E6: =COUNTA(Stopky!G:G)-1 -> 2999 | F6: =COUNTIF(Stopky!G:G,"OK") -> 2999 | G6: A | H6: B | I6: C | J6: D | K6: E | L6: F | M6: G | N6: H | O6: I | P6: J | Q6: K | R6: L
A7: 6 | B7: 6: Vánoční Běh Elektrokov Znojmo | C7: Nevalidní data v "Registrace ZBP" | D7: FALSE
A8: 7 | B8: 7: Silvestrovský běh Třebíč | C8: Nevalidní data v "Stopky" | D8: FALSE
A9: 8 | B9: 8: VC Vinných sklepů Lechovice | C9: Vkládat pouze hodnoty | D9: TRUE
A10: 9 | B10: 9: MirRunCup | C10: Aktivovat SheetChange | D10: TRUE
A11: 10 | B11: 10: Běh o pohár starosty Znojmo | C11: Vyhodnocení ZBP je aktuální | D11: TRUE
C12: Zapnout logování | D12: FALSE
C13: Vynutit výchozí závod | D13: 2 | E13: =_xlfn.IFNA(MATCH(D13,$A$2:$A$100,0),"X") -> 2 | F13: =IFERROR(LOOKUP(2,1/(A:A<>""),ROW(A:A)),0) -> 11
O14: Trať | P14: <trat popis>
G15: <ERRORs> | O15: Závod | P15: <zavod popis>
G16: Příjmení | H16: Jméno | I16: Poh. | J16: Rok narození | K16: Kat. ZBP | L16: Pořadí kat. ZBP | M16: Pořadí celkové | N16: Body Top 5 | O16: Body Celkem | P16: <zavod>
P17: <trat>
G18: <Kat.>
L19: 999 | M19: 999
L20: 999 | M20: 999

Sheet Log
A1: Makro | B1: Start | C1: Konec | D1: Trvání | E1: Závod
